Workbook

Sheet UdenMakro
C2: 1. Ups… DET VIRKER IKKE | L2: 3. Når du har aktiveret indholdet,
C3: Men det kan det heldigvis komme til. | L3: =HYPERLINK("[PrivatBudget.xlsm]'Oversigt Total'!A1","KLIK HER for at fortsætte") -> KLIK HER for at fortsætte
C5: 2. Klik på knappen for at tillade programmet at køre
C16: Det KAN se lidt anderledes ud hos dig, men overordnet set er det bare vores makroer som skal aktiveres før du
C17: kan bruge vores regneark.
C18: Undskyld forstyrelsen - vi håber du bliver glad for værktøjet. Aktiver indholdet for at komme videre.
C19: https://www.excel-regneark.dk

Sheet Oversigt Total
G1: PrivatBudget | J1: 3.4
H3: ="Budget for perioden: "&TEXT('Oversigt Total'!C15,"mmmm åååå") & " - " &TEXT('Oversigt Total'!N15,"mmmm åååå") -> Budget for perioden: januar 2024 - december 2024
G4: År | P4: Navigation
B5: Start saldo: | C5: 1000 | D5: Optimal slutsaldo | F5: Indtægter: | G5: =SUM(MånedsBudget!B9:B13) -> 1650 | H5: =G5/12 -> 137.5 | J5: Saldo nu: | K5: =IF(ISERROR(VLOOKUP(TODAY(),'Budget indtastning'!$B$5:$C$371,2,FALSE)),0,VLOOKUP(TODAY(),'Budget indtastning'!$B$5:$C$371,2,FALSE)) -> 1050
B6: Slut saldo: | C6: =N34 -> 1050 | D6: =-1*MINA('Budget indtastning'!C6:C371)+C5 -> 0 | F6: Ekstra indbetalinger | G6: =MånedsBudget!B31 -> 0 | H6: =G6/12 -> 0 | J6: Maksimum saldo: | K6: =MAXA(C23:N23) -> 1650
B7: =IF(C7>=0,"Opsparing:","Underskud:") -> Opsparing: | C7: =C6-C5 -> 50 | F7: Indtægter total: | G7: =SUM(C16:N16) -> 1650 | H7: 137.5 | J7: Minimum saldo: | K7: =MINA(C22:N22) -> 1000
J8: Dage med minimum saldo: | K8: =COUNTIF('Budget indtastning'!C6:C371,K7) -> 1
F9: Budgetudgifter | G9: =SUM(MånedsBudget!B35:B134) -> 1600 | H9: 133.3333333 | J9: Dage med overtræk: | K9: =COUNTIF('Budget indtastning'!C6:C371,"<0") -> 0
F10: Ekstra hævninger | G10: =MånedsBudget!B32 -> 0 | H10: 0 | J10: =IF(G13>0,"I alt opsparing i %: ",IF(G13<0,"I alt nedsparing i %: ","Kontoen går lige op med: ")) -> I alt opsparing i %: | K10: =IF(ISERROR(G13/G7),0,G13/G7) -> 0.0303030303 | P10: Opsætning
F11: Udgifter total: | G11: =SUM(C17:N17) -> 1600 | H11: 133.3333333
J12: Prøve transaktion: | P12: Budget start
F13: Balance: | G13: =G7-G11 -> 50 | H13: 4.166666667 | J13: Dato: | K13: 2024-06-06 | P13: Måned | Q13: År
P14: 2019-01-01 | Q14: 2024
B15: måned | C15: =TRANSPOSE(' '!C14:C25) -> 2024-01-01 | D15: 2024-02-01 | E15: 2024-03-01 | F15: 2024-04-01 | G15: 2024-05-01 | H15: 2024-06-01 | I15: 2024-07-01 | J15: 2024-08-01 | K15: 2024-09-01 | L15: 2024-10-01 | M15: 2024-11-01 | N15: 2024-12-01
B16: Indtægter | C16: =ROUND(MånedsBudget!F139,2) -> 1650 | D16: =ROUND(MånedsBudget!G139,2) -> 0 | E16: =ROUND(MånedsBudget!H139,2) -> 0 | F16: =ROUND(MånedsBudget!I139,2) -> 0 | G16: =ROUND(MånedsBudget!J139,2) -> 0 | H16: =ROUND(MånedsBudget!K139,2) -> 0 | I16: =ROUND(MånedsBudget!L139,2) -> 0 | J16: =ROUND(MånedsBudget!M139,2) -> 0 | K16: =ROUND(MånedsBudget!N139,2) -> 0 | L16: =ROUND(MånedsBudget!O139,2) -> 0 | M16: =ROUND(MånedsBudget!P139,2) -> 0 | N16: =ROUND(MånedsBudget!Q139,2) -> 0
B17: Udgifter | C17: =ROUND(MånedsBudget!F140,2) -> 1600 | D17: =ROUND(MånedsBudget!G140,2) -> 0 | E17: =ROUND(MånedsBudget!H140,2) -> 0 | F17: =ROUND(MånedsBudget!I140,2) -> 0 | G17: =ROUND(MånedsBudget!J140,2) -> 0 | H17: =ROUND(MånedsBudget!K140,2) -> 0 | I17: =ROUND(MånedsBudget!L140,2) -> 0 | J17: =ROUND(MånedsBudget!M140,2) -> 0 | K17: =ROUND(MånedsBudget!N140,2) -> 0 | L17: =ROUND(MånedsBudget!O140,2) -> 0 | M17: =ROUND(MånedsBudget!P140,2) -> 0 | N17: =ROUND(MånedsBudget!Q140,2) -> 0
B18: Balance | C18: =ROUND(C16-C17,2) -> 50 | D18: 0 | E18: 0 | F18: 0 | G18: 0 | H18: 0 | I18: 0 | J18: 0 | K18: 0 | L18: 0 | M18: 0 | N18: 0
B20: Snit Saldo | C20: =ROUND(SUMPRODUCT((MONTH('Budget indtastning'!$B$6:$B$371)=MONTH(C15))*(YEAR('Budget indtastning'!$B$6:$B$371)=YEAR(C15))+0,'Budget indtastning'!$C$6:$C$371)/' '!$E14,2) -> 1077.42 | D20: =ROUND(SUMPRODUCT((MONTH('Budget indtastning'!$B$6:$B$371)=MONTH(D15))*(YEAR('Budget indtastning'!$B$6:$B$371)=YEAR(D15))+0,'Budget indtastning'!$C$6:$C$371)/' '!$E15,2) -> 1050 | E20: =ROUND(SUMPRODUCT((MONTH('Budget indtastning'!$B$6:$B$371)=MONTH(E15))*(YEAR('Budget indtastning'!$B$6:$B$371)=YEAR(E15))+0,'Budget indtastning'!$C$6:$C$371)/' '!$E16,2) -> 1050 | F20: =ROUND(SUMPRODUCT((MONTH('Budget indtastning'!$B$6:$B$371)=MONTH(F15))*(YEAR('Budget indtastning'!$B$6:$B$371)=YEAR(F15))+0,'Budget indtastning'!$C$6:$C$371)/' '!$E17,2) -> 1050 | G20: =ROUND(SUMPRODUCT((MONTH('Budget indtastning'!$B$6:$B$371)=MONTH(G15))*(YEAR('Budget indtastning'!$B$6:$B$371)=YEAR(G15))+0,'Budget indtastning'!$C$6:$C$371)/' '!$E18,2) -> 1050 | H20: =ROUND(SUMPRODUCT((MONTH('Budget indtastning'!$B$6:$B$371)=MONTH(H15))*(YEAR('Budget indtastning'!$B$6:$B$371)=YEAR(H15))+0,'Budget indtastning'!$C$6:$C$371)/' '!$E19,2) -> 1050 | I20: =ROUND(SUMPRODUCT((MONTH('Budget indtastning'!$B$6:$B$371)=MONTH(I15))*(YEAR('Budget indtastning'!$B$6:$B$371)=YEAR(I15))+0,'Budget indtastning'!$C$6:$C$371)/' '!$E20,2) -> 1050 | J20: =ROUND(SUMPRODUCT((MONTH('Budget indtastning'!$B$6:$B$371)=MONTH(J15))*(YEAR('Budget indtastning'!$B$6:$B$371)=YEAR(J15))+0,'Budget indtastning'!$C$6:$C$371)/' '!$E21,2) -> 1050 | K20: =ROUND(SUMPRODUCT((MONTH('Budget indtastning'!$B$6:$B$371)=MONTH(K15))*(YEAR('Budget indtastning'!$B$6:$B$371)=YEAR(K15))+0,'Budget indtastning'!$C$6:$C$371)/' '!$E22,2) -> 1050 | L20: =ROUND(SUMPRODUCT((MONTH('Budget indtastning'!$B$6:$B$371)=MONTH(L15))*(YEAR('Budget indtastning'!$B$6:$B$371)=YEAR(L15))+0,'Budget indtastning'!$C$6:$C$371)/' '!$E23,2) -> 1050 | M20: =ROUND(SUMPRODUCT((MONTH('Budget indtastning'!$B$6:$B$371)=MONTH(M15))*(YEAR('Budget indtastning'!$B$6:$B$371)=YEAR(M15))+0,'Budget indtastning'!$C$6:$C$371)/' '!$E24,2) -> 1050 | N20: =ROUND(SUMPRODUCT((MONTH('Budget indtastning'!$B$6:$B$371)=MONTH(N15))*(YEAR('Budget indtastning'!$B$6:$B$371)=YEAR(N15))+0,'Budget indtastning'!$C$6:$C$371)/' '!$E25,2) -> 1050
P21: Avanceret
B22: Min Saldo | C22: =ROUND(MIN(IF(MONTH('Budget indtastning'!$B$6:$B$371)=MONTH(C$15)*(YEAR('Budget indtastning'!$B$6:$B$371)=YEAR(C$15)),'Budget indtastning'!$C$6:$C$371)),2) -> 1000 | D22: =ROUND(MIN(IF(MONTH('Budget indtastning'!$B$6:$B$371)=MONTH(D$15)*(YEAR('Budget indtastning'!$B$6:$B$371)=YEAR(D$15)),'Budget indtastning'!$C$6:$C$371)),2) -> 1050 | E22: =ROUND(MIN(IF(MONTH('Budget indtastning'!$B$6:$B$371)=MONTH(E$15)*(YEAR('Budget indtastning'!$B$6:$B$371)=YEAR(E$15)),'Budget indtastning'!$C$6:$C$371)),2) -> 1050 | F22: =ROUND(MIN(IF(MONTH('Budget indtastning'!$B$6:$B$371)=MONTH(F$15)*(YEAR('Budget indtastning'!$B$6:$B$371)=YEAR(F$15)),'Budget indtastning'!$C$6:$C$371)),2) -> 1050 | G22: =ROUND(MIN(IF(MONTH('Budget indtastning'!$B$6:$B$371)=MONTH(G$15)*(YEAR('Budget indtastning'!$B$6:$B$371)=YEAR(G$15)),'Budget indtastning'!$C$6:$C$371)),2) -> 1050 | H22: =ROUND(MIN(IF(MONTH('Budget indtastning'!$B$6:$B$371)=MONTH(H$15)*(YEAR('Budget indtastning'!$B$6:$B$371)=YEAR(H$15)),'Budget indtastning'!$C$6:$C$371)),2) -> 1050 | I22: =ROUND(MIN(IF(MONTH('Budget indtastning'!$B$6:$B$371)=MONTH(I$15)*(YEAR('Budget indtastning'!$B$6:$B$371)=YEAR(I$15)),'Budget indtastning'!$C$6:$C$371)),2) -> 1050 | J22: =ROUND(MIN(IF(MONTH('Budget indtastning'!$B$6:$B$371)=MONTH(J$15)*(YEAR('Budget indtastning'!$B$6:$B$371)=YEAR(J$15)),'Budget indtastning'!$C$6:$C$371)),2) -> 1050 | K22: =ROUND(MIN(IF(MONTH('Budget indtastning'!$B$6:$B$371)=MONTH(K$15)*(YEAR('Budget indtastning'!$B$6:$B$371)=YEAR(K$15)),'Budget indtastning'!$C$6:$C$371)),2) -> 1050 | L22: =ROUND(MIN(IF(MONTH('Budget indtastning'!$B$6:$B$371)=MONTH(L$15)*(YEAR('Budget indtastning'!$B$6:$B$371)=YEAR(L$15)),'Budget indtastning'!$C$6:$C$371)),2) -> 1050 | M22: =ROUND(MIN(IF(MONTH('Budget indtastning'!$B$6:$B$371)=MONTH(M$15)*(YEAR('Budget indtastning'!$B$6:$B$371)=YEAR(M$15)),'Budget indtastning'!$C$6:$C$371)),2) -> 1050 | N22: =ROUND(MIN(IF(MONTH('Budget indtastning'!$B$6:$B$371)=MONTH(N$15)*(YEAR('Budget indtastning'!$B$6:$B$371)=YEAR(N$15)),'Budget indtastning'!$C$6:$C$371)),2) -> 1050
B23: Max Saldo | C23: =ROUND(MAX(IF(MONTH('Budget indtastning'!$B$6:$B$371)=MONTH(C$15)*(YEAR('Budget indtastning'!$B$6:$B$371)=YEAR(C$15)),'Budget indtastning'!$C$6:$C$371)),2) -> 1650 | D23: =ROUND(MAX(IF(MONTH('Budget indtastning'!$B$6:$B$371)=MONTH(D$15)*(YEAR('Budget indtastning'!$B$6:$B$371)=YEAR(D$15)),'Budget indtastning'!$C$6:$C$371)),2) -> 1050 | E23: =ROUND(MAX(IF(MONTH('Budget indtastning'!$B$6:$B$371)=MONTH(E$15)*(YEAR('Budget indtastning'!$B$6:$B$371)=YEAR(E$15)),'Budget indtastning'!$C$6:$C$371)),2) -> 1050 | F23: =ROUND(MAX(IF(MONTH('Budget indtastning'!$B$6:$B$371)=MONTH(F$15)*(YEAR('Budget indtastning'!$B$6:$B$371)=YEAR(F$15)),'Budget indtastning'!$C$6:$C$371)),2) -> 1050 | G23: =ROUND(MAX(IF(MONTH('Budget indtastning'!$B$6:$B$371)=MONTH(G$15)*(YEAR('Budget indtastning'!$B$6:$B$371)=YEAR(G$15)),'Budget indtastning'!$C$6:$C$371)),2) -> 1050 | H23: =ROUND(MAX(IF(MONTH('Budget indtastning'!$B$6:$B$371)=MONTH(H$15)*(YEAR('Budget indtastning'!$B$6:$B$371)=YEAR(H$15)),'Budget indtastning'!$C$6:$C$371)),2) -> 1050 | I23: =ROUND(MAX(IF(MONTH('Budget indtastning'!$B$6:$B$371)=MONTH(I$15)*(YEAR('Budget indtastning'!$B$6:$B$371)=YEAR(I$15)),'Budget indtastning'!$C$6:$C$371)),2) -> 1050 | J23: =ROUND(MAX(IF(MONTH('Budget indtastning'!$B$6:$B$371)=MONTH(J$15)*(YEAR('Budget indtastning'!$B$6:$B$371)=YEAR(J$15)),'Budget indtastning'!$C$6:$C$371)),2) -> 1050 | K23: =ROUND(MAX(IF(MONTH('Budget indtastning'!$B$6:$B$371)=MONTH(K$15)*(YEAR('Budget indtastning'!$B$6:$B$371)=YEAR(K$15)),'Budget indtastning'!$C$6:$C$371)),2) -> 1050 | L23: =ROUND(MAX(IF(MONTH('Budget indtastning'!$B$6:$B$371)=MONTH(L$15)*(YEAR('Budget indtastning'!$B$6:$B$371)=YEAR(L$15)),'Budget indtastning'!$C$6:$C$371)),2) -> 1050 | M23: =ROUND(MAX(IF(MONTH('Budget indtastning'!$B$6:$B$371)=MONTH(M$15)*(YEAR('Budget indtastning'!$B$6:$B$371)=YEAR(M$15)),'Budget indtastning'!$C$6:$C$371)),2) -> 1050 | N23: =ROUND(MAX(IF(MONTH('Budget indtastning'!$B$6:$B$371)=MONTH(N$15)*(YEAR('Budget indtastning'!$B$6:$B$371)=YEAR(N$15)),'Budget indtastning'!$C$6:$C$371)),2) -> 1050
C32: =PROPER(TEXT(TRANSPOSE(' '!C14:C25), "mmmm")) -> Januar | D32: Februar | E32: Marts | F32: April | G32: Maj | H32: Juni | I32: Juli | J32: August | K32: September | L32: Oktober | M32: November | N32: December
B33: Primo måned | C33: =ROUND(MånedsBudget!F136,2) -> 1000 | D33: =ROUND(MånedsBudget!G136,2) -> 1050 | E33: =ROUND(MånedsBudget!H136,2) -> 1050 | F33: =ROUND(MånedsBudget!I136,2) -> 1050 | G33: =ROUND(MånedsBudget!J136,2) -> 1050 | H33: =ROUND(MånedsBudget!K136,2) -> 1050 | I33: =ROUND(MånedsBudget!L136,2) -> 1050 | J33: =ROUND(MånedsBudget!M136,2) -> 1050 | K33: =ROUND(MånedsBudget!N136,2) -> 1050 | L33: =ROUND(MånedsBudget!O136,2) -> 1050 | M33: =ROUND(MånedsBudget!P136,2) -> 1050 | N33: =ROUND(MånedsBudget!Q136,2) -> 1050
B34: Ultimo måned | C34: =ROUND(MånedsBudget!F137,2) -> 1050 | D34: =ROUND(MånedsBudget!G137,2) -> 1050 | E34: =ROUND(MånedsBudget!H137,2) -> 1050 | F34: =ROUND(MånedsBudget!I137,2) -> 1050 | G34: =ROUND(MånedsBudget!J137,2) -> 1050 | H34: =ROUND(MånedsBudget!K137,2) -> 1050 | I34: =ROUND(MånedsBudget!L137,2) -> 1050 | J34: =ROUND(MånedsBudget!M137,2) -> 1050 | K34: =ROUND(MånedsBudget!N137,2) -> 1050 | L34: =ROUND(MånedsBudget!O137,2) -> 1050 | M34: =ROUND(MånedsBudget!P137,2) -> 1050 | N34: =ROUND(MånedsBudget!Q137,2) -> 1050

Sheet Budget indtastning
A1: =('Oversigt Total'!G1) -> PrivatBudget | C1: Indbetalinger → | Y1: Udgifter ↓→
A2: =TODAY() -> 2024-01-08
A3: Fremhæv aktive post | C3: ← Aktuel Saldo | D3: Indbetaling 1 | E3: Indbetaling 2 | F3: Indbetaling 3 | G3: Indbetaling 4 | H3: Indbetaling 5 | X3: Ekstra Indbetaling / hævning | Y3: Renter & gebyr | Z3: Budgetpost 1 | AA3: Budgetpost 2 | AB3: Budgetpost 3 | AC3: Budgetpost 4
A4: Nej
D5: =SUM(D6:D371) -> 0 | E5: =SUM(E6:E371) -> 1650 | F5: =SUM(F6:F371) -> 0 | G5: =SUM(G6:G371) -> 0 | H5: =SUM(H6:H371) -> 0 | I5: =SUM(I6:I371) -> 0 | J5: 0 | K5: 0 | L5: 0 | M5: 0 | N5: 0 | O5: 0 | P5: 0 | Q5: 0 | R5: 0 | S5: 0 | T5: 0 | U5: 0 | V5: 0 | W5: 0 | X5: 0 | Y5: =SUM(Y6:Y371) -> 0 | Z5: =SUM(Z6:Z371) -> 1000 | AA5: =SUM(AA6:AA371) -> 100 | AB5: =SUM(AB6:AB371) -> 300 | AC5: =SUM(AC6:AC371) -> 200 | AD5: =SUM(AD6:AD371) -> 0 | AE5: 0 | AF5: 0 | AG5: 0 | AH5: 0 | AI5: =SUM(AI6:AI371) -> 0 | AJ5: 0 | AK5: 0 | AL5: 0 | AM5: 0 | AN5: 0 | AO5: 0 | AP5: 0 | AQ5: 0 | AR5: 0 | AS5: 0 | AT5: 0 | AU5: 0 | AV5: 0 | AW5: 0 | AX5: 0 | AY5: 0 | AZ5: =SUM(AZ6:AZ371) -> 0 | BA5: 0 | BB5: 0 | BC5: 0 | BD5: 0 | BE5: 0 | BF5: 0 | BG5: 0 | BH5: 0 | BI5: 0 | BJ5: 0 | BK5: 0 | BL5: 0 | BM5: 0 | BN5: 0 | BO5: 0 | BP5: 0 | BQ5: 0 | BR5: 0 | BS5: 0 | BT5: 0 | BU5: 0 | BV5: 0 | BW5: 0 | BX5: 0 | BY5: 0 | BZ5: 0 | CA5: 0 | CB5: 0 | CC5: 0 | CD5: 0 | CE5: 0 | CF5: 0 | CG5: 0 | CH5: 0 | CI5: 0 | CJ5: 0 | CK5: 0 | CL5: 0 | CM5: 0 | CN5: 0 | CO5: 0 | CP5: 0 | CQ5: 0 | CR5: 0 | CS5: 0 | CT5: 0 | CU5: 0 | CV5: 0 | CW5: 0 | CX5: 0 | CY5: 0 | CZ5: 0 | DA5: 0 | DB5: 0 | DC5: 0 | DD5: 0 | DE5: 0 | DF5: 0 | DG5: 0 | DH5: 0 | DI5: 0 | DJ5: 0 | DK5: 0 | DL5: 0 | DM5: 0 | DN5: 0 | DO5: 0 | DP5: 0 | DQ5: 0 | DR5: 0 | DS5: 0 | DT5: 0
A6: =WEEKDAY(B6) -> 1900-01-02 | B6: =' '!C14 -> 2024-01-01 | C6: =IF(B6='Oversigt Total'!$K$13,ROUND('Oversigt Total'!C5+SUM($E6:$X6)+'Oversigt Total'!$K$12,2),ROUND('Oversigt Total'!C5+SUM($E6:$X6),2))-SUM($Y6:$DT6) -> 1000
A7: =WEEKDAY(B7) -> 1900-01-03 | B7: =B6+1 -> 2024-01-02 | C7: =ROUND(C6-SUM(OFFSET(C7,0,22,1,100)),2)+IF(B7='Oversigt Total'!$K$13,SUM(OFFSET(C7,0,1,1,21))+'Oversigt Total'!$K$12,SUM(OFFSET(C7,0,1,1,21))) -> 1650 | E7: 1650 | Z7: 1000
A8: 1900-01-04 | B8: =B7+1 -> 2024-01-03 | C8: =ROUND(C7-SUM(OFFSET(C8,0,22,1,100)),2)+IF(B8='Oversigt Total'!$K$13,SUM(OFFSET(C8,0,1,1,21))+'Oversigt Total'!$K$12,SUM(OFFSET(C8,0,1,1,21))) -> 1350 | AA8: 100 | AC8: 200
A9: 1900-01-05 | B9: 2024-01-04 | C9: =ROUND(C8-SUM(OFFSET(C9,0,22,1,100)),2)+IF(B9='Oversigt Total'!$K$13,SUM(OFFSET(C9,0,1,1,21))+'Oversigt Total'!$K$12,SUM(OFFSET(C9,0,1,1,21))) -> 1050 | AB9: 300
A10: 1900-01-06 | B10: 2024-01-05 | C10: =ROUND(C9-SUM(OFFSET(C10,0,22,1,100)),2)+IF(B10='Oversigt Total'!$K$13,SUM(OFFSET(C10,0,1,1,21))+'Oversigt Total'!$K$12,SUM(OFFSET(C10,0,1,1,21))) -> 1050
A11: 1900-01-07 | B11: 2024-01-06 | C11: =ROUND(C10-SUM(OFFSET(C11,0,22,1,100)),2)+IF(B11='Oversigt Total'!$K$13,SUM(OFFSET(C11,0,1,1,21))+'Oversigt Total'!$K$12,SUM(OFFSET(C11,0,1,1,21))) -> 1050
A12: 1900-01-01 | B12: 2024-01-07 | C12: =ROUND(C11-SUM(OFFSET(C12,0,22,1,100)),2)+IF(B12='Oversigt Total'!$K$13,SUM(OFFSET(C12,0,1,1,21))+'Oversigt Total'!$K$12,SUM(OFFSET(C12,0,1,1,21))) -> 1050
A13: 1900-01-02 | B13: 2024-01-08 | C13: =ROUND(C12-SUM(OFFSET(C13,0,22,1,100)),2)+IF(B13='Oversigt Total'!$K$13,SUM(OFFSET(C13,0,1,1,21))+'Oversigt Total'!$K$12,SUM(OFFSET(C13,0,1,1,21))) -> 1050
A14: 1900-01-03 | B14: 2024-01-09 | C14: =ROUND(C13-SUM(OFFSET(C14,0,22,1,100)),2)+IF(B14='Oversigt Total'!$K$13,SUM(OFFSET(C14,0,1,1,21))+'Oversigt Total'!$K$12,SUM(OFFSET(C14,0,1,1,21))) -> 1050
A15: 1900-01-04 | B15: 2024-01-10 | C15: =ROUND(C14-SUM(OFFSET(C15,0,22,1,100)),2)+IF(B15='Oversigt Total'!$K$13,SUM(OFFSET(C15,0,1,1,21))+'Oversigt Total'!$K$12,SUM(OFFSET(C15,0,1,1,21))) -> 1050
A16: 1900-01-05 | B16: 2024-01-11 | C16: =ROUND(C15-SUM(OFFSET(C16,0,22,1,100)),2)+IF(B16='Oversigt Total'!$K$13,SUM(OFFSET(C16,0,1,1,21))+'Oversigt Total'!$K$12,SUM(OFFSET(C16,0,1,1,21))) -> 1050
A17: 1900-01-06 | B17: 2024-01-12 | C17: =ROUND(C16-SUM(OFFSET(C17,0,22,1,100)),2)+IF(B17='Oversigt Total'!$K$13,SUM(OFFSET(C17,0,1,1,21))+'Oversigt Total'!$K$12,SUM(OFFSET(C17,0,1,1,21))) -> 1050
A18: 1900-01-07 | B18: 2024-01-13 | C18: =ROUND(C17-SUM(OFFSET(C18,0,22,1,100)),2)+IF(B18='Oversigt Total'!$K$13,SUM(OFFSET(C18,0,1,1,21))+'Oversigt Total'!$K$12,SUM(OFFSET(C18,0,1,1,21))) -> 1050
A19: 1900-01-01 | B19: 2024-01-14 | C19: =ROUND(C18-SUM(OFFSET(C19,0,22,1,100)),2)+IF(B19='Oversigt Total'!$K$13,SUM(OFFSET(C19,0,1,1,21))+'Oversigt Total'!$K$12,SUM(OFFSET(C19,0,1,1,21))) -> 1050
A20: 1900-01-02 | B20: 2024-01-15 | C20: =ROUND(C19-SUM(OFFSET(C20,0,22,1,100)),2)+IF(B20='Oversigt Total'!$K$13,SUM(OFFSET(C20,0,1,1,21))+'Oversigt Total'!$K$12,SUM(OFFSET(C20,0,1,1,21))) -> 1050
A21: 1900-01-03 | B21: 2024-01-16 | C21: =ROUND(C20-SUM(OFFSET(C21,0,22,1,100)),2)+IF(B21='Oversigt Total'!$K$13,SUM(OFFSET(C21,0,1,1,21))+'Oversigt Total'!$K$12,SUM(OFFSET(C21,0,1,1,21))) -> 1050
A22: 1900-01-04 | B22: 2024-01-17 | C22: =ROUND(C21-SUM(OFFSET(C22,0,22,1,100)),2)+IF(B22='Oversigt Total'!$K$13,SUM(OFFSET(C22,0,1,1,21))+'Oversigt Total'!$K$12,SUM(OFFSET(C22,0,1,1,21))) -> 1050
A23: 1900-01-05 | B23: 2024-01-18 | C23: =ROUND(C22-SUM(OFFSET(C23,0,22,1,100)),2)+IF(B23='Oversigt Total'!$K$13,SUM(OFFSET(C23,0,1,1,21))+'Oversigt Total'!$K$12,SUM(OFFSET(C23,0,1,1,21))) -> 1050
A24: 1900-01-06 | B24: 2024-01-19 | C24: =ROUND(C23-SUM(OFFSET(C24,0,22,1,100)),2)+IF(B24='Oversigt Total'!$K$13,SUM(OFFSET(C24,0,1,1,21))+'Oversigt Total'!$K$12,SUM(OFFSET(C24,0,1,1,21))) -> 1050
A25: 1900-01-07 | B25: 2024-01-20 | C25: =ROUND(C24-SUM(OFFSET(C25,0,22,1,100)),2)+IF(B25='Oversigt Total'!$K$13,SUM(OFFSET(C25,0,1,1,21))+'Oversigt Total'!$K$12,SUM(OFFSET(C25,0,1,1,21))) -> 1050
A26: 1900-01-01 | B26: 2024-01-21 | C26: =ROUND(C25-SUM(OFFSET(C26,0,22,1,100)),2)+IF(B26='Oversigt Total'!$K$13,SUM(OFFSET(C26,0,1,1,21))+'Oversigt Total'!$K$12,SUM(OFFSET(C26,0,1,1,21))) -> 1050
A27: 1900-01-02 | B27: 2024-01-22 | C27: =ROUND(C26-SUM(OFFSET(C27,0,22,1,100)),2)+IF(B27='Oversigt Total'!$K$13,SUM(OFFSET(C27,0,1,1,21))+'Oversigt Total'!$K$12,SUM(OFFSET(C27,0,1,1,21))) -> 1050
A28: 1900-01-03 | B28: 2024-01-23 | C28: =ROUND(C27-SUM(OFFSET(C28,0,22,1,100)),2)+IF(B28='Oversigt Total'!$K$13,SUM(OFFSET(C28,0,1,1,21))+'Oversigt Total'!$K$12,SUM(OFFSET(C28,0,1,1,21))) -> 1050
A29: 1900-01-04 | B29: 2024-01-24 | C29: =ROUND(C28-SUM(OFFSET(C29,0,22,1,100)),2)+IF(B29='Oversigt Total'!$K$13,SUM(OFFSET(C29,0,1,1,21))+'Oversigt Total'!$K$12,SUM(OFFSET(C29,0,1,1,21))) -> 1050
A30: 1900-01-05 | B30: 2024-01-25 | C30: =ROUND(C29-SUM(OFFSET(C30,0,22,1,100)),2)+IF(B30='Oversigt Total'!$K$13,SUM(OFFSET(C30,0,1,1,21))+'Oversigt Total'!$K$12,SUM(OFFSET(C30,0,1,1,21))) -> 1050
A31: 1900-01-06 | B31: 2024-01-26 | C31: =ROUND(C30-SUM(OFFSET(C31,0,22,1,100)),2)+IF(B31='Oversigt Total'!$K$13,SUM(OFFSET(C31,0,1,1,21))+'Oversigt Total'!$K$12,SUM(OFFSET(C31,0,1,1,21))) -> 1050
A32: 1900-01-07 | B32: 2024-01-27 | C32: =ROUND(C31-SUM(OFFSET(C32,0,22,1,100)),2)+IF(B32='Oversigt Total'!$K$13,SUM(OFFSET(C32,0,1,1,21))+'Oversigt Total'!$K$12,SUM(OFFSET(C32,0,1,1,21))) -> 1050
A33: 1900-01-01 | B33: 2024-01-28 | C33: =ROUND(C32-SUM(OFFSET(C33,0,22,1,100)),2)+IF(B33='Oversigt Total'!$K$13,SUM(OFFSET(C33,0,1,1,21))+'Oversigt Total'!$K$12,SUM(OFFSET(C33,0,1,1,21))) -> 1050
A34: 1900-01-02 | B34: 2024-01-29 | C34: =ROUND(C33-SUM(OFFSET(C34,0,22,1,100)),2)+IF(B34='Oversigt Total'!$K$13,SUM(OFFSET(C34,0,1,1,21))+'Oversigt Total'!$K$12,SUM(OFFSET(C34,0,1,1,21))) -> 1050
A35: 1900-01-03 | B35: 2024-01-30 | C35: =ROUND(C34-SUM(OFFSET(C35,0,22,1,100)),2)+IF(B35='Oversigt Total'!$K$13,SUM(OFFSET(C35,0,1,1,21))+'Oversigt Total'!$K$12,SUM(OFFSET(C35,0,1,1,21))) -> 1050
A36: 1900-01-04 | B36: 2024-01-31 | C36: =ROUND(C35-SUM(OFFSET(C36,0,22,1,100)),2)+IF(B36='Oversigt Total'!$K$13,SUM(OFFSET(C36,0,1,1,21))+'Oversigt Total'!$K$12,SUM(OFFSET(C36,0,1,1,21))) -> 1050
A37: 1900-01-05 | B37: 2024-02-01 | C37: =ROUND(C36-SUM(OFFSET(C37,0,22,1,100)),2)+IF(B37='Oversigt Total'!$K$13,SUM(OFFSET(C37,0,1,1,21))+'Oversigt Total'!$K$12,SUM(OFFSET(C37,0,1,1,21))) -> 1050
A38: 1900-01-06 | B38: 2024-02-02 | C38: =ROUND(C37-SUM(OFFSET(C38,0,22,1,100)),2)+IF(B38='Oversigt Total'!$K$13,SUM(OFFSET(C38,0,1,1,21))+'Oversigt Total'!$K$12,SUM(OFFSET(C38,0,1,1,21))) -> 1050
A39: 1900-01-07 | B39: 2024-02-03 | C39: =ROUND(C38-SUM(OFFSET(C39,0,22,1,100)),2)+IF(B39='Oversigt Total'!$K$13,SUM(OFFSET(C39,0,1,1,21))+'Oversigt Total'!$K$12,SUM(OFFSET(C39,0,1,1,21))) -> 1050
A40: 1900-01-01 | B40: 2024-02-04 | C40: =ROUND(C39-SUM(OFFSET(C40,0,22,1,100)),2)+IF(B40='Oversigt Total'!$K$13,SUM(OFFSET(C40,0,1,1,21))+'Oversigt Total'!$K$12,SUM(OFFSET(C40,0,1,1,21))) -> 1050
A41: 1900-01-02 | B41: 2024-02-05 | C41: =ROUND(C40-SUM(OFFSET(C41,0,22,1,100)),2)+IF(B41='Oversigt Total'!$K$13,SUM(OFFSET(C41,0,1,1,21))+'Oversigt Total'!$K$12,SUM(OFFSET(C41,0,1,1,21))) -> 1050
A42: 1900-01-03 | B42: 2024-02-06 | C42: =ROUND(C41-SUM(OFFSET(C42,0,22,1,100)),2)+IF(B42='Oversigt Total'!$K$13,SUM(OFFSET(C42,0,1,1,21))+'Oversigt Total'!$K$12,SUM(OFFSET(C42,0,1,1,21))) -> 1050
A43: 1900-01-04 | B43: 2024-02-07 | C43: =ROUND(C42-SUM(OFFSET(C43,0,22,1,100)),2)+IF(B43='Oversigt Total'!$K$13,SUM(OFFSET(C43,0,1,1,21))+'Oversigt Total'!$K$12,SUM(OFFSET(C43,0,1,1,21))) -> 1050
A44: 1900-01-05 | B44: 2024-02-08 | C44: =ROUND(C43-SUM(OFFSET(C44,0,22,1,100)),2)+IF(B44='Oversigt Total'!$K$13,SUM(OFFSET(C44,0,1,1,21))+'Oversigt Total'!$K$12,SUM(OFFSET(C44,0,1,1,21))) -> 1050
A45: 1900-01-06 | B45: 2024-02-09 | C45: =ROUND(C44-SUM(OFFSET(C45,0,22,1,100)),2)+IF(B45='Oversigt Total'!$K$13,SUM(OFFSET(C45,0,1,1,21))+'Oversigt Total'!$K$12,SUM(OFFSET(C45,0,1,1,21))) -> 1050
A46: 1900-01-07 | B46: 2024-02-10 | C46: =ROUND(C45-SUM(OFFSET(C46,0,22,1,100)),2)+IF(B46='Oversigt Total'!$K$13,SUM(OFFSET(C46,0,1,1,21))+'Oversigt Total'!$K$12,SUM(OFFSET(C46,0,1,1,21))) -> 1050
A47: 1900-01-01 | B47: 2024-02-11 | C47: =ROUND(C46-SUM(OFFSET(C47,0,22,1,100)),2)+IF(B47='Oversigt Total'!$K$13,SUM(OFFSET(C47,0,1,1,21))+'Oversigt Total'!$K$12,SUM(OFFSET(C47,0,1,1,21))) -> 1050
A48: 1900-01-02 | B48: 2024-02-12 | C48: =ROUND(C47-SUM(OFFSET(C48,0,22,1,100)),2)+IF(B48='Oversigt Total'!$K$13,SUM(OFFSET(C48,0,1,1,21))+'Oversigt Total'!$K$12,SUM(OFFSET(C48,0,1,1,21))) -> 1050
A49: 1900-01-03 | B49: 2024-02-13 | C49: =ROUND(C48-SUM(OFFSET(C49,0,22,1,100)),2)+IF(B49='Oversigt Total'!$K$13,SUM(OFFSET(C49,0,1,1,21))+'Oversigt Total'!$K$12,SUM(OFFSET(C49,0,1,1,21))) -> 1050
A50: 1900-01-04 | B50: 2024-02-14 | C50: =ROUND(C49-SUM(OFFSET(C50,0,22,1,100)),2)+IF(B50='Oversigt Total'!$K$13,SUM(OFFSET(C50,0,1,1,21))+'Oversigt Total'!$K$12,SUM(OFFSET(C50,0,1,1,21))) -> 1050
A51: 1900-01-05 | B51: 2024-02-15 | C51: =ROUND(C50-SUM(OFFSET(C51,0,22,1,100)),2)+IF(B51='Oversigt Total'!$K$13,SUM(OFFSET(C51,0,1,1,21))+'Oversigt Total'!$K$12,SUM(OFFSET(C51,0,1,1,21))) -> 1050
A52: 1900-01-06 | B52: 2024-02-16 | C52: =ROUND(C51-SUM(OFFSET(C52,0,22,1,100)),2)+IF(B52='Oversigt Total'!$K$13,SUM(OFFSET(C52,0,1,1,21))+'Oversigt Total'!$K$12,SUM(OFFSET(C52,0,1,1,21))) -> 1050
A53: 1900-01-07 | B53: 2024-02-17 | C53: =ROUND(C52-SUM(OFFSET(C53,0,22,1,100)),2)+IF(B53='Oversigt Total'!$K$13,SUM(OFFSET(C53,0,1,1,21))+'Oversigt Total'!$K$12,SUM(OFFSET(C53,0,1,1,21))) -> 1050
A54: 1900-01-01 | B54: 2024-02-18 | C54: =ROUND(C53-SUM(OFFSET(C54,0,22,1,100)),2)+IF(B54='Oversigt Total'!$K$13,SUM(OFFSET(C54,0,1,1,21))+'Oversigt Total'!$K$12,SUM(OFFSET(C54,0,1,1,21))) -> 1050
A55: 1900-01-02 | B55: 2024-02-19 | C55: =ROUND(C54-SUM(OFFSET(C55,0,22,1,100)),2)+IF(B55='Oversigt Total'!$K$13,SUM(OFFSET(C55,0,1,1,21))+'Oversigt Total'!$K$12,SUM(OFFSET(C55,0,1,1,21))) -> 1050
A56: 1900-01-03 | B56: 2024-02-20 | C56: =ROUND(C55-SUM(OFFSET(C56,0,22,1,100)),2)+IF(B56='Oversigt Total'!$K$13,SUM(OFFSET(C56,0,1,1,21))+'Oversigt Total'!$K$12,SUM(OFFSET(C56,0,1,1,21))) -> 1050
A57: 1900-01-04 | B57: 2024-02-21 | C57: =ROUND(C56-SUM(OFFSET(C57,0,22,1,100)),2)+IF(B57='Oversigt Total'!$K$13,SUM(OFFSET(C57,0,1,1,21))+'Oversigt Total'!$K$12,SUM(OFFSET(C57,0,1,1,21))) -> 1050
A58: 1900-01-05 | B58: 2024-02-22 | C58: =ROUND(C57-SUM(OFFSET(C58,0,22,1,100)),2)+IF(B58='Oversigt Total'!$K$13,SUM(OFFSET(C58,0,1,1,21))+'Oversigt Total'!$K$12,SUM(OFFSET(C58,0,1,1,21))) -> 1050
A59: 1900-01-06 | B59: 2024-02-23 | C59: =ROUND(C58-SUM(OFFSET(C59,0,22,1,100)),2)+IF(B59='Oversigt Total'!$K$13,SUM(OFFSET(C59,0,1,1,21))+'Oversigt Total'!$K$12,SUM(OFFSET(C59,0,1,1,21))) -> 1050
A60: 1900-01-07 | B60: 2024-02-24 | C60: =ROUND(C59-SUM(OFFSET(C60,0,22,1,100)),2)+IF(B60='Oversigt Total'!$K$13,SUM(OFFSET(C60,0,1,1,21))+'Oversigt Total'!$K$12,SUM(OFFSET(C60,0,1,1,21))) -> 1050
A61: 1900-01-01 | B61: 2024-02-25 | C61: =ROUND(C60-SUM(OFFSET(C61,0,22,1,100)),2)+IF(B61='Oversigt Total'!$K$13,SUM(OFFSET(C61,0,1,1,21))+'Oversigt Total'!$K$12,SUM(OFFSET(C61,0,1,1,21))) -> 1050
A62: 1900-01-02 | B62: 2024-02-26 | C62: =ROUND(C61-SUM(OFFSET(C62,0,22,1,100)),2)+IF(B62='Oversigt Total'!$K$13,SUM(OFFSET(C62,0,1,1,21))+'Oversigt Total'!$K$12,SUM(OFFSET(C62,0,1,1,21))) -> 1050
A63: 1900-01-03 | B63: 2024-02-27 | C63: =ROUND(C62-SUM(OFFSET(C63,0,22,1,100)),2)+IF(B63='Oversigt Total'!$K$13,SUM(OFFSET(C63,0,1,1,21))+'Oversigt Total'!$K$12,SUM(OFFSET(C63,0,1,1,21))) -> 1050
A64: 1900-01-04 | B64: 2024-02-28 | C64: =ROUND(C63-SUM(OFFSET(C64,0,22,1,100)),2)+IF(B64='Oversigt Total'!$K$13,SUM(OFFSET(C64,0,1,1,21))+'Oversigt Total'!$K$12,SUM(OFFSET(C64,0,1,1,21))) -> 1050
A65: 1900-01-05 | B65: 2024-02-29 | C65: =ROUND(C64-SUM(OFFSET(C65,0,22,1,100)),2)+IF(B65='Oversigt Total'!$K$13,SUM(OFFSET(C65,0,1,1,21))+'Oversigt Total'!$K$12,SUM(OFFSET(C65,0,1,1,21))) -> 1050
A66: 1900-01-06 | B66: 2024-03-01 | C66: =ROUND(C65-SUM(OFFSET(C66,0,22,1,100)),2)+IF(B66='Oversigt Total'!$K$13,SUM(OFFSET(C66,0,1,1,21))+'Oversigt Total'!$K$12,SUM(OFFSET(C66,0,1,1,21))) -> 1050
A67: 1900-01-07 | B67: 2024-03-02 | C67: =ROUND(C66-SUM(OFFSET(C67,0,22,1,100)),2)+IF(B67='Oversigt Total'!$K$13,SUM(OFFSET(C67,0,1,1,21))+'Oversigt Total'!$K$12,SUM(OFFSET(C67,0,1,1,21))) -> 1050
A68: 1900-01-01 | B68: 2024-03-03 | C68: =ROUND(C67-SUM(OFFSET(C68,0,22,1,100)),2)+IF(B68='Oversigt Total'!$K$13,SUM(OFFSET(C68,0,1,1,21))+'Oversigt Total'!$K$12,SUM(OFFSET(C68,0,1,1,21))) -> 1050
A69: 1900-01-02 | B69: 2024-03-04 | C69: =ROUND(C68-SUM(OFFSET(C69,0,22,1,100)),2)+IF(B69='Oversigt Total'!$K$13,SUM(OFFSET(C69,0,1,1,21))+'Oversigt Total'!$K$12,SUM(OFFSET(C69,0,1,1,21))) -> 1050
A70: 1900-01-03 | B70: 2024-03-05 | C70: =ROUND(C69-SUM(OFFSET(C70,0,22,1,100)),2)+IF(B70='Oversigt Total'!$K$13,SUM(OFFSET(C70,0,1,1,21))+'Oversigt Total'!$K$12,SUM(OFFSET(C70,0,1,1,21))) -> 1050
A71: =WEEKDAY(B71) -> 1900-01-04 | B71: 2024-03-06 | C71: =ROUND(C70-SUM(OFFSET(C71,0,22,1,100)),2)+IF(B71='Oversigt Total'!$K$13,SUM(OFFSET(C71,0,1,1,21))+'Oversigt Total'!$K$12,SUM(OFFSET(C71,0,1,1,21))) -> 1050
A72: 1900-01-05 | B72: =B71+1 -> 2024-03-07 | C72: =ROUND(C71-SUM(OFFSET(C72,0,22,1,100)),2)+IF(B72='Oversigt Total'!$K$13,SUM(OFFSET(C72,0,1,1,21))+'Oversigt Total'!$K$12,SUM(OFFSET(C72,0,1,1,21))) -> 1050
A73: 1900-01-06 | B73: 2024-03-08 | C73: =ROUND(C72-SUM(OFFSET(C73,0,22,1,100)),2)+IF(B73='Oversigt Total'!$K$13,SUM(OFFSET(C73,0,1,1,21))+'Oversigt Total'!$K$12,SUM(OFFSET(C73,0,1,1,21))) -> 1050
A74: 1900-01-07 | B74: 2024-03-09 | C74: =ROUND(C73-SUM(OFFSET(C74,0,22,1,100)),2)+IF(B74='Oversigt Total'!$K$13,SUM(OFFSET(C74,0,1,1,21))+'Oversigt Total'!$K$12,SUM(OFFSET(C74,0,1,1,21))) -> 1050
A75: 1900-01-01 | B75: 2024-03-10 | C75: =ROUND(C74-SUM(OFFSET(C75,0,22,1,100)),2)+IF(B75='Oversigt Total'!$K$13,SUM(OFFSET(C75,0,1,1,21))+'Oversigt Total'!$K$12,SUM(OFFSET(C75,0,1,1,21))) -> 1050
A76: 1900-01-02 | B76: 2024-03-11 | C76: =ROUND(C75-SUM(OFFSET(C76,0,22,1,100)),2)+IF(B76='Oversigt Total'!$K$13,SUM(OFFSET(C76,0,1,1,21))+'Oversigt Total'!$K$12,SUM(OFFSET(C76,0,1,1,21))) -> 1050
A77: 1900-01-03 | B77: 2024-03-12 | C77: =ROUND(C76-SUM(OFFSET(C77,0,22,1,100)),2)+IF(B77='Oversigt Total'!$K$13,SUM(OFFSET(C77,0,1,1,21))+'Oversigt Total'!$K$12,SUM(OFFSET(C77,0,1,1,21))) -> 1050
A78: 1900-01-04 | B78: 2024-03-13 | C78: =ROUND(C77-SUM(OFFSET(C78,0,22,1,100)),2)+IF(B78='Oversigt Total'!$K$13,SUM(OFFSET(C78,0,1,1,21))+'Oversigt Total'!$K$12,SUM(OFFSET(C78,0,1,1,21))) -> 1050
A79: 1900-01-05 | B79: 2024-03-14 | C79: =ROUND(C78-SUM(OFFSET(C79,0,22,1,100)),2)+IF(B79='Oversigt Total'!$K$13,SUM(OFFSET(C79,0,1,1,21))+'Oversigt Total'!$K$12,SUM(OFFSET(C79,0,1,1,21))) -> 1050
A80: 1900-01-06 | B80: 2024-03-15 | C80: =ROUND(C79-SUM(OFFSET(C80,0,22,1,100)),2)+IF(B80='Oversigt Total'!$K$13,SUM(OFFSET(C80,0,1,1,21))+'Oversigt Total'!$K$12,SUM(OFFSET(C80,0,1,1,21))) -> 1050
A81: 1900-01-07 | B81: 2024-03-16 | C81: =ROUND(C80-SUM(OFFSET(C81,0,22,1,100)),2)+IF(B81='Oversigt Total'!$K$13,SUM(OFFSET(C81,0,1,1,21))+'Oversigt Total'!$K$12,SUM(OFFSET(C81,0,1,1,21))) -> 1050
A82: 1900-01-01 | B82: 2024-03-17 | C82: =ROUND(C81-SUM(OFFSET(C82,0,22,1,100)),2)+IF(B82='Oversigt Total'!$K$13,SUM(OFFSET(C82,0,1,1,21))+'Oversigt Total'!$K$12,SUM(OFFSET(C82,0,1,1,21))) -> 1050
A83: 1900-01-02 | B83: 2024-03-18 | C83: =ROUND(C82-SUM(OFFSET(C83,0,22,1,100)),2)+IF(B83='Oversigt Total'!$K$13,SUM(OFFSET(C83,0,1,1,21))+'Oversigt Total'!$K$12,SUM(OFFSET(C83,0,1,1,21))) -> 1050
A84: 1900-01-03 | B84: 2024-03-19 | C84: =ROUND(C83-SUM(OFFSET(C84,0,22,1,100)),2)+IF(B84='Oversigt Total'!$K$13,SUM(OFFSET(C84,0,1,1,21))+'Oversigt Total'!$K$12,SUM(OFFSET(C84,0,1,1,21))) -> 1050
A85: 1900-01-04 | B85: 2024-03-20 | C85: =ROUND(C84-SUM(OFFSET(C85,0,22,1,100)),2)+IF(B85='Oversigt Total'!$K$13,SUM(OFFSET(C85,0,1,1,21))+'Oversigt Total'!$K$12,SUM(OFFSET(C85,0,1,1,21))) -> 1050
A86: 1900-01-05 | B86: 2024-03-21 | C86: =ROUND(C85-SUM(OFFSET(C86,0,22,1,100)),2)+IF(B86='Oversigt Total'!$K$13,SUM(OFFSET(C86,0,1,1,21))+'Oversigt Total'!$K$12,SUM(OFFSET(C86,0,1,1,21))) -> 1050
A87: 1900-01-06 | B87: 2024-03-22 | C87: =ROUND(C86-SUM(OFFSET(C87,0,22,1,100)),2)+IF(B87='Oversigt Total'!$K$13,SUM(OFFSET(C87,0,1,1,21))+'Oversigt Total'!$K$12,SUM(OFFSET(C87,0,1,1,21))) -> 1050
A88: 1900-01-07 | B88: 2024-03-23 | C88: =ROUND(C87-SUM(OFFSET(C88,0,22,1,100)),2)+IF(B88='Oversigt Total'!$K$13,SUM(OFFSET(C88,0,1,1,21))+'Oversigt Total'!$K$12,SUM(OFFSET(C88,0,1,1,21))) -> 1050
A89: 1900-01-01 | B89: 2024-03-24 | C89: =ROUND(C88-SUM(OFFSET(C89,0,22,1,100)),2)+IF(B89='Oversigt Total'!$K$13,SUM(OFFSET(C89,0,1,1,21))+'Oversigt Total'!$K$12,SUM(OFFSET(C89,0,1,1,21))) -> 1050
A90: 1900-01-02 | B90: 2024-03-25 | C90: =ROUND(C89-SUM(OFFSET(C90,0,22,1,100)),2)+IF(B90='Oversigt Total'!$K$13,SUM(OFFSET(C90,0,1,1,21))+'Oversigt Total'!$K$12,SUM(OFFSET(C90,0,1,1,21))) -> 1050
A91: 1900-01-03 | B91: 2024-03-26 | C91: =ROUND(C90-SUM(OFFSET(C91,0,22,1,100)),2)+IF(B91='Oversigt Total'!$K$13,SUM(OFFSET(C91,0,1,1,21))+'Oversigt Total'!$K$12,SUM(OFFSET(C91,0,1,1,21))) -> 1050
A92: 1900-01-04 | B92: 2024-03-27 | C92: =ROUND(C91-SUM(OFFSET(C92,0,22,1,100)),2)+IF(B92='Oversigt Total'!$K$13,SUM(OFFSET(C92,0,1,1,21))+'Oversigt Total'!$K$12,SUM(OFFSET(C92,0,1,1,21))) -> 1050
A93: 1900-01-05 | B93: 2024-03-28 | C93: =ROUND(C92-SUM(OFFSET(C93,0,22,1,100)),2)+IF(B93='Oversigt Total'!$K$13,SUM(OFFSET(C93,0,1,1,21))+'Oversigt Total'!$K$12,SUM(OFFSET(C93,0,1,1,21))) -> 1050
A94: 1900-01-06 | B94: 2024-03-29 | C94: =ROUND(C93-SUM(OFFSET(C94,0,22,1,100)),2)+IF(B94='Oversigt Total'!$K$13,SUM(OFFSET(C94,0,1,1,21))+'Oversigt Total'!$K$12,SUM(OFFSET(C94,0,1,1,21))) -> 1050
A95: 1900-01-07 | B95: 2024-03-30 | C95: =ROUND(C94-SUM(OFFSET(C95,0,22,1,100)),2)+IF(B95='Oversigt Total'!$K$13,SUM(OFFSET(C95,0,1,1,21))+'Oversigt Total'!$K$12,SUM(OFFSET(C95,0,1,1,21))) -> 1050
A96: 1900-01-01 | B96: 2024-03-31 | C96: =ROUND(C95-SUM(OFFSET(C96,0,22,1,100)),2)+IF(B96='Oversigt Total'!$K$13,SUM(OFFSET(C96,0,1,1,21))+'Oversigt Total'!$K$12,SUM(OFFSET(C96,0,1,1,21))) -> 1050
A97: 1900-01-02 | B97: 2024-04-01 | C97: =ROUND(C96-SUM(OFFSET(C97,0,22,1,100)),2)+IF(B97='Oversigt Total'!$K$13,SUM(OFFSET(C97,0,1,1,21))+'Oversigt Total'!$K$12,SUM(OFFSET(C97,0,1,1,21))) -> 1050
A98: 1900-01-03 | B98: 2024-04-02 | C98: =ROUND(C97-SUM(OFFSET(C98,0,22,1,100)),2)+IF(B98='Oversigt Total'!$K$13,SUM(OFFSET(C98,0,1,1,21))+'Oversigt Total'!$K$12,SUM(OFFSET(C98,0,1,1,21))) -> 1050
A99: 1900-01-04 | B99: 2024-04-03 | C99: =ROUND(C98-SUM(OFFSET(C99,0,22,1,100)),2)+IF(B99='Oversigt Total'!$K$13,SUM(OFFSET(C99,0,1,1,21))+'Oversigt Total'!$K$12,SUM(OFFSET(C99,0,1,1,21))) -> 1050
A100: 1900-01-05 | B100: 2024-04-04 | C100: =ROUND(C99-SUM(OFFSET(C100,0,22,1,100)),2)+IF(B100='Oversigt Total'!$K$13,SUM(OFFSET(C100,0,1,1,21))+'Oversigt Total'!$K$12,SUM(OFFSET(C100,0,1,1,21))) -> 1050
A101: 1900-01-06 | B101: 2024-04-05 | C101: =ROUND(C100-SUM(OFFSET(C101,0,22,1,100)),2)+IF(B101='Oversigt Total'!$K$13,SUM(OFFSET(C101,0,1,1,21))+'Oversigt Total'!$K$12,SUM(OFFSET(C101,0,1,1,21))) -> 1050
A102: 1900-01-07 | B102: 2024-04-06 | C102: =ROUND(C101-SUM(OFFSET(C102,0,22,1,100)),2)+IF(B102='Oversigt Total'!$K$13,SUM(OFFSET(C102,0,1,1,21))+'Oversigt Total'!$K$12,SUM(OFFSET(C102,0,1,1,21))) -> 1050
A103: 1900-01-01 | B103: 2024-04-07 | C103: =ROUND(C102-SUM(OFFSET(C103,0,22,1,100)),2)+IF(B103='Oversigt Total'!$K$13,SUM(OFFSET(C103,0,1,1,21))+'Oversigt Total'!$K$12,SUM(OFFSET(C103,0,1,1,21))) -> 1050
A104: 1900-01-02 | B104: 2024-04-08 | C104: =ROUND(C103-SUM(OFFSET(C104,0,22,1,100)),2)+IF(B104='Oversigt Total'!$K$13,SUM(OFFSET(C104,0,1,1,21))+'Oversigt Total'!$K$12,SUM(OFFSET(C104,0,1,1,21))) -> 1050
A105: 1900-01-03 | B105: 2024-04-09 | C105: =ROUND(C104-SUM(OFFSET(C105,0,22,1,100)),2)+IF(B105='Oversigt Total'!$K$13,SUM(OFFSET(C105,0,1,1,21))+'Oversigt Total'!$K$12,SUM(OFFSET(C105,0,1,1,21))) -> 1050
A106: 1900-01-04 | B106: 2024-04-10 | C106: =ROUND(C105-SUM(OFFSET(C106,0,22,1,100)),2)+IF(B106='Oversigt Total'!$K$13,SUM(OFFSET(C106,0,1,1,21))+'Oversigt Total'!$K$12,SUM(OFFSET(C106,0,1,1,21))) -> 1050
A107: 1900-01-05 | B107: 2024-04-11 | C107: =ROUND(C106-SUM(OFFSET(C107,0,22,1,100)),2)+IF(B107='Oversigt Total'!$K$13,SUM(OFFSET(C107,0,1,1,21))+'Oversigt Total'!$K$12,SUM(OFFSET(C107,0,1,1,21))) -> 1050
A108: 1900-01-06 | B108: 2024-04-12 | C108: =ROUND(C107-SUM(OFFSET(C108,0,22,1,100)),2)+IF(B108='Oversigt Total'!$K$13,SUM(OFFSET(C108,0,1,1,21))+'Oversigt Total'!$K$12,SUM(OFFSET(C108,0,1,1,21))) -> 1050
A109: 1900-01-07 | B109: 2024-04-13 | C109: =ROUND(C108-SUM(OFFSET(C109,0,22,1,100)),2)+IF(B109='Oversigt Total'!$K$13,SUM(OFFSET(C109,0,1,1,21))+'Oversigt Total'!$K$12,SUM(OFFSET(C109,0,1,1,21))) -> 1050
A110: 1900-01-01 | B110: 2024-04-14 | C110: =ROUND(C109-SUM(OFFSET(C110,0,22,1,100)),2)+IF(B110='Oversigt Total'!$K$13,SUM(OFFSET(C110,0,1,1,21))+'Oversigt Total'!$K$12,SUM(OFFSET(C110,0,1,1,21))) -> 1050
A111: 1900-01-02 | B111: 2024-04-15 | C111: =ROUND(C110-SUM(OFFSET(C111,0,22,1,100)),2)+IF(B111='Oversigt Total'!$K$13,SUM(OFFSET(C111,0,1,1,21))+'Oversigt Total'!$K$12,SUM(OFFSET(C111,0,1,1,21))) -> 1050
A112: 1900-01-03 | B112: 2024-04-16 | C112: =ROUND(C111-SUM(OFFSET(C112,0,22,1,100)),2)+IF(B112='Oversigt Total'!$K$13,SUM(OFFSET(C112,0,1,1,21))+'Oversigt Total'!$K$12,SUM(OFFSET(C112,0,1,1,21))) -> 1050
A113: 1900-01-04 | B113: 2024-04-17 | C113: =ROUND(C112-SUM(OFFSET(C113,0,22,1,100)),2)+IF(B113='Oversigt Total'!$K$13,SUM(OFFSET(C113,0,1,1,21))+'Oversigt Total'!$K$12,SUM(OFFSET(C113,0,1,1,21))) -> 1050
A114: 1900-01-05 | B114: 2024-04-18 | C114: =ROUND(C113-SUM(OFFSET(C114,0,22,1,100)),2)+IF(B114='Oversigt Total'!$K$13,SUM(OFFSET(C114,0,1,1,21))+'Oversigt Total'!$K$12,SUM(OFFSET(C114,0,1,1,21))) -> 1050
A115: 1900-01-06 | B115: 2024-04-19 | C115: =ROUND(C114-SUM(OFFSET(C115,0,22,1,100)),2)+IF(B115='Oversigt Total'!$K$13,SUM(OFFSET(C115,0,1,1,21))+'Oversigt Total'!$K$12,SUM(OFFSET(C115,0,1,1,21))) -> 1050
A116: 1900-01-07 | B116: 2024-04-20 | C116: =ROUND(C115-SUM(OFFSET(C116,0,22,1,100)),2)+IF(B116='Oversigt Total'!$K$13,SUM(OFFSET(C116,0,1,1,21))+'Oversigt Total'!$K$12,SUM(OFFSET(C116,0,1,1,21))) -> 1050
A117: 1900-01-01 | B117: 2024-04-21 | C117: =ROUND(C116-SUM(OFFSET(C117,0,22,1,100)),2)+IF(B117='Oversigt Total'!$K$13,SUM(OFFSET(C117,0,1,1,21))+'Oversigt Total'!$K$12,SUM(OFFSET(C117,0,1,1,21))) -> 1050
A118: 1900-01-02 | B118: 2024-04-22 | C118: =ROUND(C117-SUM(OFFSET(C118,0,22,1,100)),2)+IF(B118='Oversigt Total'!$K$13,SUM(OFFSET(C118,0,1,1,21))+'Oversigt Total'!$K$12,SUM(OFFSET(C118,0,1,1,21))) -> 1050
A119: 1900-01-03 | B119: 2024-04-23 | C119: =ROUND(C118-SUM(OFFSET(C119,0,22,1,100)),2)+IF(B119='Oversigt Total'!$K$13,SUM(OFFSET(C119,0,1,1,21))+'Oversigt Total'!$K$12,SUM(OFFSET(C119,0,1,1,21))) -> 1050
A120: 1900-01-04 | B120: 2024-04-24 | C120: =ROUND(C119-SUM(OFFSET(C120,0,22,1,100)),2)+IF(B120='Oversigt Total'!$K$13,SUM(OFFSET(C120,0,1,1,21))+'Oversigt Total'!$K$12,SUM(OFFSET(C120,0,1,1,21))) -> 1050
A121: 1900-01-05 | B121: 2024-04-25 | C121: =ROUND(C120-SUM(OFFSET(C121,0,22,1,100)),2)+IF(B121='Oversigt Total'!$K$13,SUM(OFFSET(C121,0,1,1,21))+'Oversigt Total'!$K$12,SUM(OFFSET(C121,0,1,1,21))) -> 1050
A122: 1900-01-06 | B122: 2024-04-26 | C122: =ROUND(C121-SUM(OFFSET(C122,0,22,1,100)),2)+IF(B122='Oversigt Total'!$K$13,SUM(OFFSET(C122,0,1,1,21))+'Oversigt Total'!$K$12,SUM(OFFSET(C122,0,1,1,21))) -> 1050
A123: 1900-01-07 | B123: 2024-04-27 | C123: =ROUND(C122-SUM(OFFSET(C123,0,22,1,100)),2)+IF(B123='Oversigt Total'!$K$13,SUM(OFFSET(C123,0,1,1,21))+'Oversigt Total'!$K$12,SUM(OFFSET(C123,0,1,1,21))) -> 1050
A124: 1900-01-01 | B124: 2024-04-28 | C124: =ROUND(C123-SUM(OFFSET(C124,0,22,1,100)),2)+IF(B124='Oversigt Total'!$K$13,SUM(OFFSET(C124,0,1,1,21))+'Oversigt Total'!$K$12,SUM(OFFSET(C124,0,1,1,21))) -> 1050
A125: 1900-01-02 | B125: 2024-04-29 | C125: =ROUND(C124-SUM(OFFSET(C125,0,22,1,100)),2)+IF(B125='Oversigt Total'!$K$13,SUM(OFFSET(C125,0,1,1,21))+'Oversigt Total'!$K$12,SUM(OFFSET(C125,0,1,1,21))) -> 1050
A126: 1900-01-03 | B126: 2024-04-30 | C126: =ROUND(C125-SUM(OFFSET(C126,0,22,1,100)),2)+IF(B126='Oversigt Total'!$K$13,SUM(OFFSET(C126,0,1,1,21))+'Oversigt Total'!$K$12,SUM(OFFSET(C126,0,1,1,21))) -> 1050
A127: 1900-01-04 | B127: 2024-05-01 | C127: =ROUND(C126-SUM(OFFSET(C127,0,22,1,100)),2)+IF(B127='Oversigt Total'!$K$13,SUM(OFFSET(C127,0,1,1,21))+'Oversigt Total'!$K$12,SUM(OFFSET(C127,0,1,1,21))) -> 1050
A128: 1900-01-05 | B128: 2024-05-02 | C128: =ROUND(C127-SUM(OFFSET(C128,0,22,1,100)),2)+IF(B128='Oversigt Total'!$K$13,SUM(OFFSET(C128,0,1,1,21))+'Oversigt Total'!$K$12,SUM(OFFSET(C128,0,1,1,21))) -> 1050
A129: 1900-01-06 | B129: 2024-05-03 | C129: =ROUND(C128-SUM(OFFSET(C129,0,22,1,100)),2)+IF(B129='Oversigt Total'!$K$13,SUM(OFFSET(C129,0,1,1,21))+'Oversigt Total'!$K$12,SUM(OFFSET(C129,0,1,1,21))) -> 1050
A130: 1900-01-07 | B130: 2024-05-04 | C130: =ROUND(C129-SUM(OFFSET(C130,0,22,1,100)),2)+IF(B130='Oversigt Total'!$K$13,SUM(OFFSET(C130,0,1,1,21))+'Oversigt Total'!$K$12,SUM(OFFSET(C130,0,1,1,21))) -> 1050
A131: 1900-01-01 | B131: 2024-05-05 | C131: =ROUND(C130-SUM(OFFSET(C131,0,22,1,100)),2)+IF(B131='Oversigt Total'!$K$13,SUM(OFFSET(C131,0,1,1,21))+'Oversigt Total'!$K$12,SUM(OFFSET(C131,0,1,1,21))) -> 1050
A132: 1900-01-02 | B132: 2024-05-06 | C132: =ROUND(C131-SUM(OFFSET(C132,0,22,1,100)),2)+IF(B132='Oversigt Total'!$K$13,SUM(OFFSET(C132,0,1,1,21))+'Oversigt Total'!$K$12,SUM(OFFSET(C132,0,1,1,21))) -> 1050
A133: 1900-01-03 | B133: 2024-05-07 | C133: =ROUND(C132-SUM(OFFSET(C133,0,22,1,100)),2)+IF(B133='Oversigt Total'!$K$13,SUM(OFFSET(C133,0,1,1,21))+'Oversigt Total'!$K$12,SUM(OFFSET(C133,0,1,1,21))) -> 1050
A134: 1900-01-04 | B134: 2024-05-08 | C134: =ROUND(C133-SUM(OFFSET(C134,0,22,1,100)),2)+IF(B134='Oversigt Total'!$K$13,SUM(OFFSET(C134,0,1,1,21))+'Oversigt Total'!$K$12,SUM(OFFSET(C134,0,1,1,21))) -> 1050
A135: =WEEKDAY(B135) -> 1900-01-05 | B135: 2024-05-09 | C135: =ROUND(C134-SUM(OFFSET(C135,0,22,1,100)),2)+IF(B135='Oversigt Total'!$K$13,SUM(OFFSET(C135,0,1,1,21))+'Oversigt Total'!$K$12,SUM(OFFSET(C135,0,1,1,21))) -> 1050
A136: 1900-01-06 | B136: =B135+1 -> 2024-05-10 | C136: =ROUND(C135-SUM(OFFSET(C136,0,22,1,100)),2)+IF(B136='Oversigt Total'!$K$13,SUM(OFFSET(C136,0,1,1,21))+'Oversigt Total'!$K$12,SUM(OFFSET(C136,0,1,1,21))) -> 1050
A137: 1900-01-07 | B137: 2024-05-11 | C137: =ROUND(C136-SUM(OFFSET(C137,0,22,1,100)),2)+IF(B137='Oversigt Total'!$K$13,SUM(OFFSET(C137,0,1,1,21))+'Oversigt Total'!$K$12,SUM(OFFSET(C137,0,1,1,21))) -> 1050
A138: 1900-01-01 | B138: 2024-05-12 | C138: =ROUND(C137-SUM(OFFSET(C138,0,22,1,100)),2)+IF(B138='Oversigt Total'!$K$13,SUM(OFFSET(C138,0,1,1,21))+'Oversigt Total'!$K$12,SUM(OFFSET(C138,0,1,1,21))) -> 1050
A139: 1900-01-02 | B139: 2024-05-13 | C139: =ROUND(C138-SUM(OFFSET(C139,0,22,1,100)),2)+IF(B139='Oversigt Total'!$K$13,SUM(OFFSET(C139,0,1,1,21))+'Oversigt Total'!$K$12,SUM(OFFSET(C139,0,1,1,21))) -> 1050
A140: 1900-01-03 | B140: 2024-05-14 | C140: =ROUND(C139-SUM(OFFSET(C140,0,22,1,100)),2)+IF(B140='Oversigt Total'!$K$13,SUM(OFFSET(C140,0,1,1,21))+'Oversigt Total'!$K$12,SUM(OFFSET(C140,0,1,1,21))) -> 1050
A141: 1900-01-04 | B141: 2024-05-15 | C141: =ROUND(C140-SUM(OFFSET(C141,0,22,1,100)),2)+IF(B141='Oversigt Total'!$K$13,SUM(OFFSET(C141,0,1,1,21))+'Oversigt Total'!$K$12,SUM(OFFSET(C141,0,1,1,21))) -> 1050
A142: 1900-01-05 | B142: 2024-05-16 | C142: =ROUND(C141-SUM(OFFSET(C142,0,22,1,100)),2)+IF(B142='Oversigt Total'!$K$13,SUM(OFFSET(C142,0,1,1,21))+'Oversigt Total'!$K$12,SUM(OFFSET(C142,0,1,1,21))) -> 1050
A143: 1900-01-06 | B143: 2024-05-17 | C143: =ROUND(C142-SUM(OFFSET(C143,0,22,1,100)),2)+IF(B143='Oversigt Total'!$K$13,SUM(OFFSET(C143,0,1,1,21))+'Oversigt Total'!$K$12,SUM(OFFSET(C143,0,1,1,21))) -> 1050
A144: 1900-01-07 | B144: 2024-05-18 | C144: =ROUND(C143-SUM(OFFSET(C144,0,22,1,100)),2)+IF(B144='Oversigt Total'!$K$13,SUM(OFFSET(C144,0,1,1,21))+'Oversigt Total'!$K$12,SUM(OFFSET(C144,0,1,1,21))) -> 1050
A145: 1900-01-01 | B145: 2024-05-19 | C145: =ROUND(C144-SUM(OFFSET(C145,0,22,1,100)),2)+IF(B145='Oversigt Total'!$K$13,SUM(OFFSET(C145,0,1,1,21))+'Oversigt Total'!$K$12,SUM(OFFSET(C145,0,1,1,21))) -> 1050
A146: 1900-01-02 | B146: 2024-05-20 | C146: =ROUND(C145-SUM(OFFSET(C146,0,22,1,100)),2)+IF(B146='Oversigt Total'!$K$13,SUM(OFFSET(C146,0,1,1,21))+'Oversigt Total'!$K$12,SUM(OFFSET(C146,0,1,1,21))) -> 1050
A147: 1900-01-03 | B147: 2024-05-21 | C147: =ROUND(C146-SUM(OFFSET(C147,0,22,1,100)),2)+IF(B147='Oversigt Total'!$K$13,SUM(OFFSET(C147,0,1,1,21))+'Oversigt Total'!$K$12,SUM(OFFSET(C147,0,1,1,21))) -> 1050
A148: 1900-01-04 | B148: 2024-05-22 | C148: =ROUND(C147-SUM(OFFSET(C148,0,22,1,100)),2)+IF(B148='Oversigt Total'!$K$13,SUM(OFFSET(C148,0,1,1,21))+'Oversigt Total'!$K$12,SUM(OFFSET(C148,0,1,1,21))) -> 1050
A149: 1900-01-05 | B149: 2024-05-23 | C149: =ROUND(C148-SUM(OFFSET(C149,0,22,1,100)),2)+IF(B149='Oversigt Total'!$K$13,SUM(OFFSET(C149,0,1,1,21))+'Oversigt Total'!$K$12,SUM(OFFSET(C149,0,1,1,21))) -> 1050
A150: 1900-01-06 | B150: 2024-05-24 | C150: =ROUND(C149-SUM(OFFSET(C150,0,22,1,100)),2)+IF(B150='Oversigt Total'!$K$13,SUM(OFFSET(C150,0,1,1,21))+'Oversigt Total'!$K$12,SUM(OFFSET(C150,0,1,1,21))) -> 1050
A151: 1900-01-07 | B151: 2024-05-25 | C151: =ROUND(C150-SUM(OFFSET(C151,0,22,1,100)),2)+IF(B151='Oversigt Total'!$K$13,SUM(OFFSET(C151,0,1,1,21))+'Oversigt Total'!$K$12,SUM(OFFSET(C151,0,1,1,21))) -> 1050
A152: 1900-01-01 | B152: 2024-05-26 | C152: =ROUND(C151-SUM(OFFSET(C152,0,22,1,100)),2)+IF(B152='Oversigt Total'!$K$13,SUM(OFFSET(C152,0,1,1,21))+'Oversigt Total'!$K$12,SUM(OFFSET(C152,0,1,1,21))) -> 1050
A153: 1900-01-02 | B153: 2024-05-27 | C153: =ROUND(C152-SUM(OFFSET(C153,0,22,1,100)),2)+IF(B153='Oversigt Total'!$K$13,SUM(OFFSET(C153,0,1,1,21))+'Oversigt Total'!$K$12,SUM(OFFSET(C153,0,1,1,21))) -> 1050
A154: 1900-01-03 | B154: 2024-05-28 | C154: =ROUND(C153-SUM(OFFSET(C154,0,22,1,100)),2)+IF(B154='Oversigt Total'!$K$13,SUM(OFFSET(C154,0,1,1,21))+'Oversigt Total'!$K$12,SUM(OFFSET(C154,0,1,1,21))) -> 1050
A155: 1900-01-04 | B155: 2024-05-29 | C155: =ROUND(C154-SUM(OFFSET(C155,0,22,1,100)),2)+IF(B155='Oversigt Total'!$K$13,SUM(OFFSET(C155,0,1,1,21))+'Oversigt Total'!$K$12,SUM(OFFSET(C155,0,1,1,21))) -> 1050
A156: 1900-01-05 | B156: 2024-05-30 | C156: =ROUND(C155-SUM(OFFSET(C156,0,22,1,100)),2)+IF(B156='Oversigt Total'!$K$13,SUM(OFFSET(C156,0,1,1,21))+'Oversigt Total'!$K$12,SUM(OFFSET(C156,0,1,1,21))) -> 1050
A157: 1900-01-06 | B157: 2024-05-31 | C157: =ROUND(C156-SUM(OFFSET(C157,0,22,1,100)),2)+IF(B157='Oversigt Total'!$K$13,SUM(OFFSET(C157,0,1,1,21))+'Oversigt Total'!$K$12,SUM(OFFSET(C157,0,1,1,21))) -> 1050
A158: 1900-01-07 | B158: 2024-06-01 | C158: =ROUND(C157-SUM(OFFSET(C158,0,22,1,100)),2)+IF(B158='Oversigt Total'!$K$13,SUM(OFFSET(C158,0,1,1,21))+'Oversigt Total'!$K$12,SUM(OFFSET(C158,0,1,1,21))) -> 1050
A159: 1900-01-01 | B159: 2024-06-02 | C159: =ROUND(C158-SUM(OFFSET(C159,0,22,1,100)),2)+IF(B159='Oversigt Total'!$K$13,SUM(OFFSET(C159,0,1,1,21))+'Oversigt Total'!$K$12,SUM(OFFSET(C159,0,1,1,21))) -> 1050
A160: 1900-01-02 | B160: 2024-06-03 | C160: =ROUND(C159-SUM(OFFSET(C160,0,22,1,100)),2)+IF(B160='Oversigt Total'!$K$13,SUM(OFFSET(C160,0,1,1,21))+'Oversigt Total'!$K$12,SUM(OFFSET(C160,0,1,1,21))) -> 1050
A161: 1900-01-03 | B161: 2024-06-04 | C161: =ROUND(C160-SUM(OFFSET(C161,0,22,1,100)),2)+IF(B161='Oversigt Total'!$K$13,SUM(OFFSET(C161,0,1,1,21))+'Oversigt Total'!$K$12,SUM(OFFSET(C161,0,1,1,21))) -> 1050
A162: 1900-01-04 | B162: 2024-06-05 | C162: =ROUND(C161-SUM(OFFSET(C162,0,22,1,100)),2)+IF(B162='Oversigt Total'!$K$13,SUM(OFFSET(C162,0,1,1,21))+'Oversigt Total'!$K$12,SUM(OFFSET(C162,0,1,1,21))) -> 1050
A163: 1900-01-05 | B163: 2024-06-06 | C163: =ROUND(C162-SUM(OFFSET(C163,0,22,1,100)),2)+IF(B163='Oversigt Total'!$K$13,SUM(OFFSET(C163,0,1,1,21))+'Oversigt Total'!$K$12,SUM(OFFSET(C163,0,1,1,21))) -> 1050
A164: 1900-01-06 | B164: 2024-06-07 | C164: =ROUND(C163-SUM(OFFSET(C164,0,22,1,100)),2)+IF(B164='Oversigt Total'!$K$13,SUM(OFFSET(C164,0,1,1,21))+'Oversigt Total'!$K$12,SUM(OFFSET(C164,0,1,1,21))) -> 1050
A165: 1900-01-07 | B165: 2024-06-08 | C165: =ROUND(C164-SUM(OFFSET(C165,0,22,1,100)),2)+IF(B165='Oversigt Total'!$K$13,SUM(OFFSET(C165,0,1,1,21))+'Oversigt Total'!$K$12,SUM(OFFSET(C165,0,1,1,21))) -> 1050
A166: 1900-01-01 | B166: 2024-06-09 | C166: =ROUND(C165-SUM(OFFSET(C166,0,22,1,100)),2)+IF(B166='Oversigt Total'!$K$13,SUM(OFFSET(C166,0,1,1,21))+'Oversigt Total'!$K$12,SUM(OFFSET(C166,0,1,1,21))) -> 1050
A167: 1900-01-02 | B167: 2024-06-10 | C167: =ROUND(C166-SUM(OFFSET(C167,0,22,1,100)),2)+IF(B167='Oversigt Total'!$K$13,SUM(OFFSET(C167,0,1,1,21))+'Oversigt Total'!$K$12,SUM(OFFSET(C167,0,1,1,21))) -> 1050
A168: 1900-01-03 | B168: 2024-06-11 | C168: =ROUND(C167-SUM(OFFSET(C168,0,22,1,100)),2)+IF(B168='Oversigt Total'!$K$13,SUM(OFFSET(C168,0,1,1,21))+'Oversigt Total'!$K$12,SUM(OFFSET(C168,0,1,1,21))) -> 1050
A169: 1900-01-04 | B169: 2024-06-12 | C169: =ROUND(C168-SUM(OFFSET(C169,0,22,1,100)),2)+IF(B169='Oversigt Total'!$K$13,SUM(OFFSET(C169,0,1,1,21))+'Oversigt Total'!$K$12,SUM(OFFSET(C169,0,1,1,21))) -> 1050
A170: 1900-01-05 | B170: 2024-06-13 | C170: =ROUND(C169-SUM(OFFSET(C170,0,22,1,100)),2)+IF(B170='Oversigt Total'!$K$13,SUM(OFFSET(C170,0,1,1,21))+'Oversigt Total'!$K$12,SUM(OFFSET(C170,0,1,1,21))) -> 1050
A171: 1900-01-06 | B171: 2024-06-14 | C171: =ROUND(C170-SUM(OFFSET(C171,0,22,1,100)),2)+IF(B171='Oversigt Total'!$K$13,SUM(OFFSET(C171,0,1,1,21))+'Oversigt Total'!$K$12,SUM(OFFSET(C171,0,1,1,21))) -> 1050
A172: 1900-01-07 | B172: 2024-06-15 | C172: =ROUND(C171-SUM(OFFSET(C172,0,22,1,100)),2)+IF(B172='Oversigt Total'!$K$13,SUM(OFFSET(C172,0,1,1,21))+'Oversigt Total'!$K$12,SUM(OFFSET(C172,0,1,1,21))) -> 1050
A173: 1900-01-01 | B173: 2024-06-16 | C173: =ROUND(C172-SUM(OFFSET(C173,0,22,1,100)),2)+IF(B173='Oversigt Total'!$K$13,SUM(OFFSET(C173,0,1,1,21))+'Oversigt Total'!$K$12,SUM(OFFSET(C173,0,1,1,21))) -> 1050
A174: 1900-01-02 | B174: 2024-06-17 | C174: =ROUND(C173-SUM(OFFSET(C174,0,22,1,100)),2)+IF(B174='Oversigt Total'!$K$13,SUM(OFFSET(C174,0,1,1,21))+'Oversigt Total'!$K$12,SUM(OFFSET(C174,0,1,1,21))) -> 1050
A175: 1900-01-03 | B175: 2024-06-18 | C175: =ROUND(C174-SUM(OFFSET(C175,0,22,1,100)),2)+IF(B175='Oversigt Total'!$K$13,SUM(OFFSET(C175,0,1,1,21))+'Oversigt Total'!$K$12,SUM(OFFSET(C175,0,1,1,21))) -> 1050
A176: 1900-01-04 | B176: 2024-06-19 | C176: =ROUND(C175-SUM(OFFSET(C176,0,22,1,100)),2)+IF(B176='Oversigt Total'!$K$13,SUM(OFFSET(C176,0,1,1,21))+'Oversigt Total'!$K$12,SUM(OFFSET(C176,0,1,1,21))) -> 1050
A177: 1900-01-05 | B177: 2024-06-20 | C177: =ROUND(C176-SUM(OFFSET(C177,0,22,1,100)),2)+IF(B177='Oversigt Total'!$K$13,SUM(OFFSET(C177,0,1,1,21))+'Oversigt Total'!$K$12,SUM(OFFSET(C177,0,1,1,21))) -> 1050
A178: 1900-01-06 | B178: 2024-06-21 | C178: =ROUND(C177-SUM(OFFSET(C178,0,22,1,100)),2)+IF(B178='Oversigt Total'!$K$13,SUM(OFFSET(C178,0,1,1,21))+'Oversigt Total'!$K$12,SUM(OFFSET(C178,0,1,1,21))) -> 1050
A179: 1900-01-07 | B179: 2024-06-22 | C179: =ROUND(C178-SUM(OFFSET(C179,0,22,1,100)),2)+IF(B179='Oversigt Total'!$K$13,SUM(OFFSET(C179,0,1,1,21))+'Oversigt Total'!$K$12,SUM(OFFSET(C179,0,1,1,21))) -> 1050
A180: 1900-01-01 | B180: 2024-06-23 | C180: =ROUND(C179-SUM(OFFSET(C180,0,22,1,100)),2)+IF(B180='Oversigt Total'!$K$13,SUM(OFFSET(C180,0,1,1,21))+'Oversigt Total'!$K$12,SUM(OFFSET(C180,0,1,1,21))) -> 1050
A181: 1900-01-02 | B181: 2024-06-24 | C181: =ROUND(C180-SUM(OFFSET(C181,0,22,1,100)),2)+IF(B181='Oversigt Total'!$K$13,SUM(OFFSET(C181,0,1,1,21))+'Oversigt Total'!$K$12,SUM(OFFSET(C181,0,1,1,21))) -> 1050
A182: 1900-01-03 | B182: 2024-06-25 | C182: =ROUND(C181-SUM(OFFSET(C182,0,22,1,100)),2)+IF(B182='Oversigt Total'!$K$13,SUM(OFFSET(C182,0,1,1,21))+'Oversigt Total'!$K$12,SUM(OFFSET(C182,0,1,1,21))) -> 1050
A183: 1900-01-04 | B183: 2024-06-26 | C183: =ROUND(C182-SUM(OFFSET(C183,0,22,1,100)),2)+IF(B183='Oversigt Total'!$K$13,SUM(OFFSET(C183,0,1,1,21))+'Oversigt Total'!$K$12,SUM(OFFSET(C183,0,1,1,21))) -> 1050
A184: 1900-01-05 | B184: 2024-06-27 | C184: =ROUND(C183-SUM(OFFSET(C184,0,22,1,100)),2)+IF(B184='Oversigt Total'!$K$13,SUM(OFFSET(C184,0,1,1,21))+'Oversigt Total'!$K$12,SUM(OFFSET(C184,0,1,1,21))) -> 1050
A185: 1900-01-06 | B185: 2024-06-28 | C185: =ROUND(C184-SUM(OFFSET(C185,0,22,1,100)),2)+IF(B185='Oversigt Total'!$K$13,SUM(OFFSET(C185,0,1,1,21))+'Oversigt Total'!$K$12,SUM(OFFSET(C185,0,1,1,21))) -> 1050
A186: 1900-01-07 | B186: 2024-06-29 | C186: =ROUND(C185-SUM(OFFSET(C186,0,22,1,100)),2)+IF(B186='Oversigt Total'!$K$13,SUM(OFFSET(C186,0,1,1,21))+'Oversigt Total'!$K$12,SUM(OFFSET(C186,0,1,1,21))) -> 1050
A187: 1900-01-01 | B187: 2024-06-30 | C187: =ROUND(C186-SUM(OFFSET(C187,0,22,1,100)),2)+IF(B187='Oversigt Total'!$K$13,SUM(OFFSET(C187,0,1,1,21))+'Oversigt Total'!$K$12,SUM(OFFSET(C187,0,1,1,21))) -> 1050
A188: 1900-01-02 | B188: 2024-07-01 | C188: =ROUND(C187-SUM(OFFSET(C188,0,22,1,100)),2)+IF(B188='Oversigt Total'!$K$13,SUM(OFFSET(C188,0,1,1,21))+'Oversigt Total'!$K$12,SUM(OFFSET(C188,0,1,1,21))) -> 1050
A189: 1900-01-03 | B189: 2024-07-02 | C189: =ROUND(C188-SUM(OFFSET(C189,0,22,1,100)),2)+IF(B189='Oversigt Total'!$K$13,SUM(OFFSET(C189,0,1,1,21))+'Oversigt Total'!$K$12,SUM(OFFSET(C189,0,1,1,21))) -> 1050
A190: 1900-01-04 | B190: 2024-07-03 | C190: =ROUND(C189-SUM(OFFSET(C190,0,22,1,100)),2)+IF(B190='Oversigt Total'!$K$13,SUM(OFFSET(C190,0,1,1,21))+'Oversigt Total'!$K$12,SUM(OFFSET(C190,0,1,1,21))) -> 1050
A191: 1900-01-05 | B191: 2024-07-04 | C191: =ROUND(C190-SUM(OFFSET(C191,0,22,1,100)),2)+IF(B191='Oversigt Total'!$K$13,SUM(OFFSET(C191,0,1,1,21))+'Oversigt Total'!$K$12,SUM(OFFSET(C191,0,1,1,21))) -> 1050
A192: 1900-01-06 | B192: 2024-07-05 | C192: =ROUND(C191-SUM(OFFSET(C192,0,22,1,100)),2)+IF(B192='Oversigt Total'!$K$13,SUM(OFFSET(C192,0,1,1,21))+'Oversigt Total'!$K$12,SUM(OFFSET(C192,0,1,1,21))) -> 1050
A193: 1900-01-07 | B193: 2024-07-06 | C193: =ROUND(C192-SUM(OFFSET(C193,0,22,1,100)),2)+IF(B193='Oversigt Total'!$K$13,SUM(OFFSET(C193,0,1,1,21))+'Oversigt Total'!$K$12,SUM(OFFSET(C193,0,1,1,21))) -> 1050
A194: 1900-01-01 | B194: 2024-07-07 | C194: =ROUND(C193-SUM(OFFSET(C194,0,22,1,100)),2)+IF(B194='Oversigt Total'!$K$13,SUM(OFFSET(C194,0,1,1,21))+'Oversigt Total'!$K$12,SUM(OFFSET(C194,0,1,1,21))) -> 1050
A195: 1900-01-02 | B195: 2024-07-08 | C195: =ROUND(C194-SUM(OFFSET(C195,0,22,1,100)),2)+IF(B195='Oversigt Total'!$K$13,SUM(OFFSET(C195,0,1,1,21))+'Oversigt Total'!$K$12,SUM(OFFSET(C195,0,1,1,21))) -> 1050
A196: 1900-01-03 | B196: 2024-07-09 | C196: =ROUND(C195-SUM(OFFSET(C196,0,22,1,100)),2)+IF(B196='Oversigt Total'!$K$13,SUM(OFFSET(C196,0,1,1,21))+'Oversigt Total'!$K$12,SUM(OFFSET(C196,0,1,1,21))) -> 1050
A197: 1900-01-04 | B197: 2024-07-10 | C197: =ROUND(C196-SUM(OFFSET(C197,0,22,1,100)),2)+IF(B197='Oversigt Total'!$K$13,SUM(OFFSET(C197,0,1,1,21))+'Oversigt Total'!$K$12,SUM(OFFSET(C197,0,1,1,21))) -> 1050
A198: 1900-01-05 | B198: 2024-07-11 | C198: =ROUND(C197-SUM(OFFSET(C198,0,22,1,100)),2)+IF(B198='Oversigt Total'!$K$13,SUM(OFFSET(C198,0,1,1,21))+'Oversigt Total'!$K$12,SUM(OFFSET(C198,0,1,1,21))) -> 1050
A199: =WEEKDAY(B199) -> 1900-01-06 | B199: 2024-07-12 | C199: =ROUND(C198-SUM(OFFSET(C199,0,22,1,100)),2)+IF(B199='Oversigt Total'!$K$13,SUM(OFFSET(C199,0,1,1,21))+'Oversigt Total'!$K$12,SUM(OFFSET(C199,0,1,1,21))) -> 1050
A200: 1900-01-07 | B200: =B199+1 -> 2024-07-13 | C200: =ROUND(C199-SUM(OFFSET(C200,0,22,1,100)),2)+IF(B200='Oversigt Total'!$K$13,SUM(OFFSET(C200,0,1,1,21))+'Oversigt Total'!$K$12,SUM(OFFSET(C200,0,1,1,21))) -> 1050
... 171 more rows

Sheet MånedsBudget
A1: Privatbudget | B1: ="version "&'Oversigt Total'!J1 -> version 3,4 | I1: ="Budget for perioden: "&TEXT('Oversigt Total'!C15,"mmmm åååå") & " - " &TEXT('Oversigt Total'!N15,"mmmm åååå") -> Budget for perioden: januar 2024 - december 2024
A4: Budgetposter | B4: Sum pr. år ↓ | D4: Gns. pr. md. ↓ | F4: =PROPER(TEXT(TRANSPOSE(' '!C14:C25), "mmmm")) -> Januar | G4: Februar | H4: Marts | I4: April | J4: Maj | K4: Juni | L4: Juli | M4: August | N4: September | O4: Oktober | P4: November | Q4: December | R4: [kolonne]
A5: 0 | F5: =TRANSPOSE(' '!B14:B25) -> 1 | G5: 2 | H5: 3 | I5: 4 | J5: 5 | K5: 6 | L5: 7 | M5: 8 | N5: 9 | O5: 10 | P5: 11 | Q5: 12
A6: 0 | F6: =TRANSPOSE(YEAR(' '!C14:C25)) -> 2024 | G6: 2024 | H6: 2024 | I6: 2024 | J6: 2024 | K6: 2024 | L6: 2024 | M6: 2024 | N6: 2024 | O6: 2024 | P6: 2024 | Q6: 2024
A7: [System]
A8: Indtægter ↓
A9: =TRANSPOSE('Budget indtastning'!D3:W3) -> Indbetaling 1 | B9: =SUM(F9:Q9) -> 0 | D9: =B9/12 -> 0 | F9: =SUMPRODUCT((MONTH('Budget indtastning'!$B$6:$B$371)=F$5)*(YEAR('Budget indtastning'!$B$6:$B$371)=F$6)+0,INDIRECT("'Budget indtastning'!$"&$R9&"6:"&$R9&"371")) -> 0 | G9: =SUMPRODUCT((MONTH('Budget indtastning'!$B$6:$B$371)=G$5)*(YEAR('Budget indtastning'!$B$6:$B$371)=G$6)+0,INDIRECT("'Budget indtastning'!$"&$R9&"6:"&$R9&"371")) -> 0 | H9: =SUMPRODUCT((MONTH('Budget indtastning'!$B$6:$B$371)=H$5)*(YEAR('Budget indtastning'!$B$6:$B$371)=H$6)+0,INDIRECT("'Budget indtastning'!$"&$R9&"6:"&$R9&"371")) -> 0 | I9: =SUMPRODUCT((MONTH('Budget indtastning'!$B$6:$B$371)=I$5)*(YEAR('Budget indtastning'!$B$6:$B$371)=I$6)+0,INDIRECT("'Budget indtastning'!$"&$R9&"6:"&$R9&"371")) -> 0 | J9: =SUMPRODUCT((MONTH('Budget indtastning'!$B$6:$B$371)=J$5)*(YEAR('Budget indtastning'!$B$6:$B$371)=J$6)+0,INDIRECT("'Budget indtastning'!$"&$R9&"6:"&$R9&"371")) -> 0 | K9: =SUMPRODUCT((MONTH('Budget indtastning'!$B$6:$B$371)=K$5)*(YEAR('Budget indtastning'!$B$6:$B$371)=K$6)+0,INDIRECT("'Budget indtastning'!$"&$R9&"6:"&$R9&"371")) -> 0 | L9: =SUMPRODUCT((MONTH('Budget indtastning'!$B$6:$B$371)=L$5)*(YEAR('Budget indtastning'!$B$6:$B$371)=L$6)+0,INDIRECT("'Budget indtastning'!$"&$R9&"6:"&$R9&"371")) -> 0 | M9: =SUMPRODUCT((MONTH('Budget indtastning'!$B$6:$B$371)=M$5)*(YEAR('Budget indtastning'!$B$6:$B$371)=M$6)+0,INDIRECT("'Budget indtastning'!$"&$R9&"6:"&$R9&"371")) -> 0 | N9: =SUMPRODUCT((MONTH('Budget indtastning'!$B$6:$B$371)=N$5)*(YEAR('Budget indtastning'!$B$6:$B$371)=N$6)+0,INDIRECT("'Budget indtastning'!$"&$R9&"6:"&$R9&"371")) -> 0 | O9: =SUMPRODUCT((MONTH('Budget indtastning'!$B$6:$B$371)=O$5)*(YEAR('Budget indtastning'!$B$6:$B$371)=O$6)+0,INDIRECT("'Budget indtastning'!$"&$R9&"6:"&$R9&"371")) -> 0 | P9: =SUMPRODUCT((MONTH('Budget indtastning'!$B$6:$B$371)=P$5)*(YEAR('Budget indtastning'!$B$6:$B$371)=P$6)+0,INDIRECT("'Budget indtastning'!$"&$R9&"6:"&$R9&"371")) -> 0 | Q9: =SUMPRODUCT((MONTH('Budget indtastning'!$B$6:$B$371)=Q$5)*(YEAR('Budget indtastning'!$B$6:$B$371)=Q$6)+0,INDIRECT("'Budget indtastning'!$"&$R9&"6:"&$R9&"371")) -> 0 | R9: d
A10: Indbetaling 2 | B10: =SUM(F10:Q10) -> 1650 | D10: =B10/12 -> 137.5 | F10: =SUMPRODUCT((MONTH('Budget indtastning'!$B$6:$B$371)=F$5)*(YEAR('Budget indtastning'!$B$6:$B$371)=F$6)+0,INDIRECT("'Budget indtastning'!$"&$R10&"6:"&$R10&"371")) -> 1650 | G10: =SUMPRODUCT((MONTH('Budget indtastning'!$B$6:$B$371)=G$5)*(YEAR('Budget indtastning'!$B$6:$B$371)=G$6)+0,INDIRECT("'Budget indtastning'!$"&$R10&"6:"&$R10&"371")) -> 0 | H10: =SUMPRODUCT((MONTH('Budget indtastning'!$B$6:$B$371)=H$5)*(YEAR('Budget indtastning'!$B$6:$B$371)=H$6)+0,INDIRECT("'Budget indtastning'!$"&$R10&"6:"&$R10&"371")) -> 0 | I10: =SUMPRODUCT((MONTH('Budget indtastning'!$B$6:$B$371)=I$5)*(YEAR('Budget indtastning'!$B$6:$B$371)=I$6)+0,INDIRECT("'Budget indtastning'!$"&$R10&"6:"&$R10&"371")) -> 0 | J10: =SUMPRODUCT((MONTH('Budget indtastning'!$B$6:$B$371)=J$5)*(YEAR('Budget indtastning'!$B$6:$B$371)=J$6)+0,INDIRECT("'Budget indtastning'!$"&$R10&"6:"&$R10&"371")) -> 0 | K10: =SUMPRODUCT((MONTH('Budget indtastning'!$B$6:$B$371)=K$5)*(YEAR('Budget indtastning'!$B$6:$B$371)=K$6)+0,INDIRECT("'Budget indtastning'!$"&$R10&"6:"&$R10&"371")) -> 0 | L10: =SUMPRODUCT((MONTH('Budget indtastning'!$B$6:$B$371)=L$5)*(YEAR('Budget indtastning'!$B$6:$B$371)=L$6)+0,INDIRECT("'Budget indtastning'!$"&$R10&"6:"&$R10&"371")) -> 0 | M10: =SUMPRODUCT((MONTH('Budget indtastning'!$B$6:$B$371)=M$5)*(YEAR('Budget indtastning'!$B$6:$B$371)=M$6)+0,INDIRECT("'Budget indtastning'!$"&$R10&"6:"&$R10&"371")) -> 0 | N10: =SUMPRODUCT((MONTH('Budget indtastning'!$B$6:$B$371)=N$5)*(YEAR('Budget indtastning'!$B$6:$B$371)=N$6)+0,INDIRECT("'Budget indtastning'!$"&$R10&"6:"&$R10&"371")) -> 0 | O10: =SUMPRODUCT((MONTH('Budget indtastning'!$B$6:$B$371)=O$5)*(YEAR('Budget indtastning'!$B$6:$B$371)=O$6)+0,INDIRECT("'Budget indtastning'!$"&$R10&"6:"&$R10&"371")) -> 0 | P10: =SUMPRODUCT((MONTH('Budget indtastning'!$B$6:$B$371)=P$5)*(YEAR('Budget indtastning'!$B$6:$B$371)=P$6)+0,INDIRECT("'Budget indtastning'!$"&$R10&"6:"&$R10&"371")) -> 0 | Q10: =SUMPRODUCT((MONTH('Budget indtastning'!$B$6:$B$371)=Q$5)*(YEAR('Budget indtastning'!$B$6:$B$371)=Q$6)+0,INDIRECT("'Budget indtastning'!$"&$R10&"6:"&$R10&"371")) -> 0 | R10: e
A11: Indbetaling 3 | B11: 0 | D11: 0 | F11: =SUMPRODUCT((MONTH('Budget indtastning'!$B$6:$B$371)=F$5)*(YEAR('Budget indtastning'!$B$6:$B$371)=F$6)+0,INDIRECT("'Budget indtastning'!$"&$R11&"6:"&$R11&"371")) -> 0 | G11: =SUMPRODUCT((MONTH('Budget indtastning'!$B$6:$B$371)=G$5)*(YEAR('Budget indtastning'!$B$6:$B$371)=G$6)+0,INDIRECT("'Budget indtastning'!$"&$R11&"6:"&$R11&"371")) -> 0 | H11: =SUMPRODUCT((MONTH('Budget indtastning'!$B$6:$B$371)=H$5)*(YEAR('Budget indtastning'!$B$6:$B$371)=H$6)+0,INDIRECT("'Budget indtastning'!$"&$R11&"6:"&$R11&"371")) -> 0 | I11: =SUMPRODUCT((MONTH('Budget indtastning'!$B$6:$B$371)=I$5)*(YEAR('Budget indtastning'!$B$6:$B$371)=I$6)+0,INDIRECT("'Budget indtastning'!$"&$R11&"6:"&$R11&"371")) -> 0 | J11: =SUMPRODUCT((MONTH('Budget indtastning'!$B$6:$B$371)=J$5)*(YEAR('Budget indtastning'!$B$6:$B$371)=J$6)+0,INDIRECT("'Budget indtastning'!$"&$R11&"6:"&$R11&"371")) -> 0 | K11: =SUMPRODUCT((MONTH('Budget indtastning'!$B$6:$B$371)=K$5)*(YEAR('Budget indtastning'!$B$6:$B$371)=K$6)+0,INDIRECT("'Budget indtastning'!$"&$R11&"6:"&$R11&"371")) -> 0 | L11: =SUMPRODUCT((MONTH('Budget indtastning'!$B$6:$B$371)=L$5)*(YEAR('Budget indtastning'!$B$6:$B$371)=L$6)+0,INDIRECT("'Budget indtastning'!$"&$R11&"6:"&$R11&"371")) -> 0 | M11: =SUMPRODUCT((MONTH('Budget indtastning'!$B$6:$B$371)=M$5)*(YEAR('Budget indtastning'!$B$6:$B$371)=M$6)+0,INDIRECT("'Budget indtastning'!$"&$R11&"6:"&$R11&"371")) -> 0 | N11: =SUMPRODUCT((MONTH('Budget indtastning'!$B$6:$B$371)=N$5)*(YEAR('Budget indtastning'!$B$6:$B$371)=N$6)+0,INDIRECT("'Budget indtastning'!$"&$R11&"6:"&$R11&"371")) -> 0 | O11: =SUMPRODUCT((MONTH('Budget indtastning'!$B$6:$B$371)=O$5)*(YEAR('Budget indtastning'!$B$6:$B$371)=O$6)+0,INDIRECT("'Budget indtastning'!$"&$R11&"6:"&$R11&"371")) -> 0 | P11: =SUMPRODUCT((MONTH('Budget indtastning'!$B$6:$B$371)=P$5)*(YEAR('Budget indtastning'!$B$6:$B$371)=P$6)+0,INDIRECT("'Budget indtastning'!$"&$R11&"6:"&$R11&"371")) -> 0 | Q11: =SUMPRODUCT((MONTH('Budget indtastning'!$B$6:$B$371)=Q$5)*(YEAR('Budget indtastning'!$B$6:$B$371)=Q$6)+0,INDIRECT("'Budget indtastning'!$"&$R11&"6:"&$R11&"371")) -> 0 | R11: f
A12: Indbetaling 4 | B12: 0 | D12: 0 | F12: =SUMPRODUCT((MONTH('Budget indtastning'!$B$6:$B$371)=F$5)*(YEAR('Budget indtastning'!$B$6:$B$371)=F$6)+0,INDIRECT("'Budget indtastning'!$"&$R12&"6:"&$R12&"371")) -> 0 | G12: =SUMPRODUCT((MONTH('Budget indtastning'!$B$6:$B$371)=G$5)*(YEAR('Budget indtastning'!$B$6:$B$371)=G$6)+0,INDIRECT("'Budget indtastning'!$"&$R12&"6:"&$R12&"371")) -> 0 | H12: =SUMPRODUCT((MONTH('Budget indtastning'!$B$6:$B$371)=H$5)*(YEAR('Budget indtastning'!$B$6:$B$371)=H$6)+0,INDIRECT("'Budget indtastning'!$"&$R12&"6:"&$R12&"371")) -> 0 | I12: =SUMPRODUCT((MONTH('Budget indtastning'!$B$6:$B$371)=I$5)*(YEAR('Budget indtastning'!$B$6:$B$371)=I$6)+0,INDIRECT("'Budget indtastning'!$"&$R12&"6:"&$R12&"371")) -> 0 | J12: =SUMPRODUCT((MONTH('Budget indtastning'!$B$6:$B$371)=J$5)*(YEAR('Budget indtastning'!$B$6:$B$371)=J$6)+0,INDIRECT("'Budget indtastning'!$"&$R12&"6:"&$R12&"371")) -> 0 | K12: =SUMPRODUCT((MONTH('Budget indtastning'!$B$6:$B$371)=K$5)*(YEAR('Budget indtastning'!$B$6:$B$371)=K$6)+0,INDIRECT("'Budget indtastning'!$"&$R12&"6:"&$R12&"371")) -> 0 | L12: =SUMPRODUCT((MONTH('Budget indtastning'!$B$6:$B$371)=L$5)*(YEAR('Budget indtastning'!$B$6:$B$371)=L$6)+0,INDIRECT("'Budget indtastning'!$"&$R12&"6:"&$R12&"371")) -> 0 | M12: =SUMPRODUCT((MONTH('Budget indtastning'!$B$6:$B$371)=M$5)*(YEAR('Budget indtastning'!$B$6:$B$371)=M$6)+0,INDIRECT("'Budget indtastning'!$"&$R12&"6:"&$R12&"371")) -> 0 | N12: =SUMPRODUCT((MONTH('Budget indtastning'!$B$6:$B$371)=N$5)*(YEAR('Budget indtastning'!$B$6:$B$371)=N$6)+0,INDIRECT("'Budget indtastning'!$"&$R12&"6:"&$R12&"371")) -> 0 | O12: =SUMPRODUCT((MONTH('Budget indtastning'!$B$6:$B$371)=O$5)*(YEAR('Budget indtastning'!$B$6:$B$371)=O$6)+0,INDIRECT("'Budget indtastning'!$"&$R12&"6:"&$R12&"371")) -> 0 | P12: =SUMPRODUCT((MONTH('Budget indtastning'!$B$6:$B$371)=P$5)*(YEAR('Budget indtastning'!$B$6:$B$371)=P$6)+0,INDIRECT("'Budget indtastning'!$"&$R12&"6:"&$R12&"371")) -> 0 | Q12: =SUMPRODUCT((MONTH('Budget indtastning'!$B$6:$B$371)=Q$5)*(YEAR('Budget indtastning'!$B$6:$B$371)=Q$6)+0,INDIRECT("'Budget indtastning'!$"&$R12&"6:"&$R12&"371")) -> 0 | R12: g
A13: Indbetaling 5 | B13: 0 | D13: 0 | F13: =SUMPRODUCT((MONTH('Budget indtastning'!$B$6:$B$371)=F$5)*(YEAR('Budget indtastning'!$B$6:$B$371)=F$6)+0,INDIRECT("'Budget indtastning'!$"&$R13&"6:"&$R13&"371")) -> 0 | G13: =SUMPRODUCT((MONTH('Budget indtastning'!$B$6:$B$371)=G$5)*(YEAR('Budget indtastning'!$B$6:$B$371)=G$6)+0,INDIRECT("'Budget indtastning'!$"&$R13&"6:"&$R13&"371")) -> 0 | H13: =SUMPRODUCT((MONTH('Budget indtastning'!$B$6:$B$371)=H$5)*(YEAR('Budget indtastning'!$B$6:$B$371)=H$6)+0,INDIRECT("'Budget indtastning'!$"&$R13&"6:"&$R13&"371")) -> 0 | I13: =SUMPRODUCT((MONTH('Budget indtastning'!$B$6:$B$371)=I$5)*(YEAR('Budget indtastning'!$B$6:$B$371)=I$6)+0,INDIRECT("'Budget indtastning'!$"&$R13&"6:"&$R13&"371")) -> 0 | J13: =SUMPRODUCT((MONTH('Budget indtastning'!$B$6:$B$371)=J$5)*(YEAR('Budget indtastning'!$B$6:$B$371)=J$6)+0,INDIRECT("'Budget indtastning'!$"&$R13&"6:"&$R13&"371")) -> 0 | K13: =SUMPRODUCT((MONTH('Budget indtastning'!$B$6:$B$371)=K$5)*(YEAR('Budget indtastning'!$B$6:$B$371)=K$6)+0,INDIRECT("'Budget indtastning'!$"&$R13&"6:"&$R13&"371")) -> 0 | L13: =SUMPRODUCT((MONTH('Budget indtastning'!$B$6:$B$371)=L$5)*(YEAR('Budget indtastning'!$B$6:$B$371)=L$6)+0,INDIRECT("'Budget indtastning'!$"&$R13&"6:"&$R13&"371")) -> 0 | M13: =SUMPRODUCT((MONTH('Budget indtastning'!$B$6:$B$371)=M$5)*(YEAR('Budget indtastning'!$B$6:$B$371)=M$6)+0,INDIRECT("'Budget indtastning'!$"&$R13&"6:"&$R13&"371")) -> 0 | N13: =SUMPRODUCT((MONTH('Budget indtastning'!$B$6:$B$371)=N$5)*(YEAR('Budget indtastning'!$B$6:$B$371)=N$6)+0,INDIRECT("'Budget indtastning'!$"&$R13&"6:"&$R13&"371")) -> 0 | O13: =SUMPRODUCT((MONTH('Budget indtastning'!$B$6:$B$371)=O$5)*(YEAR('Budget indtastning'!$B$6:$B$371)=O$6)+0,INDIRECT("'Budget indtastning'!$"&$R13&"6:"&$R13&"371")) -> 0 | P13: =SUMPRODUCT((MONTH('Budget indtastning'!$B$6:$B$371)=P$5)*(YEAR('Budget indtastning'!$B$6:$B$371)=P$6)+0,INDIRECT("'Budget indtastning'!$"&$R13&"6:"&$R13&"371")) -> 0 | Q13: =SUMPRODUCT((MONTH('Budget indtastning'!$B$6:$B$371)=Q$5)*(YEAR('Budget indtastning'!$B$6:$B$371)=Q$6)+0,INDIRECT("'Budget indtastning'!$"&$R13&"6:"&$R13&"371")) -> 0 | R13: h
B14: 0 | D14: 0 | F14: =SUMPRODUCT((MONTH('Budget indtastning'!$B$6:$B$371)=F$5)*(YEAR('Budget indtastning'!$B$6:$B$371)=F$6)+0,INDIRECT("'Budget indtastning'!$"&$R14&"6:"&$R14&"371")) -> 0 | G14: =SUMPRODUCT((MONTH('Budget indtastning'!$B$6:$B$371)=G$5)*(YEAR('Budget indtastning'!$B$6:$B$371)=G$6)+0,INDIRECT("'Budget indtastning'!$"&$R14&"6:"&$R14&"371")) -> 0 | H14: =SUMPRODUCT((MONTH('Budget indtastning'!$B$6:$B$371)=H$5)*(YEAR('Budget indtastning'!$B$6:$B$371)=H$6)+0,INDIRECT("'Budget indtastning'!$"&$R14&"6:"&$R14&"371")) -> 0 | I14: =SUMPRODUCT((MONTH('Budget indtastning'!$B$6:$B$371)=I$5)*(YEAR('Budget indtastning'!$B$6:$B$371)=I$6)+0,INDIRECT("'Budget indtastning'!$"&$R14&"6:"&$R14&"371")) -> 0 | J14: =SUMPRODUCT((MONTH('Budget indtastning'!$B$6:$B$371)=J$5)*(YEAR('Budget indtastning'!$B$6:$B$371)=J$6)+0,INDIRECT("'Budget indtastning'!$"&$R14&"6:"&$R14&"371")) -> 0 | K14: =SUMPRODUCT((MONTH('Budget indtastning'!$B$6:$B$371)=K$5)*(YEAR('Budget indtastning'!$B$6:$B$371)=K$6)+0,INDIRECT("'Budget indtastning'!$"&$R14&"6:"&$R14&"371")) -> 0 | L14: =SUMPRODUCT((MONTH('Budget indtastning'!$B$6:$B$371)=L$5)*(YEAR('Budget indtastning'!$B$6:$B$371)=L$6)+0,INDIRECT("'Budget indtastning'!$"&$R14&"6:"&$R14&"371")) -> 0 | M14: =SUMPRODUCT((MONTH('Budget indtastning'!$B$6:$B$371)=M$5)*(YEAR('Budget indtastning'!$B$6:$B$371)=M$6)+0,INDIRECT("'Budget indtastning'!$"&$R14&"6:"&$R14&"371")) -> 0 | N14: =SUMPRODUCT((MONTH('Budget indtastning'!$B$6:$B$371)=N$5)*(YEAR('Budget indtastning'!$B$6:$B$371)=N$6)+0,INDIRECT("'Budget indtastning'!$"&$R14&"6:"&$R14&"371")) -> 0 | O14: =SUMPRODUCT((MONTH('Budget indtastning'!$B$6:$B$371)=O$5)*(YEAR('Budget indtastning'!$B$6:$B$371)=O$6)+0,INDIRECT("'Budget indtastning'!$"&$R14&"6:"&$R14&"371")) -> 0 | P14: =SUMPRODUCT((MONTH('Budget indtastning'!$B$6:$B$371)=P$5)*(YEAR('Budget indtastning'!$B$6:$B$371)=P$6)+0,INDIRECT("'Budget indtastning'!$"&$R14&"6:"&$R14&"371")) -> 0 | Q14: =SUMPRODUCT((MONTH('Budget indtastning'!$B$6:$B$371)=Q$5)*(YEAR('Budget indtastning'!$B$6:$B$371)=Q$6)+0,INDIRECT("'Budget indtastning'!$"&$R14&"6:"&$R14&"371")) -> 0 | R14: i
B15: 0 | D15: 0 | F15: =SUMPRODUCT((MONTH('Budget indtastning'!$B$6:$B$371)=F$5)*(YEAR('Budget indtastning'!$B$6:$B$371)=F$6)+0,INDIRECT("'Budget indtastning'!$"&$R15&"6:"&$R15&"371")) -> 0 | G15: =SUMPRODUCT((MONTH('Budget indtastning'!$B$6:$B$371)=G$5)*(YEAR('Budget indtastning'!$B$6:$B$371)=G$6)+0,INDIRECT("'Budget indtastning'!$"&$R15&"6:"&$R15&"371")) -> 0 | H15: =SUMPRODUCT((MONTH('Budget indtastning'!$B$6:$B$371)=H$5)*(YEAR('Budget indtastning'!$B$6:$B$371)=H$6)+0,INDIRECT("'Budget indtastning'!$"&$R15&"6:"&$R15&"371")) -> 0 | I15: =SUMPRODUCT((MONTH('Budget indtastning'!$B$6:$B$371)=I$5)*(YEAR('Budget indtastning'!$B$6:$B$371)=I$6)+0,INDIRECT("'Budget indtastning'!$"&$R15&"6:"&$R15&"371")) -> 0 | J15: =SUMPRODUCT((MONTH('Budget indtastning'!$B$6:$B$371)=J$5)*(YEAR('Budget indtastning'!$B$6:$B$371)=J$6)+0,INDIRECT("'Budget indtastning'!$"&$R15&"6:"&$R15&"371")) -> 0 | K15: =SUMPRODUCT((MONTH('Budget indtastning'!$B$6:$B$371)=K$5)*(YEAR('Budget indtastning'!$B$6:$B$371)=K$6)+0,INDIRECT("'Budget indtastning'!$"&$R15&"6:"&$R15&"371")) -> 0 | L15: =SUMPRODUCT((MONTH('Budget indtastning'!$B$6:$B$371)=L$5)*(YEAR('Budget indtastning'!$B$6:$B$371)=L$6)+0,INDIRECT("'Budget indtastning'!$"&$R15&"6:"&$R15&"371")) -> 0 | M15: =SUMPRODUCT((MONTH('Budget indtastning'!$B$6:$B$371)=M$5)*(YEAR('Budget indtastning'!$B$6:$B$371)=M$6)+0,INDIRECT("'Budget indtastning'!$"&$R15&"6:"&$R15&"371")) -> 0 | N15: =SUMPRODUCT((MONTH('Budget indtastning'!$B$6:$B$371)=N$5)*(YEAR('Budget indtastning'!$B$6:$B$371)=N$6)+0,INDIRECT("'Budget indtastning'!$"&$R15&"6:"&$R15&"371")) -> 0 | O15: =SUMPRODUCT((MONTH('Budget indtastning'!$B$6:$B$371)=O$5)*(YEAR('Budget indtastning'!$B$6:$B$371)=O$6)+0,INDIRECT("'Budget indtastning'!$"&$R15&"6:"&$R15&"371")) -> 0 | P15: =SUMPRODUCT((MONTH('Budget indtastning'!$B$6:$B$371)=P$5)*(YEAR('Budget indtastning'!$B$6:$B$371)=P$6)+0,INDIRECT("'Budget indtastning'!$"&$R15&"6:"&$R15&"371")) -> 0 | Q15: =SUMPRODUCT((MONTH('Budget indtastning'!$B$6:$B$371)=Q$5)*(YEAR('Budget indtastning'!$B$6:$B$371)=Q$6)+0,INDIRECT("'Budget indtastning'!$"&$R15&"6:"&$R15&"371")) -> 0 | R15: j
B16: 0 | D16: 0 | F16: =SUMPRODUCT((MONTH('Budget indtastning'!$B$6:$B$371)=F$5)*(YEAR('Budget indtastning'!$B$6:$B$371)=F$6)+0,INDIRECT("'Budget indtastning'!$"&$R16&"6:"&$R16&"371")) -> 0 | G16: =SUMPRODUCT((MONTH('Budget indtastning'!$B$6:$B$371)=G$5)*(YEAR('Budget indtastning'!$B$6:$B$371)=G$6)+0,INDIRECT("'Budget indtastning'!$"&$R16&"6:"&$R16&"371")) -> 0 | H16: =SUMPRODUCT((MONTH('Budget indtastning'!$B$6:$B$371)=H$5)*(YEAR('Budget indtastning'!$B$6:$B$371)=H$6)+0,INDIRECT("'Budget indtastning'!$"&$R16&"6:"&$R16&"371")) -> 0 | I16: =SUMPRODUCT((MONTH('Budget indtastning'!$B$6:$B$371)=I$5)*(YEAR('Budget indtastning'!$B$6:$B$371)=I$6)+0,INDIRECT("'Budget indtastning'!$"&$R16&"6:"&$R16&"371")) -> 0 | J16: =SUMPRODUCT((MONTH('Budget indtastning'!$B$6:$B$371)=J$5)*(YEAR('Budget indtastning'!$B$6:$B$371)=J$6)+0,INDIRECT("'Budget indtastning'!$"&$R16&"6:"&$R16&"371")) -> 0 | K16: =SUMPRODUCT((MONTH('Budget indtastning'!$B$6:$B$371)=K$5)*(YEAR('Budget indtastning'!$B$6:$B$371)=K$6)+0,INDIRECT("'Budget indtastning'!$"&$R16&"6:"&$R16&"371")) -> 0 | L16: =SUMPRODUCT((MONTH('Budget indtastning'!$B$6:$B$371)=L$5)*(YEAR('Budget indtastning'!$B$6:$B$371)=L$6)+0,INDIRECT("'Budget indtastning'!$"&$R16&"6:"&$R16&"371")) -> 0 | M16: =SUMPRODUCT((MONTH('Budget indtastning'!$B$6:$B$371)=M$5)*(YEAR('Budget indtastning'!$B$6:$B$371)=M$6)+0,INDIRECT("'Budget indtastning'!$"&$R16&"6:"&$R16&"371")) -> 0 | N16: =SUMPRODUCT((MONTH('Budget indtastning'!$B$6:$B$371)=N$5)*(YEAR('Budget indtastning'!$B$6:$B$371)=N$6)+0,INDIRECT("'Budget indtastning'!$"&$R16&"6:"&$R16&"371")) -> 0 | O16: =SUMPRODUCT((MONTH('Budget indtastning'!$B$6:$B$371)=O$5)*(YEAR('Budget indtastning'!$B$6:$B$371)=O$6)+0,INDIRECT("'Budget indtastning'!$"&$R16&"6:"&$R16&"371")) -> 0 | P16: =SUMPRODUCT((MONTH('Budget indtastning'!$B$6:$B$371)=P$5)*(YEAR('Budget indtastning'!$B$6:$B$371)=P$6)+0,INDIRECT("'Budget indtastning'!$"&$R16&"6:"&$R16&"371")) -> 0 | Q16: =SUMPRODUCT((MONTH('Budget indtastning'!$B$6:$B$371)=Q$5)*(YEAR('Budget indtastning'!$B$6:$B$371)=Q$6)+0,INDIRECT("'Budget indtastning'!$"&$R16&"6:"&$R16&"371")) -> 0 | R16: k
B17: 0 | D17: 0 | F17: =SUMPRODUCT((MONTH('Budget indtastning'!$B$6:$B$371)=F$5)*(YEAR('Budget indtastning'!$B$6:$B$371)=F$6)+0,INDIRECT("'Budget indtastning'!$"&$R17&"6:"&$R17&"371")) -> 0 | G17: =SUMPRODUCT((MONTH('Budget indtastning'!$B$6:$B$371)=G$5)*(YEAR('Budget indtastning'!$B$6:$B$371)=G$6)+0,INDIRECT("'Budget indtastning'!$"&$R17&"6:"&$R17&"371")) -> 0 | H17: =SUMPRODUCT((MONTH('Budget indtastning'!$B$6:$B$371)=H$5)*(YEAR('Budget indtastning'!$B$6:$B$371)=H$6)+0,INDIRECT("'Budget indtastning'!$"&$R17&"6:"&$R17&"371")) -> 0 | I17: =SUMPRODUCT((MONTH('Budget indtastning'!$B$6:$B$371)=I$5)*(YEAR('Budget indtastning'!$B$6:$B$371)=I$6)+0,INDIRECT("'Budget indtastning'!$"&$R17&"6:"&$R17&"371")) -> 0 | J17: =SUMPRODUCT((MONTH('Budget indtastning'!$B$6:$B$371)=J$5)*(YEAR('Budget indtastning'!$B$6:$B$371)=J$6)+0,INDIRECT("'Budget indtastning'!$"&$R17&"6:"&$R17&"371")) -> 0 | K17: =SUMPRODUCT((MONTH('Budget indtastning'!$B$6:$B$371)=K$5)*(YEAR('Budget indtastning'!$B$6:$B$371)=K$6)+0,INDIRECT("'Budget indtastning'!$"&$R17&"6:"&$R17&"371")) -> 0 | L17: =SUMPRODUCT((MONTH('Budget indtastning'!$B$6:$B$371)=L$5)*(YEAR('Budget indtastning'!$B$6:$B$371)=L$6)+0,INDIRECT("'Budget indtastning'!$"&$R17&"6:"&$R17&"371")) -> 0 | M17: =SUMPRODUCT((MONTH('Budget indtastning'!$B$6:$B$371)=M$5)*(YEAR('Budget indtastning'!$B$6:$B$371)=M$6)+0,INDIRECT("'Budget indtastning'!$"&$R17&"6:"&$R17&"371")) -> 0 | N17: =SUMPRODUCT((MONTH('Budget indtastning'!$B$6:$B$371)=N$5)*(YEAR('Budget indtastning'!$B$6:$B$371)=N$6)+0,INDIRECT("'Budget indtastning'!$"&$R17&"6:"&$R17&"371")) -> 0 | O17: =SUMPRODUCT((MONTH('Budget indtastning'!$B$6:$B$371)=O$5)*(YEAR('Budget indtastning'!$B$6:$B$371)=O$6)+0,INDIRECT("'Budget indtastning'!$"&$R17&"6:"&$R17&"371")) -> 0 | P17: =SUMPRODUCT((MONTH('Budget indtastning'!$B$6:$B$371)=P$5)*(YEAR('Budget indtastning'!$B$6:$B$371)=P$6)+0,INDIRECT("'Budget indtastning'!$"&$R17&"6:"&$R17&"371")) -> 0 | Q17: =SUMPRODUCT((MONTH('Budget indtastning'!$B$6:$B$371)=Q$5)*(YEAR('Budget indtastning'!$B$6:$B$371)=Q$6)+0,INDIRECT("'Budget indtastning'!$"&$R17&"6:"&$R17&"371")) -> 0 | R17: l
B18: 0 | D18: 0 | F18: =SUMPRODUCT((MONTH('Budget indtastning'!$B$6:$B$371)=F$5)*(YEAR('Budget indtastning'!$B$6:$B$371)=F$6)+0,INDIRECT("'Budget indtastning'!$"&$R18&"6:"&$R18&"371")) -> 0 | G18: =SUMPRODUCT((MONTH('Budget indtastning'!$B$6:$B$371)=G$5)*(YEAR('Budget indtastning'!$B$6:$B$371)=G$6)+0,INDIRECT("'Budget indtastning'!$"&$R18&"6:"&$R18&"371")) -> 0 | H18: =SUMPRODUCT((MONTH('Budget indtastning'!$B$6:$B$371)=H$5)*(YEAR('Budget indtastning'!$B$6:$B$371)=H$6)+0,INDIRECT("'Budget indtastning'!$"&$R18&"6:"&$R18&"371")) -> 0 | I18: =SUMPRODUCT((MONTH('Budget indtastning'!$B$6:$B$371)=I$5)*(YEAR('Budget indtastning'!$B$6:$B$371)=I$6)+0,INDIRECT("'Budget indtastning'!$"&$R18&"6:"&$R18&"371")) -> 0 | J18: =SUMPRODUCT((MONTH('Budget indtastning'!$B$6:$B$371)=J$5)*(YEAR('Budget indtastning'!$B$6:$B$371)=J$6)+0,INDIRECT("'Budget indtastning'!$"&$R18&"6:"&$R18&"371")) -> 0 | K18: =SUMPRODUCT((MONTH('Budget indtastning'!$B$6:$B$371)=K$5)*(YEAR('Budget indtastning'!$B$6:$B$371)=K$6)+0,INDIRECT("'Budget indtastning'!$"&$R18&"6:"&$R18&"371")) -> 0 | L18: =SUMPRODUCT((MONTH('Budget indtastning'!$B$6:$B$371)=L$5)*(YEAR('Budget indtastning'!$B$6:$B$371)=L$6)+0,INDIRECT("'Budget indtastning'!$"&$R18&"6:"&$R18&"371")) -> 0 | M18: =SUMPRODUCT((MONTH('Budget indtastning'!$B$6:$B$371)=M$5)*(YEAR('Budget indtastning'!$B$6:$B$371)=M$6)+0,INDIRECT("'Budget indtastning'!$"&$R18&"6:"&$R18&"371")) -> 0 | N18: =SUMPRODUCT((MONTH('Budget indtastning'!$B$6:$B$371)=N$5)*(YEAR('Budget indtastning'!$B$6:$B$371)=N$6)+0,INDIRECT("'Budget indtastning'!$"&$R18&"6:"&$R18&"371")) -> 0 | O18: =SUMPRODUCT((MONTH('Budget indtastning'!$B$6:$B$371)=O$5)*(YEAR('Budget indtastning'!$B$6:$B$371)=O$6)+0,INDIRECT("'Budget indtastning'!$"&$R18&"6:"&$R18&"371")) -> 0 | P18: =SUMPRODUCT((MONTH('Budget indtastning'!$B$6:$B$371)=P$5)*(YEAR('Budget indtastning'!$B$6:$B$371)=P$6)+0,INDIRECT("'Budget indtastning'!$"&$R18&"6:"&$R18&"371")) -> 0 | Q18: =SUMPRODUCT((MONTH('Budget indtastning'!$B$6:$B$371)=Q$5)*(YEAR('Budget indtastning'!$B$6:$B$371)=Q$6)+0,INDIRECT("'Budget indtastning'!$"&$R18&"6:"&$R18&"371")) -> 0 | R18: m
B19: 0 | D19: 0 | F19: =SUMPRODUCT((MONTH('Budget indtastning'!$B$6:$B$371)=F$5)*(YEAR('Budget indtastning'!$B$6:$B$371)=F$6)+0,INDIRECT("'Budget indtastning'!$"&$R19&"6:"&$R19&"371")) -> 0 | G19: =SUMPRODUCT((MONTH('Budget indtastning'!$B$6:$B$371)=G$5)*(YEAR('Budget indtastning'!$B$6:$B$371)=G$6)+0,INDIRECT("'Budget indtastning'!$"&$R19&"6:"&$R19&"371")) -> 0 | H19: =SUMPRODUCT((MONTH('Budget indtastning'!$B$6:$B$371)=H$5)*(YEAR('Budget indtastning'!$B$6:$B$371)=H$6)+0,INDIRECT("'Budget indtastning'!$"&$R19&"6:"&$R19&"371")) -> 0 | I19: =SUMPRODUCT((MONTH('Budget indtastning'!$B$6:$B$371)=I$5)*(YEAR('Budget indtastning'!$B$6:$B$371)=I$6)+0,INDIRECT("'Budget indtastning'!$"&$R19&"6:"&$R19&"371")) -> 0 | J19: =SUMPRODUCT((MONTH('Budget indtastning'!$B$6:$B$371)=J$5)*(YEAR('Budget indtastning'!$B$6:$B$371)=J$6)+0,INDIRECT("'Budget indtastning'!$"&$R19&"6:"&$R19&"371")) -> 0 | K19: =SUMPRODUCT((MONTH('Budget indtastning'!$B$6:$B$371)=K$5)*(YEAR('Budget indtastning'!$B$6:$B$371)=K$6)+0,INDIRECT("'Budget indtastning'!$"&$R19&"6:"&$R19&"371")) -> 0 | L19: =SUMPRODUCT((MONTH('Budget indtastning'!$B$6:$B$371)=L$5)*(YEAR('Budget indtastning'!$B$6:$B$371)=L$6)+0,INDIRECT("'Budget indtastning'!$"&$R19&"6:"&$R19&"371")) -> 0 | M19: =SUMPRODUCT((MONTH('Budget indtastning'!$B$6:$B$371)=M$5)*(YEAR('Budget indtastning'!$B$6:$B$371)=M$6)+0,INDIRECT("'Budget indtastning'!$"&$R19&"6:"&$R19&"371")) -> 0 | N19: =SUMPRODUCT((MONTH('Budget indtastning'!$B$6:$B$371)=N$5)*(YEAR('Budget indtastning'!$B$6:$B$371)=N$6)+0,INDIRECT("'Budget indtastning'!$"&$R19&"6:"&$R19&"371")) -> 0 | O19: =SUMPRODUCT((MONTH('Budget indtastning'!$B$6:$B$371)=O$5)*(YEAR('Budget indtastning'!$B$6:$B$371)=O$6)+0,INDIRECT("'Budget indtastning'!$"&$R19&"6:"&$R19&"371")) -> 0 | P19: =SUMPRODUCT((MONTH('Budget indtastning'!$B$6:$B$371)=P$5)*(YEAR('Budget indtastning'!$B$6:$B$371)=P$6)+0,INDIRECT("'Budget indtastning'!$"&$R19&"6:"&$R19&"371")) -> 0 | Q19: =SUMPRODUCT((MONTH('Budget indtastning'!$B$6:$B$371)=Q$5)*(YEAR('Budget indtastning'!$B$6:$B$371)=Q$6)+0,INDIRECT("'Budget indtastning'!$"&$R19&"6:"&$R19&"371")) -> 0 | R19: n
B20: 0 | D20: 0 | F20: =SUMPRODUCT((MONTH('Budget indtastning'!$B$6:$B$371)=F$5)*(YEAR('Budget indtastning'!$B$6:$B$371)=F$6)+0,INDIRECT("'Budget indtastning'!$"&$R20&"6:"&$R20&"371")) -> 0 | G20: =SUMPRODUCT((MONTH('Budget indtastning'!$B$6:$B$371)=G$5)*(YEAR('Budget indtastning'!$B$6:$B$371)=G$6)+0,INDIRECT("'Budget indtastning'!$"&$R20&"6:"&$R20&"371")) -> 0 | H20: =SUMPRODUCT((MONTH('Budget indtastning'!$B$6:$B$371)=H$5)*(YEAR('Budget indtastning'!$B$6:$B$371)=H$6)+0,INDIRECT("'Budget indtastning'!$"&$R20&"6:"&$R20&"371")) -> 0 | I20: =SUMPRODUCT((MONTH('Budget indtastning'!$B$6:$B$371)=I$5)*(YEAR('Budget indtastning'!$B$6:$B$371)=I$6)+0,INDIRECT("'Budget indtastning'!$"&$R20&"6:"&$R20&"371")) -> 0 | J20: =SUMPRODUCT((MONTH('Budget indtastning'!$B$6:$B$371)=J$5)*(YEAR('Budget indtastning'!$B$6:$B$371)=J$6)+0,INDIRECT("'Budget indtastning'!$"&$R20&"6:"&$R20&"371")) -> 0 | K20: =SUMPRODUCT((MONTH('Budget indtastning'!$B$6:$B$371)=K$5)*(YEAR('Budget indtastning'!$B$6:$B$371)=K$6)+0,INDIRECT("'Budget indtastning'!$"&$R20&"6:"&$R20&"371")) -> 0 | L20: =SUMPRODUCT((MONTH('Budget indtastning'!$B$6:$B$371)=L$5)*(YEAR('Budget indtastning'!$B$6:$B$371)=L$6)+0,INDIRECT("'Budget indtastning'!$"&$R20&"6:"&$R20&"371")) -> 0 | M20: =SUMPRODUCT((MONTH('Budget indtastning'!$B$6:$B$371)=M$5)*(YEAR('Budget indtastning'!$B$6:$B$371)=M$6)+0,INDIRECT("'Budget indtastning'!$"&$R20&"6:"&$R20&"371")) -> 0 | N20: =SUMPRODUCT((MONTH('Budget indtastning'!$B$6:$B$371)=N$5)*(YEAR('Budget indtastning'!$B$6:$B$371)=N$6)+0,INDIRECT("'Budget indtastning'!$"&$R20&"6:"&$R20&"371")) -> 0 | O20: =SUMPRODUCT((MONTH('Budget indtastning'!$B$6:$B$371)=O$5)*(YEAR('Budget indtastning'!$B$6:$B$371)=O$6)+0,INDIRECT("'Budget indtastning'!$"&$R20&"6:"&$R20&"371")) -> 0 | P20: =SUMPRODUCT((MONTH('Budget indtastning'!$B$6:$B$371)=P$5)*(YEAR('Budget indtastning'!$B$6:$B$371)=P$6)+0,INDIRECT("'Budget indtastning'!$"&$R20&"6:"&$R20&"371")) -> 0 | Q20: =SUMPRODUCT((MONTH('Budget indtastning'!$B$6:$B$371)=Q$5)*(YEAR('Budget indtastning'!$B$6:$B$371)=Q$6)+0,INDIRECT("'Budget indtastning'!$"&$R20&"6:"&$R20&"371")) -> 0 | R20: o
B21: 0 | D21: 0 | F21: =SUMPRODUCT((MONTH('Budget indtastning'!$B$6:$B$371)=F$5)*(YEAR('Budget indtastning'!$B$6:$B$371)=F$6)+0,INDIRECT("'Budget indtastning'!$"&$R21&"6:"&$R21&"371")) -> 0 | G21: =SUMPRODUCT((MONTH('Budget indtastning'!$B$6:$B$371)=G$5)*(YEAR('Budget indtastning'!$B$6:$B$371)=G$6)+0,INDIRECT("'Budget indtastning'!$"&$R21&"6:"&$R21&"371")) -> 0 | H21: =SUMPRODUCT((MONTH('Budget indtastning'!$B$6:$B$371)=H$5)*(YEAR('Budget indtastning'!$B$6:$B$371)=H$6)+0,INDIRECT("'Budget indtastning'!$"&$R21&"6:"&$R21&"371")) -> 0 | I21: =SUMPRODUCT((MONTH('Budget indtastning'!$B$6:$B$371)=I$5)*(YEAR('Budget indtastning'!$B$6:$B$371)=I$6)+0,INDIRECT("'Budget indtastning'!$"&$R21&"6:"&$R21&"371")) -> 0 | J21: =SUMPRODUCT((MONTH('Budget indtastning'!$B$6:$B$371)=J$5)*(YEAR('Budget indtastning'!$B$6:$B$371)=J$6)+0,INDIRECT("'Budget indtastning'!$"&$R21&"6:"&$R21&"371")) -> 0 | K21: =SUMPRODUCT((MONTH('Budget indtastning'!$B$6:$B$371)=K$5)*(YEAR('Budget indtastning'!$B$6:$B$371)=K$6)+0,INDIRECT("'Budget indtastning'!$"&$R21&"6:"&$R21&"371")) -> 0 | L21: =SUMPRODUCT((MONTH('Budget indtastning'!$B$6:$B$371)=L$5)*(YEAR('Budget indtastning'!$B$6:$B$371)=L$6)+0,INDIRECT("'Budget indtastning'!$"&$R21&"6:"&$R21&"371")) -> 0 | M21: =SUMPRODUCT((MONTH('Budget indtastning'!$B$6:$B$371)=M$5)*(YEAR('Budget indtastning'!$B$6:$B$371)=M$6)+0,INDIRECT("'Budget indtastning'!$"&$R21&"6:"&$R21&"371")) -> 0 | N21: =SUMPRODUCT((MONTH('Budget indtastning'!$B$6:$B$371)=N$5)*(YEAR('Budget indtastning'!$B$6:$B$371)=N$6)+0,INDIRECT("'Budget indtastning'!$"&$R21&"6:"&$R21&"371")) -> 0 | O21: =SUMPRODUCT((MONTH('Budget indtastning'!$B$6:$B$371)=O$5)*(YEAR('Budget indtastning'!$B$6:$B$371)=O$6)+0,INDIRECT("'Budget indtastning'!$"&$R21&"6:"&$R21&"371")) -> 0 | P21: =SUMPRODUCT((MONTH('Budget indtastning'!$B$6:$B$371)=P$5)*(YEAR('Budget indtastning'!$B$6:$B$371)=P$6)+0,INDIRECT("'Budget indtastning'!$"&$R21&"6:"&$R21&"371")) -> 0 | Q21: =SUMPRODUCT((MONTH('Budget indtastning'!$B$6:$B$371)=Q$5)*(YEAR('Budget indtastning'!$B$6:$B$371)=Q$6)+0,INDIRECT("'Budget indtastning'!$"&$R21&"6:"&$R21&"371")) -> 0 | R21: p
B22: 0 | D22: 0 | F22: =SUMPRODUCT((MONTH('Budget indtastning'!$B$6:$B$371)=F$5)*(YEAR('Budget indtastning'!$B$6:$B$371)=F$6)+0,INDIRECT("'Budget indtastning'!$"&$R22&"6:"&$R22&"371")) -> 0 | G22: =SUMPRODUCT((MONTH('Budget indtastning'!$B$6:$B$371)=G$5)*(YEAR('Budget indtastning'!$B$6:$B$371)=G$6)+0,INDIRECT("'Budget indtastning'!$"&$R22&"6:"&$R22&"371")) -> 0 | H22: =SUMPRODUCT((MONTH('Budget indtastning'!$B$6:$B$371)=H$5)*(YEAR('Budget indtastning'!$B$6:$B$371)=H$6)+0,INDIRECT("'Budget indtastning'!$"&$R22&"6:"&$R22&"371")) -> 0 | I22: =SUMPRODUCT((MONTH('Budget indtastning'!$B$6:$B$371)=I$5)*(YEAR('Budget indtastning'!$B$6:$B$371)=I$6)+0,INDIRECT("'Budget indtastning'!$"&$R22&"6:"&$R22&"371")) -> 0 | J22: =SUMPRODUCT((MONTH('Budget indtastning'!$B$6:$B$371)=J$5)*(YEAR('Budget indtastning'!$B$6:$B$371)=J$6)+0,INDIRECT("'Budget indtastning'!$"&$R22&"6:"&$R22&"371")) -> 0 | K22: =SUMPRODUCT((MONTH('Budget indtastning'!$B$6:$B$371)=K$5)*(YEAR('Budget indtastning'!$B$6:$B$371)=K$6)+0,INDIRECT("'Budget indtastning'!$"&$R22&"6:"&$R22&"371")) -> 0 | L22: =SUMPRODUCT((MONTH('Budget indtastning'!$B$6:$B$371)=L$5)*(YEAR('Budget indtastning'!$B$6:$B$371)=L$6)+0,INDIRECT("'Budget indtastning'!$"&$R22&"6:"&$R22&"371")) -> 0 | M22: =SUMPRODUCT((MONTH('Budget indtastning'!$B$6:$B$371)=M$5)*(YEAR('Budget indtastning'!$B$6:$B$371)=M$6)+0,INDIRECT("'Budget indtastning'!$"&$R22&"6:"&$R22&"371")) -> 0 | N22: =SUMPRODUCT((MONTH('Budget indtastning'!$B$6:$B$371)=N$5)*(YEAR('Budget indtastning'!$B$6:$B$371)=N$6)+0,INDIRECT("'Budget indtastning'!$"&$R22&"6:"&$R22&"371")) -> 0 | O22: =SUMPRODUCT((MONTH('Budget indtastning'!$B$6:$B$371)=O$5)*(YEAR('Budget indtastning'!$B$6:$B$371)=O$6)+0,INDIRECT("'Budget indtastning'!$"&$R22&"6:"&$R22&"371")) -> 0 | P22: =SUMPRODUCT((MONTH('Budget indtastning'!$B$6:$B$371)=P$5)*(YEAR('Budget indtastning'!$B$6:$B$371)=P$6)+0,INDIRECT("'Budget indtastning'!$"&$R22&"6:"&$R22&"371")) -> 0 | Q22: =SUMPRODUCT((MONTH('Budget indtastning'!$B$6:$B$371)=Q$5)*(YEAR('Budget indtastning'!$B$6:$B$371)=Q$6)+0,INDIRECT("'Budget indtastning'!$"&$R22&"6:"&$R22&"371")) -> 0 | R22: q
B23: 0 | D23: 0 | F23: =SUMPRODUCT((MONTH('Budget indtastning'!$B$6:$B$371)=F$5)*(YEAR('Budget indtastning'!$B$6:$B$371)=F$6)+0,INDIRECT("'Budget indtastning'!$"&$R23&"6:"&$R23&"371")) -> 0 | G23: =SUMPRODUCT((MONTH('Budget indtastning'!$B$6:$B$371)=G$5)*(YEAR('Budget indtastning'!$B$6:$B$371)=G$6)+0,INDIRECT("'Budget indtastning'!$"&$R23&"6:"&$R23&"371")) -> 0 | H23: =SUMPRODUCT((MONTH('Budget indtastning'!$B$6:$B$371)=H$5)*(YEAR('Budget indtastning'!$B$6:$B$371)=H$6)+0,INDIRECT("'Budget indtastning'!$"&$R23&"6:"&$R23&"371")) -> 0 | I23: =SUMPRODUCT((MONTH('Budget indtastning'!$B$6:$B$371)=I$5)*(YEAR('Budget indtastning'!$B$6:$B$371)=I$6)+0,INDIRECT("'Budget indtastning'!$"&$R23&"6:"&$R23&"371")) -> 0 | J23: =SUMPRODUCT((MONTH('Budget indtastning'!$B$6:$B$371)=J$5)*(YEAR('Budget indtastning'!$B$6:$B$371)=J$6)+0,INDIRECT("'Budget indtastning'!$"&$R23&"6:"&$R23&"371")) -> 0 | K23: =SUMPRODUCT((MONTH('Budget indtastning'!$B$6:$B$371)=K$5)*(YEAR('Budget indtastning'!$B$6:$B$371)=K$6)+0,INDIRECT("'Budget indtastning'!$"&$R23&"6:"&$R23&"371")) -> 0 | L23: =SUMPRODUCT((MONTH('Budget indtastning'!$B$6:$B$371)=L$5)*(YEAR('Budget indtastning'!$B$6:$B$371)=L$6)+0,INDIRECT("'Budget indtastning'!$"&$R23&"6:"&$R23&"371")) -> 0 | M23: =SUMPRODUCT((MONTH('Budget indtastning'!$B$6:$B$371)=M$5)*(YEAR('Budget indtastning'!$B$6:$B$371)=M$6)+0,INDIRECT("'Budget indtastning'!$"&$R23&"6:"&$R23&"371")) -> 0 | N23: =SUMPRODUCT((MONTH('Budget indtastning'!$B$6:$B$371)=N$5)*(YEAR('Budget indtastning'!$B$6:$B$371)=N$6)+0,INDIRECT("'Budget indtastning'!$"&$R23&"6:"&$R23&"371")) -> 0 | O23: =SUMPRODUCT((MONTH('Budget indtastning'!$B$6:$B$371)=O$5)*(YEAR('Budget indtastning'!$B$6:$B$371)=O$6)+0,INDIRECT("'Budget indtastning'!$"&$R23&"6:"&$R23&"371")) -> 0 | P23: =SUMPRODUCT((MONTH('Budget indtastning'!$B$6:$B$371)=P$5)*(YEAR('Budget indtastning'!$B$6:$B$371)=P$6)+0,INDIRECT("'Budget indtastning'!$"&$R23&"6:"&$R23&"371")) -> 0 | Q23: =SUMPRODUCT((MONTH('Budget indtastning'!$B$6:$B$371)=Q$5)*(YEAR('Budget indtastning'!$B$6:$B$371)=Q$6)+0,INDIRECT("'Budget indtastning'!$"&$R23&"6:"&$R23&"371")) -> 0 | R23: r
B24: 0 | D24: 0 | F24: =SUMPRODUCT((MONTH('Budget indtastning'!$B$6:$B$371)=F$5)*(YEAR('Budget indtastning'!$B$6:$B$371)=F$6)+0,INDIRECT("'Budget indtastning'!$"&$R24&"6:"&$R24&"371")) -> 0 | G24: =SUMPRODUCT((MONTH('Budget indtastning'!$B$6:$B$371)=G$5)*(YEAR('Budget indtastning'!$B$6:$B$371)=G$6)+0,INDIRECT("'Budget indtastning'!$"&$R24&"6:"&$R24&"371")) -> 0 | H24: =SUMPRODUCT((MONTH('Budget indtastning'!$B$6:$B$371)=H$5)*(YEAR('Budget indtastning'!$B$6:$B$371)=H$6)+0,INDIRECT("'Budget indtastning'!$"&$R24&"6:"&$R24&"371")) -> 0 | I24: =SUMPRODUCT((MONTH('Budget indtastning'!$B$6:$B$371)=I$5)*(YEAR('Budget indtastning'!$B$6:$B$371)=I$6)+0,INDIRECT("'Budget indtastning'!$"&$R24&"6:"&$R24&"371")) -> 0 | J24: =SUMPRODUCT((MONTH('Budget indtastning'!$B$6:$B$371)=J$5)*(YEAR('Budget indtastning'!$B$6:$B$371)=J$6)+0,INDIRECT("'Budget indtastning'!$"&$R24&"6:"&$R24&"371")) -> 0 | K24: =SUMPRODUCT((MONTH('Budget indtastning'!$B$6:$B$371)=K$5)*(YEAR('Budget indtastning'!$B$6:$B$371)=K$6)+0,INDIRECT("'Budget indtastning'!$"&$R24&"6:"&$R24&"371")) -> 0 | L24: =SUMPRODUCT((MONTH('Budget indtastning'!$B$6:$B$371)=L$5)*(YEAR('Budget indtastning'!$B$6:$B$371)=L$6)+0,INDIRECT("'Budget indtastning'!$"&$R24&"6:"&$R24&"371")) -> 0 | M24: =SUMPRODUCT((MONTH('Budget indtastning'!$B$6:$B$371)=M$5)*(YEAR('Budget indtastning'!$B$6:$B$371)=M$6)+0,INDIRECT("'Budget indtastning'!$"&$R24&"6:"&$R24&"371")) -> 0 | N24: =SUMPRODUCT((MONTH('Budget indtastning'!$B$6:$B$371)=N$5)*(YEAR('Budget indtastning'!$B$6:$B$371)=N$6)+0,INDIRECT("'Budget indtastning'!$"&$R24&"6:"&$R24&"371")) -> 0 | O24: =SUMPRODUCT((MONTH('Budget indtastning'!$B$6:$B$371)=O$5)*(YEAR('Budget indtastning'!$B$6:$B$371)=O$6)+0,INDIRECT("'Budget indtastning'!$"&$R24&"6:"&$R24&"371")) -> 0 | P24: =SUMPRODUCT((MONTH('Budget indtastning'!$B$6:$B$371)=P$5)*(YEAR('Budget indtastning'!$B$6:$B$371)=P$6)+0,INDIRECT("'Budget indtastning'!$"&$R24&"6:"&$R24&"371")) -> 0 | Q24: =SUMPRODUCT((MONTH('Budget indtastning'!$B$6:$B$371)=Q$5)*(YEAR('Budget indtastning'!$B$6:$B$371)=Q$6)+0,INDIRECT("'Budget indtastning'!$"&$R24&"6:"&$R24&"371")) -> 0 | R24: s
B25: 0 | D25: 0 | F25: =SUMPRODUCT((MONTH('Budget indtastning'!$B$6:$B$371)=F$5)*(YEAR('Budget indtastning'!$B$6:$B$371)=F$6)+0,INDIRECT("'Budget indtastning'!$"&$R25&"6:"&$R25&"371")) -> 0 | G25: =SUMPRODUCT((MONTH('Budget indtastning'!$B$6:$B$371)=G$5)*(YEAR('Budget indtastning'!$B$6:$B$371)=G$6)+0,INDIRECT("'Budget indtastning'!$"&$R25&"6:"&$R25&"371")) -> 0 | H25: =SUMPRODUCT((MONTH('Budget indtastning'!$B$6:$B$371)=H$5)*(YEAR('Budget indtastning'!$B$6:$B$371)=H$6)+0,INDIRECT("'Budget indtastning'!$"&$R25&"6:"&$R25&"371")) -> 0 | I25: =SUMPRODUCT((MONTH('Budget indtastning'!$B$6:$B$371)=I$5)*(YEAR('Budget indtastning'!$B$6:$B$371)=I$6)+0,INDIRECT("'Budget indtastning'!$"&$R25&"6:"&$R25&"371")) -> 0 | J25: =SUMPRODUCT((MONTH('Budget indtastning'!$B$6:$B$371)=J$5)*(YEAR('Budget indtastning'!$B$6:$B$371)=J$6)+0,INDIRECT("'Budget indtastning'!$"&$R25&"6:"&$R25&"371")) -> 0 | K25: =SUMPRODUCT((MONTH('Budget indtastning'!$B$6:$B$371)=K$5)*(YEAR('Budget indtastning'!$B$6:$B$371)=K$6)+0,INDIRECT("'Budget indtastning'!$"&$R25&"6:"&$R25&"371")) -> 0 | L25: =SUMPRODUCT((MONTH('Budget indtastning'!$B$6:$B$371)=L$5)*(YEAR('Budget indtastning'!$B$6:$B$371)=L$6)+0,INDIRECT("'Budget indtastning'!$"&$R25&"6:"&$R25&"371")) -> 0 | M25: =SUMPRODUCT((MONTH('Budget indtastning'!$B$6:$B$371)=M$5)*(YEAR('Budget indtastning'!$B$6:$B$371)=M$6)+0,INDIRECT("'Budget indtastning'!$"&$R25&"6:"&$R25&"371")) -> 0 | N25: =SUMPRODUCT((MONTH('Budget indtastning'!$B$6:$B$371)=N$5)*(YEAR('Budget indtastning'!$B$6:$B$371)=N$6)+0,INDIRECT("'Budget indtastning'!$"&$R25&"6:"&$R25&"371")) -> 0 | O25: =SUMPRODUCT((MONTH('Budget indtastning'!$B$6:$B$371)=O$5)*(YEAR('Budget indtastning'!$B$6:$B$371)=O$6)+0,INDIRECT("'Budget indtastning'!$"&$R25&"6:"&$R25&"371")) -> 0 | P25: =SUMPRODUCT((MONTH('Budget indtastning'!$B$6:$B$371)=P$5)*(YEAR('Budget indtastning'!$B$6:$B$371)=P$6)+0,INDIRECT("'Budget indtastning'!$"&$R25&"6:"&$R25&"371")) -> 0 | Q25: =SUMPRODUCT((MONTH('Budget indtastning'!$B$6:$B$371)=Q$5)*(YEAR('Budget indtastning'!$B$6:$B$371)=Q$6)+0,INDIRECT("'Budget indtastning'!$"&$R25&"6:"&$R25&"371")) -> 0 | R25: t
B26: 0 | D26: 0 | F26: =SUMPRODUCT((MONTH('Budget indtastning'!$B$6:$B$371)=F$5)*(YEAR('Budget indtastning'!$B$6:$B$371)=F$6)+0,INDIRECT("'Budget indtastning'!$"&$R26&"6:"&$R26&"371")) -> 0 | G26: =SUMPRODUCT((MONTH('Budget indtastning'!$B$6:$B$371)=G$5)*(YEAR('Budget indtastning'!$B$6:$B$371)=G$6)+0,INDIRECT("'Budget indtastning'!$"&$R26&"6:"&$R26&"371")) -> 0 | H26: =SUMPRODUCT((MONTH('Budget indtastning'!$B$6:$B$371)=H$5)*(YEAR('Budget indtastning'!$B$6:$B$371)=H$6)+0,INDIRECT("'Budget indtastning'!$"&$R26&"6:"&$R26&"371")) -> 0 | I26: =SUMPRODUCT((MONTH('Budget indtastning'!$B$6:$B$371)=I$5)*(YEAR('Budget indtastning'!$B$6:$B$371)=I$6)+0,INDIRECT("'Budget indtastning'!$"&$R26&"6:"&$R26&"371")) -> 0 | J26: =SUMPRODUCT((MONTH('Budget indtastning'!$B$6:$B$371)=J$5)*(YEAR('Budget indtastning'!$B$6:$B$371)=J$6)+0,INDIRECT("'Budget indtastning'!$"&$R26&"6:"&$R26&"371")) -> 0 | K26: =SUMPRODUCT((MONTH('Budget indtastning'!$B$6:$B$371)=K$5)*(YEAR('Budget indtastning'!$B$6:$B$371)=K$6)+0,INDIRECT("'Budget indtastning'!$"&$R26&"6:"&$R26&"371")) -> 0 | L26: =SUMPRODUCT((MONTH('Budget indtastning'!$B$6:$B$371)=L$5)*(YEAR('Budget indtastning'!$B$6:$B$371)=L$6)+0,INDIRECT("'Budget indtastning'!$"&$R26&"6:"&$R26&"371")) -> 0 | M26: =SUMPRODUCT((MONTH('Budget indtastning'!$B$6:$B$371)=M$5)*(YEAR('Budget indtastning'!$B$6:$B$371)=M$6)+0,INDIRECT("'Budget indtastning'!$"&$R26&"6:"&$R26&"371")) -> 0 | N26: =SUMPRODUCT((MONTH('Budget indtastning'!$B$6:$B$371)=N$5)*(YEAR('Budget indtastning'!$B$6:$B$371)=N$6)+0,INDIRECT("'Budget indtastning'!$"&$R26&"6:"&$R26&"371")) -> 0 | O26: =SUMPRODUCT((MONTH('Budget indtastning'!$B$6:$B$371)=O$5)*(YEAR('Budget indtastning'!$B$6:$B$371)=O$6)+0,INDIRECT("'Budget indtastning'!$"&$R26&"6:"&$R26&"371")) -> 0 | P26: =SUMPRODUCT((MONTH('Budget indtastning'!$B$6:$B$371)=P$5)*(YEAR('Budget indtastning'!$B$6:$B$371)=P$6)+0,INDIRECT("'Budget indtastning'!$"&$R26&"6:"&$R26&"371")) -> 0 | Q26: =SUMPRODUCT((MONTH('Budget indtastning'!$B$6:$B$371)=Q$5)*(YEAR('Budget indtastning'!$B$6:$B$371)=Q$6)+0,INDIRECT("'Budget indtastning'!$"&$R26&"6:"&$R26&"371")) -> 0 | R26: u
B27: 0 | D27: 0 | F27: =SUMPRODUCT((MONTH('Budget indtastning'!$B$6:$B$371)=F$5)*(YEAR('Budget indtastning'!$B$6:$B$371)=F$6)+0,INDIRECT("'Budget indtastning'!$"&$R27&"6:"&$R27&"371")) -> 0 | G27: =SUMPRODUCT((MONTH('Budget indtastning'!$B$6:$B$371)=G$5)*(YEAR('Budget indtastning'!$B$6:$B$371)=G$6)+0,INDIRECT("'Budget indtastning'!$"&$R27&"6:"&$R27&"371")) -> 0 | H27: =SUMPRODUCT((MONTH('Budget indtastning'!$B$6:$B$371)=H$5)*(YEAR('Budget indtastning'!$B$6:$B$371)=H$6)+0,INDIRECT("'Budget indtastning'!$"&$R27&"6:"&$R27&"371")) -> 0 | I27: =SUMPRODUCT((MONTH('Budget indtastning'!$B$6:$B$371)=I$5)*(YEAR('Budget indtastning'!$B$6:$B$371)=I$6)+0,INDIRECT("'Budget indtastning'!$"&$R27&"6:"&$R27&"371")) -> 0 | J27: =SUMPRODUCT((MONTH('Budget indtastning'!$B$6:$B$371)=J$5)*(YEAR('Budget indtastning'!$B$6:$B$371)=J$6)+0,INDIRECT("'Budget indtastning'!$"&$R27&"6:"&$R27&"371")) -> 0 | K27: =SUMPRODUCT((MONTH('Budget indtastning'!$B$6:$B$371)=K$5)*(YEAR('Budget indtastning'!$B$6:$B$371)=K$6)+0,INDIRECT("'Budget indtastning'!$"&$R27&"6:"&$R27&"371")) -> 0 | L27: =SUMPRODUCT((MONTH('Budget indtastning'!$B$6:$B$371)=L$5)*(YEAR('Budget indtastning'!$B$6:$B$371)=L$6)+0,INDIRECT("'Budget indtastning'!$"&$R27&"6:"&$R27&"371")) -> 0 | M27: =SUMPRODUCT((MONTH('Budget indtastning'!$B$6:$B$371)=M$5)*(YEAR('Budget indtastning'!$B$6:$B$371)=M$6)+0,INDIRECT("'Budget indtastning'!$"&$R27&"6:"&$R27&"371")) -> 0 | N27: =SUMPRODUCT((MONTH('Budget indtastning'!$B$6:$B$371)=N$5)*(YEAR('Budget indtastning'!$B$6:$B$371)=N$6)+0,INDIRECT("'Budget indtastning'!$"&$R27&"6:"&$R27&"371")) -> 0 | O27: =SUMPRODUCT((MONTH('Budget indtastning'!$B$6:$B$371)=O$5)*(YEAR('Budget indtastning'!$B$6:$B$371)=O$6)+0,INDIRECT("'Budget indtastning'!$"&$R27&"6:"&$R27&"371")) -> 0 | P27: =SUMPRODUCT((MONTH('Budget indtastning'!$B$6:$B$371)=P$5)*(YEAR('Budget indtastning'!$B$6:$B$371)=P$6)+0,INDIRECT("'Budget indtastning'!$"&$R27&"6:"&$R27&"371")) -> 0 | Q27: =SUMPRODUCT((MONTH('Budget indtastning'!$B$6:$B$371)=Q$5)*(YEAR('Budget indtastning'!$B$6:$B$371)=Q$6)+0,INDIRECT("'Budget indtastning'!$"&$R27&"6:"&$R27&"371")) -> 0 | R27: v
B28: 0 | D28: 0 | F28: =SUMPRODUCT((MONTH('Budget indtastning'!$B$6:$B$371)=F$5)*(YEAR('Budget indtastning'!$B$6:$B$371)=F$6)+0,INDIRECT("'Budget indtastning'!$"&$R28&"6:"&$R28&"371")) -> 0 | G28: =SUMPRODUCT((MONTH('Budget indtastning'!$B$6:$B$371)=G$5)*(YEAR('Budget indtastning'!$B$6:$B$371)=G$6)+0,INDIRECT("'Budget indtastning'!$"&$R28&"6:"&$R28&"371")) -> 0 | H28: =SUMPRODUCT((MONTH('Budget indtastning'!$B$6:$B$371)=H$5)*(YEAR('Budget indtastning'!$B$6:$B$371)=H$6)+0,INDIRECT("'Budget indtastning'!$"&$R28&"6:"&$R28&"371")) -> 0 | I28: =SUMPRODUCT((MONTH('Budget indtastning'!$B$6:$B$371)=I$5)*(YEAR('Budget indtastning'!$B$6:$B$371)=I$6)+0,INDIRECT("'Budget indtastning'!$"&$R28&"6:"&$R28&"371")) -> 0 | J28: =SUMPRODUCT((MONTH('Budget indtastning'!$B$6:$B$371)=J$5)*(YEAR('Budget indtastning'!$B$6:$B$371)=J$6)+0,INDIRECT("'Budget indtastning'!$"&$R28&"6:"&$R28&"371")) -> 0 | K28: =SUMPRODUCT((MONTH('Budget indtastning'!$B$6:$B$371)=K$5)*(YEAR('Budget indtastning'!$B$6:$B$371)=K$6)+0,INDIRECT("'Budget indtastning'!$"&$R28&"6:"&$R28&"371")) -> 0 | L28: =SUMPRODUCT((MONTH('Budget indtastning'!$B$6:$B$371)=L$5)*(YEAR('Budget indtastning'!$B$6:$B$371)=L$6)+0,INDIRECT("'Budget indtastning'!$"&$R28&"6:"&$R28&"371")) -> 0 | M28: =SUMPRODUCT((MONTH('Budget indtastning'!$B$6:$B$371)=M$5)*(YEAR('Budget indtastning'!$B$6:$B$371)=M$6)+0,INDIRECT("'Budget indtastning'!$"&$R28&"6:"&$R28&"371")) -> 0 | N28: =SUMPRODUCT((MONTH('Budget indtastning'!$B$6:$B$371)=N$5)*(YEAR('Budget indtastning'!$B$6:$B$371)=N$6)+0,INDIRECT("'Budget indtastning'!$"&$R28&"6:"&$R28&"371")) -> 0 | O28: =SUMPRODUCT((MONTH('Budget indtastning'!$B$6:$B$371)=O$5)*(YEAR('Budget indtastning'!$B$6:$B$371)=O$6)+0,INDIRECT("'Budget indtastning'!$"&$R28&"6:"&$R28&"371")) -> 0 | P28: =SUMPRODUCT((MONTH('Budget indtastning'!$B$6:$B$371)=P$5)*(YEAR('Budget indtastning'!$B$6:$B$371)=P$6)+0,INDIRECT("'Budget indtastning'!$"&$R28&"6:"&$R28&"371")) -> 0 | Q28: =SUMPRODUCT((MONTH('Budget indtastning'!$B$6:$B$371)=Q$5)*(YEAR('Budget indtastning'!$B$6:$B$371)=Q$6)+0,INDIRECT("'Budget indtastning'!$"&$R28&"6:"&$R28&"371")) -> 0 | R28: w
A29: [System]
A30: Indbetaling / hævning ↓
A31: Ekstra Indbetaling | B31: =SUM(F31:Q31) -> 0 | D31: =B31/12 -> 0 | F31: =SUMPRODUCT((MONTH('Budget indtastning'!$B$6:$B$371)=MånedsBudget!F$5)*(YEAR('Budget indtastning'!$B$6:$B$371)=F$6)*('Budget indtastning'!$X$6:$X$371>0),'Budget indtastning'!$X$6:$X$371) -> 0 | G31: =SUMPRODUCT((MONTH('Budget indtastning'!$B$6:$B$371)=MånedsBudget!G$5)*(YEAR('Budget indtastning'!$B$6:$B$371)=G$6)*('Budget indtastning'!$X$6:$X$371>0),'Budget indtastning'!$X$6:$X$371) -> 0 | H31: =SUMPRODUCT((MONTH('Budget indtastning'!$B$6:$B$371)=MånedsBudget!H$5)*(YEAR('Budget indtastning'!$B$6:$B$371)=H$6)*('Budget indtastning'!$X$6:$X$371>0),'Budget indtastning'!$X$6:$X$371) -> 0 | I31: =SUMPRODUCT((MONTH('Budget indtastning'!$B$6:$B$371)=MånedsBudget!I$5)*(YEAR('Budget indtastning'!$B$6:$B$371)=I$6)*('Budget indtastning'!$X$6:$X$371>0),'Budget indtastning'!$X$6:$X$371) -> 0 | J31: =SUMPRODUCT((MONTH('Budget indtastning'!$B$6:$B$371)=MånedsBudget!J$5)*(YEAR('Budget indtastning'!$B$6:$B$371)=J$6)*('Budget indtastning'!$X$6:$X$371>0),'Budget indtastning'!$X$6:$X$371) -> 0 | K31: =SUMPRODUCT((MONTH('Budget indtastning'!$B$6:$B$371)=MånedsBudget!K$5)*(YEAR('Budget indtastning'!$B$6:$B$371)=K$6)*('Budget indtastning'!$X$6:$X$371>0),'Budget indtastning'!$X$6:$X$371) -> 0 | L31: =SUMPRODUCT((MONTH('Budget indtastning'!$B$6:$B$371)=MånedsBudget!L$5)*(YEAR('Budget indtastning'!$B$6:$B$371)=L$6)*('Budget indtastning'!$X$6:$X$371>0),'Budget indtastning'!$X$6:$X$371) -> 0 | M31: =SUMPRODUCT((MONTH('Budget indtastning'!$B$6:$B$371)=MånedsBudget!M$5)*(YEAR('Budget indtastning'!$B$6:$B$371)=M$6)*('Budget indtastning'!$X$6:$X$371>0),'Budget indtastning'!$X$6:$X$371) -> 0 | N31: =SUMPRODUCT((MONTH('Budget indtastning'!$B$6:$B$371)=MånedsBudget!N$5)*(YEAR('Budget indtastning'!$B$6:$B$371)=N$6)*('Budget indtastning'!$X$6:$X$371>0),'Budget indtastning'!$X$6:$X$371) -> 0 | O31: =SUMPRODUCT((MONTH('Budget indtastning'!$B$6:$B$371)=MånedsBudget!O$5)*(YEAR('Budget indtastning'!$B$6:$B$371)=O$6)*('Budget indtastning'!$X$6:$X$371>0),'Budget indtastning'!$X$6:$X$371) -> 0 | P31: =SUMPRODUCT((MONTH('Budget indtastning'!$B$6:$B$371)=MånedsBudget!P$5)*(YEAR('Budget indtastning'!$B$6:$B$371)=P$6)*('Budget indtastning'!$X$6:$X$371>0),'Budget indtastning'!$X$6:$X$371) -> 0 | Q31: =SUMPRODUCT((MONTH('Budget indtastning'!$B$6:$B$371)=MånedsBudget!Q$5)*(YEAR('Budget indtastning'!$B$6:$B$371)=Q$6)*('Budget indtastning'!$X$6:$X$371>0),'Budget indtastning'!$X$6:$X$371) -> 0
A32: Hævning | B32: 0 | D32: 0 | F32: =ABS(SUMPRODUCT((MONTH('Budget indtastning'!$B$6:$B$371)=MånedsBudget!F$5)*(YEAR('Budget indtastning'!$B$6:$B$371)=F$6)*('Budget indtastning'!$X$6:$X$371<0),'Budget indtastning'!$X$6:$X$371)) -> 0 | G32: =ABS(SUMPRODUCT((MONTH('Budget indtastning'!$B$6:$B$371)=MånedsBudget!G$5)*(YEAR('Budget indtastning'!$B$6:$B$371)=G$6)*('Budget indtastning'!$X$6:$X$371<0),'Budget indtastning'!$X$6:$X$371)) -> 0 | H32: =ABS(SUMPRODUCT((MONTH('Budget indtastning'!$B$6:$B$371)=MånedsBudget!H$5)*(YEAR('Budget indtastning'!$B$6:$B$371)=H$6)*('Budget indtastning'!$X$6:$X$371<0),'Budget indtastning'!$X$6:$X$371)) -> 0 | I32: =ABS(SUMPRODUCT((MONTH('Budget indtastning'!$B$6:$B$371)=MånedsBudget!I$5)*(YEAR('Budget indtastning'!$B$6:$B$371)=I$6)*('Budget indtastning'!$X$6:$X$371<0),'Budget indtastning'!$X$6:$X$371)) -> 0 | J32: =ABS(SUMPRODUCT((MONTH('Budget indtastning'!$B$6:$B$371)=MånedsBudget!J$5)*(YEAR('Budget indtastning'!$B$6:$B$371)=J$6)*('Budget indtastning'!$X$6:$X$371<0),'Budget indtastning'!$X$6:$X$371)) -> 0 | K32: =ABS(SUMPRODUCT((MONTH('Budget indtastning'!$B$6:$B$371)=MånedsBudget!K$5)*(YEAR('Budget indtastning'!$B$6:$B$371)=K$6)*('Budget indtastning'!$X$6:$X$371<0),'Budget indtastning'!$X$6:$X$371)) -> 0 | L32: =ABS(SUMPRODUCT((MONTH('Budget indtastning'!$B$6:$B$371)=MånedsBudget!L$5)*(YEAR('Budget indtastning'!$B$6:$B$371)=L$6)*('Budget indtastning'!$X$6:$X$371<0),'Budget indtastning'!$X$6:$X$371)) -> 0 | M32: =ABS(SUMPRODUCT((MONTH('Budget indtastning'!$B$6:$B$371)=MånedsBudget!M$5)*(YEAR('Budget indtastning'!$B$6:$B$371)=M$6)*('Budget indtastning'!$X$6:$X$371<0),'Budget indtastning'!$X$6:$X$371)) -> 0 | N32: =ABS(SUMPRODUCT((MONTH('Budget indtastning'!$B$6:$B$371)=MånedsBudget!N$5)*(YEAR('Budget indtastning'!$B$6:$B$371)=N$6)*('Budget indtastning'!$X$6:$X$371<0),'Budget indtastning'!$X$6:$X$371)) -> 0 | O32: =ABS(SUMPRODUCT((MONTH('Budget indtastning'!$B$6:$B$371)=MånedsBudget!O$5)*(YEAR('Budget indtastning'!$B$6:$B$371)=O$6)*('Budget indtastning'!$X$6:$X$371<0),'Budget indtastning'!$X$6:$X$371)) -> 0 | P32: =ABS(SUMPRODUCT((MONTH('Budget indtastning'!$B$6:$B$371)=MånedsBudget!P$5)*(YEAR('Budget indtastning'!$B$6:$B$371)=P$6)*('Budget indtastning'!$X$6:$X$371<0),'Budget indtastning'!$X$6:$X$371)) -> 0 | Q32: =ABS(SUMPRODUCT((MONTH('Budget indtastning'!$B$6:$B$371)=MånedsBudget!Q$5)*(YEAR('Budget indtastning'!$B$6:$B$371)=Q$6)*('Budget indtastning'!$X$6:$X$371<0),'Budget indtastning'!$X$6:$X$371)) -> 0
A33: [System]
A34: Budget Udgifter ↓
A35: =TRANSPOSE('Budget indtastning'!Y3:DT3) -> Renter & gebyr | B35: 0 | D35: =B35/12 -> 0 | F35: =SUMPRODUCT((MONTH('Budget indtastning'!$B$6:$B$371)=F$5)*(YEAR('Budget indtastning'!$B$6:$B$371)=F$6)+0,INDIRECT("'Budget indtastning'!$"&$R35&"6:"&$R35&"371")) -> 0 | G35: =SUMPRODUCT((MONTH('Budget indtastning'!$B$6:$B$371)=G$5)*(YEAR('Budget indtastning'!$B$6:$B$371)=G$6)+0,INDIRECT("'Budget indtastning'!$"&$R35&"6:"&$R35&"371")) -> 0 | H35: =SUMPRODUCT((MONTH('Budget indtastning'!$B$6:$B$371)=H$5)*(YEAR('Budget indtastning'!$B$6:$B$371)=H$6)+0,INDIRECT("'Budget indtastning'!$"&$R35&"6:"&$R35&"371")) -> 0 | I35: =SUMPRODUCT((MONTH('Budget indtastning'!$B$6:$B$371)=I$5)*(YEAR('Budget indtastning'!$B$6:$B$371)=I$6)+0,INDIRECT("'Budget indtastning'!$"&$R35&"6:"&$R35&"371")) -> 0 | J35: =SUMPRODUCT((MONTH('Budget indtastning'!$B$6:$B$371)=J$5)*(YEAR('Budget indtastning'!$B$6:$B$371)=J$6)+0,INDIRECT("'Budget indtastning'!$"&$R35&"6:"&$R35&"371")) -> 0 | K35: =SUMPRODUCT((MONTH('Budget indtastning'!$B$6:$B$371)=K$5)*(YEAR('Budget indtastning'!$B$6:$B$371)=K$6)+0,INDIRECT("'Budget indtastning'!$"&$R35&"6:"&$R35&"371")) -> 0 | L35: =SUMPRODUCT((MONTH('Budget indtastning'!$B$6:$B$371)=L$5)*(YEAR('Budget indtastning'!$B$6:$B$371)=L$6)+0,INDIRECT("'Budget indtastning'!$"&$R35&"6:"&$R35&"371")) -> 0 | M35: =SUMPRODUCT((MONTH('Budget indtastning'!$B$6:$B$371)=M$5)*(YEAR('Budget indtastning'!$B$6:$B$371)=M$6)+0,INDIRECT("'Budget indtastning'!$"&$R35&"6:"&$R35&"371")) -> 0 | N35: =SUMPRODUCT((MONTH('Budget indtastning'!$B$6:$B$371)=N$5)*(YEAR('Budget indtastning'!$B$6:$B$371)=N$6)+0,INDIRECT("'Budget indtastning'!$"&$R35&"6:"&$R35&"371")) -> 0 | O35: =SUMPRODUCT((MONTH('Budget indtastning'!$B$6:$B$371)=O$5)*(YEAR('Budget indtastning'!$B$6:$B$371)=O$6)+0,INDIRECT("'Budget indtastning'!$"&$R35&"6:"&$R35&"371")) -> 0 | P35: =SUMPRODUCT((MONTH('Budget indtastning'!$B$6:$B$371)=P$5)*(YEAR('Budget indtastning'!$B$6:$B$371)=P$6)+0,INDIRECT("'Budget indtastning'!$"&$R35&"6:"&$R35&"371")) -> 0 | Q35: =SUMPRODUCT((MONTH('Budget indtastning'!$B$6:$B$371)=Q$5)*(YEAR('Budget indtastning'!$B$6:$B$371)=Q$6)+0,INDIRECT("'Budget indtastning'!$"&$R35&"6:"&$R35&"371")) -> 0 | R35: y
A36: Budgetpost 1 | B36: 1000 | D36: 83.33333333 | F36: =SUMPRODUCT((MONTH('Budget indtastning'!$B$6:$B$371)=F$5)*(YEAR('Budget indtastning'!$B$6:$B$371)=F$6)+0,INDIRECT("'Budget indtastning'!$"&$R36&"6:"&$R36&"371")) -> 1000 | G36: =SUMPRODUCT((MONTH('Budget indtastning'!$B$6:$B$371)=G$5)*(YEAR('Budget indtastning'!$B$6:$B$371)=G$6)+0,INDIRECT("'Budget indtastning'!$"&$R36&"6:"&$R36&"371")) -> 0 | H36: =SUMPRODUCT((MONTH('Budget indtastning'!$B$6:$B$371)=H$5)*(YEAR('Budget indtastning'!$B$6:$B$371)=H$6)+0,INDIRECT("'Budget indtastning'!$"&$R36&"6:"&$R36&"371")) -> 0 | I36: =SUMPRODUCT((MONTH('Budget indtastning'!$B$6:$B$371)=I$5)*(YEAR('Budget indtastning'!$B$6:$B$371)=I$6)+0,INDIRECT("'Budget indtastning'!$"&$R36&"6:"&$R36&"371")) -> 0 | J36: =SUMPRODUCT((MONTH('Budget indtastning'!$B$6:$B$371)=J$5)*(YEAR('Budget indtastning'!$B$6:$B$371)=J$6)+0,INDIRECT("'Budget indtastning'!$"&$R36&"6:"&$R36&"371")) -> 0 | K36: =SUMPRODUCT((MONTH('Budget indtastning'!$B$6:$B$371)=K$5)*(YEAR('Budget indtastning'!$B$6:$B$371)=K$6)+0,INDIRECT("'Budget indtastning'!$"&$R36&"6:"&$R36&"371")) -> 0 | L36: =SUMPRODUCT((MONTH('Budget indtastning'!$B$6:$B$371)=L$5)*(YEAR('Budget indtastning'!$B$6:$B$371)=L$6)+0,INDIRECT("'Budget indtastning'!$"&$R36&"6:"&$R36&"371")) -> 0 | M36: =SUMPRODUCT((MONTH('Budget indtastning'!$B$6:$B$371)=M$5)*(YEAR('Budget indtastning'!$B$6:$B$371)=M$6)+0,INDIRECT("'Budget indtastning'!$"&$R36&"6:"&$R36&"371")) -> 0 | N36: =SUMPRODUCT((MONTH('Budget indtastning'!$B$6:$B$371)=N$5)*(YEAR('Budget indtastning'!$B$6:$B$371)=N$6)+0,INDIRECT("'Budget indtastning'!$"&$R36&"6:"&$R36&"371")) -> 0 | O36: =SUMPRODUCT((MONTH('Budget indtastning'!$B$6:$B$371)=O$5)*(YEAR('Budget indtastning'!$B$6:$B$371)=O$6)+0,INDIRECT("'Budget indtastning'!$"&$R36&"6:"&$R36&"371")) -> 0 | P36: =SUMPRODUCT((MONTH('Budget indtastning'!$B$6:$B$371)=P$5)*(YEAR('Budget indtastning'!$B$6:$B$371)=P$6)+0,INDIRECT("'Budget indtastning'!$"&$R36&"6:"&$R36&"371")) -> 0 | Q36: =SUMPRODUCT((MONTH('Budget indtastning'!$B$6:$B$371)=Q$5)*(YEAR('Budget indtastning'!$B$6:$B$371)=Q$6)+0,INDIRECT("'Budget indtastning'!$"&$R36&"6:"&$R36&"371")) -> 0 | R36: z
A37: Budgetpost 2 | B37: 100 | D37: 8.333333333 | F37: =SUMPRODUCT((MONTH('Budget indtastning'!$B$6:$B$371)=F$5)*(YEAR('Budget indtastning'!$B$6:$B$371)=F$6)+0,INDIRECT("'Budget indtastning'!$"&$R37&"6:"&$R37&"371")) -> 100 | G37: =SUMPRODUCT((MONTH('Budget indtastning'!$B$6:$B$371)=G$5)*(YEAR('Budget indtastning'!$B$6:$B$371)=G$6)+0,INDIRECT("'Budget indtastning'!$"&$R37&"6:"&$R37&"371")) -> 0 | H37: =SUMPRODUCT((MONTH('Budget indtastning'!$B$6:$B$371)=H$5)*(YEAR('Budget indtastning'!$B$6:$B$371)=H$6)+0,INDIRECT("'Budget indtastning'!$"&$R37&"6:"&$R37&"371")) -> 0 | I37: =SUMPRODUCT((MONTH('Budget indtastning'!$B$6:$B$371)=I$5)*(YEAR('Budget indtastning'!$B$6:$B$371)=I$6)+0,INDIRECT("'Budget indtastning'!$"&$R37&"6:"&$R37&"371")) -> 0 | J37: =SUMPRODUCT((MONTH('Budget indtastning'!$B$6:$B$371)=J$5)*(YEAR('Budget indtastning'!$B$6:$B$371)=J$6)+0,INDIRECT("'Budget indtastning'!$"&$R37&"6:"&$R37&"371")) -> 0 | K37: =SUMPRODUCT((MONTH('Budget indtastning'!$B$6:$B$371)=K$5)*(YEAR('Budget indtastning'!$B$6:$B$371)=K$6)+0,INDIRECT("'Budget indtastning'!$"&$R37&"6:"&$R37&"371")) -> 0 | L37: =SUMPRODUCT((MONTH('Budget indtastning'!$B$6:$B$371)=L$5)*(YEAR('Budget indtastning'!$B$6:$B$371)=L$6)+0,INDIRECT("'Budget indtastning'!$"&$R37&"6:"&$R37&"371")) -> 0 | M37: =SUMPRODUCT((MONTH('Budget indtastning'!$B$6:$B$371)=M$5)*(YEAR('Budget indtastning'!$B$6:$B$371)=M$6)+0,INDIRECT("'Budget indtastning'!$"&$R37&"6:"&$R37&"371")) -> 0 | N37: =SUMPRODUCT((MONTH('Budget indtastning'!$B$6:$B$371)=N$5)*(YEAR('Budget indtastning'!$B$6:$B$371)=N$6)+0,INDIRECT("'Budget indtastning'!$"&$R37&"6:"&$R37&"371")) -> 0 | O37: =SUMPRODUCT((MONTH('Budget indtastning'!$B$6:$B$371)=O$5)*(YEAR('Budget indtastning'!$B$6:$B$371)=O$6)+0,INDIRECT("'Budget indtastning'!$"&$R37&"6:"&$R37&"371")) -> 0 | P37: =SUMPRODUCT((MONTH('Budget indtastning'!$B$6:$B$371)=P$5)*(YEAR('Budget indtastning'!$B$6:$B$371)=P$6)+0,INDIRECT("'Budget indtastning'!$"&$R37&"6:"&$R37&"371")) -> 0 | Q37: =SUMPRODUCT((MONTH('Budget indtastning'!$B$6:$B$371)=Q$5)*(YEAR('Budget indtastning'!$B$6:$B$371)=Q$6)+0,INDIRECT("'Budget indtastning'!$"&$R37&"6:"&$R37&"371")) -> 0 | R37: aa
A38: Budgetpost 3 | B38: 300 | D38: 25 | F38: =SUMPRODUCT((MONTH('Budget indtastning'!$B$6:$B$371)=F$5)*(YEAR('Budget indtastning'!$B$6:$B$371)=F$6)+0,INDIRECT("'Budget indtastning'!$"&$R38&"6:"&$R38&"371")) -> 300 | G38: =SUMPRODUCT((MONTH('Budget indtastning'!$B$6:$B$371)=G$5)*(YEAR('Budget indtastning'!$B$6:$B$371)=G$6)+0,INDIRECT("'Budget indtastning'!$"&$R38&"6:"&$R38&"371")) -> 0 | H38: =SUMPRODUCT((MONTH('Budget indtastning'!$B$6:$B$371)=H$5)*(YEAR('Budget indtastning'!$B$6:$B$371)=H$6)+0,INDIRECT("'Budget indtastning'!$"&$R38&"6:"&$R38&"371")) -> 0 | I38: =SUMPRODUCT((MONTH('Budget indtastning'!$B$6:$B$371)=I$5)*(YEAR('Budget indtastning'!$B$6:$B$371)=I$6)+0,INDIRECT("'Budget indtastning'!$"&$R38&"6:"&$R38&"371")) -> 0 | J38: =SUMPRODUCT((MONTH('Budget indtastning'!$B$6:$B$371)=J$5)*(YEAR('Budget indtastning'!$B$6:$B$371)=J$6)+0,INDIRECT("'Budget indtastning'!$"&$R38&"6:"&$R38&"371")) -> 0 | K38: =SUMPRODUCT((MONTH('Budget indtastning'!$B$6:$B$371)=K$5)*(YEAR('Budget indtastning'!$B$6:$B$371)=K$6)+0,INDIRECT("'Budget indtastning'!$"&$R38&"6:"&$R38&"371")) -> 0 | L38: =SUMPRODUCT((MONTH('Budget indtastning'!$B$6:$B$371)=L$5)*(YEAR('Budget indtastning'!$B$6:$B$371)=L$6)+0,INDIRECT("'Budget indtastning'!$"&$R38&"6:"&$R38&"371")) -> 0 | M38: =SUMPRODUCT((MONTH('Budget indtastning'!$B$6:$B$371)=M$5)*(YEAR('Budget indtastning'!$B$6:$B$371)=M$6)+0,INDIRECT("'Budget indtastning'!$"&$R38&"6:"&$R38&"371")) -> 0 | N38: =SUMPRODUCT((MONTH('Budget indtastning'!$B$6:$B$371)=N$5)*(YEAR('Budget indtastning'!$B$6:$B$371)=N$6)+0,INDIRECT("'Budget indtastning'!$"&$R38&"6:"&$R38&"371")) -> 0 | O38: =SUMPRODUCT((MONTH('Budget indtastning'!$B$6:$B$371)=O$5)*(YEAR('Budget indtastning'!$B$6:$B$371)=O$6)+0,INDIRECT("'Budget indtastning'!$"&$R38&"6:"&$R38&"371")) -> 0 | P38: =SUMPRODUCT((MONTH('Budget indtastning'!$B$6:$B$371)=P$5)*(YEAR('Budget indtastning'!$B$6:$B$371)=P$6)+0,INDIRECT("'Budget indtastning'!$"&$R38&"6:"&$R38&"371")) -> 0 | Q38: =SUMPRODUCT((MONTH('Budget indtastning'!$B$6:$B$371)=Q$5)*(YEAR('Budget indtastning'!$B$6:$B$371)=Q$6)+0,INDIRECT("'Budget indtastning'!$"&$R38&"6:"&$R38&"371")) -> 0 | R38: ab
A39: Budgetpost 4 | B39: 200 | D39: 16.66666667 | F39: =SUMPRODUCT((MONTH('Budget indtastning'!$B$6:$B$371)=F$5)*(YEAR('Budget indtastning'!$B$6:$B$371)=F$6)+0,INDIRECT("'Budget indtastning'!$"&$R39&"6:"&$R39&"371")) -> 200 | G39: =SUMPRODUCT((MONTH('Budget indtastning'!$B$6:$B$371)=G$5)*(YEAR('Budget indtastning'!$B$6:$B$371)=G$6)+0,INDIRECT("'Budget indtastning'!$"&$R39&"6:"&$R39&"371")) -> 0 | H39: =SUMPRODUCT((MONTH('Budget indtastning'!$B$6:$B$371)=H$5)*(YEAR('Budget indtastning'!$B$6:$B$371)=H$6)+0,INDIRECT("'Budget indtastning'!$"&$R39&"6:"&$R39&"371")) -> 0 | I39: =SUMPRODUCT((MONTH('Budget indtastning'!$B$6:$B$371)=I$5)*(YEAR('Budget indtastning'!$B$6:$B$371)=I$6)+0,INDIRECT("'Budget indtastning'!$"&$R39&"6:"&$R39&"371")) -> 0 | J39: =SUMPRODUCT((MONTH('Budget indtastning'!$B$6:$B$371)=J$5)*(YEAR('Budget indtastning'!$B$6:$B$371)=J$6)+0,INDIRECT("'Budget indtastning'!$"&$R39&"6:"&$R39&"371")) -> 0 | K39: =SUMPRODUCT((MONTH('Budget indtastning'!$B$6:$B$371)=K$5)*(YEAR('Budget indtastning'!$B$6:$B$371)=K$6)+0,INDIRECT("'Budget indtastning'!$"&$R39&"6:"&$R39&"371")) -> 0 | L39: =SUMPRODUCT((MONTH('Budget indtastning'!$B$6:$B$371)=L$5)*(YEAR('Budget indtastning'!$B$6:$B$371)=L$6)+0,INDIRECT("'Budget indtastning'!$"&$R39&"6:"&$R39&"371")) -> 0 | M39: =SUMPRODUCT((MONTH('Budget indtastning'!$B$6:$B$371)=M$5)*(YEAR('Budget indtastning'!$B$6:$B$371)=M$6)+0,INDIRECT("'Budget indtastning'!$"&$R39&"6:"&$R39&"371")) -> 0 | N39: =SUMPRODUCT((MONTH('Budget indtastning'!$B$6:$B$371)=N$5)*(YEAR('Budget indtastning'!$B$6:$B$371)=N$6)+0,INDIRECT("'Budget indtastning'!$"&$R39&"6:"&$R39&"371")) -> 0 | O39: =SUMPRODUCT((MONTH('Budget indtastning'!$B$6:$B$371)=O$5)*(YEAR('Budget indtastning'!$B$6:$B$371)=O$6)+0,INDIRECT("'Budget indtastning'!$"&$R39&"6:"&$R39&"371")) -> 0 | P39: =SUMPRODUCT((MONTH('Budget indtastning'!$B$6:$B$371)=P$5)*(YEAR('Budget indtastning'!$B$6:$B$371)=P$6)+0,INDIRECT("'Budget indtastning'!$"&$R39&"6:"&$R39&"371")) -> 0 | Q39: =SUMPRODUCT((MONTH('Budget indtastning'!$B$6:$B$371)=Q$5)*(YEAR('Budget indtastning'!$B$6:$B$371)=Q$6)+0,INDIRECT("'Budget indtastning'!$"&$R39&"6:"&$R39&"371")) -> 0 | R39: ac
B40: 0 | D40: 0 | F40: =SUMPRODUCT((MONTH('Budget indtastning'!$B$6:$B$371)=F$5)*(YEAR('Budget indtastning'!$B$6:$B$371)=F$6)+0,INDIRECT("'Budget indtastning'!$"&$R40&"6:"&$R40&"371")) -> 0 | G40: =SUMPRODUCT((MONTH('Budget indtastning'!$B$6:$B$371)=G$5)*(YEAR('Budget indtastning'!$B$6:$B$371)=G$6)+0,INDIRECT("'Budget indtastning'!$"&$R40&"6:"&$R40&"371")) -> 0 | H40: =SUMPRODUCT((MONTH('Budget indtastning'!$B$6:$B$371)=H$5)*(YEAR('Budget indtastning'!$B$6:$B$371)=H$6)+0,INDIRECT("'Budget indtastning'!$"&$R40&"6:"&$R40&"371")) -> 0 | I40: =SUMPRODUCT((MONTH('Budget indtastning'!$B$6:$B$371)=I$5)*(YEAR('Budget indtastning'!$B$6:$B$371)=I$6)+0,INDIRECT("'Budget indtastning'!$"&$R40&"6:"&$R40&"371")) -> 0 | J40: =SUMPRODUCT((MONTH('Budget indtastning'!$B$6:$B$371)=J$5)*(YEAR('Budget indtastning'!$B$6:$B$371)=J$6)+0,INDIRECT("'Budget indtastning'!$"&$R40&"6:"&$R40&"371")) -> 0 | K40: =SUMPRODUCT((MONTH('Budget indtastning'!$B$6:$B$371)=K$5)*(YEAR('Budget indtastning'!$B$6:$B$371)=K$6)+0,INDIRECT("'Budget indtastning'!$"&$R40&"6:"&$R40&"371")) -> 0 | L40: =SUMPRODUCT((MONTH('Budget indtastning'!$B$6:$B$371)=L$5)*(YEAR('Budget indtastning'!$B$6:$B$371)=L$6)+0,INDIRECT("'Budget indtastning'!$"&$R40&"6:"&$R40&"371")) -> 0 | M40: =SUMPRODUCT((MONTH('Budget indtastning'!$B$6:$B$371)=M$5)*(YEAR('Budget indtastning'!$B$6:$B$371)=M$6)+0,INDIRECT("'Budget indtastning'!$"&$R40&"6:"&$R40&"371")) -> 0 | N40: =SUMPRODUCT((MONTH('Budget indtastning'!$B$6:$B$371)=N$5)*(YEAR('Budget indtastning'!$B$6:$B$371)=N$6)+0,INDIRECT("'Budget indtastning'!$"&$R40&"6:"&$R40&"371")) -> 0 | O40: =SUMPRODUCT((MONTH('Budget indtastning'!$B$6:$B$371)=O$5)*(YEAR('Budget indtastning'!$B$6:$B$371)=O$6)+0,INDIRECT("'Budget indtastning'!$"&$R40&"6:"&$R40&"371")) -> 0 | P40: =SUMPRODUCT((MONTH('Budget indtastning'!$B$6:$B$371)=P$5)*(YEAR('Budget indtastning'!$B$6:$B$371)=P$6)+0,INDIRECT("'Budget indtastning'!$"&$R40&"6:"&$R40&"371")) -> 0 | Q40: =SUMPRODUCT((MONTH('Budget indtastning'!$B$6:$B$371)=Q$5)*(YEAR('Budget indtastning'!$B$6:$B$371)=Q$6)+0,INDIRECT("'Budget indtastning'!$"&$R40&"6:"&$R40&"371")) -> 0 | R40: ad
B41: 0 | D41: 0 | F41: =SUMPRODUCT((MONTH('Budget indtastning'!$B$6:$B$371)=F$5)*(YEAR('Budget indtastning'!$B$6:$B$371)=F$6)+0,INDIRECT("'Budget indtastning'!$"&$R41&"6:"&$R41&"371")) -> 0 | G41: =SUMPRODUCT((MONTH('Budget indtastning'!$B$6:$B$371)=G$5)*(YEAR('Budget indtastning'!$B$6:$B$371)=G$6)+0,INDIRECT("'Budget indtastning'!$"&$R41&"6:"&$R41&"371")) -> 0 | H41: =SUMPRODUCT((MONTH('Budget indtastning'!$B$6:$B$371)=H$5)*(YEAR('Budget indtastning'!$B$6:$B$371)=H$6)+0,INDIRECT("'Budget indtastning'!$"&$R41&"6:"&$R41&"371")) -> 0 | I41: =SUMPRODUCT((MONTH('Budget indtastning'!$B$6:$B$371)=I$5)*(YEAR('Budget indtastning'!$B$6:$B$371)=I$6)+0,INDIRECT("'Budget indtastning'!$"&$R41&"6:"&$R41&"371")) -> 0 | J41: =SUMPRODUCT((MONTH('Budget indtastning'!$B$6:$B$371)=J$5)*(YEAR('Budget indtastning'!$B$6:$B$371)=J$6)+0,INDIRECT("'Budget indtastning'!$"&$R41&"6:"&$R41&"371")) -> 0 | K41: =SUMPRODUCT((MONTH('Budget indtastning'!$B$6:$B$371)=K$5)*(YEAR('Budget indtastning'!$B$6:$B$371)=K$6)+0,INDIRECT("'Budget indtastning'!$"&$R41&"6:"&$R41&"371")) -> 0 | L41: =SUMPRODUCT((MONTH('Budget indtastning'!$B$6:$B$371)=L$5)*(YEAR('Budget indtastning'!$B$6:$B$371)=L$6)+0,INDIRECT("'Budget indtastning'!$"&$R41&"6:"&$R41&"371")) -> 0 | M41: =SUMPRODUCT((MONTH('Budget indtastning'!$B$6:$B$371)=M$5)*(YEAR('Budget indtastning'!$B$6:$B$371)=M$6)+0,INDIRECT("'Budget indtastning'!$"&$R41&"6:"&$R41&"371")) -> 0 | N41: =SUMPRODUCT((MONTH('Budget indtastning'!$B$6:$B$371)=N$5)*(YEAR('Budget indtastning'!$B$6:$B$371)=N$6)+0,INDIRECT("'Budget indtastning'!$"&$R41&"6:"&$R41&"371")) -> 0 | O41: =SUMPRODUCT((MONTH('Budget indtastning'!$B$6:$B$371)=O$5)*(YEAR('Budget indtastning'!$B$6:$B$371)=O$6)+0,INDIRECT("'Budget indtastning'!$"&$R41&"6:"&$R41&"371")) -> 0 | P41: =SUMPRODUCT((MONTH('Budget indtastning'!$B$6:$B$371)=P$5)*(YEAR('Budget indtastning'!$B$6:$B$371)=P$6)+0,INDIRECT("'Budget indtastning'!$"&$R41&"6:"&$R41&"371")) -> 0 | Q41: =SUMPRODUCT((MONTH('Budget indtastning'!$B$6:$B$371)=Q$5)*(YEAR('Budget indtastning'!$B$6:$B$371)=Q$6)+0,INDIRECT("'Budget indtastning'!$"&$R41&"6:"&$R41&"371")) -> 0 | R41: ae
B42: 0 | D42: 0 | F42: =SUMPRODUCT((MONTH('Budget indtastning'!$B$6:$B$371)=F$5)*(YEAR('Budget indtastning'!$B$6:$B$371)=F$6)+0,INDIRECT("'Budget indtastning'!$"&$R42&"6:"&$R42&"371")) -> 0 | G42: =SUMPRODUCT((MONTH('Budget indtastning'!$B$6:$B$371)=G$5)*(YEAR('Budget indtastning'!$B$6:$B$371)=G$6)+0,INDIRECT("'Budget indtastning'!$"&$R42&"6:"&$R42&"371")) -> 0 | H42: =SUMPRODUCT((MONTH('Budget indtastning'!$B$6:$B$371)=H$5)*(YEAR('Budget indtastning'!$B$6:$B$371)=H$6)+0,INDIRECT("'Budget indtastning'!$"&$R42&"6:"&$R42&"371")) -> 0 | I42: =SUMPRODUCT((MONTH('Budget indtastning'!$B$6:$B$371)=I$5)*(YEAR('Budget indtastning'!$B$6:$B$371)=I$6)+0,INDIRECT("'Budget indtastning'!$"&$R42&"6:"&$R42&"371")) -> 0 | J42: =SUMPRODUCT((MONTH('Budget indtastning'!$B$6:$B$371)=J$5)*(YEAR('Budget indtastning'!$B$6:$B$371)=J$6)+0,INDIRECT("'Budget indtastning'!$"&$R42&"6:"&$R42&"371")) -> 0 | K42: =SUMPRODUCT((MONTH('Budget indtastning'!$B$6:$B$371)=K$5)*(YEAR('Budget indtastning'!$B$6:$B$371)=K$6)+0,INDIRECT("'Budget indtastning'!$"&$R42&"6:"&$R42&"371")) -> 0 | L42: =SUMPRODUCT((MONTH('Budget indtastning'!$B$6:$B$371)=L$5)*(YEAR('Budget indtastning'!$B$6:$B$371)=L$6)+0,INDIRECT("'Budget indtastning'!$"&$R42&"6:"&$R42&"371")) -> 0 | M42: =SUMPRODUCT((MONTH('Budget indtastning'!$B$6:$B$371)=M$5)*(YEAR('Budget indtastning'!$B$6:$B$371)=M$6)+0,INDIRECT("'Budget indtastning'!$"&$R42&"6:"&$R42&"371")) -> 0 | N42: =SUMPRODUCT((MONTH('Budget indtastning'!$B$6:$B$371)=N$5)*(YEAR('Budget indtastning'!$B$6:$B$371)=N$6)+0,INDIRECT("'Budget indtastning'!$"&$R42&"6:"&$R42&"371")) -> 0 | O42: =SUMPRODUCT((MONTH('Budget indtastning'!$B$6:$B$371)=O$5)*(YEAR('Budget indtastning'!$B$6:$B$371)=O$6)+0,INDIRECT("'Budget indtastning'!$"&$R42&"6:"&$R42&"371")) -> 0 | P42: =SUMPRODUCT((MONTH('Budget indtastning'!$B$6:$B$371)=P$5)*(YEAR('Budget indtastning'!$B$6:$B$371)=P$6)+0,INDIRECT("'Budget indtastning'!$"&$R42&"6:"&$R42&"371")) -> 0 | Q42: =SUMPRODUCT((MONTH('Budget indtastning'!$B$6:$B$371)=Q$5)*(YEAR('Budget indtastning'!$B$6:$B$371)=Q$6)+0,INDIRECT("'Budget indtastning'!$"&$R42&"6:"&$R42&"371")) -> 0 | R42: af
B43: 0 | D43: 0 | F43: =SUMPRODUCT((MONTH('Budget indtastning'!$B$6:$B$371)=F$5)*(YEAR('Budget indtastning'!$B$6:$B$371)=F$6)+0,INDIRECT("'Budget indtastning'!$"&$R43&"6:"&$R43&"371")) -> 0 | G43: =SUMPRODUCT((MONTH('Budget indtastning'!$B$6:$B$371)=G$5)*(YEAR('Budget indtastning'!$B$6:$B$371)=G$6)+0,INDIRECT("'Budget indtastning'!$"&$R43&"6:"&$R43&"371")) -> 0 | H43: =SUMPRODUCT((MONTH('Budget indtastning'!$B$6:$B$371)=H$5)*(YEAR('Budget indtastning'!$B$6:$B$371)=H$6)+0,INDIRECT("'Budget indtastning'!$"&$R43&"6:"&$R43&"371")) -> 0 | I43: =SUMPRODUCT((MONTH('Budget indtastning'!$B$6:$B$371)=I$5)*(YEAR('Budget indtastning'!$B$6:$B$371)=I$6)+0,INDIRECT("'Budget indtastning'!$"&$R43&"6:"&$R43&"371")) -> 0 | J43: =SUMPRODUCT((MONTH('Budget indtastning'!$B$6:$B$371)=J$5)*(YEAR('Budget indtastning'!$B$6:$B$371)=J$6)+0,INDIRECT("'Budget indtastning'!$"&$R43&"6:"&$R43&"371")) -> 0 | K43: =SUMPRODUCT((MONTH('Budget indtastning'!$B$6:$B$371)=K$5)*(YEAR('Budget indtastning'!$B$6:$B$371)=K$6)+0,INDIRECT("'Budget indtastning'!$"&$R43&"6:"&$R43&"371")) -> 0 | L43: =SUMPRODUCT((MONTH('Budget indtastning'!$B$6:$B$371)=L$5)*(YEAR('Budget indtastning'!$B$6:$B$371)=L$6)+0,INDIRECT("'Budget indtastning'!$"&$R43&"6:"&$R43&"371")) -> 0 | M43: =SUMPRODUCT((MONTH('Budget indtastning'!$B$6:$B$371)=M$5)*(YEAR('Budget indtastning'!$B$6:$B$371)=M$6)+0,INDIRECT("'Budget indtastning'!$"&$R43&"6:"&$R43&"371")) -> 0 | N43: =SUMPRODUCT((MONTH('Budget indtastning'!$B$6:$B$371)=N$5)*(YEAR('Budget indtastning'!$B$6:$B$371)=N$6)+0,INDIRECT("'Budget indtastning'!$"&$R43&"6:"&$R43&"371")) -> 0 | O43: =SUMPRODUCT((MONTH('Budget indtastning'!$B$6:$B$371)=O$5)*(YEAR('Budget indtastning'!$B$6:$B$371)=O$6)+0,INDIRECT("'Budget indtastning'!$"&$R43&"6:"&$R43&"371")) -> 0 | P43: =SUMPRODUCT((MONTH('Budget indtastning'!$B$6:$B$371)=P$5)*(YEAR('Budget indtastning'!$B$6:$B$371)=P$6)+0,INDIRECT("'Budget indtastning'!$"&$R43&"6:"&$R43&"371")) -> 0 | Q43: =SUMPRODUCT((MONTH('Budget indtastning'!$B$6:$B$371)=Q$5)*(YEAR('Budget indtastning'!$B$6:$B$371)=Q$6)+0,INDIRECT("'Budget indtastning'!$"&$R43&"6:"&$R43&"371")) -> 0 | R43: ag
B44: 0 | D44: 0 | F44: =SUMPRODUCT((MONTH('Budget indtastning'!$B$6:$B$371)=F$5)*(YEAR('Budget indtastning'!$B$6:$B$371)=F$6)+0,INDIRECT("'Budget indtastning'!$"&$R44&"6:"&$R44&"371")) -> 0 | G44: =SUMPRODUCT((MONTH('Budget indtastning'!$B$6:$B$371)=G$5)*(YEAR('Budget indtastning'!$B$6:$B$371)=G$6)+0,INDIRECT("'Budget indtastning'!$"&$R44&"6:"&$R44&"371")) -> 0 | H44: =SUMPRODUCT((MONTH('Budget indtastning'!$B$6:$B$371)=H$5)*(YEAR('Budget indtastning'!$B$6:$B$371)=H$6)+0,INDIRECT("'Budget indtastning'!$"&$R44&"6:"&$R44&"371")) -> 0 | I44: =SUMPRODUCT((MONTH('Budget indtastning'!$B$6:$B$371)=I$5)*(YEAR('Budget indtastning'!$B$6:$B$371)=I$6)+0,INDIRECT("'Budget indtastning'!$"&$R44&"6:"&$R44&"371")) -> 0 | J44: =SUMPRODUCT((MONTH('Budget indtastning'!$B$6:$B$371)=J$5)*(YEAR('Budget indtastning'!$B$6:$B$371)=J$6)+0,INDIRECT("'Budget indtastning'!$"&$R44&"6:"&$R44&"371")) -> 0 | K44: =SUMPRODUCT((MONTH('Budget indtastning'!$B$6:$B$371)=K$5)*(YEAR('Budget indtastning'!$B$6:$B$371)=K$6)+0,INDIRECT("'Budget indtastning'!$"&$R44&"6:"&$R44&"371")) -> 0 | L44: =SUMPRODUCT((MONTH('Budget indtastning'!$B$6:$B$371)=L$5)*(YEAR('Budget indtastning'!$B$6:$B$371)=L$6)+0,INDIRECT("'Budget indtastning'!$"&$R44&"6:"&$R44&"371")) -> 0 | M44: =SUMPRODUCT((MONTH('Budget indtastning'!$B$6:$B$371)=M$5)*(YEAR('Budget indtastning'!$B$6:$B$371)=M$6)+0,INDIRECT("'Budget indtastning'!$"&$R44&"6:"&$R44&"371")) -> 0 | N44: =SUMPRODUCT((MONTH('Budget indtastning'!$B$6:$B$371)=N$5)*(YEAR('Budget indtastning'!$B$6:$B$371)=N$6)+0,INDIRECT("'Budget indtastning'!$"&$R44&"6:"&$R44&"371")) -> 0 | O44: =SUMPRODUCT((MONTH('Budget indtastning'!$B$6:$B$371)=O$5)*(YEAR('Budget indtastning'!$B$6:$B$371)=O$6)+0,INDIRECT("'Budget indtastning'!$"&$R44&"6:"&$R44&"371")) -> 0 | P44: =SUMPRODUCT((MONTH('Budget indtastning'!$B$6:$B$371)=P$5)*(YEAR('Budget indtastning'!$B$6:$B$371)=P$6)+0,INDIRECT("'Budget indtastning'!$"&$R44&"6:"&$R44&"371")) -> 0 | Q44: =SUMPRODUCT((MONTH('Budget indtastning'!$B$6:$B$371)=Q$5)*(YEAR('Budget indtastning'!$B$6:$B$371)=Q$6)+0,INDIRECT("'Budget indtastning'!$"&$R44&"6:"&$R44&"371")) -> 0 | R44: ah
B45: 0 | D45: 0 | F45: =SUMPRODUCT((MONTH('Budget indtastning'!$B$6:$B$371)=F$5)*(YEAR('Budget indtastning'!$B$6:$B$371)=F$6)+0,INDIRECT("'Budget indtastning'!$"&$R45&"6:"&$R45&"371")) -> 0 | G45: =SUMPRODUCT((MONTH('Budget indtastning'!$B$6:$B$371)=G$5)*(YEAR('Budget indtastning'!$B$6:$B$371)=G$6)+0,INDIRECT("'Budget indtastning'!$"&$R45&"6:"&$R45&"371")) -> 0 | H45: =SUMPRODUCT((MONTH('Budget indtastning'!$B$6:$B$371)=H$5)*(YEAR('Budget indtastning'!$B$6:$B$371)=H$6)+0,INDIRECT("'Budget indtastning'!$"&$R45&"6:"&$R45&"371")) -> 0 | I45: =SUMPRODUCT((MONTH('Budget indtastning'!$B$6:$B$371)=I$5)*(YEAR('Budget indtastning'!$B$6:$B$371)=I$6)+0,INDIRECT("'Budget indtastning'!$"&$R45&"6:"&$R45&"371")) -> 0 | J45: =SUMPRODUCT((MONTH('Budget indtastning'!$B$6:$B$371)=J$5)*(YEAR('Budget indtastning'!$B$6:$B$371)=J$6)+0,INDIRECT("'Budget indtastning'!$"&$R45&"6:"&$R45&"371")) -> 0 | K45: =SUMPRODUCT((MONTH('Budget indtastning'!$B$6:$B$371)=K$5)*(YEAR('Budget indtastning'!$B$6:$B$371)=K$6)+0,INDIRECT("'Budget indtastning'!$"&$R45&"6:"&$R45&"371")) -> 0 | L45: =SUMPRODUCT((MONTH('Budget indtastning'!$B$6:$B$371)=L$5)*(YEAR('Budget indtastning'!$B$6:$B$371)=L$6)+0,INDIRECT("'Budget indtastning'!$"&$R45&"6:"&$R45&"371")) -> 0 | M45: =SUMPRODUCT((MONTH('Budget indtastning'!$B$6:$B$371)=M$5)*(YEAR('Budget indtastning'!$B$6:$B$371)=M$6)+0,INDIRECT("'Budget indtastning'!$"&$R45&"6:"&$R45&"371")) -> 0 | N45: =SUMPRODUCT((MONTH('Budget indtastning'!$B$6:$B$371)=N$5)*(YEAR('Budget indtastning'!$B$6:$B$371)=N$6)+0,INDIRECT("'Budget indtastning'!$"&$R45&"6:"&$R45&"371")) -> 0 | O45: =SUMPRODUCT((MONTH('Budget indtastning'!$B$6:$B$371)=O$5)*(YEAR('Budget indtastning'!$B$6:$B$371)=O$6)+0,INDIRECT("'Budget indtastning'!$"&$R45&"6:"&$R45&"371")) -> 0 | P45: =SUMPRODUCT((MONTH('Budget indtastning'!$B$6:$B$371)=P$5)*(YEAR('Budget indtastning'!$B$6:$B$371)=P$6)+0,INDIRECT("'Budget indtastning'!$"&$R45&"6:"&$R45&"371")) -> 0 | Q45: =SUMPRODUCT((MONTH('Budget indtastning'!$B$6:$B$371)=Q$5)*(YEAR('Budget indtastning'!$B$6:$B$371)=Q$6)+0,INDIRECT("'Budget indtastning'!$"&$R45&"6:"&$R45&"371")) -> 0 | R45: ai
B46: 0 | D46: 0 | F46: =SUMPRODUCT((MONTH('Budget indtastning'!$B$6:$B$371)=F$5)*(YEAR('Budget indtastning'!$B$6:$B$371)=F$6)+0,INDIRECT("'Budget indtastning'!$"&$R46&"6:"&$R46&"371")) -> 0 | G46: =SUMPRODUCT((MONTH('Budget indtastning'!$B$6:$B$371)=G$5)*(YEAR('Budget indtastning'!$B$6:$B$371)=G$6)+0,INDIRECT("'Budget indtastning'!$"&$R46&"6:"&$R46&"371")) -> 0 | H46: =SUMPRODUCT((MONTH('Budget indtastning'!$B$6:$B$371)=H$5)*(YEAR('Budget indtastning'!$B$6:$B$371)=H$6)+0,INDIRECT("'Budget indtastning'!$"&$R46&"6:"&$R46&"371")) -> 0 | I46: =SUMPRODUCT((MONTH('Budget indtastning'!$B$6:$B$371)=I$5)*(YEAR('Budget indtastning'!$B$6:$B$371)=I$6)+0,INDIRECT("'Budget indtastning'!$"&$R46&"6:"&$R46&"371")) -> 0 | J46: =SUMPRODUCT((MONTH('Budget indtastning'!$B$6:$B$371)=J$5)*(YEAR('Budget indtastning'!$B$6:$B$371)=J$6)+0,INDIRECT("'Budget indtastning'!$"&$R46&"6:"&$R46&"371")) -> 0 | K46: =SUMPRODUCT((MONTH('Budget indtastning'!$B$6:$B$371)=K$5)*(YEAR('Budget indtastning'!$B$6:$B$371)=K$6)+0,INDIRECT("'Budget indtastning'!$"&$R46&"6:"&$R46&"371")) -> 0 | L46: =SUMPRODUCT((MONTH('Budget indtastning'!$B$6:$B$371)=L$5)*(YEAR('Budget indtastning'!$B$6:$B$371)=L$6)+0,INDIRECT("'Budget indtastning'!$"&$R46&"6:"&$R46&"371")) -> 0 | M46: =SUMPRODUCT((MONTH('Budget indtastning'!$B$6:$B$371)=M$5)*(YEAR('Budget indtastning'!$B$6:$B$371)=M$6)+0,INDIRECT("'Budget indtastning'!$"&$R46&"6:"&$R46&"371")) -> 0 | N46: =SUMPRODUCT((MONTH('Budget indtastning'!$B$6:$B$371)=N$5)*(YEAR('Budget indtastning'!$B$6:$B$371)=N$6)+0,INDIRECT("'Budget indtastning'!$"&$R46&"6:"&$R46&"371")) -> 0 | O46: =SUMPRODUCT((MONTH('Budget indtastning'!$B$6:$B$371)=O$5)*(YEAR('Budget indtastning'!$B$6:$B$371)=O$6)+0,INDIRECT("'Budget indtastning'!$"&$R46&"6:"&$R46&"371")) -> 0 | P46: =SUMPRODUCT((MONTH('Budget indtastning'!$B$6:$B$371)=P$5)*(YEAR('Budget indtastning'!$B$6:$B$371)=P$6)+0,INDIRECT("'Budget indtastning'!$"&$R46&"6:"&$R46&"371")) -> 0 | Q46: =SUMPRODUCT((MONTH('Budget indtastning'!$B$6:$B$371)=Q$5)*(YEAR('Budget indtastning'!$B$6:$B$371)=Q$6)+0,INDIRECT("'Budget indtastning'!$"&$R46&"6:"&$R46&"371")) -> 0 | R46: aj
B47: 0 | D47: 0 | F47: =SUMPRODUCT((MONTH('Budget indtastning'!$B$6:$B$371)=F$5)*(YEAR('Budget indtastning'!$B$6:$B$371)=F$6)+0,INDIRECT("'Budget indtastning'!$"&$R47&"6:"&$R47&"371")) -> 0 | G47: =SUMPRODUCT((MONTH('Budget indtastning'!$B$6:$B$371)=G$5)*(YEAR('Budget indtastning'!$B$6:$B$371)=G$6)+0,INDIRECT("'Budget indtastning'!$"&$R47&"6:"&$R47&"371")) -> 0 | H47: =SUMPRODUCT((MONTH('Budget indtastning'!$B$6:$B$371)=H$5)*(YEAR('Budget indtastning'!$B$6:$B$371)=H$6)+0,INDIRECT("'Budget indtastning'!$"&$R47&"6:"&$R47&"371")) -> 0 | I47: =SUMPRODUCT((MONTH('Budget indtastning'!$B$6:$B$371)=I$5)*(YEAR('Budget indtastning'!$B$6:$B$371)=I$6)+0,INDIRECT("'Budget indtastning'!$"&$R47&"6:"&$R47&"371")) -> 0 | J47: =SUMPRODUCT((MONTH('Budget indtastning'!$B$6:$B$371)=J$5)*(YEAR('Budget indtastning'!$B$6:$B$371)=J$6)+0,INDIRECT("'Budget indtastning'!$"&$R47&"6:"&$R47&"371")) -> 0 | K47: =SUMPRODUCT((MONTH('Budget indtastning'!$B$6:$B$371)=K$5)*(YEAR('Budget indtastning'!$B$6:$B$371)=K$6)+0,INDIRECT("'Budget indtastning'!$"&$R47&"6:"&$R47&"371")) -> 0 | L47: =SUMPRODUCT((MONTH('Budget indtastning'!$B$6:$B$371)=L$5)*(YEAR('Budget indtastning'!$B$6:$B$371)=L$6)+0,INDIRECT("'Budget indtastning'!$"&$R47&"6:"&$R47&"371")) -> 0 | M47: =SUMPRODUCT((MONTH('Budget indtastning'!$B$6:$B$371)=M$5)*(YEAR('Budget indtastning'!$B$6:$B$371)=M$6)+0,INDIRECT("'Budget indtastning'!$"&$R47&"6:"&$R47&"371")) -> 0 | N47: =SUMPRODUCT((MONTH('Budget indtastning'!$B$6:$B$371)=N$5)*(YEAR('Budget indtastning'!$B$6:$B$371)=N$6)+0,INDIRECT("'Budget indtastning'!$"&$R47&"6:"&$R47&"371")) -> 0 | O47: =SUMPRODUCT((MONTH('Budget indtastning'!$B$6:$B$371)=O$5)*(YEAR('Budget indtastning'!$B$6:$B$371)=O$6)+0,INDIRECT("'Budget indtastning'!$"&$R47&"6:"&$R47&"371")) -> 0 | P47: =SUMPRODUCT((MONTH('Budget indtastning'!$B$6:$B$371)=P$5)*(YEAR('Budget indtastning'!$B$6:$B$371)=P$6)+0,INDIRECT("'Budget indtastning'!$"&$R47&"6:"&$R47&"371")) -> 0 | Q47: =SUMPRODUCT((MONTH('Budget indtastning'!$B$6:$B$371)=Q$5)*(YEAR('Budget indtastning'!$B$6:$B$371)=Q$6)+0,INDIRECT("'Budget indtastning'!$"&$R47&"6:"&$R47&"371")) -> 0 | R47: ak
B48: 0 | D48: 0 | F48: =SUMPRODUCT((MONTH('Budget indtastning'!$B$6:$B$371)=F$5)*(YEAR('Budget indtastning'!$B$6:$B$371)=F$6)+0,INDIRECT("'Budget indtastning'!$"&$R48&"6:"&$R48&"371")) -> 0 | G48: =SUMPRODUCT((MONTH('Budget indtastning'!$B$6:$B$371)=G$5)*(YEAR('Budget indtastning'!$B$6:$B$371)=G$6)+0,INDIRECT("'Budget indtastning'!$"&$R48&"6:"&$R48&"371")) -> 0 | H48: =SUMPRODUCT((MONTH('Budget indtastning'!$B$6:$B$371)=H$5)*(YEAR('Budget indtastning'!$B$6:$B$371)=H$6)+0,INDIRECT("'Budget indtastning'!$"&$R48&"6:"&$R48&"371")) -> 0 | I48: =SUMPRODUCT((MONTH('Budget indtastning'!$B$6:$B$371)=I$5)*(YEAR('Budget indtastning'!$B$6:$B$371)=I$6)+0,INDIRECT("'Budget indtastning'!$"&$R48&"6:"&$R48&"371")) -> 0 | J48: =SUMPRODUCT((MONTH('Budget indtastning'!$B$6:$B$371)=J$5)*(YEAR('Budget indtastning'!$B$6:$B$371)=J$6)+0,INDIRECT("'Budget indtastning'!$"&$R48&"6:"&$R48&"371")) -> 0 | K48: =SUMPRODUCT((MONTH('Budget indtastning'!$B$6:$B$371)=K$5)*(YEAR('Budget indtastning'!$B$6:$B$371)=K$6)+0,INDIRECT("'Budget indtastning'!$"&$R48&"6:"&$R48&"371")) -> 0 | L48: =SUMPRODUCT((MONTH('Budget indtastning'!$B$6:$B$371)=L$5)*(YEAR('Budget indtastning'!$B$6:$B$371)=L$6)+0,INDIRECT("'Budget indtastning'!$"&$R48&"6:"&$R48&"371")) -> 0 | M48: =SUMPRODUCT((MONTH('Budget indtastning'!$B$6:$B$371)=M$5)*(YEAR('Budget indtastning'!$B$6:$B$371)=M$6)+0,INDIRECT("'Budget indtastning'!$"&$R48&"6:"&$R48&"371")) -> 0 | N48: =SUMPRODUCT((MONTH('Budget indtastning'!$B$6:$B$371)=N$5)*(YEAR('Budget indtastning'!$B$6:$B$371)=N$6)+0,INDIRECT("'Budget indtastning'!$"&$R48&"6:"&$R48&"371")) -> 0 | O48: =SUMPRODUCT((MONTH('Budget indtastning'!$B$6:$B$371)=O$5)*(YEAR('Budget indtastning'!$B$6:$B$371)=O$6)+0,INDIRECT("'Budget indtastning'!$"&$R48&"6:"&$R48&"371")) -> 0 | P48: =SUMPRODUCT((MONTH('Budget indtastning'!$B$6:$B$371)=P$5)*(YEAR('Budget indtastning'!$B$6:$B$371)=P$6)+0,INDIRECT("'Budget indtastning'!$"&$R48&"6:"&$R48&"371")) -> 0 | Q48: =SUMPRODUCT((MONTH('Budget indtastning'!$B$6:$B$371)=Q$5)*(YEAR('Budget indtastning'!$B$6:$B$371)=Q$6)+0,INDIRECT("'Budget indtastning'!$"&$R48&"6:"&$R48&"371")) -> 0 | R48: al
B49: 0 | D49: 0 | F49: =SUMPRODUCT((MONTH('Budget indtastning'!$B$6:$B$371)=F$5)*(YEAR('Budget indtastning'!$B$6:$B$371)=F$6)+0,INDIRECT("'Budget indtastning'!$"&$R49&"6:"&$R49&"371")) -> 0 | G49: =SUMPRODUCT((MONTH('Budget indtastning'!$B$6:$B$371)=G$5)*(YEAR('Budget indtastning'!$B$6:$B$371)=G$6)+0,INDIRECT("'Budget indtastning'!$"&$R49&"6:"&$R49&"371")) -> 0 | H49: =SUMPRODUCT((MONTH('Budget indtastning'!$B$6:$B$371)=H$5)*(YEAR('Budget indtastning'!$B$6:$B$371)=H$6)+0,INDIRECT("'Budget indtastning'!$"&$R49&"6:"&$R49&"371")) -> 0 | I49: =SUMPRODUCT((MONTH('Budget indtastning'!$B$6:$B$371)=I$5)*(YEAR('Budget indtastning'!$B$6:$B$371)=I$6)+0,INDIRECT("'Budget indtastning'!$"&$R49&"6:"&$R49&"371")) -> 0 | J49: =SUMPRODUCT((MONTH('Budget indtastning'!$B$6:$B$371)=J$5)*(YEAR('Budget indtastning'!$B$6:$B$371)=J$6)+0,INDIRECT("'Budget indtastning'!$"&$R49&"6:"&$R49&"371")) -> 0 | K49: =SUMPRODUCT((MONTH('Budget indtastning'!$B$6:$B$371)=K$5)*(YEAR('Budget indtastning'!$B$6:$B$371)=K$6)+0,INDIRECT("'Budget indtastning'!$"&$R49&"6:"&$R49&"371")) -> 0 | L49: =SUMPRODUCT((MONTH('Budget indtastning'!$B$6:$B$371)=L$5)*(YEAR('Budget indtastning'!$B$6:$B$371)=L$6)+0,INDIRECT("'Budget indtastning'!$"&$R49&"6:"&$R49&"371")) -> 0 | M49: =SUMPRODUCT((MONTH('Budget indtastning'!$B$6:$B$371)=M$5)*(YEAR('Budget indtastning'!$B$6:$B$371)=M$6)+0,INDIRECT("'Budget indtastning'!$"&$R49&"6:"&$R49&"371")) -> 0 | N49: =SUMPRODUCT((MONTH('Budget indtastning'!$B$6:$B$371)=N$5)*(YEAR('Budget indtastning'!$B$6:$B$371)=N$6)+0,INDIRECT("'Budget indtastning'!$"&$R49&"6:"&$R49&"371")) -> 0 | O49: =SUMPRODUCT((MONTH('Budget indtastning'!$B$6:$B$371)=O$5)*(YEAR('Budget indtastning'!$B$6:$B$371)=O$6)+0,INDIRECT("'Budget indtastning'!$"&$R49&"6:"&$R49&"371")) -> 0 | P49: =SUMPRODUCT((MONTH('Budget indtastning'!$B$6:$B$371)=P$5)*(YEAR('Budget indtastning'!$B$6:$B$371)=P$6)+0,INDIRECT("'Budget indtastning'!$"&$R49&"6:"&$R49&"371")) -> 0 | Q49: =SUMPRODUCT((MONTH('Budget indtastning'!$B$6:$B$371)=Q$5)*(YEAR('Budget indtastning'!$B$6:$B$371)=Q$6)+0,INDIRECT("'Budget indtastning'!$"&$R49&"6:"&$R49&"371")) -> 0 | R49: am
B50: 0 | D50: 0 | F50: =SUMPRODUCT((MONTH('Budget indtastning'!$B$6:$B$371)=F$5)*(YEAR('Budget indtastning'!$B$6:$B$371)=F$6)+0,INDIRECT("'Budget indtastning'!$"&$R50&"6:"&$R50&"371")) -> 0 | G50: =SUMPRODUCT((MONTH('Budget indtastning'!$B$6:$B$371)=G$5)*(YEAR('Budget indtastning'!$B$6:$B$371)=G$6)+0,INDIRECT("'Budget indtastning'!$"&$R50&"6:"&$R50&"371")) -> 0 | H50: =SUMPRODUCT((MONTH('Budget indtastning'!$B$6:$B$371)=H$5)*(YEAR('Budget indtastning'!$B$6:$B$371)=H$6)+0,INDIRECT("'Budget indtastning'!$"&$R50&"6:"&$R50&"371")) -> 0 | I50: =SUMPRODUCT((MONTH('Budget indtastning'!$B$6:$B$371)=I$5)*(YEAR('Budget indtastning'!$B$6:$B$371)=I$6)+0,INDIRECT("'Budget indtastning'!$"&$R50&"6:"&$R50&"371")) -> 0 | J50: =SUMPRODUCT((MONTH('Budget indtastning'!$B$6:$B$371)=J$5)*(YEAR('Budget indtastning'!$B$6:$B$371)=J$6)+0,INDIRECT("'Budget indtastning'!$"&$R50&"6:"&$R50&"371")) -> 0 | K50: =SUMPRODUCT((MONTH('Budget indtastning'!$B$6:$B$371)=K$5)*(YEAR('Budget indtastning'!$B$6:$B$371)=K$6)+0,INDIRECT("'Budget indtastning'!$"&$R50&"6:"&$R50&"371")) -> 0 | L50: =SUMPRODUCT((MONTH('Budget indtastning'!$B$6:$B$371)=L$5)*(YEAR('Budget indtastning'!$B$6:$B$371)=L$6)+0,INDIRECT("'Budget indtastning'!$"&$R50&"6:"&$R50&"371")) -> 0 | M50: =SUMPRODUCT((MONTH('Budget indtastning'!$B$6:$B$371)=M$5)*(YEAR('Budget indtastning'!$B$6:$B$371)=M$6)+0,INDIRECT("'Budget indtastning'!$"&$R50&"6:"&$R50&"371")) -> 0 | N50: =SUMPRODUCT((MONTH('Budget indtastning'!$B$6:$B$371)=N$5)*(YEAR('Budget indtastning'!$B$6:$B$371)=N$6)+0,INDIRECT("'Budget indtastning'!$"&$R50&"6:"&$R50&"371")) -> 0 | O50: =SUMPRODUCT((MONTH('Budget indtastning'!$B$6:$B$371)=O$5)*(YEAR('Budget indtastning'!$B$6:$B$371)=O$6)+0,INDIRECT("'Budget indtastning'!$"&$R50&"6:"&$R50&"371")) -> 0 | P50: =SUMPRODUCT((MONTH('Budget indtastning'!$B$6:$B$371)=P$5)*(YEAR('Budget indtastning'!$B$6:$B$371)=P$6)+0,INDIRECT("'Budget indtastning'!$"&$R50&"6:"&$R50&"371")) -> 0 | Q50: =SUMPRODUCT((MONTH('Budget indtastning'!$B$6:$B$371)=Q$5)*(YEAR('Budget indtastning'!$B$6:$B$371)=Q$6)+0,INDIRECT("'Budget indtastning'!$"&$R50&"6:"&$R50&"371")) -> 0 | R50: an
B51: 0 | D51: 0 | F51: =SUMPRODUCT((MONTH('Budget indtastning'!$B$6:$B$371)=F$5)*(YEAR('Budget indtastning'!$B$6:$B$371)=F$6)+0,INDIRECT("'Budget indtastning'!$"&$R51&"6:"&$R51&"371")) -> 0 | G51: =SUMPRODUCT((MONTH('Budget indtastning'!$B$6:$B$371)=G$5)*(YEAR('Budget indtastning'!$B$6:$B$371)=G$6)+0,INDIRECT("'Budget indtastning'!$"&$R51&"6:"&$R51&"371")) -> 0 | H51: =SUMPRODUCT((MONTH('Budget indtastning'!$B$6:$B$371)=H$5)*(YEAR('Budget indtastning'!$B$6:$B$371)=H$6)+0,INDIRECT("'Budget indtastning'!$"&$R51&"6:"&$R51&"371")) -> 0 | I51: =SUMPRODUCT((MONTH('Budget indtastning'!$B$6:$B$371)=I$5)*(YEAR('Budget indtastning'!$B$6:$B$371)=I$6)+0,INDIRECT("'Budget indtastning'!$"&$R51&"6:"&$R51&"371")) -> 0 | J51: =SUMPRODUCT((MONTH('Budget indtastning'!$B$6:$B$371)=J$5)*(YEAR('Budget indtastning'!$B$6:$B$371)=J$6)+0,INDIRECT("'Budget indtastning'!$"&$R51&"6:"&$R51&"371")) -> 0 | K51: =SUMPRODUCT((MONTH('Budget indtastning'!$B$6:$B$371)=K$5)*(YEAR('Budget indtastning'!$B$6:$B$371)=K$6)+0,INDIRECT("'Budget indtastning'!$"&$R51&"6:"&$R51&"371")) -> 0 | L51: =SUMPRODUCT((MONTH('Budget indtastning'!$B$6:$B$371)=L$5)*(YEAR('Budget indtastning'!$B$6:$B$371)=L$6)+0,INDIRECT("'Budget indtastning'!$"&$R51&"6:"&$R51&"371")) -> 0 | M51: =SUMPRODUCT((MONTH('Budget indtastning'!$B$6:$B$371)=M$5)*(YEAR('Budget indtastning'!$B$6:$B$371)=M$6)+0,INDIRECT("'Budget indtastning'!$"&$R51&"6:"&$R51&"371")) -> 0 | N51: =SUMPRODUCT((MONTH('Budget indtastning'!$B$6:$B$371)=N$5)*(YEAR('Budget indtastning'!$B$6:$B$371)=N$6)+0,INDIRECT("'Budget indtastning'!$"&$R51&"6:"&$R51&"371")) -> 0 | O51: =SUMPRODUCT((MONTH('Budget indtastning'!$B$6:$B$371)=O$5)*(YEAR('Budget indtastning'!$B$6:$B$371)=O$6)+0,INDIRECT("'Budget indtastning'!$"&$R51&"6:"&$R51&"371")) -> 0 | P51: =SUMPRODUCT((MONTH('Budget indtastning'!$B$6:$B$371)=P$5)*(YEAR('Budget indtastning'!$B$6:$B$371)=P$6)+0,INDIRECT("'Budget indtastning'!$"&$R51&"6:"&$R51&"371")) -> 0 | Q51: =SUMPRODUCT((MONTH('Budget indtastning'!$B$6:$B$371)=Q$5)*(YEAR('Budget indtastning'!$B$6:$B$371)=Q$6)+0,INDIRECT("'Budget indtastning'!$"&$R51&"6:"&$R51&"371")) -> 0 | R51: ao
B52: 0 | D52: 0 | F52: =SUMPRODUCT((MONTH('Budget indtastning'!$B$6:$B$371)=F$5)*(YEAR('Budget indtastning'!$B$6:$B$371)=F$6)+0,INDIRECT("'Budget indtastning'!$"&$R52&"6:"&$R52&"371")) -> 0 | G52: =SUMPRODUCT((MONTH('Budget indtastning'!$B$6:$B$371)=G$5)*(YEAR('Budget indtastning'!$B$6:$B$371)=G$6)+0,INDIRECT("'Budget indtastning'!$"&$R52&"6:"&$R52&"371")) -> 0 | H52: =SUMPRODUCT((MONTH('Budget indtastning'!$B$6:$B$371)=H$5)*(YEAR('Budget indtastning'!$B$6:$B$371)=H$6)+0,INDIRECT("'Budget indtastning'!$"&$R52&"6:"&$R52&"371")) -> 0 | I52: =SUMPRODUCT((MONTH('Budget indtastning'!$B$6:$B$371)=I$5)*(YEAR('Budget indtastning'!$B$6:$B$371)=I$6)+0,INDIRECT("'Budget indtastning'!$"&$R52&"6:"&$R52&"371")) -> 0 | J52: =SUMPRODUCT((MONTH('Budget indtastning'!$B$6:$B$371)=J$5)*(YEAR('Budget indtastning'!$B$6:$B$371)=J$6)+0,INDIRECT("'Budget indtastning'!$"&$R52&"6:"&$R52&"371")) -> 0 | K52: =SUMPRODUCT((MONTH('Budget indtastning'!$B$6:$B$371)=K$5)*(YEAR('Budget indtastning'!$B$6:$B$371)=K$6)+0,INDIRECT("'Budget indtastning'!$"&$R52&"6:"&$R52&"371")) -> 0 | L52: =SUMPRODUCT((MONTH('Budget indtastning'!$B$6:$B$371)=L$5)*(YEAR('Budget indtastning'!$B$6:$B$371)=L$6)+0,INDIRECT("'Budget indtastning'!$"&$R52&"6:"&$R52&"371")) -> 0 | M52: =SUMPRODUCT((MONTH('Budget indtastning'!$B$6:$B$371)=M$5)*(YEAR('Budget indtastning'!$B$6:$B$371)=M$6)+0,INDIRECT("'Budget indtastning'!$"&$R52&"6:"&$R52&"371")) -> 0 | N52: =SUMPRODUCT((MONTH('Budget indtastning'!$B$6:$B$371)=N$5)*(YEAR('Budget indtastning'!$B$6:$B$371)=N$6)+0,INDIRECT("'Budget indtastning'!$"&$R52&"6:"&$R52&"371")) -> 0 | O52: =SUMPRODUCT((MONTH('Budget indtastning'!$B$6:$B$371)=O$5)*(YEAR('Budget indtastning'!$B$6:$B$371)=O$6)+0,INDIRECT("'Budget indtastning'!$"&$R52&"6:"&$R52&"371")) -> 0 | P52: =SUMPRODUCT((MONTH('Budget indtastning'!$B$6:$B$371)=P$5)*(YEAR('Budget indtastning'!$B$6:$B$371)=P$6)+0,INDIRECT("'Budget indtastning'!$"&$R52&"6:"&$R52&"371")) -> 0 | Q52: =SUMPRODUCT((MONTH('Budget indtastning'!$B$6:$B$371)=Q$5)*(YEAR('Budget indtastning'!$B$6:$B$371)=Q$6)+0,INDIRECT("'Budget indtastning'!$"&$R52&"6:"&$R52&"371")) -> 0 | R52: ap
B53: 0 | D53: 0 | F53: =SUMPRODUCT((MONTH('Budget indtastning'!$B$6:$B$371)=F$5)*(YEAR('Budget indtastning'!$B$6:$B$371)=F$6)+0,INDIRECT("'Budget indtastning'!$"&$R53&"6:"&$R53&"371")) -> 0 | G53: =SUMPRODUCT((MONTH('Budget indtastning'!$B$6:$B$371)=G$5)*(YEAR('Budget indtastning'!$B$6:$B$371)=G$6)+0,INDIRECT("'Budget indtastning'!$"&$R53&"6:"&$R53&"371")) -> 0 | H53: =SUMPRODUCT((MONTH('Budget indtastning'!$B$6:$B$371)=H$5)*(YEAR('Budget indtastning'!$B$6:$B$371)=H$6)+0,INDIRECT("'Budget indtastning'!$"&$R53&"6:"&$R53&"371")) -> 0 | I53: =SUMPRODUCT((MONTH('Budget indtastning'!$B$6:$B$371)=I$5)*(YEAR('Budget indtastning'!$B$6:$B$371)=I$6)+0,INDIRECT("'Budget indtastning'!$"&$R53&"6:"&$R53&"371")) -> 0 | J53: =SUMPRODUCT((MONTH('Budget indtastning'!$B$6:$B$371)=J$5)*(YEAR('Budget indtastning'!$B$6:$B$371)=J$6)+0,INDIRECT("'Budget indtastning'!$"&$R53&"6:"&$R53&"371")) -> 0 | K53: =SUMPRODUCT((MONTH('Budget indtastning'!$B$6:$B$371)=K$5)*(YEAR('Budget indtastning'!$B$6:$B$371)=K$6)+0,INDIRECT("'Budget indtastning'!$"&$R53&"6:"&$R53&"371")) -> 0 | L53: =SUMPRODUCT((MONTH('Budget indtastning'!$B$6:$B$371)=L$5)*(YEAR('Budget indtastning'!$B$6:$B$371)=L$6)+0,INDIRECT("'Budget indtastning'!$"&$R53&"6:"&$R53&"371")) -> 0 | M53: =SUMPRODUCT((MONTH('Budget indtastning'!$B$6:$B$371)=M$5)*(YEAR('Budget indtastning'!$B$6:$B$371)=M$6)+0,INDIRECT("'Budget indtastning'!$"&$R53&"6:"&$R53&"371")) -> 0 | N53: =SUMPRODUCT((MONTH('Budget indtastning'!$B$6:$B$371)=N$5)*(YEAR('Budget indtastning'!$B$6:$B$371)=N$6)+0,INDIRECT("'Budget indtastning'!$"&$R53&"6:"&$R53&"371")) -> 0 | O53: =SUMPRODUCT((MONTH('Budget indtastning'!$B$6:$B$371)=O$5)*(YEAR('Budget indtastning'!$B$6:$B$371)=O$6)+0,INDIRECT("'Budget indtastning'!$"&$R53&"6:"&$R53&"371")) -> 0 | P53: =SUMPRODUCT((MONTH('Budget indtastning'!$B$6:$B$371)=P$5)*(YEAR('Budget indtastning'!$B$6:$B$371)=P$6)+0,INDIRECT("'Budget indtastning'!$"&$R53&"6:"&$R53&"371")) -> 0 | Q53: =SUMPRODUCT((MONTH('Budget indtastning'!$B$6:$B$371)=Q$5)*(YEAR('Budget indtastning'!$B$6:$B$371)=Q$6)+0,INDIRECT("'Budget indtastning'!$"&$R53&"6:"&$R53&"371")) -> 0 | R53: aq
B54: 0 | D54: 0 | F54: =SUMPRODUCT((MONTH('Budget indtastning'!$B$6:$B$371)=F$5)*(YEAR('Budget indtastning'!$B$6:$B$371)=F$6)+0,INDIRECT("'Budget indtastning'!$"&$R54&"6:"&$R54&"371")) -> 0 | G54: =SUMPRODUCT((MONTH('Budget indtastning'!$B$6:$B$371)=G$5)*(YEAR('Budget indtastning'!$B$6:$B$371)=G$6)+0,INDIRECT("'Budget indtastning'!$"&$R54&"6:"&$R54&"371")) -> 0 | H54: =SUMPRODUCT((MONTH('Budget indtastning'!$B$6:$B$371)=H$5)*(YEAR('Budget indtastning'!$B$6:$B$371)=H$6)+0,INDIRECT("'Budget indtastning'!$"&$R54&"6:"&$R54&"371")) -> 0 | I54: =SUMPRODUCT((MONTH('Budget indtastning'!$B$6:$B$371)=I$5)*(YEAR('Budget indtastning'!$B$6:$B$371)=I$6)+0,INDIRECT("'Budget indtastning'!$"&$R54&"6:"&$R54&"371")) -> 0 | J54: =SUMPRODUCT((MONTH('Budget indtastning'!$B$6:$B$371)=J$5)*(YEAR('Budget indtastning'!$B$6:$B$371)=J$6)+0,INDIRECT("'Budget indtastning'!$"&$R54&"6:"&$R54&"371")) -> 0 | K54: =SUMPRODUCT((MONTH('Budget indtastning'!$B$6:$B$371)=K$5)*(YEAR('Budget indtastning'!$B$6:$B$371)=K$6)+0,INDIRECT("'Budget indtastning'!$"&$R54&"6:"&$R54&"371")) -> 0 | L54: =SUMPRODUCT((MONTH('Budget indtastning'!$B$6:$B$371)=L$5)*(YEAR('Budget indtastning'!$B$6:$B$371)=L$6)+0,INDIRECT("'Budget indtastning'!$"&$R54&"6:"&$R54&"371")) -> 0 | M54: =SUMPRODUCT((MONTH('Budget indtastning'!$B$6:$B$371)=M$5)*(YEAR('Budget indtastning'!$B$6:$B$371)=M$6)+0,INDIRECT("'Budget indtastning'!$"&$R54&"6:"&$R54&"371")) -> 0 | N54: =SUMPRODUCT((MONTH('Budget indtastning'!$B$6:$B$371)=N$5)*(YEAR('Budget indtastning'!$B$6:$B$371)=N$6)+0,INDIRECT("'Budget indtastning'!$"&$R54&"6:"&$R54&"371")) -> 0 | O54: =SUMPRODUCT((MONTH('Budget indtastning'!$B$6:$B$371)=O$5)*(YEAR('Budget indtastning'!$B$6:$B$371)=O$6)+0,INDIRECT("'Budget indtastning'!$"&$R54&"6:"&$R54&"371")) -> 0 | P54: =SUMPRODUCT((MONTH('Budget indtastning'!$B$6:$B$371)=P$5)*(YEAR('Budget indtastning'!$B$6:$B$371)=P$6)+0,INDIRECT("'Budget indtastning'!$"&$R54&"6:"&$R54&"371")) -> 0 | Q54: =SUMPRODUCT((MONTH('Budget indtastning'!$B$6:$B$371)=Q$5)*(YEAR('Budget indtastning'!$B$6:$B$371)=Q$6)+0,INDIRECT("'Budget indtastning'!$"&$R54&"6:"&$R54&"371")) -> 0 | R54: ar
B55: 0 | D55: 0 | F55: =SUMPRODUCT((MONTH('Budget indtastning'!$B$6:$B$371)=F$5)*(YEAR('Budget indtastning'!$B$6:$B$371)=F$6)+0,INDIRECT("'Budget indtastning'!$"&$R55&"6:"&$R55&"371")) -> 0 | G55: =SUMPRODUCT((MONTH('Budget indtastning'!$B$6:$B$371)=G$5)*(YEAR('Budget indtastning'!$B$6:$B$371)=G$6)+0,INDIRECT("'Budget indtastning'!$"&$R55&"6:"&$R55&"371")) -> 0 | H55: =SUMPRODUCT((MONTH('Budget indtastning'!$B$6:$B$371)=H$5)*(YEAR('Budget indtastning'!$B$6:$B$371)=H$6)+0,INDIRECT("'Budget indtastning'!$"&$R55&"6:"&$R55&"371")) -> 0 | I55: =SUMPRODUCT((MONTH('Budget indtastning'!$B$6:$B$371)=I$5)*(YEAR('Budget indtastning'!$B$6:$B$371)=I$6)+0,INDIRECT("'Budget indtastning'!$"&$R55&"6:"&$R55&"371")) -> 0 | J55: =SUMPRODUCT((MONTH('Budget indtastning'!$B$6:$B$371)=J$5)*(YEAR('Budget indtastning'!$B$6:$B$371)=J$6)+0,INDIRECT("'Budget indtastning'!$"&$R55&"6:"&$R55&"371")) -> 0 | K55: =SUMPRODUCT((MONTH('Budget indtastning'!$B$6:$B$371)=K$5)*(YEAR('Budget indtastning'!$B$6:$B$371)=K$6)+0,INDIRECT("'Budget indtastning'!$"&$R55&"6:"&$R55&"371")) -> 0 | L55: =SUMPRODUCT((MONTH('Budget indtastning'!$B$6:$B$371)=L$5)*(YEAR('Budget indtastning'!$B$6:$B$371)=L$6)+0,INDIRECT("'Budget indtastning'!$"&$R55&"6:"&$R55&"371")) -> 0 | M55: =SUMPRODUCT((MONTH('Budget indtastning'!$B$6:$B$371)=M$5)*(YEAR('Budget indtastning'!$B$6:$B$371)=M$6)+0,INDIRECT("'Budget indtastning'!$"&$R55&"6:"&$R55&"371")) -> 0 | N55: =SUMPRODUCT((MONTH('Budget indtastning'!$B$6:$B$371)=N$5)*(YEAR('Budget indtastning'!$B$6:$B$371)=N$6)+0,INDIRECT("'Budget indtastning'!$"&$R55&"6:"&$R55&"371")) -> 0 | O55: =SUMPRODUCT((MONTH('Budget indtastning'!$B$6:$B$371)=O$5)*(YEAR('Budget indtastning'!$B$6:$B$371)=O$6)+0,INDIRECT("'Budget indtastning'!$"&$R55&"6:"&$R55&"371")) -> 0 | P55: =SUMPRODUCT((MONTH('Budget indtastning'!$B$6:$B$371)=P$5)*(YEAR('Budget indtastning'!$B$6:$B$371)=P$6)+0,INDIRECT("'Budget indtastning'!$"&$R55&"6:"&$R55&"371")) -> 0 | Q55: =SUMPRODUCT((MONTH('Budget indtastning'!$B$6:$B$371)=Q$5)*(YEAR('Budget indtastning'!$B$6:$B$371)=Q$6)+0,INDIRECT("'Budget indtastning'!$"&$R55&"6:"&$R55&"371")) -> 0 | R55: as
B56: 0 | D56: 0 | F56: =SUMPRODUCT((MONTH('Budget indtastning'!$B$6:$B$371)=F$5)*(YEAR('Budget indtastning'!$B$6:$B$371)=F$6)+0,INDIRECT("'Budget indtastning'!$"&$R56&"6:"&$R56&"371")) -> 0 | G56: =SUMPRODUCT((MONTH('Budget indtastning'!$B$6:$B$371)=G$5)*(YEAR('Budget indtastning'!$B$6:$B$371)=G$6)+0,INDIRECT("'Budget indtastning'!$"&$R56&"6:"&$R56&"371")) -> 0 | H56: =SUMPRODUCT((MONTH('Budget indtastning'!$B$6:$B$371)=H$5)*(YEAR('Budget indtastning'!$B$6:$B$371)=H$6)+0,INDIRECT("'Budget indtastning'!$"&$R56&"6:"&$R56&"371")) -> 0 | I56: =SUMPRODUCT((MONTH('Budget indtastning'!$B$6:$B$371)=I$5)*(YEAR('Budget indtastning'!$B$6:$B$371)=I$6)+0,INDIRECT("'Budget indtastning'!$"&$R56&"6:"&$R56&"371")) -> 0 | J56: =SUMPRODUCT((MONTH('Budget indtastning'!$B$6:$B$371)=J$5)*(YEAR('Budget indtastning'!$B$6:$B$371)=J$6)+0,INDIRECT("'Budget indtastning'!$"&$R56&"6:"&$R56&"371")) -> 0 | K56: =SUMPRODUCT((MONTH('Budget indtastning'!$B$6:$B$371)=K$5)*(YEAR('Budget indtastning'!$B$6:$B$371)=K$6)+0,INDIRECT("'Budget indtastning'!$"&$R56&"6:"&$R56&"371")) -> 0 | L56: =SUMPRODUCT((MONTH('Budget indtastning'!$B$6:$B$371)=L$5)*(YEAR('Budget indtastning'!$B$6:$B$371)=L$6)+0,INDIRECT("'Budget indtastning'!$"&$R56&"6:"&$R56&"371")) -> 0 | M56: =SUMPRODUCT((MONTH('Budget indtastning'!$B$6:$B$371)=M$5)*(YEAR('Budget indtastning'!$B$6:$B$371)=M$6)+0,INDIRECT("'Budget indtastning'!$"&$R56&"6:"&$R56&"371")) -> 0 | N56: =SUMPRODUCT((MONTH('Budget indtastning'!$B$6:$B$371)=N$5)*(YEAR('Budget indtastning'!$B$6:$B$371)=N$6)+0,INDIRECT("'Budget indtastning'!$"&$R56&"6:"&$R56&"371")) -> 0 | O56: =SUMPRODUCT((MONTH('Budget indtastning'!$B$6:$B$371)=O$5)*(YEAR('Budget indtastning'!$B$6:$B$371)=O$6)+0,INDIRECT("'Budget indtastning'!$"&$R56&"6:"&$R56&"371")) -> 0 | P56: =SUMPRODUCT((MONTH('Budget indtastning'!$B$6:$B$371)=P$5)*(YEAR('Budget indtastning'!$B$6:$B$371)=P$6)+0,INDIRECT("'Budget indtastning'!$"&$R56&"6:"&$R56&"371")) -> 0 | Q56: =SUMPRODUCT((MONTH('Budget indtastning'!$B$6:$B$371)=Q$5)*(YEAR('Budget indtastning'!$B$6:$B$371)=Q$6)+0,INDIRECT("'Budget indtastning'!$"&$R56&"6:"&$R56&"371")) -> 0 | R56: at
B57: 0 | D57: 0 | F57: =SUMPRODUCT((MONTH('Budget indtastning'!$B$6:$B$371)=F$5)*(YEAR('Budget indtastning'!$B$6:$B$371)=F$6)+0,INDIRECT("'Budget indtastning'!$"&$R57&"6:"&$R57&"371")) -> 0 | G57: =SUMPRODUCT((MONTH('Budget indtastning'!$B$6:$B$371)=G$5)*(YEAR('Budget indtastning'!$B$6:$B$371)=G$6)+0,INDIRECT("'Budget indtastning'!$"&$R57&"6:"&$R57&"371")) -> 0 | H57: =SUMPRODUCT((MONTH('Budget indtastning'!$B$6:$B$371)=H$5)*(YEAR('Budget indtastning'!$B$6:$B$371)=H$6)+0,INDIRECT("'Budget indtastning'!$"&$R57&"6:"&$R57&"371")) -> 0 | I57: =SUMPRODUCT((MONTH('Budget indtastning'!$B$6:$B$371)=I$5)*(YEAR('Budget indtastning'!$B$6:$B$371)=I$6)+0,INDIRECT("'Budget indtastning'!$"&$R57&"6:"&$R57&"371")) -> 0 | J57: =SUMPRODUCT((MONTH('Budget indtastning'!$B$6:$B$371)=J$5)*(YEAR('Budget indtastning'!$B$6:$B$371)=J$6)+0,INDIRECT("'Budget indtastning'!$"&$R57&"6:"&$R57&"371")) -> 0 | K57: =SUMPRODUCT((MONTH('Budget indtastning'!$B$6:$B$371)=K$5)*(YEAR('Budget indtastning'!$B$6:$B$371)=K$6)+0,INDIRECT("'Budget indtastning'!$"&$R57&"6:"&$R57&"371")) -> 0 | L57: =SUMPRODUCT((MONTH('Budget indtastning'!$B$6:$B$371)=L$5)*(YEAR('Budget indtastning'!$B$6:$B$371)=L$6)+0,INDIRECT("'Budget indtastning'!$"&$R57&"6:"&$R57&"371")) -> 0 | M57: =SUMPRODUCT((MONTH('Budget indtastning'!$B$6:$B$371)=M$5)*(YEAR('Budget indtastning'!$B$6:$B$371)=M$6)+0,INDIRECT("'Budget indtastning'!$"&$R57&"6:"&$R57&"371")) -> 0 | N57: =SUMPRODUCT((MONTH('Budget indtastning'!$B$6:$B$371)=N$5)*(YEAR('Budget indtastning'!$B$6:$B$371)=N$6)+0,INDIRECT("'Budget indtastning'!$"&$R57&"6:"&$R57&"371")) -> 0 | O57: =SUMPRODUCT((MONTH('Budget indtastning'!$B$6:$B$371)=O$5)*(YEAR('Budget indtastning'!$B$6:$B$371)=O$6)+0,INDIRECT("'Budget indtastning'!$"&$R57&"6:"&$R57&"371")) -> 0 | P57: =SUMPRODUCT((MONTH('Budget indtastning'!$B$6:$B$371)=P$5)*(YEAR('Budget indtastning'!$B$6:$B$371)=P$6)+0,INDIRECT("'Budget indtastning'!$"&$R57&"6:"&$R57&"371")) -> 0 | Q57: =SUMPRODUCT((MONTH('Budget indtastning'!$B$6:$B$371)=Q$5)*(YEAR('Budget indtastning'!$B$6:$B$371)=Q$6)+0,INDIRECT("'Budget indtastning'!$"&$R57&"6:"&$R57&"371")) -> 0 | R57: au
B58: 0 | D58: 0 | F58: =SUMPRODUCT((MONTH('Budget indtastning'!$B$6:$B$371)=F$5)*(YEAR('Budget indtastning'!$B$6:$B$371)=F$6)+0,INDIRECT("'Budget indtastning'!$"&$R58&"6:"&$R58&"371")) -> 0 | G58: =SUMPRODUCT((MONTH('Budget indtastning'!$B$6:$B$371)=G$5)*(YEAR('Budget indtastning'!$B$6:$B$371)=G$6)+0,INDIRECT("'Budget indtastning'!$"&$R58&"6:"&$R58&"371")) -> 0 | H58: =SUMPRODUCT((MONTH('Budget indtastning'!$B$6:$B$371)=H$5)*(YEAR('Budget indtastning'!$B$6:$B$371)=H$6)+0,INDIRECT("'Budget indtastning'!$"&$R58&"6:"&$R58&"371")) -> 0 | I58: =SUMPRODUCT((MONTH('Budget indtastning'!$B$6:$B$371)=I$5)*(YEAR('Budget indtastning'!$B$6:$B$371)=I$6)+0,INDIRECT("'Budget indtastning'!$"&$R58&"6:"&$R58&"371")) -> 0 | J58: =SUMPRODUCT((MONTH('Budget indtastning'!$B$6:$B$371)=J$5)*(YEAR('Budget indtastning'!$B$6:$B$371)=J$6)+0,INDIRECT("'Budget indtastning'!$"&$R58&"6:"&$R58&"371")) -> 0 | K58: =SUMPRODUCT((MONTH('Budget indtastning'!$B$6:$B$371)=K$5)*(YEAR('Budget indtastning'!$B$6:$B$371)=K$6)+0,INDIRECT("'Budget indtastning'!$"&$R58&"6:"&$R58&"371")) -> 0 | L58: =SUMPRODUCT((MONTH('Budget indtastning'!$B$6:$B$371)=L$5)*(YEAR('Budget indtastning'!$B$6:$B$371)=L$6)+0,INDIRECT("'Budget indtastning'!$"&$R58&"6:"&$R58&"371")) -> 0 | M58: =SUMPRODUCT((MONTH('Budget indtastning'!$B$6:$B$371)=M$5)*(YEAR('Budget indtastning'!$B$6:$B$371)=M$6)+0,INDIRECT("'Budget indtastning'!$"&$R58&"6:"&$R58&"371")) -> 0 | N58: =SUMPRODUCT((MONTH('Budget indtastning'!$B$6:$B$371)=N$5)*(YEAR('Budget indtastning'!$B$6:$B$371)=N$6)+0,INDIRECT("'Budget indtastning'!$"&$R58&"6:"&$R58&"371")) -> 0 | O58: =SUMPRODUCT((MONTH('Budget indtastning'!$B$6:$B$371)=O$5)*(YEAR('Budget indtastning'!$B$6:$B$371)=O$6)+0,INDIRECT("'Budget indtastning'!$"&$R58&"6:"&$R58&"371")) -> 0 | P58: =SUMPRODUCT((MONTH('Budget indtastning'!$B$6:$B$371)=P$5)*(YEAR('Budget indtastning'!$B$6:$B$371)=P$6)+0,INDIRECT("'Budget indtastning'!$"&$R58&"6:"&$R58&"371")) -> 0 | Q58: =SUMPRODUCT((MONTH('Budget indtastning'!$B$6:$B$371)=Q$5)*(YEAR('Budget indtastning'!$B$6:$B$371)=Q$6)+0,INDIRECT("'Budget indtastning'!$"&$R58&"6:"&$R58&"371")) -> 0 | R58: av
B59: 0 | D59: 0 | F59: =SUMPRODUCT((MONTH('Budget indtastning'!$B$6:$B$371)=F$5)*(YEAR('Budget indtastning'!$B$6:$B$371)=F$6)+0,INDIRECT("'Budget indtastning'!$"&$R59&"6:"&$R59&"371")) -> 0 | G59: =SUMPRODUCT((MONTH('Budget indtastning'!$B$6:$B$371)=G$5)*(YEAR('Budget indtastning'!$B$6:$B$371)=G$6)+0,INDIRECT("'Budget indtastning'!$"&$R59&"6:"&$R59&"371")) -> 0 | H59: =SUMPRODUCT((MONTH('Budget indtastning'!$B$6:$B$371)=H$5)*(YEAR('Budget indtastning'!$B$6:$B$371)=H$6)+0,INDIRECT("'Budget indtastning'!$"&$R59&"6:"&$R59&"371")) -> 0 | I59: =SUMPRODUCT((MONTH('Budget indtastning'!$B$6:$B$371)=I$5)*(YEAR('Budget indtastning'!$B$6:$B$371)=I$6)+0,INDIRECT("'Budget indtastning'!$"&$R59&"6:"&$R59&"371")) -> 0 | J59: =SUMPRODUCT((MONTH('Budget indtastning'!$B$6:$B$371)=J$5)*(YEAR('Budget indtastning'!$B$6:$B$371)=J$6)+0,INDIRECT("'Budget indtastning'!$"&$R59&"6:"&$R59&"371")) -> 0 | K59: =SUMPRODUCT((MONTH('Budget indtastning'!$B$6:$B$371)=K$5)*(YEAR('Budget indtastning'!$B$6:$B$371)=K$6)+0,INDIRECT("'Budget indtastning'!$"&$R59&"6:"&$R59&"371")) -> 0 | L59: =SUMPRODUCT((MONTH('Budget indtastning'!$B$6:$B$371)=L$5)*(YEAR('Budget indtastning'!$B$6:$B$371)=L$6)+0,INDIRECT("'Budget indtastning'!$"&$R59&"6:"&$R59&"371")) -> 0 | M59: =SUMPRODUCT((MONTH('Budget indtastning'!$B$6:$B$371)=M$5)*(YEAR('Budget indtastning'!$B$6:$B$371)=M$6)+0,INDIRECT("'Budget indtastning'!$"&$R59&"6:"&$R59&"371")) -> 0 | N59: =SUMPRODUCT((MONTH('Budget indtastning'!$B$6:$B$371)=N$5)*(YEAR('Budget indtastning'!$B$6:$B$371)=N$6)+0,INDIRECT("'Budget indtastning'!$"&$R59&"6:"&$R59&"371")) -> 0 | O59: =SUMPRODUCT((MONTH('Budget indtastning'!$B$6:$B$371)=O$5)*(YEAR('Budget indtastning'!$B$6:$B$371)=O$6)+0,INDIRECT("'Budget indtastning'!$"&$R59&"6:"&$R59&"371")) -> 0 | P59: =SUMPRODUCT((MONTH('Budget indtastning'!$B$6:$B$371)=P$5)*(YEAR('Budget indtastning'!$B$6:$B$371)=P$6)+0,INDIRECT("'Budget indtastning'!$"&$R59&"6:"&$R59&"371")) -> 0 | Q59: =SUMPRODUCT((MONTH('Budget indtastning'!$B$6:$B$371)=Q$5)*(YEAR('Budget indtastning'!$B$6:$B$371)=Q$6)+0,INDIRECT("'Budget indtastning'!$"&$R59&"6:"&$R59&"371")) -> 0 | R59: aw
B60: 0 | D60: 0 | F60: =SUMPRODUCT((MONTH('Budget indtastning'!$B$6:$B$371)=F$5)*(YEAR('Budget indtastning'!$B$6:$B$371)=F$6)+0,INDIRECT("'Budget indtastning'!$"&$R60&"6:"&$R60&"371")) -> 0 | G60: =SUMPRODUCT((MONTH('Budget indtastning'!$B$6:$B$371)=G$5)*(YEAR('Budget indtastning'!$B$6:$B$371)=G$6)+0,INDIRECT("'Budget indtastning'!$"&$R60&"6:"&$R60&"371")) -> 0 | H60: =SUMPRODUCT((MONTH('Budget indtastning'!$B$6:$B$371)=H$5)*(YEAR('Budget indtastning'!$B$6:$B$371)=H$6)+0,INDIRECT("'Budget indtastning'!$"&$R60&"6:"&$R60&"371")) -> 0 | I60: =SUMPRODUCT((MONTH('Budget indtastning'!$B$6:$B$371)=I$5)*(YEAR('Budget indtastning'!$B$6:$B$371)=I$6)+0,INDIRECT("'Budget indtastning'!$"&$R60&"6:"&$R60&"371")) -> 0 | J60: =SUMPRODUCT((MONTH('Budget indtastning'!$B$6:$B$371)=J$5)*(YEAR('Budget indtastning'!$B$6:$B$371)=J$6)+0,INDIRECT("'Budget indtastning'!$"&$R60&"6:"&$R60&"371")) -> 0 | K60: =SUMPRODUCT((MONTH('Budget indtastning'!$B$6:$B$371)=K$5)*(YEAR('Budget indtastning'!$B$6:$B$371)=K$6)+0,INDIRECT("'Budget indtastning'!$"&$R60&"6:"&$R60&"371")) -> 0 | L60: =SUMPRODUCT((MONTH('Budget indtastning'!$B$6:$B$371)=L$5)*(YEAR('Budget indtastning'!$B$6:$B$371)=L$6)+0,INDIRECT("'Budget indtastning'!$"&$R60&"6:"&$R60&"371")) -> 0 | M60: =SUMPRODUCT((MONTH('Budget indtastning'!$B$6:$B$371)=M$5)*(YEAR('Budget indtastning'!$B$6:$B$371)=M$6)+0,INDIRECT("'Budget indtastning'!$"&$R60&"6:"&$R60&"371")) -> 0 | N60: =SUMPRODUCT((MONTH('Budget indtastning'!$B$6:$B$371)=N$5)*(YEAR('Budget indtastning'!$B$6:$B$371)=N$6)+0,INDIRECT("'Budget indtastning'!$"&$R60&"6:"&$R60&"371")) -> 0 | O60: =SUMPRODUCT((MONTH('Budget indtastning'!$B$6:$B$371)=O$5)*(YEAR('Budget indtastning'!$B$6:$B$371)=O$6)+0,INDIRECT("'Budget indtastning'!$"&$R60&"6:"&$R60&"371")) -> 0 | P60: =SUMPRODUCT((MONTH('Budget indtastning'!$B$6:$B$371)=P$5)*(YEAR('Budget indtastning'!$B$6:$B$371)=P$6)+0,INDIRECT("'Budget indtastning'!$"&$R60&"6:"&$R60&"371")) -> 0 | Q60: =SUMPRODUCT((MONTH('Budget indtastning'!$B$6:$B$371)=Q$5)*(YEAR('Budget indtastning'!$B$6:$B$371)=Q$6)+0,INDIRECT("'Budget indtastning'!$"&$R60&"6:"&$R60&"371")) -> 0 | R60: ax
B61: 0 | D61: 0 | F61: =SUMPRODUCT((MONTH('Budget indtastning'!$B$6:$B$371)=F$5)*(YEAR('Budget indtastning'!$B$6:$B$371)=F$6)+0,INDIRECT("'Budget indtastning'!$"&$R61&"6:"&$R61&"371")) -> 0 | G61: =SUMPRODUCT((MONTH('Budget indtastning'!$B$6:$B$371)=G$5)*(YEAR('Budget indtastning'!$B$6:$B$371)=G$6)+0,INDIRECT("'Budget indtastning'!$"&$R61&"6:"&$R61&"371")) -> 0 | H61: =SUMPRODUCT((MONTH('Budget indtastning'!$B$6:$B$371)=H$5)*(YEAR('Budget indtastning'!$B$6:$B$371)=H$6)+0,INDIRECT("'Budget indtastning'!$"&$R61&"6:"&$R61&"371")) -> 0 | I61: =SUMPRODUCT((MONTH('Budget indtastning'!$B$6:$B$371)=I$5)*(YEAR('Budget indtastning'!$B$6:$B$371)=I$6)+0,INDIRECT("'Budget indtastning'!$"&$R61&"6:"&$R61&"371")) -> 0 | J61: =SUMPRODUCT((MONTH('Budget indtastning'!$B$6:$B$371)=J$5)*(YEAR('Budget indtastning'!$B$6:$B$371)=J$6)+0,INDIRECT("'Budget indtastning'!$"&$R61&"6:"&$R61&"371")) -> 0 | K61: =SUMPRODUCT((MONTH('Budget indtastning'!$B$6:$B$371)=K$5)*(YEAR('Budget indtastning'!$B$6:$B$371)=K$6)+0,INDIRECT("'Budget indtastning'!$"&$R61&"6:"&$R61&"371")) -> 0 | L61: =SUMPRODUCT((MONTH('Budget indtastning'!$B$6:$B$371)=L$5)*(YEAR('Budget indtastning'!$B$6:$B$371)=L$6)+0,INDIRECT("'Budget indtastning'!$"&$R61&"6:"&$R61&"371")) -> 0 | M61: =SUMPRODUCT((MONTH('Budget indtastning'!$B$6:$B$371)=M$5)*(YEAR('Budget indtastning'!$B$6:$B$371)=M$6)+0,INDIRECT("'Budget indtastning'!$"&$R61&"6:"&$R61&"371")) -> 0 | N61: =SUMPRODUCT((MONTH('Budget indtastning'!$B$6:$B$371)=N$5)*(YEAR('Budget indtastning'!$B$6:$B$371)=N$6)+0,INDIRECT("'Budget indtastning'!$"&$R61&"6:"&$R61&"371")) -> 0 | O61: =SUMPRODUCT((MONTH('Budget indtastning'!$B$6:$B$371)=O$5)*(YEAR('Budget indtastning'!$B$6:$B$371)=O$6)+0,INDIRECT("'Budget indtastning'!$"&$R61&"6:"&$R61&"371")) -> 0 | P61: =SUMPRODUCT((MONTH('Budget indtastning'!$B$6:$B$371)=P$5)*(YEAR('Budget indtastning'!$B$6:$B$371)=P$6)+0,INDIRECT("'Budget indtastning'!$"&$R61&"6:"&$R61&"371")) -> 0 | Q61: =SUMPRODUCT((MONTH('Budget indtastning'!$B$6:$B$371)=Q$5)*(YEAR('Budget indtastning'!$B$6:$B$371)=Q$6)+0,INDIRECT("'Budget indtastning'!$"&$R61&"6:"&$R61&"371")) -> 0 | R61: ay
B62: 0 | D62: 0 | F62: =SUMPRODUCT((MONTH('Budget indtastning'!$B$6:$B$371)=F$5)*(YEAR('Budget indtastning'!$B$6:$B$371)=F$6)+0,INDIRECT("'Budget indtastning'!$"&$R62&"6:"&$R62&"371")) -> 0 | G62: =SUMPRODUCT((MONTH('Budget indtastning'!$B$6:$B$371)=G$5)*(YEAR('Budget indtastning'!$B$6:$B$371)=G$6)+0,INDIRECT("'Budget indtastning'!$"&$R62&"6:"&$R62&"371")) -> 0 | H62: =SUMPRODUCT((MONTH('Budget indtastning'!$B$6:$B$371)=H$5)*(YEAR('Budget indtastning'!$B$6:$B$371)=H$6)+0,INDIRECT("'Budget indtastning'!$"&$R62&"6:"&$R62&"371")) -> 0 | I62: =SUMPRODUCT((MONTH('Budget indtastning'!$B$6:$B$371)=I$5)*(YEAR('Budget indtastning'!$B$6:$B$371)=I$6)+0,INDIRECT("'Budget indtastning'!$"&$R62&"6:"&$R62&"371")) -> 0 | J62: =SUMPRODUCT((MONTH('Budget indtastning'!$B$6:$B$371)=J$5)*(YEAR('Budget indtastning'!$B$6:$B$371)=J$6)+0,INDIRECT("'Budget indtastning'!$"&$R62&"6:"&$R62&"371")) -> 0 | K62: =SUMPRODUCT((MONTH('Budget indtastning'!$B$6:$B$371)=K$5)*(YEAR('Budget indtastning'!$B$6:$B$371)=K$6)+0,INDIRECT("'Budget indtastning'!$"&$R62&"6:"&$R62&"371")) -> 0 | L62: =SUMPRODUCT((MONTH('Budget indtastning'!$B$6:$B$371)=L$5)*(YEAR('Budget indtastning'!$B$6:$B$371)=L$6)+0,INDIRECT("'Budget indtastning'!$"&$R62&"6:"&$R62&"371")) -> 0 | M62: =SUMPRODUCT((MONTH('Budget indtastning'!$B$6:$B$371)=M$5)*(YEAR('Budget indtastning'!$B$6:$B$371)=M$6)+0,INDIRECT("'Budget indtastning'!$"&$R62&"6:"&$R62&"371")) -> 0 | N62: =SUMPRODUCT((MONTH('Budget indtastning'!$B$6:$B$371)=N$5)*(YEAR('Budget indtastning'!$B$6:$B$371)=N$6)+0,INDIRECT("'Budget indtastning'!$"&$R62&"6:"&$R62&"371")) -> 0 | O62: =SUMPRODUCT((MONTH('Budget indtastning'!$B$6:$B$371)=O$5)*(YEAR('Budget indtastning'!$B$6:$B$371)=O$6)+0,INDIRECT("'Budget indtastning'!$"&$R62&"6:"&$R62&"371")) -> 0 | P62: =SUMPRODUCT((MONTH('Budget indtastning'!$B$6:$B$371)=P$5)*(YEAR('Budget indtastning'!$B$6:$B$371)=P$6)+0,INDIRECT("'Budget indtastning'!$"&$R62&"6:"&$R62&"371")) -> 0 | Q62: =SUMPRODUCT((MONTH('Budget indtastning'!$B$6:$B$371)=Q$5)*(YEAR('Budget indtastning'!$B$6:$B$371)=Q$6)+0,INDIRECT("'Budget indtastning'!$"&$R62&"6:"&$R62&"371")) -> 0 | R62: az
B63: 0 | D63: 0 | F63: =SUMPRODUCT((MONTH('Budget indtastning'!$B$6:$B$371)=F$5)*(YEAR('Budget indtastning'!$B$6:$B$371)=F$6)+0,INDIRECT("'Budget indtastning'!$"&$R63&"6:"&$R63&"371")) -> 0 | G63: =SUMPRODUCT((MONTH('Budget indtastning'!$B$6:$B$371)=G$5)*(YEAR('Budget indtastning'!$B$6:$B$371)=G$6)+0,INDIRECT("'Budget indtastning'!$"&$R63&"6:"&$R63&"371")) -> 0 | H63: =SUMPRODUCT((MONTH('Budget indtastning'!$B$6:$B$371)=H$5)*(YEAR('Budget indtastning'!$B$6:$B$371)=H$6)+0,INDIRECT("'Budget indtastning'!$"&$R63&"6:"&$R63&"371")) -> 0 | I63: =SUMPRODUCT((MONTH('Budget indtastning'!$B$6:$B$371)=I$5)*(YEAR('Budget indtastning'!$B$6:$B$371)=I$6)+0,INDIRECT("'Budget indtastning'!$"&$R63&"6:"&$R63&"371")) -> 0 | J63: =SUMPRODUCT((MONTH('Budget indtastning'!$B$6:$B$371)=J$5)*(YEAR('Budget indtastning'!$B$6:$B$371)=J$6)+0,INDIRECT("'Budget indtastning'!$"&$R63&"6:"&$R63&"371")) -> 0 | K63: =SUMPRODUCT((MONTH('Budget indtastning'!$B$6:$B$371)=K$5)*(YEAR('Budget indtastning'!$B$6:$B$371)=K$6)+0,INDIRECT("'Budget indtastning'!$"&$R63&"6:"&$R63&"371")) -> 0 | L63: =SUMPRODUCT((MONTH('Budget indtastning'!$B$6:$B$371)=L$5)*(YEAR('Budget indtastning'!$B$6:$B$371)=L$6)+0,INDIRECT("'Budget indtastning'!$"&$R63&"6:"&$R63&"371")) -> 0 | M63: =SUMPRODUCT((MONTH('Budget indtastning'!$B$6:$B$371)=M$5)*(YEAR('Budget indtastning'!$B$6:$B$371)=M$6)+0,INDIRECT("'Budget indtastning'!$"&$R63&"6:"&$R63&"371")) -> 0 | N63: =SUMPRODUCT((MONTH('Budget indtastning'!$B$6:$B$371)=N$5)*(YEAR('Budget indtastning'!$B$6:$B$371)=N$6)+0,INDIRECT("'Budget indtastning'!$"&$R63&"6:"&$R63&"371")) -> 0 | O63: =SUMPRODUCT((MONTH('Budget indtastning'!$B$6:$B$371)=O$5)*(YEAR('Budget indtastning'!$B$6:$B$371)=O$6)+0,INDIRECT("'Budget indtastning'!$"&$R63&"6:"&$R63&"371")) -> 0 | P63: =SUMPRODUCT((MONTH('Budget indtastning'!$B$6:$B$371)=P$5)*(YEAR('Budget indtastning'!$B$6:$B$371)=P$6)+0,INDIRECT("'Budget indtastning'!$"&$R63&"6:"&$R63&"371")) -> 0 | Q63: =SUMPRODUCT((MONTH('Budget indtastning'!$B$6:$B$371)=Q$5)*(YEAR('Budget indtastning'!$B$6:$B$371)=Q$6)+0,INDIRECT("'Budget indtastning'!$"&$R63&"6:"&$R63&"371")) -> 0 | R63: ba
B64: 0 | D64: 0 | F64: =SUMPRODUCT((MONTH('Budget indtastning'!$B$6:$B$371)=F$5)*(YEAR('Budget indtastning'!$B$6:$B$371)=F$6)+0,INDIRECT("'Budget indtastning'!$"&$R64&"6:"&$R64&"371")) -> 0 | G64: =SUMPRODUCT((MONTH('Budget indtastning'!$B$6:$B$371)=G$5)*(YEAR('Budget indtastning'!$B$6:$B$371)=G$6)+0,INDIRECT("'Budget indtastning'!$"&$R64&"6:"&$R64&"371")) -> 0 | H64: =SUMPRODUCT((MONTH('Budget indtastning'!$B$6:$B$371)=H$5)*(YEAR('Budget indtastning'!$B$6:$B$371)=H$6)+0,INDIRECT("'Budget indtastning'!$"&$R64&"6:"&$R64&"371")) -> 0 | I64: =SUMPRODUCT((MONTH('Budget indtastning'!$B$6:$B$371)=I$5)*(YEAR('Budget indtastning'!$B$6:$B$371)=I$6)+0,INDIRECT("'Budget indtastning'!$"&$R64&"6:"&$R64&"371")) -> 0 | J64: =SUMPRODUCT((MONTH('Budget indtastning'!$B$6:$B$371)=J$5)*(YEAR('Budget indtastning'!$B$6:$B$371)=J$6)+0,INDIRECT("'Budget indtastning'!$"&$R64&"6:"&$R64&"371")) -> 0 | K64: =SUMPRODUCT((MONTH('Budget indtastning'!$B$6:$B$371)=K$5)*(YEAR('Budget indtastning'!$B$6:$B$371)=K$6)+0,INDIRECT("'Budget indtastning'!$"&$R64&"6:"&$R64&"371")) -> 0 | L64: =SUMPRODUCT((MONTH('Budget indtastning'!$B$6:$B$371)=L$5)*(YEAR('Budget indtastning'!$B$6:$B$371)=L$6)+0,INDIRECT("'Budget indtastning'!$"&$R64&"6:"&$R64&"371")) -> 0 | M64: =SUMPRODUCT((MONTH('Budget indtastning'!$B$6:$B$371)=M$5)*(YEAR('Budget indtastning'!$B$6:$B$371)=M$6)+0,INDIRECT("'Budget indtastning'!$"&$R64&"6:"&$R64&"371")) -> 0 | N64: =SUMPRODUCT((MONTH('Budget indtastning'!$B$6:$B$371)=N$5)*(YEAR('Budget indtastning'!$B$6:$B$371)=N$6)+0,INDIRECT("'Budget indtastning'!$"&$R64&"6:"&$R64&"371")) -> 0 | O64: =SUMPRODUCT((MONTH('Budget indtastning'!$B$6:$B$371)=O$5)*(YEAR('Budget indtastning'!$B$6:$B$371)=O$6)+0,INDIRECT("'Budget indtastning'!$"&$R64&"6:"&$R64&"371")) -> 0 | P64: =SUMPRODUCT((MONTH('Budget indtastning'!$B$6:$B$371)=P$5)*(YEAR('Budget indtastning'!$B$6:$B$371)=P$6)+0,INDIRECT("'Budget indtastning'!$"&$R64&"6:"&$R64&"371")) -> 0 | Q64: =SUMPRODUCT((MONTH('Budget indtastning'!$B$6:$B$371)=Q$5)*(YEAR('Budget indtastning'!$B$6:$B$371)=Q$6)+0,INDIRECT("'Budget indtastning'!$"&$R64&"6:"&$R64&"371")) -> 0 | R64: bb
B65: 0 | D65: 0 | F65: =SUMPRODUCT((MONTH('Budget indtastning'!$B$6:$B$371)=F$5)*(YEAR('Budget indtastning'!$B$6:$B$371)=F$6)+0,INDIRECT("'Budget indtastning'!$"&$R65&"6:"&$R65&"371")) -> 0 | G65: =SUMPRODUCT((MONTH('Budget indtastning'!$B$6:$B$371)=G$5)*(YEAR('Budget indtastning'!$B$6:$B$371)=G$6)+0,INDIRECT("'Budget indtastning'!$"&$R65&"6:"&$R65&"371")) -> 0 | H65: =SUMPRODUCT((MONTH('Budget indtastning'!$B$6:$B$371)=H$5)*(YEAR('Budget indtastning'!$B$6:$B$371)=H$6)+0,INDIRECT("'Budget indtastning'!$"&$R65&"6:"&$R65&"371")) -> 0 | I65: =SUMPRODUCT((MONTH('Budget indtastning'!$B$6:$B$371)=I$5)*(YEAR('Budget indtastning'!$B$6:$B$371)=I$6)+0,INDIRECT("'Budget indtastning'!$"&$R65&"6:"&$R65&"371")) -> 0 | J65: =SUMPRODUCT((MONTH('Budget indtastning'!$B$6:$B$371)=J$5)*(YEAR('Budget indtastning'!$B$6:$B$371)=J$6)+0,INDIRECT("'Budget indtastning'!$"&$R65&"6:"&$R65&"371")) -> 0 | K65: =SUMPRODUCT((MONTH('Budget indtastning'!$B$6:$B$371)=K$5)*(YEAR('Budget indtastning'!$B$6:$B$371)=K$6)+0,INDIRECT("'Budget indtastning'!$"&$R65&"6:"&$R65&"371")) -> 0 | L65: =SUMPRODUCT((MONTH('Budget indtastning'!$B$6:$B$371)=L$5)*(YEAR('Budget indtastning'!$B$6:$B$371)=L$6)+0,INDIRECT("'Budget indtastning'!$"&$R65&"6:"&$R65&"371")) -> 0 | M65: =SUMPRODUCT((MONTH('Budget indtastning'!$B$6:$B$371)=M$5)*(YEAR('Budget indtastning'!$B$6:$B$371)=M$6)+0,INDIRECT("'Budget indtastning'!$"&$R65&"6:"&$R65&"371")) -> 0 | N65: =SUMPRODUCT((MONTH('Budget indtastning'!$B$6:$B$371)=N$5)*(YEAR('Budget indtastning'!$B$6:$B$371)=N$6)+0,INDIRECT("'Budget indtastning'!$"&$R65&"6:"&$R65&"371")) -> 0 | O65: =SUMPRODUCT((MONTH('Budget indtastning'!$B$6:$B$371)=O$5)*(YEAR('Budget indtastning'!$B$6:$B$371)=O$6)+0,INDIRECT("'Budget indtastning'!$"&$R65&"6:"&$R65&"371")) -> 0 | P65: =SUMPRODUCT((MONTH('Budget indtastning'!$B$6:$B$371)=P$5)*(YEAR('Budget indtastning'!$B$6:$B$371)=P$6)+0,INDIRECT("'Budget indtastning'!$"&$R65&"6:"&$R65&"371")) -> 0 | Q65: =SUMPRODUCT((MONTH('Budget indtastning'!$B$6:$B$371)=Q$5)*(YEAR('Budget indtastning'!$B$6:$B$371)=Q$6)+0,INDIRECT("'Budget indtastning'!$"&$R65&"6:"&$R65&"371")) -> 0 | R65: bc
B66: 0 | D66: 0 | F66: =SUMPRODUCT((MONTH('Budget indtastning'!$B$6:$B$371)=F$5)*(YEAR('Budget indtastning'!$B$6:$B$371)=F$6)+0,INDIRECT("'Budget indtastning'!$"&$R66&"6:"&$R66&"371")) -> 0 | G66: =SUMPRODUCT((MONTH('Budget indtastning'!$B$6:$B$371)=G$5)*(YEAR('Budget indtastning'!$B$6:$B$371)=G$6)+0,INDIRECT("'Budget indtastning'!$"&$R66&"6:"&$R66&"371")) -> 0 | H66: =SUMPRODUCT((MONTH('Budget indtastning'!$B$6:$B$371)=H$5)*(YEAR('Budget indtastning'!$B$6:$B$371)=H$6)+0,INDIRECT("'Budget indtastning'!$"&$R66&"6:"&$R66&"371")) -> 0 | I66: =SUMPRODUCT((MONTH('Budget indtastning'!$B$6:$B$371)=I$5)*(YEAR('Budget indtastning'!$B$6:$B$371)=I$6)+0,INDIRECT("'Budget indtastning'!$"&$R66&"6:"&$R66&"371")) -> 0 | J66: =SUMPRODUCT((MONTH('Budget indtastning'!$B$6:$B$371)=J$5)*(YEAR('Budget indtastning'!$B$6:$B$371)=J$6)+0,INDIRECT("'Budget indtastning'!$"&$R66&"6:"&$R66&"371")) -> 0 | K66: =SUMPRODUCT((MONTH('Budget indtastning'!$B$6:$B$371)=K$5)*(YEAR('Budget indtastning'!$B$6:$B$371)=K$6)+0,INDIRECT("'Budget indtastning'!$"&$R66&"6:"&$R66&"371")) -> 0 | L66: =SUMPRODUCT((MONTH('Budget indtastning'!$B$6:$B$371)=L$5)*(YEAR('Budget indtastning'!$B$6:$B$371)=L$6)+0,INDIRECT("'Budget indtastning'!$"&$R66&"6:"&$R66&"371")) -> 0 | M66: =SUMPRODUCT((MONTH('Budget indtastning'!$B$6:$B$371)=M$5)*(YEAR('Budget indtastning'!$B$6:$B$371)=M$6)+0,INDIRECT("'Budget indtastning'!$"&$R66&"6:"&$R66&"371")) -> 0 | N66: =SUMPRODUCT((MONTH('Budget indtastning'!$B$6:$B$371)=N$5)*(YEAR('Budget indtastning'!$B$6:$B$371)=N$6)+0,INDIRECT("'Budget indtastning'!$"&$R66&"6:"&$R66&"371")) -> 0 | O66: =SUMPRODUCT((MONTH('Budget indtastning'!$B$6:$B$371)=O$5)*(YEAR('Budget indtastning'!$B$6:$B$371)=O$6)+0,INDIRECT("'Budget indtastning'!$"&$R66&"6:"&$R66&"371")) -> 0 | P66: =SUMPRODUCT((MONTH('Budget indtastning'!$B$6:$B$371)=P$5)*(YEAR('Budget indtastning'!$B$6:$B$371)=P$6)+0,INDIRECT("'Budget indtastning'!$"&$R66&"6:"&$R66&"371")) -> 0 | Q66: =SUMPRODUCT((MONTH('Budget indtastning'!$B$6:$B$371)=Q$5)*(YEAR('Budget indtastning'!$B$6:$B$371)=Q$6)+0,INDIRECT("'Budget indtastning'!$"&$R66&"6:"&$R66&"371")) -> 0 | R66: bd
B67: 0 | D67: 0 | F67: =SUMPRODUCT((MONTH('Budget indtastning'!$B$6:$B$371)=F$5)*(YEAR('Budget indtastning'!$B$6:$B$371)=F$6)+0,INDIRECT("'Budget indtastning'!$"&$R67&"6:"&$R67&"371")) -> 0 | G67: =SUMPRODUCT((MONTH('Budget indtastning'!$B$6:$B$371)=G$5)*(YEAR('Budget indtastning'!$B$6:$B$371)=G$6)+0,INDIRECT("'Budget indtastning'!$"&$R67&"6:"&$R67&"371")) -> 0 | H67: =SUMPRODUCT((MONTH('Budget indtastning'!$B$6:$B$371)=H$5)*(YEAR('Budget indtastning'!$B$6:$B$371)=H$6)+0,INDIRECT("'Budget indtastning'!$"&$R67&"6:"&$R67&"371")) -> 0 | I67: =SUMPRODUCT((MONTH('Budget indtastning'!$B$6:$B$371)=I$5)*(YEAR('Budget indtastning'!$B$6:$B$371)=I$6)+0,INDIRECT("'Budget indtastning'!$"&$R67&"6:"&$R67&"371")) -> 0 | J67: =SUMPRODUCT((MONTH('Budget indtastning'!$B$6:$B$371)=J$5)*(YEAR('Budget indtastning'!$B$6:$B$371)=J$6)+0,INDIRECT("'Budget indtastning'!$"&$R67&"6:"&$R67&"371")) -> 0 | K67: =SUMPRODUCT((MONTH('Budget indtastning'!$B$6:$B$371)=K$5)*(YEAR('Budget indtastning'!$B$6:$B$371)=K$6)+0,INDIRECT("'Budget indtastning'!$"&$R67&"6:"&$R67&"371")) -> 0 | L67: =SUMPRODUCT((MONTH('Budget indtastning'!$B$6:$B$371)=L$5)*(YEAR('Budget indtastning'!$B$6:$B$371)=L$6)+0,INDIRECT("'Budget indtastning'!$"&$R67&"6:"&$R67&"371")) -> 0 | M67: =SUMPRODUCT((MONTH('Budget indtastning'!$B$6:$B$371)=M$5)*(YEAR('Budget indtastning'!$B$6:$B$371)=M$6)+0,INDIRECT("'Budget indtastning'!$"&$R67&"6:"&$R67&"371")) -> 0 | N67: =SUMPRODUCT((MONTH('Budget indtastning'!$B$6:$B$371)=N$5)*(YEAR('Budget indtastning'!$B$6:$B$371)=N$6)+0,INDIRECT("'Budget indtastning'!$"&$R67&"6:"&$R67&"371")) -> 0 | O67: =SUMPRODUCT((MONTH('Budget indtastning'!$B$6:$B$371)=O$5)*(YEAR('Budget indtastning'!$B$6:$B$371)=O$6)+0,INDIRECT("'Budget indtastning'!$"&$R67&"6:"&$R67&"371")) -> 0 | P67: =SUMPRODUCT((MONTH('Budget indtastning'!$B$6:$B$371)=P$5)*(YEAR('Budget indtastning'!$B$6:$B$371)=P$6)+0,INDIRECT("'Budget indtastning'!$"&$R67&"6:"&$R67&"371")) -> 0 | Q67: =SUMPRODUCT((MONTH('Budget indtastning'!$B$6:$B$371)=Q$5)*(YEAR('Budget indtastning'!$B$6:$B$371)=Q$6)+0,INDIRECT("'Budget indtastning'!$"&$R67&"6:"&$R67&"371")) -> 0 | R67: be
B68: 0 | D68: 0 | F68: =SUMPRODUCT((MONTH('Budget indtastning'!$B$6:$B$371)=F$5)*(YEAR('Budget indtastning'!$B$6:$B$371)=F$6)+0,INDIRECT("'Budget indtastning'!$"&$R68&"6:"&$R68&"371")) -> 0 | G68: =SUMPRODUCT((MONTH('Budget indtastning'!$B$6:$B$371)=G$5)*(YEAR('Budget indtastning'!$B$6:$B$371)=G$6)+0,INDIRECT("'Budget indtastning'!$"&$R68&"6:"&$R68&"371")) -> 0 | H68: =SUMPRODUCT((MONTH('Budget indtastning'!$B$6:$B$371)=H$5)*(YEAR('Budget indtastning'!$B$6:$B$371)=H$6)+0,INDIRECT("'Budget indtastning'!$"&$R68&"6:"&$R68&"371")) -> 0 | I68: =SUMPRODUCT((MONTH('Budget indtastning'!$B$6:$B$371)=I$5)*(YEAR('Budget indtastning'!$B$6:$B$371)=I$6)+0,INDIRECT("'Budget indtastning'!$"&$R68&"6:"&$R68&"371")) -> 0 | J68: =SUMPRODUCT((MONTH('Budget indtastning'!$B$6:$B$371)=J$5)*(YEAR('Budget indtastning'!$B$6:$B$371)=J$6)+0,INDIRECT("'Budget indtastning'!$"&$R68&"6:"&$R68&"371")) -> 0 | K68: =SUMPRODUCT((MONTH('Budget indtastning'!$B$6:$B$371)=K$5)*(YEAR('Budget indtastning'!$B$6:$B$371)=K$6)+0,INDIRECT("'Budget indtastning'!$"&$R68&"6:"&$R68&"371")) -> 0 | L68: =SUMPRODUCT((MONTH('Budget indtastning'!$B$6:$B$371)=L$5)*(YEAR('Budget indtastning'!$B$6:$B$371)=L$6)+0,INDIRECT("'Budget indtastning'!$"&$R68&"6:"&$R68&"371")) -> 0 | M68: =SUMPRODUCT((MONTH('Budget indtastning'!$B$6:$B$371)=M$5)*(YEAR('Budget indtastning'!$B$6:$B$371)=M$6)+0,INDIRECT("'Budget indtastning'!$"&$R68&"6:"&$R68&"371")) -> 0 | N68: =SUMPRODUCT((MONTH('Budget indtastning'!$B$6:$B$371)=N$5)*(YEAR('Budget indtastning'!$B$6:$B$371)=N$6)+0,INDIRECT("'Budget indtastning'!$"&$R68&"6:"&$R68&"371")) -> 0 | O68: =SUMPRODUCT((MONTH('Budget indtastning'!$B$6:$B$371)=O$5)*(YEAR('Budget indtastning'!$B$6:$B$371)=O$6)+0,INDIRECT("'Budget indtastning'!$"&$R68&"6:"&$R68&"371")) -> 0 | P68: =SUMPRODUCT((MONTH('Budget indtastning'!$B$6:$B$371)=P$5)*(YEAR('Budget indtastning'!$B$6:$B$371)=P$6)+0,INDIRECT("'Budget indtastning'!$"&$R68&"6:"&$R68&"371")) -> 0 | Q68: =SUMPRODUCT((MONTH('Budget indtastning'!$B$6:$B$371)=Q$5)*(YEAR('Budget indtastning'!$B$6:$B$371)=Q$6)+0,INDIRECT("'Budget indtastning'!$"&$R68&"6:"&$R68&"371")) -> 0 | R68: bf
B69: 0 | D69: 0 | F69: =SUMPRODUCT((MONTH('Budget indtastning'!$B$6:$B$371)=F$5)*(YEAR('Budget indtastning'!$B$6:$B$371)=F$6)+0,INDIRECT("'Budget indtastning'!$"&$R69&"6:"&$R69&"371")) -> 0 | G69: =SUMPRODUCT((MONTH('Budget indtastning'!$B$6:$B$371)=G$5)*(YEAR('Budget indtastning'!$B$6:$B$371)=G$6)+0,INDIRECT("'Budget indtastning'!$"&$R69&"6:"&$R69&"371")) -> 0 | H69: =SUMPRODUCT((MONTH('Budget indtastning'!$B$6:$B$371)=H$5)*(YEAR('Budget indtastning'!$B$6:$B$371)=H$6)+0,INDIRECT("'Budget indtastning'!$"&$R69&"6:"&$R69&"371")) -> 0 | I69: =SUMPRODUCT((MONTH('Budget indtastning'!$B$6:$B$371)=I$5)*(YEAR('Budget indtastning'!$B$6:$B$371)=I$6)+0,INDIRECT("'Budget indtastning'!$"&$R69&"6:"&$R69&"371")) -> 0 | J69: =SUMPRODUCT((MONTH('Budget indtastning'!$B$6:$B$371)=J$5)*(YEAR('Budget indtastning'!$B$6:$B$371)=J$6)+0,INDIRECT("'Budget indtastning'!$"&$R69&"6:"&$R69&"371")) -> 0 | K69: =SUMPRODUCT((MONTH('Budget indtastning'!$B$6:$B$371)=K$5)*(YEAR('Budget indtastning'!$B$6:$B$371)=K$6)+0,INDIRECT("'Budget indtastning'!$"&$R69&"6:"&$R69&"371")) -> 0 | L69: =SUMPRODUCT((MONTH('Budget indtastning'!$B$6:$B$371)=L$5)*(YEAR('Budget indtastning'!$B$6:$B$371)=L$6)+0,INDIRECT("'Budget indtastning'!$"&$R69&"6:"&$R69&"371")) -> 0 | M69: =SUMPRODUCT((MONTH('Budget indtastning'!$B$6:$B$371)=M$5)*(YEAR('Budget indtastning'!$B$6:$B$371)=M$6)+0,INDIRECT("'Budget indtastning'!$"&$R69&"6:"&$R69&"371")) -> 0 | N69: =SUMPRODUCT((MONTH('Budget indtastning'!$B$6:$B$371)=N$5)*(YEAR('Budget indtastning'!$B$6:$B$371)=N$6)+0,INDIRECT("'Budget indtastning'!$"&$R69&"6:"&$R69&"371")) -> 0 | O69: =SUMPRODUCT((MONTH('Budget indtastning'!$B$6:$B$371)=O$5)*(YEAR('Budget indtastning'!$B$6:$B$371)=O$6)+0,INDIRECT("'Budget indtastning'!$"&$R69&"6:"&$R69&"371")) -> 0 | P69: =SUMPRODUCT((MONTH('Budget indtastning'!$B$6:$B$371)=P$5)*(YEAR('Budget indtastning'!$B$6:$B$371)=P$6)+0,INDIRECT("'Budget indtastning'!$"&$R69&"6:"&$R69&"371")) -> 0 | Q69: =SUMPRODUCT((MONTH('Budget indtastning'!$B$6:$B$371)=Q$5)*(YEAR('Budget indtastning'!$B$6:$B$371)=Q$6)+0,INDIRECT("'Budget indtastning'!$"&$R69&"6:"&$R69&"371")) -> 0 | R69: bg
B70: 0 | D70: 0 | F70: =SUMPRODUCT((MONTH('Budget indtastning'!$B$6:$B$371)=F$5)*(YEAR('Budget indtastning'!$B$6:$B$371)=F$6)+0,INDIRECT("'Budget indtastning'!$"&$R70&"6:"&$R70&"371")) -> 0 | G70: =SUMPRODUCT((MONTH('Budget indtastning'!$B$6:$B$371)=G$5)*(YEAR('Budget indtastning'!$B$6:$B$371)=G$6)+0,INDIRECT("'Budget indtastning'!$"&$R70&"6:"&$R70&"371")) -> 0 | H70: =SUMPRODUCT((MONTH('Budget indtastning'!$B$6:$B$371)=H$5)*(YEAR('Budget indtastning'!$B$6:$B$371)=H$6)+0,INDIRECT("'Budget indtastning'!$"&$R70&"6:"&$R70&"371")) -> 0 | I70: =SUMPRODUCT((MONTH('Budget indtastning'!$B$6:$B$371)=I$5)*(YEAR('Budget indtastning'!$B$6:$B$371)=I$6)+0,INDIRECT("'Budget indtastning'!$"&$R70&"6:"&$R70&"371")) -> 0 | J70: =SUMPRODUCT((MONTH('Budget indtastning'!$B$6:$B$371)=J$5)*(YEAR('Budget indtastning'!$B$6:$B$371)=J$6)+0,INDIRECT("'Budget indtastning'!$"&$R70&"6:"&$R70&"371")) -> 0 | K70: =SUMPRODUCT((MONTH('Budget indtastning'!$B$6:$B$371)=K$5)*(YEAR('Budget indtastning'!$B$6:$B$371)=K$6)+0,INDIRECT("'Budget indtastning'!$"&$R70&"6:"&$R70&"371")) -> 0 | L70: =SUMPRODUCT((MONTH('Budget indtastning'!$B$6:$B$371)=L$5)*(YEAR('Budget indtastning'!$B$6:$B$371)=L$6)+0,INDIRECT("'Budget indtastning'!$"&$R70&"6:"&$R70&"371")) -> 0 | M70: =SUMPRODUCT((MONTH('Budget indtastning'!$B$6:$B$371)=M$5)*(YEAR('Budget indtastning'!$B$6:$B$371)=M$6)+0,INDIRECT("'Budget indtastning'!$"&$R70&"6:"&$R70&"371")) -> 0 | N70: =SUMPRODUCT((MONTH('Budget indtastning'!$B$6:$B$371)=N$5)*(YEAR('Budget indtastning'!$B$6:$B$371)=N$6)+0,INDIRECT("'Budget indtastning'!$"&$R70&"6:"&$R70&"371")) -> 0 | O70: =SUMPRODUCT((MONTH('Budget indtastning'!$B$6:$B$371)=O$5)*(YEAR('Budget indtastning'!$B$6:$B$371)=O$6)+0,INDIRECT("'Budget indtastning'!$"&$R70&"6:"&$R70&"371")) -> 0 | P70: =SUMPRODUCT((MONTH('Budget indtastning'!$B$6:$B$371)=P$5)*(YEAR('Budget indtastning'!$B$6:$B$371)=P$6)+0,INDIRECT("'Budget indtastning'!$"&$R70&"6:"&$R70&"371")) -> 0 | Q70: =SUMPRODUCT((MONTH('Budget indtastning'!$B$6:$B$371)=Q$5)*(YEAR('Budget indtastning'!$B$6:$B$371)=Q$6)+0,INDIRECT("'Budget indtastning'!$"&$R70&"6:"&$R70&"371")) -> 0 | R70: bh
B71: 0 | D71: 0 | F71: =SUMPRODUCT((MONTH('Budget indtastning'!$B$6:$B$371)=F$5)*(YEAR('Budget indtastning'!$B$6:$B$371)=F$6)+0,INDIRECT("'Budget indtastning'!$"&$R71&"6:"&$R71&"371")) -> 0 | G71: =SUMPRODUCT((MONTH('Budget indtastning'!$B$6:$B$371)=G$5)*(YEAR('Budget indtastning'!$B$6:$B$371)=G$6)+0,INDIRECT("'Budget indtastning'!$"&$R71&"6:"&$R71&"371")) -> 0 | H71: =SUMPRODUCT((MONTH('Budget indtastning'!$B$6:$B$371)=H$5)*(YEAR('Budget indtastning'!$B$6:$B$371)=H$6)+0,INDIRECT("'Budget indtastning'!$"&$R71&"6:"&$R71&"371")) -> 0 | I71: =SUMPRODUCT((MONTH('Budget indtastning'!$B$6:$B$371)=I$5)*(YEAR('Budget indtastning'!$B$6:$B$371)=I$6)+0,INDIRECT("'Budget indtastning'!$"&$R71&"6:"&$R71&"371")) -> 0 | J71: =SUMPRODUCT((MONTH('Budget indtastning'!$B$6:$B$371)=J$5)*(YEAR('Budget indtastning'!$B$6:$B$371)=J$6)+0,INDIRECT("'Budget indtastning'!$"&$R71&"6:"&$R71&"371")) -> 0 | K71: =SUMPRODUCT((MONTH('Budget indtastning'!$B$6:$B$371)=K$5)*(YEAR('Budget indtastning'!$B$6:$B$371)=K$6)+0,INDIRECT("'Budget indtastning'!$"&$R71&"6:"&$R71&"371")) -> 0 | L71: =SUMPRODUCT((MONTH('Budget indtastning'!$B$6:$B$371)=L$5)*(YEAR('Budget indtastning'!$B$6:$B$371)=L$6)+0,INDIRECT("'Budget indtastning'!$"&$R71&"6:"&$R71&"371")) -> 0 | M71: =SUMPRODUCT((MONTH('Budget indtastning'!$B$6:$B$371)=M$5)*(YEAR('Budget indtastning'!$B$6:$B$371)=M$6)+0,INDIRECT("'Budget indtastning'!$"&$R71&"6:"&$R71&"371")) -> 0 | N71: =SUMPRODUCT((MONTH('Budget indtastning'!$B$6:$B$371)=N$5)*(YEAR('Budget indtastning'!$B$6:$B$371)=N$6)+0,INDIRECT("'Budget indtastning'!$"&$R71&"6:"&$R71&"371")) -> 0 | O71: =SUMPRODUCT((MONTH('Budget indtastning'!$B$6:$B$371)=O$5)*(YEAR('Budget indtastning'!$B$6:$B$371)=O$6)+0,INDIRECT("'Budget indtastning'!$"&$R71&"6:"&$R71&"371")) -> 0 | P71: =SUMPRODUCT((MONTH('Budget indtastning'!$B$6:$B$371)=P$5)*(YEAR('Budget indtastning'!$B$6:$B$371)=P$6)+0,INDIRECT("'Budget indtastning'!$"&$R71&"6:"&$R71&"371")) -> 0 | Q71: =SUMPRODUCT((MONTH('Budget indtastning'!$B$6:$B$371)=Q$5)*(YEAR('Budget indtastning'!$B$6:$B$371)=Q$6)+0,INDIRECT("'Budget indtastning'!$"&$R71&"6:"&$R71&"371")) -> 0 | R71: bi
B72: 0 | D72: 0 | F72: =SUMPRODUCT((MONTH('Budget indtastning'!$B$6:$B$371)=F$5)*(YEAR('Budget indtastning'!$B$6:$B$371)=F$6)+0,INDIRECT("'Budget indtastning'!$"&$R72&"6:"&$R72&"371")) -> 0 | G72: =SUMPRODUCT((MONTH('Budget indtastning'!$B$6:$B$371)=G$5)*(YEAR('Budget indtastning'!$B$6:$B$371)=G$6)+0,INDIRECT("'Budget indtastning'!$"&$R72&"6:"&$R72&"371")) -> 0 | H72: =SUMPRODUCT((MONTH('Budget indtastning'!$B$6:$B$371)=H$5)*(YEAR('Budget indtastning'!$B$6:$B$371)=H$6)+0,INDIRECT("'Budget indtastning'!$"&$R72&"6:"&$R72&"371")) -> 0 | I72: =SUMPRODUCT((MONTH('Budget indtastning'!$B$6:$B$371)=I$5)*(YEAR('Budget indtastning'!$B$6:$B$371)=I$6)+0,INDIRECT("'Budget indtastning'!$"&$R72&"6:"&$R72&"371")) -> 0 | J72: =SUMPRODUCT((MONTH('Budget indtastning'!$B$6:$B$371)=J$5)*(YEAR('Budget indtastning'!$B$6:$B$371)=J$6)+0,INDIRECT("'Budget indtastning'!$"&$R72&"6:"&$R72&"371")) -> 0 | K72: =SUMPRODUCT((MONTH('Budget indtastning'!$B$6:$B$371)=K$5)*(YEAR('Budget indtastning'!$B$6:$B$371)=K$6)+0,INDIRECT("'Budget indtastning'!$"&$R72&"6:"&$R72&"371")) -> 0 | L72: =SUMPRODUCT((MONTH('Budget indtastning'!$B$6:$B$371)=L$5)*(YEAR('Budget indtastning'!$B$6:$B$371)=L$6)+0,INDIRECT("'Budget indtastning'!$"&$R72&"6:"&$R72&"371")) -> 0 | M72: =SUMPRODUCT((MONTH('Budget indtastning'!$B$6:$B$371)=M$5)*(YEAR('Budget indtastning'!$B$6:$B$371)=M$6)+0,INDIRECT("'Budget indtastning'!$"&$R72&"6:"&$R72&"371")) -> 0 | N72: =SUMPRODUCT((MONTH('Budget indtastning'!$B$6:$B$371)=N$5)*(YEAR('Budget indtastning'!$B$6:$B$371)=N$6)+0,INDIRECT("'Budget indtastning'!$"&$R72&"6:"&$R72&"371")) -> 0 | O72: =SUMPRODUCT((MONTH('Budget indtastning'!$B$6:$B$371)=O$5)*(YEAR('Budget indtastning'!$B$6:$B$371)=O$6)+0,INDIRECT("'Budget indtastning'!$"&$R72&"6:"&$R72&"371")) -> 0 | P72: =SUMPRODUCT((MONTH('Budget indtastning'!$B$6:$B$371)=P$5)*(YEAR('Budget indtastning'!$B$6:$B$371)=P$6)+0,INDIRECT("'Budget indtastning'!$"&$R72&"6:"&$R72&"371")) -> 0 | Q72: =SUMPRODUCT((MONTH('Budget indtastning'!$B$6:$B$371)=Q$5)*(YEAR('Budget indtastning'!$B$6:$B$371)=Q$6)+0,INDIRECT("'Budget indtastning'!$"&$R72&"6:"&$R72&"371")) -> 0 | R72: bj
B73: 0 | D73: 0 | F73: =SUMPRODUCT((MONTH('Budget indtastning'!$B$6:$B$371)=F$5)*(YEAR('Budget indtastning'!$B$6:$B$371)=F$6)+0,INDIRECT("'Budget indtastning'!$"&$R73&"6:"&$R73&"371")) -> 0 | G73: =SUMPRODUCT((MONTH('Budget indtastning'!$B$6:$B$371)=G$5)*(YEAR('Budget indtastning'!$B$6:$B$371)=G$6)+0,INDIRECT("'Budget indtastning'!$"&$R73&"6:"&$R73&"371")) -> 0 | H73: =SUMPRODUCT((MONTH('Budget indtastning'!$B$6:$B$371)=H$5)*(YEAR('Budget indtastning'!$B$6:$B$371)=H$6)+0,INDIRECT("'Budget indtastning'!$"&$R73&"6:"&$R73&"371")) -> 0 | I73: =SUMPRODUCT((MONTH('Budget indtastning'!$B$6:$B$371)=I$5)*(YEAR('Budget indtastning'!$B$6:$B$371)=I$6)+0,INDIRECT("'Budget indtastning'!$"&$R73&"6:"&$R73&"371")) -> 0 | J73: =SUMPRODUCT((MONTH('Budget indtastning'!$B$6:$B$371)=J$5)*(YEAR('Budget indtastning'!$B$6:$B$371)=J$6)+0,INDIRECT("'Budget indtastning'!$"&$R73&"6:"&$R73&"371")) -> 0 | K73: =SUMPRODUCT((MONTH('Budget indtastning'!$B$6:$B$371)=K$5)*(YEAR('Budget indtastning'!$B$6:$B$371)=K$6)+0,INDIRECT("'Budget indtastning'!$"&$R73&"6:"&$R73&"371")) -> 0 | L73: =SUMPRODUCT((MONTH('Budget indtastning'!$B$6:$B$371)=L$5)*(YEAR('Budget indtastning'!$B$6:$B$371)=L$6)+0,INDIRECT("'Budget indtastning'!$"&$R73&"6:"&$R73&"371")) -> 0 | M73: =SUMPRODUCT((MONTH('Budget indtastning'!$B$6:$B$371)=M$5)*(YEAR('Budget indtastning'!$B$6:$B$371)=M$6)+0,INDIRECT("'Budget indtastning'!$"&$R73&"6:"&$R73&"371")) -> 0 | N73: =SUMPRODUCT((MONTH('Budget indtastning'!$B$6:$B$371)=N$5)*(YEAR('Budget indtastning'!$B$6:$B$371)=N$6)+0,INDIRECT("'Budget indtastning'!$"&$R73&"6:"&$R73&"371")) -> 0 | O73: =SUMPRODUCT((MONTH('Budget indtastning'!$B$6:$B$371)=O$5)*(YEAR('Budget indtastning'!$B$6:$B$371)=O$6)+0,INDIRECT("'Budget indtastning'!$"&$R73&"6:"&$R73&"371")) -> 0 | P73: =SUMPRODUCT((MONTH('Budget indtastning'!$B$6:$B$371)=P$5)*(YEAR('Budget indtastning'!$B$6:$B$371)=P$6)+0,INDIRECT("'Budget indtastning'!$"&$R73&"6:"&$R73&"371")) -> 0 | Q73: =SUMPRODUCT((MONTH('Budget indtastning'!$B$6:$B$371)=Q$5)*(YEAR('Budget indtastning'!$B$6:$B$371)=Q$6)+0,INDIRECT("'Budget indtastning'!$"&$R73&"6:"&$R73&"371")) -> 0 | R73: bk
B74: 0 | D74: 0 | F74: =SUMPRODUCT((MONTH('Budget indtastning'!$B$6:$B$371)=F$5)*(YEAR('Budget indtastning'!$B$6:$B$371)=F$6)+0,INDIRECT("'Budget indtastning'!$"&$R74&"6:"&$R74&"371")) -> 0 | G74: =SUMPRODUCT((MONTH('Budget indtastning'!$B$6:$B$371)=G$5)*(YEAR('Budget indtastning'!$B$6:$B$371)=G$6)+0,INDIRECT("'Budget indtastning'!$"&$R74&"6:"&$R74&"371")) -> 0 | H74: =SUMPRODUCT((MONTH('Budget indtastning'!$B$6:$B$371)=H$5)*(YEAR('Budget indtastning'!$B$6:$B$371)=H$6)+0,INDIRECT("'Budget indtastning'!$"&$R74&"6:"&$R74&"371")) -> 0 | I74: =SUMPRODUCT((MONTH('Budget indtastning'!$B$6:$B$371)=I$5)*(YEAR('Budget indtastning'!$B$6:$B$371)=I$6)+0,INDIRECT("'Budget indtastning'!$"&$R74&"6:"&$R74&"371")) -> 0 | J74: =SUMPRODUCT((MONTH('Budget indtastning'!$B$6:$B$371)=J$5)*(YEAR('Budget indtastning'!$B$6:$B$371)=J$6)+0,INDIRECT("'Budget indtastning'!$"&$R74&"6:"&$R74&"371")) -> 0 | K74: =SUMPRODUCT((MONTH('Budget indtastning'!$B$6:$B$371)=K$5)*(YEAR('Budget indtastning'!$B$6:$B$371)=K$6)+0,INDIRECT("'Budget indtastning'!$"&$R74&"6:"&$R74&"371")) -> 0 | L74: =SUMPRODUCT((MONTH('Budget indtastning'!$B$6:$B$371)=L$5)*(YEAR('Budget indtastning'!$B$6:$B$371)=L$6)+0,INDIRECT("'Budget indtastning'!$"&$R74&"6:"&$R74&"371")) -> 0 | M74: =SUMPRODUCT((MONTH('Budget indtastning'!$B$6:$B$371)=M$5)*(YEAR('Budget indtastning'!$B$6:$B$371)=M$6)+0,INDIRECT("'Budget indtastning'!$"&$R74&"6:"&$R74&"371")) -> 0 | N74: =SUMPRODUCT((MONTH('Budget indtastning'!$B$6:$B$371)=N$5)*(YEAR('Budget indtastning'!$B$6:$B$371)=N$6)+0,INDIRECT("'Budget indtastning'!$"&$R74&"6:"&$R74&"371")) -> 0 | O74: =SUMPRODUCT((MONTH('Budget indtastning'!$B$6:$B$371)=O$5)*(YEAR('Budget indtastning'!$B$6:$B$371)=O$6)+0,INDIRECT("'Budget indtastning'!$"&$R74&"6:"&$R74&"371")) -> 0 | P74: =SUMPRODUCT((MONTH('Budget indtastning'!$B$6:$B$371)=P$5)*(YEAR('Budget indtastning'!$B$6:$B$371)=P$6)+0,INDIRECT("'Budget indtastning'!$"&$R74&"6:"&$R74&"371")) -> 0 | Q74: =SUMPRODUCT((MONTH('Budget indtastning'!$B$6:$B$371)=Q$5)*(YEAR('Budget indtastning'!$B$6:$B$371)=Q$6)+0,INDIRECT("'Budget indtastning'!$"&$R74&"6:"&$R74&"371")) -> 0 | R74: bl
B75: 0 | D75: 0 | F75: =SUMPRODUCT((MONTH('Budget indtastning'!$B$6:$B$371)=F$5)*(YEAR('Budget indtastning'!$B$6:$B$371)=F$6)+0,INDIRECT("'Budget indtastning'!$"&$R75&"6:"&$R75&"371")) -> 0 | G75: =SUMPRODUCT((MONTH('Budget indtastning'!$B$6:$B$371)=G$5)*(YEAR('Budget indtastning'!$B$6:$B$371)=G$6)+0,INDIRECT("'Budget indtastning'!$"&$R75&"6:"&$R75&"371")) -> 0 | H75: =SUMPRODUCT((MONTH('Budget indtastning'!$B$6:$B$371)=H$5)*(YEAR('Budget indtastning'!$B$6:$B$371)=H$6)+0,INDIRECT("'Budget indtastning'!$"&$R75&"6:"&$R75&"371")) -> 0 | I75: =SUMPRODUCT((MONTH('Budget indtastning'!$B$6:$B$371)=I$5)*(YEAR('Budget indtastning'!$B$6:$B$371)=I$6)+0,INDIRECT("'Budget indtastning'!$"&$R75&"6:"&$R75&"371")) -> 0 | J75: =SUMPRODUCT((MONTH('Budget indtastning'!$B$6:$B$371)=J$5)*(YEAR('Budget indtastning'!$B$6:$B$371)=J$6)+0,INDIRECT("'Budget indtastning'!$"&$R75&"6:"&$R75&"371")) -> 0 | K75: =SUMPRODUCT((MONTH('Budget indtastning'!$B$6:$B$371)=K$5)*(YEAR('Budget indtastning'!$B$6:$B$371)=K$6)+0,INDIRECT("'Budget indtastning'!$"&$R75&"6:"&$R75&"371")) -> 0 | L75: =SUMPRODUCT((MONTH('Budget indtastning'!$B$6:$B$371)=L$5)*(YEAR('Budget indtastning'!$B$6:$B$371)=L$6)+0,INDIRECT("'Budget indtastning'!$"&$R75&"6:"&$R75&"371")) -> 0 | M75: =SUMPRODUCT((MONTH('Budget indtastning'!$B$6:$B$371)=M$5)*(YEAR('Budget indtastning'!$B$6:$B$371)=M$6)+0,INDIRECT("'Budget indtastning'!$"&$R75&"6:"&$R75&"371")) -> 0 | N75: =SUMPRODUCT((MONTH('Budget indtastning'!$B$6:$B$371)=N$5)*(YEAR('Budget indtastning'!$B$6:$B$371)=N$6)+0,INDIRECT("'Budget indtastning'!$"&$R75&"6:"&$R75&"371")) -> 0 | O75: =SUMPRODUCT((MONTH('Budget indtastning'!$B$6:$B$371)=O$5)*(YEAR('Budget indtastning'!$B$6:$B$371)=O$6)+0,INDIRECT("'Budget indtastning'!$"&$R75&"6:"&$R75&"371")) -> 0 | P75: =SUMPRODUCT((MONTH('Budget indtastning'!$B$6:$B$371)=P$5)*(YEAR('Budget indtastning'!$B$6:$B$371)=P$6)+0,INDIRECT("'Budget indtastning'!$"&$R75&"6:"&$R75&"371")) -> 0 | Q75: =SUMPRODUCT((MONTH('Budget indtastning'!$B$6:$B$371)=Q$5)*(YEAR('Budget indtastning'!$B$6:$B$371)=Q$6)+0,INDIRECT("'Budget indtastning'!$"&$R75&"6:"&$R75&"371")) -> 0 | R75: bm
B76: 0 | D76: 0 | F76: =SUMPRODUCT((MONTH('Budget indtastning'!$B$6:$B$371)=F$5)*(YEAR('Budget indtastning'!$B$6:$B$371)=F$6)+0,INDIRECT("'Budget indtastning'!$"&$R76&"6:"&$R76&"371")) -> 0 | G76: =SUMPRODUCT((MONTH('Budget indtastning'!$B$6:$B$371)=G$5)*(YEAR('Budget indtastning'!$B$6:$B$371)=G$6)+0,INDIRECT("'Budget indtastning'!$"&$R76&"6:"&$R76&"371")) -> 0 | H76: =SUMPRODUCT((MONTH('Budget indtastning'!$B$6:$B$371)=H$5)*(YEAR('Budget indtastning'!$B$6:$B$371)=H$6)+0,INDIRECT("'Budget indtastning'!$"&$R76&"6:"&$R76&"371")) -> 0 | I76: =SUMPRODUCT((MONTH('Budget indtastning'!$B$6:$B$371)=I$5)*(YEAR('Budget indtastning'!$B$6:$B$371)=I$6)+0,INDIRECT("'Budget indtastning'!$"&$R76&"6:"&$R76&"371")) -> 0 | J76: =SUMPRODUCT((MONTH('Budget indtastning'!$B$6:$B$371)=J$5)*(YEAR('Budget indtastning'!$B$6:$B$371)=J$6)+0,INDIRECT("'Budget indtastning'!$"&$R76&"6:"&$R76&"371")) -> 0 | K76: =SUMPRODUCT((MONTH('Budget indtastning'!$B$6:$B$371)=K$5)*(YEAR('Budget indtastning'!$B$6:$B$371)=K$6)+0,INDIRECT("'Budget indtastning'!$"&$R76&"6:"&$R76&"371")) -> 0 | L76: =SUMPRODUCT((MONTH('Budget indtastning'!$B$6:$B$371)=L$5)*(YEAR('Budget indtastning'!$B$6:$B$371)=L$6)+0,INDIRECT("'Budget indtastning'!$"&$R76&"6:"&$R76&"371")) -> 0 | M76: =SUMPRODUCT((MONTH('Budget indtastning'!$B$6:$B$371)=M$5)*(YEAR('Budget indtastning'!$B$6:$B$371)=M$6)+0,INDIRECT("'Budget indtastning'!$"&$R76&"6:"&$R76&"371")) -> 0 | N76: =SUMPRODUCT((MONTH('Budget indtastning'!$B$6:$B$371)=N$5)*(YEAR('Budget indtastning'!$B$6:$B$371)=N$6)+0,INDIRECT("'Budget indtastning'!$"&$R76&"6:"&$R76&"371")) -> 0 | O76: =SUMPRODUCT((MONTH('Budget indtastning'!$B$6:$B$371)=O$5)*(YEAR('Budget indtastning'!$B$6:$B$371)=O$6)+0,INDIRECT("'Budget indtastning'!$"&$R76&"6:"&$R76&"371")) -> 0 | P76: =SUMPRODUCT((MONTH('Budget indtastning'!$B$6:$B$371)=P$5)*(YEAR('Budget indtastning'!$B$6:$B$371)=P$6)+0,INDIRECT("'Budget indtastning'!$"&$R76&"6:"&$R76&"371")) -> 0 | Q76: =SUMPRODUCT((MONTH('Budget indtastning'!$B$6:$B$371)=Q$5)*(YEAR('Budget indtastning'!$B$6:$B$371)=Q$6)+0,INDIRECT("'Budget indtastning'!$"&$R76&"6:"&$R76&"371")) -> 0 | R76: bn
B77: 0 | D77: 0 | F77: =SUMPRODUCT((MONTH('Budget indtastning'!$B$6:$B$371)=F$5)*(YEAR('Budget indtastning'!$B$6:$B$371)=F$6)+0,INDIRECT("'Budget indtastning'!$"&$R77&"6:"&$R77&"371")) -> 0 | G77: =SUMPRODUCT((MONTH('Budget indtastning'!$B$6:$B$371)=G$5)*(YEAR('Budget indtastning'!$B$6:$B$371)=G$6)+0,INDIRECT("'Budget indtastning'!$"&$R77&"6:"&$R77&"371")) -> 0 | H77: =SUMPRODUCT((MONTH('Budget indtastning'!$B$6:$B$371)=H$5)*(YEAR('Budget indtastning'!$B$6:$B$371)=H$6)+0,INDIRECT("'Budget indtastning'!$"&$R77&"6:"&$R77&"371")) -> 0 | I77: =SUMPRODUCT((MONTH('Budget indtastning'!$B$6:$B$371)=I$5)*(YEAR('Budget indtastning'!$B$6:$B$371)=I$6)+0,INDIRECT("'Budget indtastning'!$"&$R77&"6:"&$R77&"371")) -> 0 | J77: =SUMPRODUCT((MONTH('Budget indtastning'!$B$6:$B$371)=J$5)*(YEAR('Budget indtastning'!$B$6:$B$371)=J$6)+0,INDIRECT("'Budget indtastning'!$"&$R77&"6:"&$R77&"371")) -> 0 | K77: =SUMPRODUCT((MONTH('Budget indtastning'!$B$6:$B$371)=K$5)*(YEAR('Budget indtastning'!$B$6:$B$371)=K$6)+0,INDIRECT("'Budget indtastning'!$"&$R77&"6:"&$R77&"371")) -> 0 | L77: =SUMPRODUCT((MONTH('Budget indtastning'!$B$6:$B$371)=L$5)*(YEAR('Budget indtastning'!$B$6:$B$371)=L$6)+0,INDIRECT("'Budget indtastning'!$"&$R77&"6:"&$R77&"371")) -> 0 | M77: =SUMPRODUCT((MONTH('Budget indtastning'!$B$6:$B$371)=M$5)*(YEAR('Budget indtastning'!$B$6:$B$371)=M$6)+0,INDIRECT("'Budget indtastning'!$"&$R77&"6:"&$R77&"371")) -> 0 | N77: =SUMPRODUCT((MONTH('Budget indtastning'!$B$6:$B$371)=N$5)*(YEAR('Budget indtastning'!$B$6:$B$371)=N$6)+0,INDIRECT("'Budget indtastning'!$"&$R77&"6:"&$R77&"371")) -> 0 | O77: =SUMPRODUCT((MONTH('Budget indtastning'!$B$6:$B$371)=O$5)*(YEAR('Budget indtastning'!$B$6:$B$371)=O$6)+0,INDIRECT("'Budget indtastning'!$"&$R77&"6:"&$R77&"371")) -> 0 | P77: =SUMPRODUCT((MONTH('Budget indtastning'!$B$6:$B$371)=P$5)*(YEAR('Budget indtastning'!$B$6:$B$371)=P$6)+0,INDIRECT("'Budget indtastning'!$"&$R77&"6:"&$R77&"371")) -> 0 | Q77: =SUMPRODUCT((MONTH('Budget indtastning'!$B$6:$B$371)=Q$5)*(YEAR('Budget indtastning'!$B$6:$B$371)=Q$6)+0,INDIRECT("'Budget indtastning'!$"&$R77&"6:"&$R77&"371")) -> 0 | R77: bo
B78: 0 | D78: 0 | F78: =SUMPRODUCT((MONTH('Budget indtastning'!$B$6:$B$371)=F$5)*(YEAR('Budget indtastning'!$B$6:$B$371)=F$6)+0,INDIRECT("'Budget indtastning'!$"&$R78&"6:"&$R78&"371")) -> 0 | G78: =SUMPRODUCT((MONTH('Budget indtastning'!$B$6:$B$371)=G$5)*(YEAR('Budget indtastning'!$B$6:$B$371)=G$6)+0,INDIRECT("'Budget indtastning'!$"&$R78&"6:"&$R78&"371")) -> 0 | H78: =SUMPRODUCT((MONTH('Budget indtastning'!$B$6:$B$371)=H$5)*(YEAR('Budget indtastning'!$B$6:$B$371)=H$6)+0,INDIRECT("'Budget indtastning'!$"&$R78&"6:"&$R78&"371")) -> 0 | I78: =SUMPRODUCT((MONTH('Budget indtastning'!$B$6:$B$371)=I$5)*(YEAR('Budget indtastning'!$B$6:$B$371)=I$6)+0,INDIRECT("'Budget indtastning'!$"&$R78&"6:"&$R78&"371")) -> 0 | J78: =SUMPRODUCT((MONTH('Budget indtastning'!$B$6:$B$371)=J$5)*(YEAR('Budget indtastning'!$B$6:$B$371)=J$6)+0,INDIRECT("'Budget indtastning'!$"&$R78&"6:"&$R78&"371")) -> 0 | K78: =SUMPRODUCT((MONTH('Budget indtastning'!$B$6:$B$371)=K$5)*(YEAR('Budget indtastning'!$B$6:$B$371)=K$6)+0,INDIRECT("'Budget indtastning'!$"&$R78&"6:"&$R78&"371")) -> 0 | L78: =SUMPRODUCT((MONTH('Budget indtastning'!$B$6:$B$371)=L$5)*(YEAR('Budget indtastning'!$B$6:$B$371)=L$6)+0,INDIRECT("'Budget indtastning'!$"&$R78&"6:"&$R78&"371")) -> 0 | M78: =SUMPRODUCT((MONTH('Budget indtastning'!$B$6:$B$371)=M$5)*(YEAR('Budget indtastning'!$B$6:$B$371)=M$6)+0,INDIRECT("'Budget indtastning'!$"&$R78&"6:"&$R78&"371")) -> 0 | N78: =SUMPRODUCT((MONTH('Budget indtastning'!$B$6:$B$371)=N$5)*(YEAR('Budget indtastning'!$B$6:$B$371)=N$6)+0,INDIRECT("'Budget indtastning'!$"&$R78&"6:"&$R78&"371")) -> 0 | O78: =SUMPRODUCT((MONTH('Budget indtastning'!$B$6:$B$371)=O$5)*(YEAR('Budget indtastning'!$B$6:$B$371)=O$6)+0,INDIRECT("'Budget indtastning'!$"&$R78&"6:"&$R78&"371")) -> 0 | P78: =SUMPRODUCT((MONTH('Budget indtastning'!$B$6:$B$371)=P$5)*(YEAR('Budget indtastning'!$B$6:$B$371)=P$6)+0,INDIRECT("'Budget indtastning'!$"&$R78&"6:"&$R78&"371")) -> 0 | Q78: =SUMPRODUCT((MONTH('Budget indtastning'!$B$6:$B$371)=Q$5)*(YEAR('Budget indtastning'!$B$6:$B$371)=Q$6)+0,INDIRECT("'Budget indtastning'!$"&$R78&"6:"&$R78&"371")) -> 0 | R78: bp
B79: 0 | D79: 0 | F79: =SUMPRODUCT((MONTH('Budget indtastning'!$B$6:$B$371)=F$5)*(YEAR('Budget indtastning'!$B$6:$B$371)=F$6)+0,INDIRECT("'Budget indtastning'!$"&$R79&"6:"&$R79&"371")) -> 0 | G79: =SUMPRODUCT((MONTH('Budget indtastning'!$B$6:$B$371)=G$5)*(YEAR('Budget indtastning'!$B$6:$B$371)=G$6)+0,INDIRECT("'Budget indtastning'!$"&$R79&"6:"&$R79&"371")) -> 0 | H79: =SUMPRODUCT((MONTH('Budget indtastning'!$B$6:$B$371)=H$5)*(YEAR('Budget indtastning'!$B$6:$B$371)=H$6)+0,INDIRECT("'Budget indtastning'!$"&$R79&"6:"&$R79&"371")) -> 0 | I79: =SUMPRODUCT((MONTH('Budget indtastning'!$B$6:$B$371)=I$5)*(YEAR('Budget indtastning'!$B$6:$B$371)=I$6)+0,INDIRECT("'Budget indtastning'!$"&$R79&"6:"&$R79&"371")) -> 0 | J79: =SUMPRODUCT((MONTH('Budget indtastning'!$B$6:$B$371)=J$5)*(YEAR('Budget indtastning'!$B$6:$B$371)=J$6)+0,INDIRECT("'Budget indtastning'!$"&$R79&"6:"&$R79&"371")) -> 0 | K79: =SUMPRODUCT((MONTH('Budget indtastning'!$B$6:$B$371)=K$5)*(YEAR('Budget indtastning'!$B$6:$B$371)=K$6)+0,INDIRECT("'Budget indtastning'!$"&$R79&"6:"&$R79&"371")) -> 0 | L79: =SUMPRODUCT((MONTH('Budget indtastning'!$B$6:$B$371)=L$5)*(YEAR('Budget indtastning'!$B$6:$B$371)=L$6)+0,INDIRECT("'Budget indtastning'!$"&$R79&"6:"&$R79&"371")) -> 0 | M79: =SUMPRODUCT((MONTH('Budget indtastning'!$B$6:$B$371)=M$5)*(YEAR('Budget indtastning'!$B$6:$B$371)=M$6)+0,INDIRECT("'Budget indtastning'!$"&$R79&"6:"&$R79&"371")) -> 0 | N79: =SUMPRODUCT((MONTH('Budget indtastning'!$B$6:$B$371)=N$5)*(YEAR('Budget indtastning'!$B$6:$B$371)=N$6)+0,INDIRECT("'Budget indtastning'!$"&$R79&"6:"&$R79&"371")) -> 0 | O79: =SUMPRODUCT((MONTH('Budget indtastning'!$B$6:$B$371)=O$5)*(YEAR('Budget indtastning'!$B$6:$B$371)=O$6)+0,INDIRECT("'Budget indtastning'!$"&$R79&"6:"&$R79&"371")) -> 0 | P79: =SUMPRODUCT((MONTH('Budget indtastning'!$B$6:$B$371)=P$5)*(YEAR('Budget indtastning'!$B$6:$B$371)=P$6)+0,INDIRECT("'Budget indtastning'!$"&$R79&"6:"&$R79&"371")) -> 0 | Q79: =SUMPRODUCT((MONTH('Budget indtastning'!$B$6:$B$371)=Q$5)*(YEAR('Budget indtastning'!$B$6:$B$371)=Q$6)+0,INDIRECT("'Budget indtastning'!$"&$R79&"6:"&$R79&"371")) -> 0 | R79: bq
B80: 0 | D80: 0 | F80: =SUMPRODUCT((MONTH('Budget indtastning'!$B$6:$B$371)=F$5)*(YEAR('Budget indtastning'!$B$6:$B$371)=F$6)+0,INDIRECT("'Budget indtastning'!$"&$R80&"6:"&$R80&"371")) -> 0 | G80: =SUMPRODUCT((MONTH('Budget indtastning'!$B$6:$B$371)=G$5)*(YEAR('Budget indtastning'!$B$6:$B$371)=G$6)+0,INDIRECT("'Budget indtastning'!$"&$R80&"6:"&$R80&"371")) -> 0 | H80: =SUMPRODUCT((MONTH('Budget indtastning'!$B$6:$B$371)=H$5)*(YEAR('Budget indtastning'!$B$6:$B$371)=H$6)+0,INDIRECT("'Budget indtastning'!$"&$R80&"6:"&$R80&"371")) -> 0 | I80: =SUMPRODUCT((MONTH('Budget indtastning'!$B$6:$B$371)=I$5)*(YEAR('Budget indtastning'!$B$6:$B$371)=I$6)+0,INDIRECT("'Budget indtastning'!$"&$R80&"6:"&$R80&"371")) -> 0 | J80: =SUMPRODUCT((MONTH('Budget indtastning'!$B$6:$B$371)=J$5)*(YEAR('Budget indtastning'!$B$6:$B$371)=J$6)+0,INDIRECT("'Budget indtastning'!$"&$R80&"6:"&$R80&"371")) -> 0 | K80: =SUMPRODUCT((MONTH('Budget indtastning'!$B$6:$B$371)=K$5)*(YEAR('Budget indtastning'!$B$6:$B$371)=K$6)+0,INDIRECT("'Budget indtastning'!$"&$R80&"6:"&$R80&"371")) -> 0 | L80: =SUMPRODUCT((MONTH('Budget indtastning'!$B$6:$B$371)=L$5)*(YEAR('Budget indtastning'!$B$6:$B$371)=L$6)+0,INDIRECT("'Budget indtastning'!$"&$R80&"6:"&$R80&"371")) -> 0 | M80: =SUMPRODUCT((MONTH('Budget indtastning'!$B$6:$B$371)=M$5)*(YEAR('Budget indtastning'!$B$6:$B$371)=M$6)+0,INDIRECT("'Budget indtastning'!$"&$R80&"6:"&$R80&"371")) -> 0 | N80: =SUMPRODUCT((MONTH('Budget indtastning'!$B$6:$B$371)=N$5)*(YEAR('Budget indtastning'!$B$6:$B$371)=N$6)+0,INDIRECT("'Budget indtastning'!$"&$R80&"6:"&$R80&"371")) -> 0 | O80: =SUMPRODUCT((MONTH('Budget indtastning'!$B$6:$B$371)=O$5)*(YEAR('Budget indtastning'!$B$6:$B$371)=O$6)+0,INDIRECT("'Budget indtastning'!$"&$R80&"6:"&$R80&"371")) -> 0 | P80: =SUMPRODUCT((MONTH('Budget indtastning'!$B$6:$B$371)=P$5)*(YEAR('Budget indtastning'!$B$6:$B$371)=P$6)+0,INDIRECT("'Budget indtastning'!$"&$R80&"6:"&$R80&"371")) -> 0 | Q80: =SUMPRODUCT((MONTH('Budget indtastning'!$B$6:$B$371)=Q$5)*(YEAR('Budget indtastning'!$B$6:$B$371)=Q$6)+0,INDIRECT("'Budget indtastning'!$"&$R80&"6:"&$R80&"371")) -> 0 | R80: br
B81: 0 | D81: 0 | F81: =SUMPRODUCT((MONTH('Budget indtastning'!$B$6:$B$371)=F$5)*(YEAR('Budget indtastning'!$B$6:$B$371)=F$6)+0,INDIRECT("'Budget indtastning'!$"&$R81&"6:"&$R81&"371")) -> 0 | G81: =SUMPRODUCT((MONTH('Budget indtastning'!$B$6:$B$371)=G$5)*(YEAR('Budget indtastning'!$B$6:$B$371)=G$6)+0,INDIRECT("'Budget indtastning'!$"&$R81&"6:"&$R81&"371")) -> 0 | H81: =SUMPRODUCT((MONTH('Budget indtastning'!$B$6:$B$371)=H$5)*(YEAR('Budget indtastning'!$B$6:$B$371)=H$6)+0,INDIRECT("'Budget indtastning'!$"&$R81&"6:"&$R81&"371")) -> 0 | I81: =SUMPRODUCT((MONTH('Budget indtastning'!$B$6:$B$371)=I$5)*(YEAR('Budget indtastning'!$B$6:$B$371)=I$6)+0,INDIRECT("'Budget indtastning'!$"&$R81&"6:"&$R81&"371")) -> 0 | J81: =SUMPRODUCT((MONTH('Budget indtastning'!$B$6:$B$371)=J$5)*(YEAR('Budget indtastning'!$B$6:$B$371)=J$6)+0,INDIRECT("'Budget indtastning'!$"&$R81&"6:"&$R81&"371")) -> 0 | K81: =SUMPRODUCT((MONTH('Budget indtastning'!$B$6:$B$371)=K$5)*(YEAR('Budget indtastning'!$B$6:$B$371)=K$6)+0,INDIRECT("'Budget indtastning'!$"&$R81&"6:"&$R81&"371")) -> 0 | L81: =SUMPRODUCT((MONTH('Budget indtastning'!$B$6:$B$371)=L$5)*(YEAR('Budget indtastning'!$B$6:$B$371)=L$6)+0,INDIRECT("'Budget indtastning'!$"&$R81&"6:"&$R81&"371")) -> 0 | M81: =SUMPRODUCT((MONTH('Budget indtastning'!$B$6:$B$371)=M$5)*(YEAR('Budget indtastning'!$B$6:$B$371)=M$6)+0,INDIRECT("'Budget indtastning'!$"&$R81&"6:"&$R81&"371")) -> 0 | N81: =SUMPRODUCT((MONTH('Budget indtastning'!$B$6:$B$371)=N$5)*(YEAR('Budget indtastning'!$B$6:$B$371)=N$6)+0,INDIRECT("'Budget indtastning'!$"&$R81&"6:"&$R81&"371")) -> 0 | O81: =SUMPRODUCT((MONTH('Budget indtastning'!$B$6:$B$371)=O$5)*(YEAR('Budget indtastning'!$B$6:$B$371)=O$6)+0,INDIRECT("'Budget indtastning'!$"&$R81&"6:"&$R81&"371")) -> 0 | P81: =SUMPRODUCT((MONTH('Budget indtastning'!$B$6:$B$371)=P$5)*(YEAR('Budget indtastning'!$B$6:$B$371)=P$6)+0,INDIRECT("'Budget indtastning'!$"&$R81&"6:"&$R81&"371")) -> 0 | Q81: =SUMPRODUCT((MONTH('Budget indtastning'!$B$6:$B$371)=Q$5)*(YEAR('Budget indtastning'!$B$6:$B$371)=Q$6)+0,INDIRECT("'Budget indtastning'!$"&$R81&"6:"&$R81&"371")) -> 0 | R81: bs
B82: 0 | D82: 0 | F82: =SUMPRODUCT((MONTH('Budget indtastning'!$B$6:$B$371)=F$5)*(YEAR('Budget indtastning'!$B$6:$B$371)=F$6)+0,INDIRECT("'Budget indtastning'!$"&$R82&"6:"&$R82&"371")) -> 0 | G82: =SUMPRODUCT((MONTH('Budget indtastning'!$B$6:$B$371)=G$5)*(YEAR('Budget indtastning'!$B$6:$B$371)=G$6)+0,INDIRECT("'Budget indtastning'!$"&$R82&"6:"&$R82&"371")) -> 0 | H82: =SUMPRODUCT((MONTH('Budget indtastning'!$B$6:$B$371)=H$5)*(YEAR('Budget indtastning'!$B$6:$B$371)=H$6)+0,INDIRECT("'Budget indtastning'!$"&$R82&"6:"&$R82&"371")) -> 0 | I82: =SUMPRODUCT((MONTH('Budget indtastning'!$B$6:$B$371)=I$5)*(YEAR('Budget indtastning'!$B$6:$B$371)=I$6)+0,INDIRECT("'Budget indtastning'!$"&$R82&"6:"&$R82&"371")) -> 0 | J82: =SUMPRODUCT((MONTH('Budget indtastning'!$B$6:$B$371)=J$5)*(YEAR('Budget indtastning'!$B$6:$B$371)=J$6)+0,INDIRECT("'Budget indtastning'!$"&$R82&"6:"&$R82&"371")) -> 0 | K82: =SUMPRODUCT((MONTH('Budget indtastning'!$B$6:$B$371)=K$5)*(YEAR('Budget indtastning'!$B$6:$B$371)=K$6)+0,INDIRECT("'Budget indtastning'!$"&$R82&"6:"&$R82&"371")) -> 0 | L82: =SUMPRODUCT((MONTH('Budget indtastning'!$B$6:$B$371)=L$5)*(YEAR('Budget indtastning'!$B$6:$B$371)=L$6)+0,INDIRECT("'Budget indtastning'!$"&$R82&"6:"&$R82&"371")) -> 0 | M82: =SUMPRODUCT((MONTH('Budget indtastning'!$B$6:$B$371)=M$5)*(YEAR('Budget indtastning'!$B$6:$B$371)=M$6)+0,INDIRECT("'Budget indtastning'!$"&$R82&"6:"&$R82&"371")) -> 0 | N82: =SUMPRODUCT((MONTH('Budget indtastning'!$B$6:$B$371)=N$5)*(YEAR('Budget indtastning'!$B$6:$B$371)=N$6)+0,INDIRECT("'Budget indtastning'!$"&$R82&"6:"&$R82&"371")) -> 0 | O82: =SUMPRODUCT((MONTH('Budget indtastning'!$B$6:$B$371)=O$5)*(YEAR('Budget indtastning'!$B$6:$B$371)=O$6)+0,INDIRECT("'Budget indtastning'!$"&$R82&"6:"&$R82&"371")) -> 0 | P82: =SUMPRODUCT((MONTH('Budget indtastning'!$B$6:$B$371)=P$5)*(YEAR('Budget indtastning'!$B$6:$B$371)=P$6)+0,INDIRECT("'Budget indtastning'!$"&$R82&"6:"&$R82&"371")) -> 0 | Q82: =SUMPRODUCT((MONTH('Budget indtastning'!$B$6:$B$371)=Q$5)*(YEAR('Budget indtastning'!$B$6:$B$371)=Q$6)+0,INDIRECT("'Budget indtastning'!$"&$R82&"6:"&$R82&"371")) -> 0 | R82: bt
B83: 0 | D83: 0 | F83: =SUMPRODUCT((MONTH('Budget indtastning'!$B$6:$B$371)=F$5)*(YEAR('Budget indtastning'!$B$6:$B$371)=F$6)+0,INDIRECT("'Budget indtastning'!$"&$R83&"6:"&$R83&"371")) -> 0 | G83: =SUMPRODUCT((MONTH('Budget indtastning'!$B$6:$B$371)=G$5)*(YEAR('Budget indtastning'!$B$6:$B$371)=G$6)+0,INDIRECT("'Budget indtastning'!$"&$R83&"6:"&$R83&"371")) -> 0 | H83: =SUMPRODUCT((MONTH('Budget indtastning'!$B$6:$B$371)=H$5)*(YEAR('Budget indtastning'!$B$6:$B$371)=H$6)+0,INDIRECT("'Budget indtastning'!$"&$R83&"6:"&$R83&"371")) -> 0 | I83: =SUMPRODUCT((MONTH('Budget indtastning'!$B$6:$B$371)=I$5)*(YEAR('Budget indtastning'!$B$6:$B$371)=I$6)+0,INDIRECT("'Budget indtastning'!$"&$R83&"6:"&$R83&"371")) -> 0 | J83: =SUMPRODUCT((MONTH('Budget indtastning'!$B$6:$B$371)=J$5)*(YEAR('Budget indtastning'!$B$6:$B$371)=J$6)+0,INDIRECT("'Budget indtastning'!$"&$R83&"6:"&$R83&"371")) -> 0 | K83: =SUMPRODUCT((MONTH('Budget indtastning'!$B$6:$B$371)=K$5)*(YEAR('Budget indtastning'!$B$6:$B$371)=K$6)+0,INDIRECT("'Budget indtastning'!$"&$R83&"6:"&$R83&"371")) -> 0 | L83: =SUMPRODUCT((MONTH('Budget indtastning'!$B$6:$B$371)=L$5)*(YEAR('Budget indtastning'!$B$6:$B$371)=L$6)+0,INDIRECT("'Budget indtastning'!$"&$R83&"6:"&$R83&"371")) -> 0 | M83: =SUMPRODUCT((MONTH('Budget indtastning'!$B$6:$B$371)=M$5)*(YEAR('Budget indtastning'!$B$6:$B$371)=M$6)+0,INDIRECT("'Budget indtastning'!$"&$R83&"6:"&$R83&"371")) -> 0 | N83: =SUMPRODUCT((MONTH('Budget indtastning'!$B$6:$B$371)=N$5)*(YEAR('Budget indtastning'!$B$6:$B$371)=N$6)+0,INDIRECT("'Budget indtastning'!$"&$R83&"6:"&$R83&"371")) -> 0 | O83: =SUMPRODUCT((MONTH('Budget indtastning'!$B$6:$B$371)=O$5)*(YEAR('Budget indtastning'!$B$6:$B$371)=O$6)+0,INDIRECT("'Budget indtastning'!$"&$R83&"6:"&$R83&"371")) -> 0 | P83: =SUMPRODUCT((MONTH('Budget indtastning'!$B$6:$B$371)=P$5)*(YEAR('Budget indtastning'!$B$6:$B$371)=P$6)+0,INDIRECT("'Budget indtastning'!$"&$R83&"6:"&$R83&"371")) -> 0 | Q83: =SUMPRODUCT((MONTH('Budget indtastning'!$B$6:$B$371)=Q$5)*(YEAR('Budget indtastning'!$B$6:$B$371)=Q$6)+0,INDIRECT("'Budget indtastning'!$"&$R83&"6:"&$R83&"371")) -> 0 | R83: bu
B84: 0 | D84: 0 | F84: =SUMPRODUCT((MONTH('Budget indtastning'!$B$6:$B$371)=F$5)*(YEAR('Budget indtastning'!$B$6:$B$371)=F$6)+0,INDIRECT("'Budget indtastning'!$"&$R84&"6:"&$R84&"371")) -> 0 | G84: =SUMPRODUCT((MONTH('Budget indtastning'!$B$6:$B$371)=G$5)*(YEAR('Budget indtastning'!$B$6:$B$371)=G$6)+0,INDIRECT("'Budget indtastning'!$"&$R84&"6:"&$R84&"371")) -> 0 | H84: =SUMPRODUCT((MONTH('Budget indtastning'!$B$6:$B$371)=H$5)*(YEAR('Budget indtastning'!$B$6:$B$371)=H$6)+0,INDIRECT("'Budget indtastning'!$"&$R84&"6:"&$R84&"371")) -> 0 | I84: =SUMPRODUCT((MONTH('Budget indtastning'!$B$6:$B$371)=I$5)*(YEAR('Budget indtastning'!$B$6:$B$371)=I$6)+0,INDIRECT("'Budget indtastning'!$"&$R84&"6:"&$R84&"371")) -> 0 | J84: =SUMPRODUCT((MONTH('Budget indtastning'!$B$6:$B$371)=J$5)*(YEAR('Budget indtastning'!$B$6:$B$371)=J$6)+0,INDIRECT("'Budget indtastning'!$"&$R84&"6:"&$R84&"371")) -> 0 | K84: =SUMPRODUCT((MONTH('Budget indtastning'!$B$6:$B$371)=K$5)*(YEAR('Budget indtastning'!$B$6:$B$371)=K$6)+0,INDIRECT("'Budget indtastning'!$"&$R84&"6:"&$R84&"371")) -> 0 | L84: =SUMPRODUCT((MONTH('Budget indtastning'!$B$6:$B$371)=L$5)*(YEAR('Budget indtastning'!$B$6:$B$371)=L$6)+0,INDIRECT("'Budget indtastning'!$"&$R84&"6:"&$R84&"371")) -> 0 | M84: =SUMPRODUCT((MONTH('Budget indtastning'!$B$6:$B$371)=M$5)*(YEAR('Budget indtastning'!$B$6:$B$371)=M$6)+0,INDIRECT("'Budget indtastning'!$"&$R84&"6:"&$R84&"371")) -> 0 | N84: =SUMPRODUCT((MONTH('Budget indtastning'!$B$6:$B$371)=N$5)*(YEAR('Budget indtastning'!$B$6:$B$371)=N$6)+0,INDIRECT("'Budget indtastning'!$"&$R84&"6:"&$R84&"371")) -> 0 | O84: =SUMPRODUCT((MONTH('Budget indtastning'!$B$6:$B$371)=O$5)*(YEAR('Budget indtastning'!$B$6:$B$371)=O$6)+0,INDIRECT("'Budget indtastning'!$"&$R84&"6:"&$R84&"371")) -> 0 | P84: =SUMPRODUCT((MONTH('Budget indtastning'!$B$6:$B$371)=P$5)*(YEAR('Budget indtastning'!$B$6:$B$371)=P$6)+0,INDIRECT("'Budget indtastning'!$"&$R84&"6:"&$R84&"371")) -> 0 | Q84: =SUMPRODUCT((MONTH('Budget indtastning'!$B$6:$B$371)=Q$5)*(YEAR('Budget indtastning'!$B$6:$B$371)=Q$6)+0,INDIRECT("'Budget indtastning'!$"&$R84&"6:"&$R84&"371")) -> 0 | R84: bv
B85: 0 | D85: 0 | F85: =SUMPRODUCT((MONTH('Budget indtastning'!$B$6:$B$371)=F$5)*(YEAR('Budget indtastning'!$B$6:$B$371)=F$6)+0,INDIRECT("'Budget indtastning'!$"&$R85&"6:"&$R85&"371")) -> 0 | G85: =SUMPRODUCT((MONTH('Budget indtastning'!$B$6:$B$371)=G$5)*(YEAR('Budget indtastning'!$B$6:$B$371)=G$6)+0,INDIRECT("'Budget indtastning'!$"&$R85&"6:"&$R85&"371")) -> 0 | H85: =SUMPRODUCT((MONTH('Budget indtastning'!$B$6:$B$371)=H$5)*(YEAR('Budget indtastning'!$B$6:$B$371)=H$6)+0,INDIRECT("'Budget indtastning'!$"&$R85&"6:"&$R85&"371")) -> 0 | I85: =SUMPRODUCT((MONTH('Budget indtastning'!$B$6:$B$371)=I$5)*(YEAR('Budget indtastning'!$B$6:$B$371)=I$6)+0,INDIRECT("'Budget indtastning'!$"&$R85&"6:"&$R85&"371")) -> 0 | J85: =SUMPRODUCT((MONTH('Budget indtastning'!$B$6:$B$371)=J$5)*(YEAR('Budget indtastning'!$B$6:$B$371)=J$6)+0,INDIRECT("'Budget indtastning'!$"&$R85&"6:"&$R85&"371")) -> 0 | K85: =SUMPRODUCT((MONTH('Budget indtastning'!$B$6:$B$371)=K$5)*(YEAR('Budget indtastning'!$B$6:$B$371)=K$6)+0,INDIRECT("'Budget indtastning'!$"&$R85&"6:"&$R85&"371")) -> 0 | L85: =SUMPRODUCT((MONTH('Budget indtastning'!$B$6:$B$371)=L$5)*(YEAR('Budget indtastning'!$B$6:$B$371)=L$6)+0,INDIRECT("'Budget indtastning'!$"&$R85&"6:"&$R85&"371")) -> 0 | M85: =SUMPRODUCT((MONTH('Budget indtastning'!$B$6:$B$371)=M$5)*(YEAR('Budget indtastning'!$B$6:$B$371)=M$6)+0,INDIRECT("'Budget indtastning'!$"&$R85&"6:"&$R85&"371")) -> 0 | N85: =SUMPRODUCT((MONTH('Budget indtastning'!$B$6:$B$371)=N$5)*(YEAR('Budget indtastning'!$B$6:$B$371)=N$6)+0,INDIRECT("'Budget indtastning'!$"&$R85&"6:"&$R85&"371")) -> 0 | O85: =SUMPRODUCT((MONTH('Budget indtastning'!$B$6:$B$371)=O$5)*(YEAR('Budget indtastning'!$B$6:$B$371)=O$6)+0,INDIRECT("'Budget indtastning'!$"&$R85&"6:"&$R85&"371")) -> 0 | P85: =SUMPRODUCT((MONTH('Budget indtastning'!$B$6:$B$371)=P$5)*(YEAR('Budget indtastning'!$B$6:$B$371)=P$6)+0,INDIRECT("'Budget indtastning'!$"&$R85&"6:"&$R85&"371")) -> 0 | Q85: =SUMPRODUCT((MONTH('Budget indtastning'!$B$6:$B$371)=Q$5)*(YEAR('Budget indtastning'!$B$6:$B$371)=Q$6)+0,INDIRECT("'Budget indtastning'!$"&$R85&"6:"&$R85&"371")) -> 0 | R85: bw
B86: 0 | D86: 0 | F86: =SUMPRODUCT((MONTH('Budget indtastning'!$B$6:$B$371)=F$5)*(YEAR('Budget indtastning'!$B$6:$B$371)=F$6)+0,INDIRECT("'Budget indtastning'!$"&$R86&"6:"&$R86&"371")) -> 0 | G86: =SUMPRODUCT((MONTH('Budget indtastning'!$B$6:$B$371)=G$5)*(YEAR('Budget indtastning'!$B$6:$B$371)=G$6)+0,INDIRECT("'Budget indtastning'!$"&$R86&"6:"&$R86&"371")) -> 0 | H86: =SUMPRODUCT((MONTH('Budget indtastning'!$B$6:$B$371)=H$5)*(YEAR('Budget indtastning'!$B$6:$B$371)=H$6)+0,INDIRECT("'Budget indtastning'!$"&$R86&"6:"&$R86&"371")) -> 0 | I86: =SUMPRODUCT((MONTH('Budget indtastning'!$B$6:$B$371)=I$5)*(YEAR('Budget indtastning'!$B$6:$B$371)=I$6)+0,INDIRECT("'Budget indtastning'!$"&$R86&"6:"&$R86&"371")) -> 0 | J86: =SUMPRODUCT((MONTH('Budget indtastning'!$B$6:$B$371)=J$5)*(YEAR('Budget indtastning'!$B$6:$B$371)=J$6)+0,INDIRECT("'Budget indtastning'!$"&$R86&"6:"&$R86&"371")) -> 0 | K86: =SUMPRODUCT((MONTH('Budget indtastning'!$B$6:$B$371)=K$5)*(YEAR('Budget indtastning'!$B$6:$B$371)=K$6)+0,INDIRECT("'Budget indtastning'!$"&$R86&"6:"&$R86&"371")) -> 0 | L86: =SUMPRODUCT((MONTH('Budget indtastning'!$B$6:$B$371)=L$5)*(YEAR('Budget indtastning'!$B$6:$B$371)=L$6)+0,INDIRECT("'Budget indtastning'!$"&$R86&"6:"&$R86&"371")) -> 0 | M86: =SUMPRODUCT((MONTH('Budget indtastning'!$B$6:$B$371)=M$5)*(YEAR('Budget indtastning'!$B$6:$B$371)=M$6)+0,INDIRECT("'Budget indtastning'!$"&$R86&"6:"&$R86&"371")) -> 0 | N86: =SUMPRODUCT((MONTH('Budget indtastning'!$B$6:$B$371)=N$5)*(YEAR('Budget indtastning'!$B$6:$B$371)=N$6)+0,INDIRECT("'Budget indtastning'!$"&$R86&"6:"&$R86&"371")) -> 0 | O86: =SUMPRODUCT((MONTH('Budget indtastning'!$B$6:$B$371)=O$5)*(YEAR('Budget indtastning'!$B$6:$B$371)=O$6)+0,INDIRECT("'Budget indtastning'!$"&$R86&"6:"&$R86&"371")) -> 0 | P86: =SUMPRODUCT((MONTH('Budget indtastning'!$B$6:$B$371)=P$5)*(YEAR('Budget indtastning'!$B$6:$B$371)=P$6)+0,INDIRECT("'Budget indtastning'!$"&$R86&"6:"&$R86&"371")) -> 0 | Q86: =SUMPRODUCT((MONTH('Budget indtastning'!$B$6:$B$371)=Q$5)*(YEAR('Budget indtastning'!$B$6:$B$371)=Q$6)+0,INDIRECT("'Budget indtastning'!$"&$R86&"6:"&$R86&"371")) -> 0 | R86: bx
B87: 0 | D87: 0 | F87: =SUMPRODUCT((MONTH('Budget indtastning'!$B$6:$B$371)=F$5)*(YEAR('Budget indtastning'!$B$6:$B$371)=F$6)+0,INDIRECT("'Budget indtastning'!$"&$R87&"6:"&$R87&"371")) -> 0 | G87: =SUMPRODUCT((MONTH('Budget indtastning'!$B$6:$B$371)=G$5)*(YEAR('Budget indtastning'!$B$6:$B$371)=G$6)+0,INDIRECT("'Budget indtastning'!$"&$R87&"6:"&$R87&"371")) -> 0 | H87: =SUMPRODUCT((MONTH('Budget indtastning'!$B$6:$B$371)=H$5)*(YEAR('Budget indtastning'!$B$6:$B$371)=H$6)+0,INDIRECT("'Budget indtastning'!$"&$R87&"6:"&$R87&"371")) -> 0 | I87: =SUMPRODUCT((MONTH('Budget indtastning'!$B$6:$B$371)=I$5)*(YEAR('Budget indtastning'!$B$6:$B$371)=I$6)+0,INDIRECT("'Budget indtastning'!$"&$R87&"6:"&$R87&"371")) -> 0 | J87: =SUMPRODUCT((MONTH('Budget indtastning'!$B$6:$B$371)=J$5)*(YEAR('Budget indtastning'!$B$6:$B$371)=J$6)+0,INDIRECT("'Budget indtastning'!$"&$R87&"6:"&$R87&"371")) -> 0 | K87: =SUMPRODUCT((MONTH('Budget indtastning'!$B$6:$B$371)=K$5)*(YEAR('Budget indtastning'!$B$6:$B$371)=K$6)+0,INDIRECT("'Budget indtastning'!$"&$R87&"6:"&$R87&"371")) -> 0 | L87: =SUMPRODUCT((MONTH('Budget indtastning'!$B$6:$B$371)=L$5)*(YEAR('Budget indtastning'!$B$6:$B$371)=L$6)+0,INDIRECT("'Budget indtastning'!$"&$R87&"6:"&$R87&"371")) -> 0 | M87: =SUMPRODUCT((MONTH('Budget indtastning'!$B$6:$B$371)=M$5)*(YEAR('Budget indtastning'!$B$6:$B$371)=M$6)+0,INDIRECT("'Budget indtastning'!$"&$R87&"6:"&$R87&"371")) -> 0 | N87: =SUMPRODUCT((MONTH('Budget indtastning'!$B$6:$B$371)=N$5)*(YEAR('Budget indtastning'!$B$6:$B$371)=N$6)+0,INDIRECT("'Budget indtastning'!$"&$R87&"6:"&$R87&"371")) -> 0 | O87: =SUMPRODUCT((MONTH('Budget indtastning'!$B$6:$B$371)=O$5)*(YEAR('Budget indtastning'!$B$6:$B$371)=O$6)+0,INDIRECT("'Budget indtastning'!$"&$R87&"6:"&$R87&"371")) -> 0 | P87: =SUMPRODUCT((MONTH('Budget indtastning'!$B$6:$B$371)=P$5)*(YEAR('Budget indtastning'!$B$6:$B$371)=P$6)+0,INDIRECT("'Budget indtastning'!$"&$R87&"6:"&$R87&"371")) -> 0 | Q87: =SUMPRODUCT((MONTH('Budget indtastning'!$B$6:$B$371)=Q$5)*(YEAR('Budget indtastning'!$B$6:$B$371)=Q$6)+0,INDIRECT("'Budget indtastning'!$"&$R87&"6:"&$R87&"371")) -> 0 | R87: by
B88: 0 | D88: 0 | F88: =SUMPRODUCT((MONTH('Budget indtastning'!$B$6:$B$371)=F$5)*(YEAR('Budget indtastning'!$B$6:$B$371)=F$6)+0,INDIRECT("'Budget indtastning'!$"&$R88&"6:"&$R88&"371")) -> 0 | G88: =SUMPRODUCT((MONTH('Budget indtastning'!$B$6:$B$371)=G$5)*(YEAR('Budget indtastning'!$B$6:$B$371)=G$6)+0,INDIRECT("'Budget indtastning'!$"&$R88&"6:"&$R88&"371")) -> 0 | H88: =SUMPRODUCT((MONTH('Budget indtastning'!$B$6:$B$371)=H$5)*(YEAR('Budget indtastning'!$B$6:$B$371)=H$6)+0,INDIRECT("'Budget indtastning'!$"&$R88&"6:"&$R88&"371")) -> 0 | I88: =SUMPRODUCT((MONTH('Budget indtastning'!$B$6:$B$371)=I$5)*(YEAR('Budget indtastning'!$B$6:$B$371)=I$6)+0,INDIRECT("'Budget indtastning'!$"&$R88&"6:"&$R88&"371")) -> 0 | J88: =SUMPRODUCT((MONTH('Budget indtastning'!$B$6:$B$371)=J$5)*(YEAR('Budget indtastning'!$B$6:$B$371)=J$6)+0,INDIRECT("'Budget indtastning'!$"&$R88&"6:"&$R88&"371")) -> 0 | K88: =SUMPRODUCT((MONTH('Budget indtastning'!$B$6:$B$371)=K$5)*(YEAR('Budget indtastning'!$B$6:$B$371)=K$6)+0,INDIRECT("'Budget indtastning'!$"&$R88&"6:"&$R88&"371")) -> 0 | L88: =SUMPRODUCT((MONTH('Budget indtastning'!$B$6:$B$371)=L$5)*(YEAR('Budget indtastning'!$B$6:$B$371)=L$6)+0,INDIRECT("'Budget indtastning'!$"&$R88&"6:"&$R88&"371")) -> 0 | M88: =SUMPRODUCT((MONTH('Budget indtastning'!$B$6:$B$371)=M$5)*(YEAR('Budget indtastning'!$B$6:$B$371)=M$6)+0,INDIRECT("'Budget indtastning'!$"&$R88&"6:"&$R88&"371")) -> 0 | N88: =SUMPRODUCT((MONTH('Budget indtastning'!$B$6:$B$371)=N$5)*(YEAR('Budget indtastning'!$B$6:$B$371)=N$6)+0,INDIRECT("'Budget indtastning'!$"&$R88&"6:"&$R88&"371")) -> 0 | O88: =SUMPRODUCT((MONTH('Budget indtastning'!$B$6:$B$371)=O$5)*(YEAR('Budget indtastning'!$B$6:$B$371)=O$6)+0,INDIRECT("'Budget indtastning'!$"&$R88&"6:"&$R88&"371")) -> 0 | P88: =SUMPRODUCT((MONTH('Budget indtastning'!$B$6:$B$371)=P$5)*(YEAR('Budget indtastning'!$B$6:$B$371)=P$6)+0,INDIRECT("'Budget indtastning'!$"&$R88&"6:"&$R88&"371")) -> 0 | Q88: =SUMPRODUCT((MONTH('Budget indtastning'!$B$6:$B$371)=Q$5)*(YEAR('Budget indtastning'!$B$6:$B$371)=Q$6)+0,INDIRECT("'Budget indtastning'!$"&$R88&"6:"&$R88&"371")) -> 0 | R88: bz
B89: 0 | D89: 0 | F89: =SUMPRODUCT((MONTH('Budget indtastning'!$B$6:$B$371)=F$5)*(YEAR('Budget indtastning'!$B$6:$B$371)=F$6)+0,INDIRECT("'Budget indtastning'!$"&$R89&"6:"&$R89&"371")) -> 0 | G89: =SUMPRODUCT((MONTH('Budget indtastning'!$B$6:$B$371)=G$5)*(YEAR('Budget indtastning'!$B$6:$B$371)=G$6)+0,INDIRECT("'Budget indtastning'!$"&$R89&"6:"&$R89&"371")) -> 0 | H89: =SUMPRODUCT((MONTH('Budget indtastning'!$B$6:$B$371)=H$5)*(YEAR('Budget indtastning'!$B$6:$B$371)=H$6)+0,INDIRECT("'Budget indtastning'!$"&$R89&"6:"&$R89&"371")) -> 0 | I89: =SUMPRODUCT((MONTH('Budget indtastning'!$B$6:$B$371)=I$5)*(YEAR('Budget indtastning'!$B$6:$B$371)=I$6)+0,INDIRECT("'Budget indtastning'!$"&$R89&"6:"&$R89&"371")) -> 0 | J89: =SUMPRODUCT((MONTH('Budget indtastning'!$B$6:$B$371)=J$5)*(YEAR('Budget indtastning'!$B$6:$B$371)=J$6)+0,INDIRECT("'Budget indtastning'!$"&$R89&"6:"&$R89&"371")) -> 0 | K89: =SUMPRODUCT((MONTH('Budget indtastning'!$B$6:$B$371)=K$5)*(YEAR('Budget indtastning'!$B$6:$B$371)=K$6)+0,INDIRECT("'Budget indtastning'!$"&$R89&"6:"&$R89&"371")) -> 0 | L89: =SUMPRODUCT((MONTH('Budget indtastning'!$B$6:$B$371)=L$5)*(YEAR('Budget indtastning'!$B$6:$B$371)=L$6)+0,INDIRECT("'Budget indtastning'!$"&$R89&"6:"&$R89&"371")) -> 0 | M89: =SUMPRODUCT((MONTH('Budget indtastning'!$B$6:$B$371)=M$5)*(YEAR('Budget indtastning'!$B$6:$B$371)=M$6)+0,INDIRECT("'Budget indtastning'!$"&$R89&"6:"&$R89&"371")) -> 0 | N89: =SUMPRODUCT((MONTH('Budget indtastning'!$B$6:$B$371)=N$5)*(YEAR('Budget indtastning'!$B$6:$B$371)=N$6)+0,INDIRECT("'Budget indtastning'!$"&$R89&"6:"&$R89&"371")) -> 0 | O89: =SUMPRODUCT((MONTH('Budget indtastning'!$B$6:$B$371)=O$5)*(YEAR('Budget indtastning'!$B$6:$B$371)=O$6)+0,INDIRECT("'Budget indtastning'!$"&$R89&"6:"&$R89&"371")) -> 0 | P89: =SUMPRODUCT((MONTH('Budget indtastning'!$B$6:$B$371)=P$5)*(YEAR('Budget indtastning'!$B$6:$B$371)=P$6)+0,INDIRECT("'Budget indtastning'!$"&$R89&"6:"&$R89&"371")) -> 0 | Q89: =SUMPRODUCT((MONTH('Budget indtastning'!$B$6:$B$371)=Q$5)*(YEAR('Budget indtastning'!$B$6:$B$371)=Q$6)+0,INDIRECT("'Budget indtastning'!$"&$R89&"6:"&$R89&"371")) -> 0 | R89: ca
B90: 0 | D90: 0 | F90: =SUMPRODUCT((MONTH('Budget indtastning'!$B$6:$B$371)=F$5)*(YEAR('Budget indtastning'!$B$6:$B$371)=F$6)+0,INDIRECT("'Budget indtastning'!$"&$R90&"6:"&$R90&"371")) -> 0 | G90: =SUMPRODUCT((MONTH('Budget indtastning'!$B$6:$B$371)=G$5)*(YEAR('Budget indtastning'!$B$6:$B$371)=G$6)+0,INDIRECT("'Budget indtastning'!$"&$R90&"6:"&$R90&"371")) -> 0 | H90: =SUMPRODUCT((MONTH('Budget indtastning'!$B$6:$B$371)=H$5)*(YEAR('Budget indtastning'!$B$6:$B$371)=H$6)+0,INDIRECT("'Budget indtastning'!$"&$R90&"6:"&$R90&"371")) -> 0 | I90: =SUMPRODUCT((MONTH('Budget indtastning'!$B$6:$B$371)=I$5)*(YEAR('Budget indtastning'!$B$6:$B$371)=I$6)+0,INDIRECT("'Budget indtastning'!$"&$R90&"6:"&$R90&"371")) -> 0 | J90: =SUMPRODUCT((MONTH('Budget indtastning'!$B$6:$B$371)=J$5)*(YEAR('Budget indtastning'!$B$6:$B$371)=J$6)+0,INDIRECT("'Budget indtastning'!$"&$R90&"6:"&$R90&"371")) -> 0 | K90: =SUMPRODUCT((MONTH('Budget indtastning'!$B$6:$B$371)=K$5)*(YEAR('Budget indtastning'!$B$6:$B$371)=K$6)+0,INDIRECT("'Budget indtastning'!$"&$R90&"6:"&$R90&"371")) -> 0 | L90: =SUMPRODUCT((MONTH('Budget indtastning'!$B$6:$B$371)=L$5)*(YEAR('Budget indtastning'!$B$6:$B$371)=L$6)+0,INDIRECT("'Budget indtastning'!$"&$R90&"6:"&$R90&"371")) -> 0 | M90: =SUMPRODUCT((MONTH('Budget indtastning'!$B$6:$B$371)=M$5)*(YEAR('Budget indtastning'!$B$6:$B$371)=M$6)+0,INDIRECT("'Budget indtastning'!$"&$R90&"6:"&$R90&"371")) -> 0 | N90: =SUMPRODUCT((MONTH('Budget indtastning'!$B$6:$B$371)=N$5)*(YEAR('Budget indtastning'!$B$6:$B$371)=N$6)+0,INDIRECT("'Budget indtastning'!$"&$R90&"6:"&$R90&"371")) -> 0 | O90: =SUMPRODUCT((MONTH('Budget indtastning'!$B$6:$B$371)=O$5)*(YEAR('Budget indtastning'!$B$6:$B$371)=O$6)+0,INDIRECT("'Budget indtastning'!$"&$R90&"6:"&$R90&"371")) -> 0 | P90: =SUMPRODUCT((MONTH('Budget indtastning'!$B$6:$B$371)=P$5)*(YEAR('Budget indtastning'!$B$6:$B$371)=P$6)+0,INDIRECT("'Budget indtastning'!$"&$R90&"6:"&$R90&"371")) -> 0 | Q90: =SUMPRODUCT((MONTH('Budget indtastning'!$B$6:$B$371)=Q$5)*(YEAR('Budget indtastning'!$B$6:$B$371)=Q$6)+0,INDIRECT("'Budget indtastning'!$"&$R90&"6:"&$R90&"371")) -> 0 | R90: cb
B91: =SUM(F91:Q91) -> 0 | D91: 0 | F91: =SUMPRODUCT((MONTH('Budget indtastning'!$B$6:$B$371)=F$5)*(YEAR('Budget indtastning'!$B$6:$B$371)=F$6)+0,INDIRECT("'Budget indtastning'!$"&$R91&"6:"&$R91&"371")) -> 0 | G91: =SUMPRODUCT((MONTH('Budget indtastning'!$B$6:$B$371)=G$5)*(YEAR('Budget indtastning'!$B$6:$B$371)=G$6)+0,INDIRECT("'Budget indtastning'!$"&$R91&"6:"&$R91&"371")) -> 0 | H91: =SUMPRODUCT((MONTH('Budget indtastning'!$B$6:$B$371)=H$5)*(YEAR('Budget indtastning'!$B$6:$B$371)=H$6)+0,INDIRECT("'Budget indtastning'!$"&$R91&"6:"&$R91&"371")) -> 0 | I91: =SUMPRODUCT((MONTH('Budget indtastning'!$B$6:$B$371)=I$5)*(YEAR('Budget indtastning'!$B$6:$B$371)=I$6)+0,INDIRECT("'Budget indtastning'!$"&$R91&"6:"&$R91&"371")) -> 0 | J91: =SUMPRODUCT((MONTH('Budget indtastning'!$B$6:$B$371)=J$5)*(YEAR('Budget indtastning'!$B$6:$B$371)=J$6)+0,INDIRECT("'Budget indtastning'!$"&$R91&"6:"&$R91&"371")) -> 0 | K91: =SUMPRODUCT((MONTH('Budget indtastning'!$B$6:$B$371)=K$5)*(YEAR('Budget indtastning'!$B$6:$B$371)=K$6)+0,INDIRECT("'Budget indtastning'!$"&$R91&"6:"&$R91&"371")) -> 0 | L91: =SUMPRODUCT((MONTH('Budget indtastning'!$B$6:$B$371)=L$5)*(YEAR('Budget indtastning'!$B$6:$B$371)=L$6)+0,INDIRECT("'Budget indtastning'!$"&$R91&"6:"&$R91&"371")) -> 0 | M91: =SUMPRODUCT((MONTH('Budget indtastning'!$B$6:$B$371)=M$5)*(YEAR('Budget indtastning'!$B$6:$B$371)=M$6)+0,INDIRECT("'Budget indtastning'!$"&$R91&"6:"&$R91&"371")) -> 0 | N91: =SUMPRODUCT((MONTH('Budget indtastning'!$B$6:$B$371)=N$5)*(YEAR('Budget indtastning'!$B$6:$B$371)=N$6)+0,INDIRECT("'Budget indtastning'!$"&$R91&"6:"&$R91&"371")) -> 0 | O91: =SUMPRODUCT((MONTH('Budget indtastning'!$B$6:$B$371)=O$5)*(YEAR('Budget indtastning'!$B$6:$B$371)=O$6)+0,INDIRECT("'Budget indtastning'!$"&$R91&"6:"&$R91&"371")) -> 0 | P91: =SUMPRODUCT((MONTH('Budget indtastning'!$B$6:$B$371)=P$5)*(YEAR('Budget indtastning'!$B$6:$B$371)=P$6)+0,INDIRECT("'Budget indtastning'!$"&$R91&"6:"&$R91&"371")) -> 0 | Q91: =SUMPRODUCT((MONTH('Budget indtastning'!$B$6:$B$371)=Q$5)*(YEAR('Budget indtastning'!$B$6:$B$371)=Q$6)+0,INDIRECT("'Budget indtastning'!$"&$R91&"6:"&$R91&"371")) -> 0 | R91: cc
B92: 0 | D92: 0 | F92: =SUMPRODUCT((MONTH('Budget indtastning'!$B$6:$B$371)=F$5)*(YEAR('Budget indtastning'!$B$6:$B$371)=F$6)+0,INDIRECT("'Budget indtastning'!$"&$R92&"6:"&$R92&"371")) -> 0 | G92: =SUMPRODUCT((MONTH('Budget indtastning'!$B$6:$B$371)=G$5)*(YEAR('Budget indtastning'!$B$6:$B$371)=G$6)+0,INDIRECT("'Budget indtastning'!$"&$R92&"6:"&$R92&"371")) -> 0 | H92: =SUMPRODUCT((MONTH('Budget indtastning'!$B$6:$B$371)=H$5)*(YEAR('Budget indtastning'!$B$6:$B$371)=H$6)+0,INDIRECT("'Budget indtastning'!$"&$R92&"6:"&$R92&"371")) -> 0 | I92: =SUMPRODUCT((MONTH('Budget indtastning'!$B$6:$B$371)=I$5)*(YEAR('Budget indtastning'!$B$6:$B$371)=I$6)+0,INDIRECT("'Budget indtastning'!$"&$R92&"6:"&$R92&"371")) -> 0 | J92: =SUMPRODUCT((MONTH('Budget indtastning'!$B$6:$B$371)=J$5)*(YEAR('Budget indtastning'!$B$6:$B$371)=J$6)+0,INDIRECT("'Budget indtastning'!$"&$R92&"6:"&$R92&"371")) -> 0 | K92: =SUMPRODUCT((MONTH('Budget indtastning'!$B$6:$B$371)=K$5)*(YEAR('Budget indtastning'!$B$6:$B$371)=K$6)+0,INDIRECT("'Budget indtastning'!$"&$R92&"6:"&$R92&"371")) -> 0 | L92: =SUMPRODUCT((MONTH('Budget indtastning'!$B$6:$B$371)=L$5)*(YEAR('Budget indtastning'!$B$6:$B$371)=L$6)+0,INDIRECT("'Budget indtastning'!$"&$R92&"6:"&$R92&"371")) -> 0 | M92: =SUMPRODUCT((MONTH('Budget indtastning'!$B$6:$B$371)=M$5)*(YEAR('Budget indtastning'!$B$6:$B$371)=M$6)+0,INDIRECT("'Budget indtastning'!$"&$R92&"6:"&$R92&"371")) -> 0 | N92: =SUMPRODUCT((MONTH('Budget indtastning'!$B$6:$B$371)=N$5)*(YEAR('Budget indtastning'!$B$6:$B$371)=N$6)+0,INDIRECT("'Budget indtastning'!$"&$R92&"6:"&$R92&"371")) -> 0 | O92: =SUMPRODUCT((MONTH('Budget indtastning'!$B$6:$B$371)=O$5)*(YEAR('Budget indtastning'!$B$6:$B$371)=O$6)+0,INDIRECT("'Budget indtastning'!$"&$R92&"6:"&$R92&"371")) -> 0 | P92: =SUMPRODUCT((MONTH('Budget indtastning'!$B$6:$B$371)=P$5)*(YEAR('Budget indtastning'!$B$6:$B$371)=P$6)+0,INDIRECT("'Budget indtastning'!$"&$R92&"6:"&$R92&"371")) -> 0 | Q92: =SUMPRODUCT((MONTH('Budget indtastning'!$B$6:$B$371)=Q$5)*(YEAR('Budget indtastning'!$B$6:$B$371)=Q$6)+0,INDIRECT("'Budget indtastning'!$"&$R92&"6:"&$R92&"371")) -> 0 | R92: cd
B93: 0 | D93: 0 | F93: =SUMPRODUCT((MONTH('Budget indtastning'!$B$6:$B$371)=F$5)*(YEAR('Budget indtastning'!$B$6:$B$371)=F$6)+0,INDIRECT("'Budget indtastning'!$"&$R93&"6:"&$R93&"371")) -> 0 | G93: =SUMPRODUCT((MONTH('Budget indtastning'!$B$6:$B$371)=G$5)*(YEAR('Budget indtastning'!$B$6:$B$371)=G$6)+0,INDIRECT("'Budget indtastning'!$"&$R93&"6:"&$R93&"371")) -> 0 | H93: =SUMPRODUCT((MONTH('Budget indtastning'!$B$6:$B$371)=H$5)*(YEAR('Budget indtastning'!$B$6:$B$371)=H$6)+0,INDIRECT("'Budget indtastning'!$"&$R93&"6:"&$R93&"371")) -> 0 | I93: =SUMPRODUCT((MONTH('Budget indtastning'!$B$6:$B$371)=I$5)*(YEAR('Budget indtastning'!$B$6:$B$371)=I$6)+0,INDIRECT("'Budget indtastning'!$"&$R93&"6:"&$R93&"371")) -> 0 | J93: =SUMPRODUCT((MONTH('Budget indtastning'!$B$6:$B$371)=J$5)*(YEAR('Budget indtastning'!$B$6:$B$371)=J$6)+0,INDIRECT("'Budget indtastning'!$"&$R93&"6:"&$R93&"371")) -> 0 | K93: =SUMPRODUCT((MONTH('Budget indtastning'!$B$6:$B$371)=K$5)*(YEAR('Budget indtastning'!$B$6:$B$371)=K$6)+0,INDIRECT("'Budget indtastning'!$"&$R93&"6:"&$R93&"371")) -> 0 | L93: =SUMPRODUCT((MONTH('Budget indtastning'!$B$6:$B$371)=L$5)*(YEAR('Budget indtastning'!$B$6:$B$371)=L$6)+0,INDIRECT("'Budget indtastning'!$"&$R93&"6:"&$R93&"371")) -> 0 | M93: =SUMPRODUCT((MONTH('Budget indtastning'!$B$6:$B$371)=M$5)*(YEAR('Budget indtastning'!$B$6:$B$371)=M$6)+0,INDIRECT("'Budget indtastning'!$"&$R93&"6:"&$R93&"371")) -> 0 | N93: =SUMPRODUCT((MONTH('Budget indtastning'!$B$6:$B$371)=N$5)*(YEAR('Budget indtastning'!$B$6:$B$371)=N$6)+0,INDIRECT("'Budget indtastning'!$"&$R93&"6:"&$R93&"371")) -> 0 | O93: =SUMPRODUCT((MONTH('Budget indtastning'!$B$6:$B$371)=O$5)*(YEAR('Budget indtastning'!$B$6:$B$371)=O$6)+0,INDIRECT("'Budget indtastning'!$"&$R93&"6:"&$R93&"371")) -> 0 | P93: =SUMPRODUCT((MONTH('Budget indtastning'!$B$6:$B$371)=P$5)*(YEAR('Budget indtastning'!$B$6:$B$371)=P$6)+0,INDIRECT("'Budget indtastning'!$"&$R93&"6:"&$R93&"371")) -> 0 | Q93: =SUMPRODUCT((MONTH('Budget indtastning'!$B$6:$B$371)=Q$5)*(YEAR('Budget indtastning'!$B$6:$B$371)=Q$6)+0,INDIRECT("'Budget indtastning'!$"&$R93&"6:"&$R93&"371")) -> 0 | R93: ce
B94: 0 | D94: 0 | F94: =SUMPRODUCT((MONTH('Budget indtastning'!$B$6:$B$371)=F$5)*(YEAR('Budget indtastning'!$B$6:$B$371)=F$6)+0,INDIRECT("'Budget indtastning'!$"&$R94&"6:"&$R94&"371")) -> 0 | G94: =SUMPRODUCT((MONTH('Budget indtastning'!$B$6:$B$371)=G$5)*(YEAR('Budget indtastning'!$B$6:$B$371)=G$6)+0,INDIRECT("'Budget indtastning'!$"&$R94&"6:"&$R94&"371")) -> 0 | H94: =SUMPRODUCT((MONTH('Budget indtastning'!$B$6:$B$371)=H$5)*(YEAR('Budget indtastning'!$B$6:$B$371)=H$6)+0,INDIRECT("'Budget indtastning'!$"&$R94&"6:"&$R94&"371")) -> 0 | I94: =SUMPRODUCT((MONTH('Budget indtastning'!$B$6:$B$371)=I$5)*(YEAR('Budget indtastning'!$B$6:$B$371)=I$6)+0,INDIRECT("'Budget indtastning'!$"&$R94&"6:"&$R94&"371")) -> 0 | J94: =SUMPRODUCT((MONTH('Budget indtastning'!$B$6:$B$371)=J$5)*(YEAR('Budget indtastning'!$B$6:$B$371)=J$6)+0,INDIRECT("'Budget indtastning'!$"&$R94&"6:"&$R94&"371")) -> 0 | K94: =SUMPRODUCT((MONTH('Budget indtastning'!$B$6:$B$371)=K$5)*(YEAR('Budget indtastning'!$B$6:$B$371)=K$6)+0,INDIRECT("'Budget indtastning'!$"&$R94&"6:"&$R94&"371")) -> 0 | L94: =SUMPRODUCT((MONTH('Budget indtastning'!$B$6:$B$371)=L$5)*(YEAR('Budget indtastning'!$B$6:$B$371)=L$6)+0,INDIRECT("'Budget indtastning'!$"&$R94&"6:"&$R94&"371")) -> 0 | M94: =SUMPRODUCT((MONTH('Budget indtastning'!$B$6:$B$371)=M$5)*(YEAR('Budget indtastning'!$B$6:$B$371)=M$6)+0,INDIRECT("'Budget indtastning'!$"&$R94&"6:"&$R94&"371")) -> 0 | N94: =SUMPRODUCT((MONTH('Budget indtastning'!$B$6:$B$371)=N$5)*(YEAR('Budget indtastning'!$B$6:$B$371)=N$6)+0,INDIRECT("'Budget indtastning'!$"&$R94&"6:"&$R94&"371")) -> 0 | O94: =SUMPRODUCT((MONTH('Budget indtastning'!$B$6:$B$371)=O$5)*(YEAR('Budget indtastning'!$B$6:$B$371)=O$6)+0,INDIRECT("'Budget indtastning'!$"&$R94&"6:"&$R94&"371")) -> 0 | P94: =SUMPRODUCT((MONTH('Budget indtastning'!$B$6:$B$371)=P$5)*(YEAR('Budget indtastning'!$B$6:$B$371)=P$6)+0,INDIRECT("'Budget indtastning'!$"&$R94&"6:"&$R94&"371")) -> 0 | Q94: =SUMPRODUCT((MONTH('Budget indtastning'!$B$6:$B$371)=Q$5)*(YEAR('Budget indtastning'!$B$6:$B$371)=Q$6)+0,INDIRECT("'Budget indtastning'!$"&$R94&"6:"&$R94&"371")) -> 0 | R94: cf
B95: 0 | D95: 0 | F95: =SUMPRODUCT((MONTH('Budget indtastning'!$B$6:$B$371)=F$5)*(YEAR('Budget indtastning'!$B$6:$B$371)=F$6)+0,INDIRECT("'Budget indtastning'!$"&$R95&"6:"&$R95&"371")) -> 0 | G95: =SUMPRODUCT((MONTH('Budget indtastning'!$B$6:$B$371)=G$5)*(YEAR('Budget indtastning'!$B$6:$B$371)=G$6)+0,INDIRECT("'Budget indtastning'!$"&$R95&"6:"&$R95&"371")) -> 0 | H95: =SUMPRODUCT((MONTH('Budget indtastning'!$B$6:$B$371)=H$5)*(YEAR('Budget indtastning'!$B$6:$B$371)=H$6)+0,INDIRECT("'Budget indtastning'!$"&$R95&"6:"&$R95&"371")) -> 0 | I95: =SUMPRODUCT((MONTH('Budget indtastning'!$B$6:$B$371)=I$5)*(YEAR('Budget indtastning'!$B$6:$B$371)=I$6)+0,INDIRECT("'Budget indtastning'!$"&$R95&"6:"&$R95&"371")) -> 0 | J95: =SUMPRODUCT((MONTH('Budget indtastning'!$B$6:$B$371)=J$5)*(YEAR('Budget indtastning'!$B$6:$B$371)=J$6)+0,INDIRECT("'Budget indtastning'!$"&$R95&"6:"&$R95&"371")) -> 0 | K95: =SUMPRODUCT((MONTH('Budget indtastning'!$B$6:$B$371)=K$5)*(YEAR('Budget indtastning'!$B$6:$B$371)=K$6)+0,INDIRECT("'Budget indtastning'!$"&$R95&"6:"&$R95&"371")) -> 0 | L95: =SUMPRODUCT((MONTH('Budget indtastning'!$B$6:$B$371)=L$5)*(YEAR('Budget indtastning'!$B$6:$B$371)=L$6)+0,INDIRECT("'Budget indtastning'!$"&$R95&"6:"&$R95&"371")) -> 0 | M95: =SUMPRODUCT((MONTH('Budget indtastning'!$B$6:$B$371)=M$5)*(YEAR('Budget indtastning'!$B$6:$B$371)=M$6)+0,INDIRECT("'Budget indtastning'!$"&$R95&"6:"&$R95&"371")) -> 0 | N95: =SUMPRODUCT((MONTH('Budget indtastning'!$B$6:$B$371)=N$5)*(YEAR('Budget indtastning'!$B$6:$B$371)=N$6)+0,INDIRECT("'Budget indtastning'!$"&$R95&"6:"&$R95&"371")) -> 0 | O95: =SUMPRODUCT((MONTH('Budget indtastning'!$B$6:$B$371)=O$5)*(YEAR('Budget indtastning'!$B$6:$B$371)=O$6)+0,INDIRECT("'Budget indtastning'!$"&$R95&"6:"&$R95&"371")) -> 0 | P95: =SUMPRODUCT((MONTH('Budget indtastning'!$B$6:$B$371)=P$5)*(YEAR('Budget indtastning'!$B$6:$B$371)=P$6)+0,INDIRECT("'Budget indtastning'!$"&$R95&"6:"&$R95&"371")) -> 0 | Q95: =SUMPRODUCT((MONTH('Budget indtastning'!$B$6:$B$371)=Q$5)*(YEAR('Budget indtastning'!$B$6:$B$371)=Q$6)+0,INDIRECT("'Budget indtastning'!$"&$R95&"6:"&$R95&"371")) -> 0 | R95: cg
B96: 0 | D96: 0 | F96: =SUMPRODUCT((MONTH('Budget indtastning'!$B$6:$B$371)=F$5)*(YEAR('Budget indtastning'!$B$6:$B$371)=F$6)+0,INDIRECT("'Budget indtastning'!$"&$R96&"6:"&$R96&"371")) -> 0 | G96: =SUMPRODUCT((MONTH('Budget indtastning'!$B$6:$B$371)=G$5)*(YEAR('Budget indtastning'!$B$6:$B$371)=G$6)+0,INDIRECT("'Budget indtastning'!$"&$R96&"6:"&$R96&"371")) -> 0 | H96: =SUMPRODUCT((MONTH('Budget indtastning'!$B$6:$B$371)=H$5)*(YEAR('Budget indtastning'!$B$6:$B$371)=H$6)+0,INDIRECT("'Budget indtastning'!$"&$R96&"6:"&$R96&"371")) -> 0 | I96: =SUMPRODUCT((MONTH('Budget indtastning'!$B$6:$B$371)=I$5)*(YEAR('Budget indtastning'!$B$6:$B$371)=I$6)+0,INDIRECT("'Budget indtastning'!$"&$R96&"6:"&$R96&"371")) -> 0 | J96: =SUMPRODUCT((MONTH('Budget indtastning'!$B$6:$B$371)=J$5)*(YEAR('Budget indtastning'!$B$6:$B$371)=J$6)+0,INDIRECT("'Budget indtastning'!$"&$R96&"6:"&$R96&"371")) -> 0 | K96: =SUMPRODUCT((MONTH('Budget indtastning'!$B$6:$B$371)=K$5)*(YEAR('Budget indtastning'!$B$6:$B$371)=K$6)+0,INDIRECT("'Budget indtastning'!$"&$R96&"6:"&$R96&"371")) -> 0 | L96: =SUMPRODUCT((MONTH('Budget indtastning'!$B$6:$B$371)=L$5)*(YEAR('Budget indtastning'!$B$6:$B$371)=L$6)+0,INDIRECT("'Budget indtastning'!$"&$R96&"6:"&$R96&"371")) -> 0 | M96: =SUMPRODUCT((MONTH('Budget indtastning'!$B$6:$B$371)=M$5)*(YEAR('Budget indtastning'!$B$6:$B$371)=M$6)+0,INDIRECT("'Budget indtastning'!$"&$R96&"6:"&$R96&"371")) -> 0 | N96: =SUMPRODUCT((MONTH('Budget indtastning'!$B$6:$B$371)=N$5)*(YEAR('Budget indtastning'!$B$6:$B$371)=N$6)+0,INDIRECT("'Budget indtastning'!$"&$R96&"6:"&$R96&"371")) -> 0 | O96: =SUMPRODUCT((MONTH('Budget indtastning'!$B$6:$B$371)=O$5)*(YEAR('Budget indtastning'!$B$6:$B$371)=O$6)+0,INDIRECT("'Budget indtastning'!$"&$R96&"6:"&$R96&"371")) -> 0 | P96: =SUMPRODUCT((MONTH('Budget indtastning'!$B$6:$B$371)=P$5)*(YEAR('Budget indtastning'!$B$6:$B$371)=P$6)+0,INDIRECT("'Budget indtastning'!$"&$R96&"6:"&$R96&"371")) -> 0 | Q96: =SUMPRODUCT((MONTH('Budget indtastning'!$B$6:$B$371)=Q$5)*(YEAR('Budget indtastning'!$B$6:$B$371)=Q$6)+0,INDIRECT("'Budget indtastning'!$"&$R96&"6:"&$R96&"371")) -> 0 | R96: ch
B97: 0 | D97: 0 | F97: =SUMPRODUCT((MONTH('Budget indtastning'!$B$6:$B$371)=F$5)*(YEAR('Budget indtastning'!$B$6:$B$371)=F$6)+0,INDIRECT("'Budget indtastning'!$"&$R97&"6:"&$R97&"371")) -> 0 | G97: =SUMPRODUCT((MONTH('Budget indtastning'!$B$6:$B$371)=G$5)*(YEAR('Budget indtastning'!$B$6:$B$371)=G$6)+0,INDIRECT("'Budget indtastning'!$"&$R97&"6:"&$R97&"371")) -> 0 | H97: =SUMPRODUCT((MONTH('Budget indtastning'!$B$6:$B$371)=H$5)*(YEAR('Budget indtastning'!$B$6:$B$371)=H$6)+0,INDIRECT("'Budget indtastning'!$"&$R97&"6:"&$R97&"371")) -> 0 | I97: =SUMPRODUCT((MONTH('Budget indtastning'!$B$6:$B$371)=I$5)*(YEAR('Budget indtastning'!$B$6:$B$371)=I$6)+0,INDIRECT("'Budget indtastning'!$"&$R97&"6:"&$R97&"371")) -> 0 | J97: =SUMPRODUCT((MONTH('Budget indtastning'!$B$6:$B$371)=J$5)*(YEAR('Budget indtastning'!$B$6:$B$371)=J$6)+0,INDIRECT("'Budget indtastning'!$"&$R97&"6:"&$R97&"371")) -> 0 | K97: =SUMPRODUCT((MONTH('Budget indtastning'!$B$6:$B$371)=K$5)*(YEAR('Budget indtastning'!$B$6:$B$371)=K$6)+0,INDIRECT("'Budget indtastning'!$"&$R97&"6:"&$R97&"371")) -> 0 | L97: =SUMPRODUCT((MONTH('Budget indtastning'!$B$6:$B$371)=L$5)*(YEAR('Budget indtastning'!$B$6:$B$371)=L$6)+0,INDIRECT("'Budget indtastning'!$"&$R97&"6:"&$R97&"371")) -> 0 | M97: =SUMPRODUCT((MONTH('Budget indtastning'!$B$6:$B$371)=M$5)*(YEAR('Budget indtastning'!$B$6:$B$371)=M$6)+0,INDIRECT("'Budget indtastning'!$"&$R97&"6:"&$R97&"371")) -> 0 | N97: =SUMPRODUCT((MONTH('Budget indtastning'!$B$6:$B$371)=N$5)*(YEAR('Budget indtastning'!$B$6:$B$371)=N$6)+0,INDIRECT("'Budget indtastning'!$"&$R97&"6:"&$R97&"371")) -> 0 | O97: =SUMPRODUCT((MONTH('Budget indtastning'!$B$6:$B$371)=O$5)*(YEAR('Budget indtastning'!$B$6:$B$371)=O$6)+0,INDIRECT("'Budget indtastning'!$"&$R97&"6:"&$R97&"371")) -> 0 | P97: =SUMPRODUCT((MONTH('Budget indtastning'!$B$6:$B$371)=P$5)*(YEAR('Budget indtastning'!$B$6:$B$371)=P$6)+0,INDIRECT("'Budget indtastning'!$"&$R97&"6:"&$R97&"371")) -> 0 | Q97: =SUMPRODUCT((MONTH('Budget indtastning'!$B$6:$B$371)=Q$5)*(YEAR('Budget indtastning'!$B$6:$B$371)=Q$6)+0,INDIRECT("'Budget indtastning'!$"&$R97&"6:"&$R97&"371")) -> 0 | R97: ci
B98: 0 | D98: 0 | F98: =SUMPRODUCT((MONTH('Budget indtastning'!$B$6:$B$371)=F$5)*(YEAR('Budget indtastning'!$B$6:$B$371)=F$6)+0,INDIRECT("'Budget indtastning'!$"&$R98&"6:"&$R98&"371")) -> 0 | G98: =SUMPRODUCT((MONTH('Budget indtastning'!$B$6:$B$371)=G$5)*(YEAR('Budget indtastning'!$B$6:$B$371)=G$6)+0,INDIRECT("'Budget indtastning'!$"&$R98&"6:"&$R98&"371")) -> 0 | H98: =SUMPRODUCT((MONTH('Budget indtastning'!$B$6:$B$371)=H$5)*(YEAR('Budget indtastning'!$B$6:$B$371)=H$6)+0,INDIRECT("'Budget indtastning'!$"&$R98&"6:"&$R98&"371")) -> 0 | I98: =SUMPRODUCT((MONTH('Budget indtastning'!$B$6:$B$371)=I$5)*(YEAR('Budget indtastning'!$B$6:$B$371)=I$6)+0,INDIRECT("'Budget indtastning'!$"&$R98&"6:"&$R98&"371")) -> 0 | J98: =SUMPRODUCT((MONTH('Budget indtastning'!$B$6:$B$371)=J$5)*(YEAR('Budget indtastning'!$B$6:$B$371)=J$6)+0,INDIRECT("'Budget indtastning'!$"&$R98&"6:"&$R98&"371")) -> 0 | K98: =SUMPRODUCT((MONTH('Budget indtastning'!$B$6:$B$371)=K$5)*(YEAR('Budget indtastning'!$B$6:$B$371)=K$6)+0,INDIRECT("'Budget indtastning'!$"&$R98&"6:"&$R98&"371")) -> 0 | L98: =SUMPRODUCT((MONTH('Budget indtastning'!$B$6:$B$371)=L$5)*(YEAR('Budget indtastning'!$B$6:$B$371)=L$6)+0,INDIRECT("'Budget indtastning'!$"&$R98&"6:"&$R98&"371")) -> 0 | M98: =SUMPRODUCT((MONTH('Budget indtastning'!$B$6:$B$371)=M$5)*(YEAR('Budget indtastning'!$B$6:$B$371)=M$6)+0,INDIRECT("'Budget indtastning'!$"&$R98&"6:"&$R98&"371")) -> 0 | N98: =SUMPRODUCT((MONTH('Budget indtastning'!$B$6:$B$371)=N$5)*(YEAR('Budget indtastning'!$B$6:$B$371)=N$6)+0,INDIRECT("'Budget indtastning'!$"&$R98&"6:"&$R98&"371")) -> 0 | O98: =SUMPRODUCT((MONTH('Budget indtastning'!$B$6:$B$371)=O$5)*(YEAR('Budget indtastning'!$B$6:$B$371)=O$6)+0,INDIRECT("'Budget indtastning'!$"&$R98&"6:"&$R98&"371")) -> 0 | P98: =SUMPRODUCT((MONTH('Budget indtastning'!$B$6:$B$371)=P$5)*(YEAR('Budget indtastning'!$B$6:$B$371)=P$6)+0,INDIRECT("'Budget indtastning'!$"&$R98&"6:"&$R98&"371")) -> 0 | Q98: =SUMPRODUCT((MONTH('Budget indtastning'!$B$6:$B$371)=Q$5)*(YEAR('Budget indtastning'!$B$6:$B$371)=Q$6)+0,INDIRECT("'Budget indtastning'!$"&$R98&"6:"&$R98&"371")) -> 0 | R98: cj
B99: 0 | D99: =B99/12 -> 0 | F99: =SUMPRODUCT((MONTH('Budget indtastning'!$B$6:$B$371)=F$5)*(YEAR('Budget indtastning'!$B$6:$B$371)=F$6)+0,INDIRECT("'Budget indtastning'!$"&$R99&"6:"&$R99&"371")) -> 0 | G99: =SUMPRODUCT((MONTH('Budget indtastning'!$B$6:$B$371)=G$5)*(YEAR('Budget indtastning'!$B$6:$B$371)=G$6)+0,INDIRECT("'Budget indtastning'!$"&$R99&"6:"&$R99&"371")) -> 0 | H99: =SUMPRODUCT((MONTH('Budget indtastning'!$B$6:$B$371)=H$5)*(YEAR('Budget indtastning'!$B$6:$B$371)=H$6)+0,INDIRECT("'Budget indtastning'!$"&$R99&"6:"&$R99&"371")) -> 0 | I99: =SUMPRODUCT((MONTH('Budget indtastning'!$B$6:$B$371)=I$5)*(YEAR('Budget indtastning'!$B$6:$B$371)=I$6)+0,INDIRECT("'Budget indtastning'!$"&$R99&"6:"&$R99&"371")) -> 0 | J99: =SUMPRODUCT((MONTH('Budget indtastning'!$B$6:$B$371)=J$5)*(YEAR('Budget indtastning'!$B$6:$B$371)=J$6)+0,INDIRECT("'Budget indtastning'!$"&$R99&"6:"&$R99&"371")) -> 0 | K99: =SUMPRODUCT((MONTH('Budget indtastning'!$B$6:$B$371)=K$5)*(YEAR('Budget indtastning'!$B$6:$B$371)=K$6)+0,INDIRECT("'Budget indtastning'!$"&$R99&"6:"&$R99&"371")) -> 0 | L99: =SUMPRODUCT((MONTH('Budget indtastning'!$B$6:$B$371)=L$5)*(YEAR('Budget indtastning'!$B$6:$B$371)=L$6)+0,INDIRECT("'Budget indtastning'!$"&$R99&"6:"&$R99&"371")) -> 0 | M99: =SUMPRODUCT((MONTH('Budget indtastning'!$B$6:$B$371)=M$5)*(YEAR('Budget indtastning'!$B$6:$B$371)=M$6)+0,INDIRECT("'Budget indtastning'!$"&$R99&"6:"&$R99&"371")) -> 0 | N99: =SUMPRODUCT((MONTH('Budget indtastning'!$B$6:$B$371)=N$5)*(YEAR('Budget indtastning'!$B$6:$B$371)=N$6)+0,INDIRECT("'Budget indtastning'!$"&$R99&"6:"&$R99&"371")) -> 0 | O99: =SUMPRODUCT((MONTH('Budget indtastning'!$B$6:$B$371)=O$5)*(YEAR('Budget indtastning'!$B$6:$B$371)=O$6)+0,INDIRECT("'Budget indtastning'!$"&$R99&"6:"&$R99&"371")) -> 0 | P99: =SUMPRODUCT((MONTH('Budget indtastning'!$B$6:$B$371)=P$5)*(YEAR('Budget indtastning'!$B$6:$B$371)=P$6)+0,INDIRECT("'Budget indtastning'!$"&$R99&"6:"&$R99&"371")) -> 0 | Q99: =SUMPRODUCT((MONTH('Budget indtastning'!$B$6:$B$371)=Q$5)*(YEAR('Budget indtastning'!$B$6:$B$371)=Q$6)+0,INDIRECT("'Budget indtastning'!$"&$R99&"6:"&$R99&"371")) -> 0 | R99: ck
B100: 0 | D100: 0 | F100: =SUMPRODUCT((MONTH('Budget indtastning'!$B$6:$B$371)=F$5)*(YEAR('Budget indtastning'!$B$6:$B$371)=F$6)+0,INDIRECT("'Budget indtastning'!$"&$R100&"6:"&$R100&"371")) -> 0 | G100: =SUMPRODUCT((MONTH('Budget indtastning'!$B$6:$B$371)=G$5)*(YEAR('Budget indtastning'!$B$6:$B$371)=G$6)+0,INDIRECT("'Budget indtastning'!$"&$R100&"6:"&$R100&"371")) -> 0 | H100: =SUMPRODUCT((MONTH('Budget indtastning'!$B$6:$B$371)=H$5)*(YEAR('Budget indtastning'!$B$6:$B$371)=H$6)+0,INDIRECT("'Budget indtastning'!$"&$R100&"6:"&$R100&"371")) -> 0 | I100: =SUMPRODUCT((MONTH('Budget indtastning'!$B$6:$B$371)=I$5)*(YEAR('Budget indtastning'!$B$6:$B$371)=I$6)+0,INDIRECT("'Budget indtastning'!$"&$R100&"6:"&$R100&"371")) -> 0 | J100: =SUMPRODUCT((MONTH('Budget indtastning'!$B$6:$B$371)=J$5)*(YEAR('Budget indtastning'!$B$6:$B$371)=J$6)+0,INDIRECT("'Budget indtastning'!$"&$R100&"6:"&$R100&"371")) -> 0 | K100: =SUMPRODUCT((MONTH('Budget indtastning'!$B$6:$B$371)=K$5)*(YEAR('Budget indtastning'!$B$6:$B$371)=K$6)+0,INDIRECT("'Budget indtastning'!$"&$R100&"6:"&$R100&"371")) -> 0 | L100: =SUMPRODUCT((MONTH('Budget indtastning'!$B$6:$B$371)=L$5)*(YEAR('Budget indtastning'!$B$6:$B$371)=L$6)+0,INDIRECT("'Budget indtastning'!$"&$R100&"6:"&$R100&"371")) -> 0 | M100: =SUMPRODUCT((MONTH('Budget indtastning'!$B$6:$B$371)=M$5)*(YEAR('Budget indtastning'!$B$6:$B$371)=M$6)+0,INDIRECT("'Budget indtastning'!$"&$R100&"6:"&$R100&"371")) -> 0 | N100: =SUMPRODUCT((MONTH('Budget indtastning'!$B$6:$B$371)=N$5)*(YEAR('Budget indtastning'!$B$6:$B$371)=N$6)+0,INDIRECT("'Budget indtastning'!$"&$R100&"6:"&$R100&"371")) -> 0 | O100: =SUMPRODUCT((MONTH('Budget indtastning'!$B$6:$B$371)=O$5)*(YEAR('Budget indtastning'!$B$6:$B$371)=O$6)+0,INDIRECT("'Budget indtastning'!$"&$R100&"6:"&$R100&"371")) -> 0 | P100: =SUMPRODUCT((MONTH('Budget indtastning'!$B$6:$B$371)=P$5)*(YEAR('Budget indtastning'!$B$6:$B$371)=P$6)+0,INDIRECT("'Budget indtastning'!$"&$R100&"6:"&$R100&"371")) -> 0 | Q100: =SUMPRODUCT((MONTH('Budget indtastning'!$B$6:$B$371)=Q$5)*(YEAR('Budget indtastning'!$B$6:$B$371)=Q$6)+0,INDIRECT("'Budget indtastning'!$"&$R100&"6:"&$R100&"371")) -> 0 | R100: cl
B101: 0 | D101: 0 | F101: =SUMPRODUCT((MONTH('Budget indtastning'!$B$6:$B$371)=F$5)*(YEAR('Budget indtastning'!$B$6:$B$371)=F$6)+0,INDIRECT("'Budget indtastning'!$"&$R101&"6:"&$R101&"371")) -> 0 | G101: =SUMPRODUCT((MONTH('Budget indtastning'!$B$6:$B$371)=G$5)*(YEAR('Budget indtastning'!$B$6:$B$371)=G$6)+0,INDIRECT("'Budget indtastning'!$"&$R101&"6:"&$R101&"371")) -> 0 | H101: =SUMPRODUCT((MONTH('Budget indtastning'!$B$6:$B$371)=H$5)*(YEAR('Budget indtastning'!$B$6:$B$371)=H$6)+0,INDIRECT("'Budget indtastning'!$"&$R101&"6:"&$R101&"371")) -> 0 | I101: =SUMPRODUCT((MONTH('Budget indtastning'!$B$6:$B$371)=I$5)*(YEAR('Budget indtastning'!$B$6:$B$371)=I$6)+0,INDIRECT("'Budget indtastning'!$"&$R101&"6:"&$R101&"371")) -> 0 | J101: =SUMPRODUCT((MONTH('Budget indtastning'!$B$6:$B$371)=J$5)*(YEAR('Budget indtastning'!$B$6:$B$371)=J$6)+0,INDIRECT("'Budget indtastning'!$"&$R101&"6:"&$R101&"371")) -> 0 | K101: =SUMPRODUCT((MONTH('Budget indtastning'!$B$6:$B$371)=K$5)*(YEAR('Budget indtastning'!$B$6:$B$371)=K$6)+0,INDIRECT("'Budget indtastning'!$"&$R101&"6:"&$R101&"371")) -> 0 | L101: =SUMPRODUCT((MONTH('Budget indtastning'!$B$6:$B$371)=L$5)*(YEAR('Budget indtastning'!$B$6:$B$371)=L$6)+0,INDIRECT("'Budget indtastning'!$"&$R101&"6:"&$R101&"371")) -> 0 | M101: =SUMPRODUCT((MONTH('Budget indtastning'!$B$6:$B$371)=M$5)*(YEAR('Budget indtastning'!$B$6:$B$371)=M$6)+0,INDIRECT("'Budget indtastning'!$"&$R101&"6:"&$R101&"371")) -> 0 | N101: =SUMPRODUCT((MONTH('Budget indtastning'!$B$6:$B$371)=N$5)*(YEAR('Budget indtastning'!$B$6:$B$371)=N$6)+0,INDIRECT("'Budget indtastning'!$"&$R101&"6:"&$R101&"371")) -> 0 | O101: =SUMPRODUCT((MONTH('Budget indtastning'!$B$6:$B$371)=O$5)*(YEAR('Budget indtastning'!$B$6:$B$371)=O$6)+0,INDIRECT("'Budget indtastning'!$"&$R101&"6:"&$R101&"371")) -> 0 | P101: =SUMPRODUCT((MONTH('Budget indtastning'!$B$6:$B$371)=P$5)*(YEAR('Budget indtastning'!$B$6:$B$371)=P$6)+0,INDIRECT("'Budget indtastning'!$"&$R101&"6:"&$R101&"371")) -> 0 | Q101: =SUMPRODUCT((MONTH('Budget indtastning'!$B$6:$B$371)=Q$5)*(YEAR('Budget indtastning'!$B$6:$B$371)=Q$6)+0,INDIRECT("'Budget indtastning'!$"&$R101&"6:"&$R101&"371")) -> 0 | R101: cm
B102: 0 | D102: 0 | F102: =SUMPRODUCT((MONTH('Budget indtastning'!$B$6:$B$371)=F$5)*(YEAR('Budget indtastning'!$B$6:$B$371)=F$6)+0,INDIRECT("'Budget indtastning'!$"&$R102&"6:"&$R102&"371")) -> 0 | G102: =SUMPRODUCT((MONTH('Budget indtastning'!$B$6:$B$371)=G$5)*(YEAR('Budget indtastning'!$B$6:$B$371)=G$6)+0,INDIRECT("'Budget indtastning'!$"&$R102&"6:"&$R102&"371")) -> 0 | H102: =SUMPRODUCT((MONTH('Budget indtastning'!$B$6:$B$371)=H$5)*(YEAR('Budget indtastning'!$B$6:$B$371)=H$6)+0,INDIRECT("'Budget indtastning'!$"&$R102&"6:"&$R102&"371")) -> 0 | I102: =SUMPRODUCT((MONTH('Budget indtastning'!$B$6:$B$371)=I$5)*(YEAR('Budget indtastning'!$B$6:$B$371)=I$6)+0,INDIRECT("'Budget indtastning'!$"&$R102&"6:"&$R102&"371")) -> 0 | J102: =SUMPRODUCT((MONTH('Budget indtastning'!$B$6:$B$371)=J$5)*(YEAR('Budget indtastning'!$B$6:$B$371)=J$6)+0,INDIRECT("'Budget indtastning'!$"&$R102&"6:"&$R102&"371")) -> 0 | K102: =SUMPRODUCT((MONTH('Budget indtastning'!$B$6:$B$371)=K$5)*(YEAR('Budget indtastning'!$B$6:$B$371)=K$6)+0,INDIRECT("'Budget indtastning'!$"&$R102&"6:"&$R102&"371")) -> 0 | L102: =SUMPRODUCT((MONTH('Budget indtastning'!$B$6:$B$371)=L$5)*(YEAR('Budget indtastning'!$B$6:$B$371)=L$6)+0,INDIRECT("'Budget indtastning'!$"&$R102&"6:"&$R102&"371")) -> 0 | M102: =SUMPRODUCT((MONTH('Budget indtastning'!$B$6:$B$371)=M$5)*(YEAR('Budget indtastning'!$B$6:$B$371)=M$6)+0,INDIRECT("'Budget indtastning'!$"&$R102&"6:"&$R102&"371")) -> 0 | N102: =SUMPRODUCT((MONTH('Budget indtastning'!$B$6:$B$371)=N$5)*(YEAR('Budget indtastning'!$B$6:$B$371)=N$6)+0,INDIRECT("'Budget indtastning'!$"&$R102&"6:"&$R102&"371")) -> 0 | O102: =SUMPRODUCT((MONTH('Budget indtastning'!$B$6:$B$371)=O$5)*(YEAR('Budget indtastning'!$B$6:$B$371)=O$6)+0,INDIRECT("'Budget indtastning'!$"&$R102&"6:"&$R102&"371")) -> 0 | P102: =SUMPRODUCT((MONTH('Budget indtastning'!$B$6:$B$371)=P$5)*(YEAR('Budget indtastning'!$B$6:$B$371)=P$6)+0,INDIRECT("'Budget indtastning'!$"&$R102&"6:"&$R102&"371")) -> 0 | Q102: =SUMPRODUCT((MONTH('Budget indtastning'!$B$6:$B$371)=Q$5)*(YEAR('Budget indtastning'!$B$6:$B$371)=Q$6)+0,INDIRECT("'Budget indtastning'!$"&$R102&"6:"&$R102&"371")) -> 0 | R102: cn
B103: 0 | D103: 0 | F103: =SUMPRODUCT((MONTH('Budget indtastning'!$B$6:$B$371)=F$5)*(YEAR('Budget indtastning'!$B$6:$B$371)=F$6)+0,INDIRECT("'Budget indtastning'!$"&$R103&"6:"&$R103&"371")) -> 0 | G103: =SUMPRODUCT((MONTH('Budget indtastning'!$B$6:$B$371)=G$5)*(YEAR('Budget indtastning'!$B$6:$B$371)=G$6)+0,INDIRECT("'Budget indtastning'!$"&$R103&"6:"&$R103&"371")) -> 0 | H103: =SUMPRODUCT((MONTH('Budget indtastning'!$B$6:$B$371)=H$5)*(YEAR('Budget indtastning'!$B$6:$B$371)=H$6)+0,INDIRECT("'Budget indtastning'!$"&$R103&"6:"&$R103&"371")) -> 0 | I103: =SUMPRODUCT((MONTH('Budget indtastning'!$B$6:$B$371)=I$5)*(YEAR('Budget indtastning'!$B$6:$B$371)=I$6)+0,INDIRECT("'Budget indtastning'!$"&$R103&"6:"&$R103&"371")) -> 0 | J103: =SUMPRODUCT((MONTH('Budget indtastning'!$B$6:$B$371)=J$5)*(YEAR('Budget indtastning'!$B$6:$B$371)=J$6)+0,INDIRECT("'Budget indtastning'!$"&$R103&"6:"&$R103&"371")) -> 0 | K103: =SUMPRODUCT((MONTH('Budget indtastning'!$B$6:$B$371)=K$5)*(YEAR('Budget indtastning'!$B$6:$B$371)=K$6)+0,INDIRECT("'Budget indtastning'!$"&$R103&"6:"&$R103&"371")) -> 0 | L103: =SUMPRODUCT((MONTH('Budget indtastning'!$B$6:$B$371)=L$5)*(YEAR('Budget indtastning'!$B$6:$B$371)=L$6)+0,INDIRECT("'Budget indtastning'!$"&$R103&"6:"&$R103&"371")) -> 0 | M103: =SUMPRODUCT((MONTH('Budget indtastning'!$B$6:$B$371)=M$5)*(YEAR('Budget indtastning'!$B$6:$B$371)=M$6)+0,INDIRECT("'Budget indtastning'!$"&$R103&"6:"&$R103&"371")) -> 0 | N103: =SUMPRODUCT((MONTH('Budget indtastning'!$B$6:$B$371)=N$5)*(YEAR('Budget indtastning'!$B$6:$B$371)=N$6)+0,INDIRECT("'Budget indtastning'!$"&$R103&"6:"&$R103&"371")) -> 0 | O103: =SUMPRODUCT((MONTH('Budget indtastning'!$B$6:$B$371)=O$5)*(YEAR('Budget indtastning'!$B$6:$B$371)=O$6)+0,INDIRECT("'Budget indtastning'!$"&$R103&"6:"&$R103&"371")) -> 0 | P103: =SUMPRODUCT((MONTH('Budget indtastning'!$B$6:$B$371)=P$5)*(YEAR('Budget indtastning'!$B$6:$B$371)=P$6)+0,INDIRECT("'Budget indtastning'!$"&$R103&"6:"&$R103&"371")) -> 0 | Q103: =SUMPRODUCT((MONTH('Budget indtastning'!$B$6:$B$371)=Q$5)*(YEAR('Budget indtastning'!$B$6:$B$371)=Q$6)+0,INDIRECT("'Budget indtastning'!$"&$R103&"6:"&$R103&"371")) -> 0 | R103: co
B104: 0 | D104: 0 | F104: =SUMPRODUCT((MONTH('Budget indtastning'!$B$6:$B$371)=F$5)*(YEAR('Budget indtastning'!$B$6:$B$371)=F$6)+0,INDIRECT("'Budget indtastning'!$"&$R104&"6:"&$R104&"371")) -> 0 | G104: =SUMPRODUCT((MONTH('Budget indtastning'!$B$6:$B$371)=G$5)*(YEAR('Budget indtastning'!$B$6:$B$371)=G$6)+0,INDIRECT("'Budget indtastning'!$"&$R104&"6:"&$R104&"371")) -> 0 | H104: =SUMPRODUCT((MONTH('Budget indtastning'!$B$6:$B$371)=H$5)*(YEAR('Budget indtastning'!$B$6:$B$371)=H$6)+0,INDIRECT("'Budget indtastning'!$"&$R104&"6:"&$R104&"371")) -> 0 | I104: =SUMPRODUCT((MONTH('Budget indtastning'!$B$6:$B$371)=I$5)*(YEAR('Budget indtastning'!$B$6:$B$371)=I$6)+0,INDIRECT("'Budget indtastning'!$"&$R104&"6:"&$R104&"371")) -> 0 | J104: =SUMPRODUCT((MONTH('Budget indtastning'!$B$6:$B$371)=J$5)*(YEAR('Budget indtastning'!$B$6:$B$371)=J$6)+0,INDIRECT("'Budget indtastning'!$"&$R104&"6:"&$R104&"371")) -> 0 | K104: =SUMPRODUCT((MONTH('Budget indtastning'!$B$6:$B$371)=K$5)*(YEAR('Budget indtastning'!$B$6:$B$371)=K$6)+0,INDIRECT("'Budget indtastning'!$"&$R104&"6:"&$R104&"371")) -> 0 | L104: =SUMPRODUCT((MONTH('Budget indtastning'!$B$6:$B$371)=L$5)*(YEAR('Budget indtastning'!$B$6:$B$371)=L$6)+0,INDIRECT("'Budget indtastning'!$"&$R104&"6:"&$R104&"371")) -> 0 | M104: =SUMPRODUCT((MONTH('Budget indtastning'!$B$6:$B$371)=M$5)*(YEAR('Budget indtastning'!$B$6:$B$371)=M$6)+0,INDIRECT("'Budget indtastning'!$"&$R104&"6:"&$R104&"371")) -> 0 | N104: =SUMPRODUCT((MONTH('Budget indtastning'!$B$6:$B$371)=N$5)*(YEAR('Budget indtastning'!$B$6:$B$371)=N$6)+0,INDIRECT("'Budget indtastning'!$"&$R104&"6:"&$R104&"371")) -> 0 | O104: =SUMPRODUCT((MONTH('Budget indtastning'!$B$6:$B$371)=O$5)*(YEAR('Budget indtastning'!$B$6:$B$371)=O$6)+0,INDIRECT("'Budget indtastning'!$"&$R104&"6:"&$R104&"371")) -> 0 | P104: =SUMPRODUCT((MONTH('Budget indtastning'!$B$6:$B$371)=P$5)*(YEAR('Budget indtastning'!$B$6:$B$371)=P$6)+0,INDIRECT("'Budget indtastning'!$"&$R104&"6:"&$R104&"371")) -> 0 | Q104: =SUMPRODUCT((MONTH('Budget indtastning'!$B$6:$B$371)=Q$5)*(YEAR('Budget indtastning'!$B$6:$B$371)=Q$6)+0,INDIRECT("'Budget indtastning'!$"&$R104&"6:"&$R104&"371")) -> 0 | R104: cp
B105: 0 | D105: 0 | F105: =SUMPRODUCT((MONTH('Budget indtastning'!$B$6:$B$371)=F$5)*(YEAR('Budget indtastning'!$B$6:$B$371)=F$6)+0,INDIRECT("'Budget indtastning'!$"&$R105&"6:"&$R105&"371")) -> 0 | G105: =SUMPRODUCT((MONTH('Budget indtastning'!$B$6:$B$371)=G$5)*(YEAR('Budget indtastning'!$B$6:$B$371)=G$6)+0,INDIRECT("'Budget indtastning'!$"&$R105&"6:"&$R105&"371")) -> 0 | H105: =SUMPRODUCT((MONTH('Budget indtastning'!$B$6:$B$371)=H$5)*(YEAR('Budget indtastning'!$B$6:$B$371)=H$6)+0,INDIRECT("'Budget indtastning'!$"&$R105&"6:"&$R105&"371")) -> 0 | I105: =SUMPRODUCT((MONTH('Budget indtastning'!$B$6:$B$371)=I$5)*(YEAR('Budget indtastning'!$B$6:$B$371)=I$6)+0,INDIRECT("'Budget indtastning'!$"&$R105&"6:"&$R105&"371")) -> 0 | J105: =SUMPRODUCT((MONTH('Budget indtastning'!$B$6:$B$371)=J$5)*(YEAR('Budget indtastning'!$B$6:$B$371)=J$6)+0,INDIRECT("'Budget indtastning'!$"&$R105&"6:"&$R105&"371")) -> 0 | K105: =SUMPRODUCT((MONTH('Budget indtastning'!$B$6:$B$371)=K$5)*(YEAR('Budget indtastning'!$B$6:$B$371)=K$6)+0,INDIRECT("'Budget indtastning'!$"&$R105&"6:"&$R105&"371")) -> 0 | L105: =SUMPRODUCT((MONTH('Budget indtastning'!$B$6:$B$371)=L$5)*(YEAR('Budget indtastning'!$B$6:$B$371)=L$6)+0,INDIRECT("'Budget indtastning'!$"&$R105&"6:"&$R105&"371")) -> 0 | M105: =SUMPRODUCT((MONTH('Budget indtastning'!$B$6:$B$371)=M$5)*(YEAR('Budget indtastning'!$B$6:$B$371)=M$6)+0,INDIRECT("'Budget indtastning'!$"&$R105&"6:"&$R105&"371")) -> 0 | N105: =SUMPRODUCT((MONTH('Budget indtastning'!$B$6:$B$371)=N$5)*(YEAR('Budget indtastning'!$B$6:$B$371)=N$6)+0,INDIRECT("'Budget indtastning'!$"&$R105&"6:"&$R105&"371")) -> 0 | O105: =SUMPRODUCT((MONTH('Budget indtastning'!$B$6:$B$371)=O$5)*(YEAR('Budget indtastning'!$B$6:$B$371)=O$6)+0,INDIRECT("'Budget indtastning'!$"&$R105&"6:"&$R105&"371")) -> 0 | P105: =SUMPRODUCT((MONTH('Budget indtastning'!$B$6:$B$371)=P$5)*(YEAR('Budget indtastning'!$B$6:$B$371)=P$6)+0,INDIRECT("'Budget indtastning'!$"&$R105&"6:"&$R105&"371")) -> 0 | Q105: =SUMPRODUCT((MONTH('Budget indtastning'!$B$6:$B$371)=Q$5)*(YEAR('Budget indtastning'!$B$6:$B$371)=Q$6)+0,INDIRECT("'Budget indtastning'!$"&$R105&"6:"&$R105&"371")) -> 0 | R105: cq
B106: 0 | D106: 0 | F106: =SUMPRODUCT((MONTH('Budget indtastning'!$B$6:$B$371)=F$5)*(YEAR('Budget indtastning'!$B$6:$B$371)=F$6)+0,INDIRECT("'Budget indtastning'!$"&$R106&"6:"&$R106&"371")) -> 0 | G106: =SUMPRODUCT((MONTH('Budget indtastning'!$B$6:$B$371)=G$5)*(YEAR('Budget indtastning'!$B$6:$B$371)=G$6)+0,INDIRECT("'Budget indtastning'!$"&$R106&"6:"&$R106&"371")) -> 0 | H106: =SUMPRODUCT((MONTH('Budget indtastning'!$B$6:$B$371)=H$5)*(YEAR('Budget indtastning'!$B$6:$B$371)=H$6)+0,INDIRECT("'Budget indtastning'!$"&$R106&"6:"&$R106&"371")) -> 0 | I106: =SUMPRODUCT((MONTH('Budget indtastning'!$B$6:$B$371)=I$5)*(YEAR('Budget indtastning'!$B$6:$B$371)=I$6)+0,INDIRECT("'Budget indtastning'!$"&$R106&"6:"&$R106&"371")) -> 0 | J106: =SUMPRODUCT((MONTH('Budget indtastning'!$B$6:$B$371)=J$5)*(YEAR('Budget indtastning'!$B$6:$B$371)=J$6)+0,INDIRECT("'Budget indtastning'!$"&$R106&"6:"&$R106&"371")) -> 0 | K106: =SUMPRODUCT((MONTH('Budget indtastning'!$B$6:$B$371)=K$5)*(YEAR('Budget indtastning'!$B$6:$B$371)=K$6)+0,INDIRECT("'Budget indtastning'!$"&$R106&"6:"&$R106&"371")) -> 0 | L106: =SUMPRODUCT((MONTH('Budget indtastning'!$B$6:$B$371)=L$5)*(YEAR('Budget indtastning'!$B$6:$B$371)=L$6)+0,INDIRECT("'Budget indtastning'!$"&$R106&"6:"&$R106&"371")) -> 0 | M106: =SUMPRODUCT((MONTH('Budget indtastning'!$B$6:$B$371)=M$5)*(YEAR('Budget indtastning'!$B$6:$B$371)=M$6)+0,INDIRECT("'Budget indtastning'!$"&$R106&"6:"&$R106&"371")) -> 0 | N106: =SUMPRODUCT((MONTH('Budget indtastning'!$B$6:$B$371)=N$5)*(YEAR('Budget indtastning'!$B$6:$B$371)=N$6)+0,INDIRECT("'Budget indtastning'!$"&$R106&"6:"&$R106&"371")) -> 0 | O106: =SUMPRODUCT((MONTH('Budget indtastning'!$B$6:$B$371)=O$5)*(YEAR('Budget indtastning'!$B$6:$B$371)=O$6)+0,INDIRECT("'Budget indtastning'!$"&$R106&"6:"&$R106&"371")) -> 0 | P106: =SUMPRODUCT((MONTH('Budget indtastning'!$B$6:$B$371)=P$5)*(YEAR('Budget indtastning'!$B$6:$B$371)=P$6)+0,INDIRECT("'Budget indtastning'!$"&$R106&"6:"&$R106&"371")) -> 0 | Q106: =SUMPRODUCT((MONTH('Budget indtastning'!$B$6:$B$371)=Q$5)*(YEAR('Budget indtastning'!$B$6:$B$371)=Q$6)+0,INDIRECT("'Budget indtastning'!$"&$R106&"6:"&$R106&"371")) -> 0 | R106: cr
B107: 0 | D107: 0 | F107: =SUMPRODUCT((MONTH('Budget indtastning'!$B$6:$B$371)=F$5)*(YEAR('Budget indtastning'!$B$6:$B$371)=F$6)+0,INDIRECT("'Budget indtastning'!$"&$R107&"6:"&$R107&"371")) -> 0 | G107: =SUMPRODUCT((MONTH('Budget indtastning'!$B$6:$B$371)=G$5)*(YEAR('Budget indtastning'!$B$6:$B$371)=G$6)+0,INDIRECT("'Budget indtastning'!$"&$R107&"6:"&$R107&"371")) -> 0 | H107: =SUMPRODUCT((MONTH('Budget indtastning'!$B$6:$B$371)=H$5)*(YEAR('Budget indtastning'!$B$6:$B$371)=H$6)+0,INDIRECT("'Budget indtastning'!$"&$R107&"6:"&$R107&"371")) -> 0 | I107: =SUMPRODUCT((MONTH('Budget indtastning'!$B$6:$B$371)=I$5)*(YEAR('Budget indtastning'!$B$6:$B$371)=I$6)+0,INDIRECT("'Budget indtastning'!$"&$R107&"6:"&$R107&"371")) -> 0 | J107: =SUMPRODUCT((MONTH('Budget indtastning'!$B$6:$B$371)=J$5)*(YEAR('Budget indtastning'!$B$6:$B$371)=J$6)+0,INDIRECT("'Budget indtastning'!$"&$R107&"6:"&$R107&"371")) -> 0 | K107: =SUMPRODUCT((MONTH('Budget indtastning'!$B$6:$B$371)=K$5)*(YEAR('Budget indtastning'!$B$6:$B$371)=K$6)+0,INDIRECT("'Budget indtastning'!$"&$R107&"6:"&$R107&"371")) -> 0 | L107: =SUMPRODUCT((MONTH('Budget indtastning'!$B$6:$B$371)=L$5)*(YEAR('Budget indtastning'!$B$6:$B$371)=L$6)+0,INDIRECT("'Budget indtastning'!$"&$R107&"6:"&$R107&"371")) -> 0 | M107: =SUMPRODUCT((MONTH('Budget indtastning'!$B$6:$B$371)=M$5)*(YEAR('Budget indtastning'!$B$6:$B$371)=M$6)+0,INDIRECT("'Budget indtastning'!$"&$R107&"6:"&$R107&"371")) -> 0 | N107: =SUMPRODUCT((MONTH('Budget indtastning'!$B$6:$B$371)=N$5)*(YEAR('Budget indtastning'!$B$6:$B$371)=N$6)+0,INDIRECT("'Budget indtastning'!$"&$R107&"6:"&$R107&"371")) -> 0 | O107: =SUMPRODUCT((MONTH('Budget indtastning'!$B$6:$B$371)=O$5)*(YEAR('Budget indtastning'!$B$6:$B$371)=O$6)+0,INDIRECT("'Budget indtastning'!$"&$R107&"6:"&$R107&"371")) -> 0 | P107: =SUMPRODUCT((MONTH('Budget indtastning'!$B$6:$B$371)=P$5)*(YEAR('Budget indtastning'!$B$6:$B$371)=P$6)+0,INDIRECT("'Budget indtastning'!$"&$R107&"6:"&$R107&"371")) -> 0 | Q107: =SUMPRODUCT((MONTH('Budget indtastning'!$B$6:$B$371)=Q$5)*(YEAR('Budget indtastning'!$B$6:$B$371)=Q$6)+0,INDIRECT("'Budget indtastning'!$"&$R107&"6:"&$R107&"371")) -> 0 | R107: cs
B108: 0 | D108: 0 | F108: =SUMPRODUCT((MONTH('Budget indtastning'!$B$6:$B$371)=F$5)*(YEAR('Budget indtastning'!$B$6:$B$371)=F$6)+0,INDIRECT("'Budget indtastning'!$"&$R108&"6:"&$R108&"371")) -> 0 | G108: =SUMPRODUCT((MONTH('Budget indtastning'!$B$6:$B$371)=G$5)*(YEAR('Budget indtastning'!$B$6:$B$371)=G$6)+0,INDIRECT("'Budget indtastning'!$"&$R108&"6:"&$R108&"371")) -> 0 | H108: =SUMPRODUCT((MONTH('Budget indtastning'!$B$6:$B$371)=H$5)*(YEAR('Budget indtastning'!$B$6:$B$371)=H$6)+0,INDIRECT("'Budget indtastning'!$"&$R108&"6:"&$R108&"371")) -> 0 | I108: =SUMPRODUCT((MONTH('Budget indtastning'!$B$6:$B$371)=I$5)*(YEAR('Budget indtastning'!$B$6:$B$371)=I$6)+0,INDIRECT("'Budget indtastning'!$"&$R108&"6:"&$R108&"371")) -> 0 | J108: =SUMPRODUCT((MONTH('Budget indtastning'!$B$6:$B$371)=J$5)*(YEAR('Budget indtastning'!$B$6:$B$371)=J$6)+0,INDIRECT("'Budget indtastning'!$"&$R108&"6:"&$R108&"371")) -> 0 | K108: =SUMPRODUCT((MONTH('Budget indtastning'!$B$6:$B$371)=K$5)*(YEAR('Budget indtastning'!$B$6:$B$371)=K$6)+0,INDIRECT("'Budget indtastning'!$"&$R108&"6:"&$R108&"371")) -> 0 | L108: =SUMPRODUCT((MONTH('Budget indtastning'!$B$6:$B$371)=L$5)*(YEAR('Budget indtastning'!$B$6:$B$371)=L$6)+0,INDIRECT("'Budget indtastning'!$"&$R108&"6:"&$R108&"371")) -> 0 | M108: =SUMPRODUCT((MONTH('Budget indtastning'!$B$6:$B$371)=M$5)*(YEAR('Budget indtastning'!$B$6:$B$371)=M$6)+0,INDIRECT("'Budget indtastning'!$"&$R108&"6:"&$R108&"371")) -> 0 | N108: =SUMPRODUCT((MONTH('Budget indtastning'!$B$6:$B$371)=N$5)*(YEAR('Budget indtastning'!$B$6:$B$371)=N$6)+0,INDIRECT("'Budget indtastning'!$"&$R108&"6:"&$R108&"371")) -> 0 | O108: =SUMPRODUCT((MONTH('Budget indtastning'!$B$6:$B$371)=O$5)*(YEAR('Budget indtastning'!$B$6:$B$371)=O$6)+0,INDIRECT("'Budget indtastning'!$"&$R108&"6:"&$R108&"371")) -> 0 | P108: =SUMPRODUCT((MONTH('Budget indtastning'!$B$6:$B$371)=P$5)*(YEAR('Budget indtastning'!$B$6:$B$371)=P$6)+0,INDIRECT("'Budget indtastning'!$"&$R108&"6:"&$R108&"371")) -> 0 | Q108: =SUMPRODUCT((MONTH('Budget indtastning'!$B$6:$B$371)=Q$5)*(YEAR('Budget indtastning'!$B$6:$B$371)=Q$6)+0,INDIRECT("'Budget indtastning'!$"&$R108&"6:"&$R108&"371")) -> 0 | R108: ct
B109: 0 | D109: 0 | F109: =SUMPRODUCT((MONTH('Budget indtastning'!$B$6:$B$371)=F$5)*(YEAR('Budget indtastning'!$B$6:$B$371)=F$6)+0,INDIRECT("'Budget indtastning'!$"&$R109&"6:"&$R109&"371")) -> 0 | G109: =SUMPRODUCT((MONTH('Budget indtastning'!$B$6:$B$371)=G$5)*(YEAR('Budget indtastning'!$B$6:$B$371)=G$6)+0,INDIRECT("'Budget indtastning'!$"&$R109&"6:"&$R109&"371")) -> 0 | H109: =SUMPRODUCT((MONTH('Budget indtastning'!$B$6:$B$371)=H$5)*(YEAR('Budget indtastning'!$B$6:$B$371)=H$6)+0,INDIRECT("'Budget indtastning'!$"&$R109&"6:"&$R109&"371")) -> 0 | I109: =SUMPRODUCT((MONTH('Budget indtastning'!$B$6:$B$371)=I$5)*(YEAR('Budget indtastning'!$B$6:$B$371)=I$6)+0,INDIRECT("'Budget indtastning'!$"&$R109&"6:"&$R109&"371")) -> 0 | J109: =SUMPRODUCT((MONTH('Budget indtastning'!$B$6:$B$371)=J$5)*(YEAR('Budget indtastning'!$B$6:$B$371)=J$6)+0,INDIRECT("'Budget indtastning'!$"&$R109&"6:"&$R109&"371")) -> 0 | K109: =SUMPRODUCT((MONTH('Budget indtastning'!$B$6:$B$371)=K$5)*(YEAR('Budget indtastning'!$B$6:$B$371)=K$6)+0,INDIRECT("'Budget indtastning'!$"&$R109&"6:"&$R109&"371")) -> 0 | L109: =SUMPRODUCT((MONTH('Budget indtastning'!$B$6:$B$371)=L$5)*(YEAR('Budget indtastning'!$B$6:$B$371)=L$6)+0,INDIRECT("'Budget indtastning'!$"&$R109&"6:"&$R109&"371")) -> 0 | M109: =SUMPRODUCT((MONTH('Budget indtastning'!$B$6:$B$371)=M$5)*(YEAR('Budget indtastning'!$B$6:$B$371)=M$6)+0,INDIRECT("'Budget indtastning'!$"&$R109&"6:"&$R109&"371")) -> 0 | N109: =SUMPRODUCT((MONTH('Budget indtastning'!$B$6:$B$371)=N$5)*(YEAR('Budget indtastning'!$B$6:$B$371)=N$6)+0,INDIRECT("'Budget indtastning'!$"&$R109&"6:"&$R109&"371")) -> 0 | O109: =SUMPRODUCT((MONTH('Budget indtastning'!$B$6:$B$371)=O$5)*(YEAR('Budget indtastning'!$B$6:$B$371)=O$6)+0,INDIRECT("'Budget indtastning'!$"&$R109&"6:"&$R109&"371")) -> 0 | P109: =SUMPRODUCT((MONTH('Budget indtastning'!$B$6:$B$371)=P$5)*(YEAR('Budget indtastning'!$B$6:$B$371)=P$6)+0,INDIRECT("'Budget indtastning'!$"&$R109&"6:"&$R109&"371")) -> 0 | Q109: =SUMPRODUCT((MONTH('Budget indtastning'!$B$6:$B$371)=Q$5)*(YEAR('Budget indtastning'!$B$6:$B$371)=Q$6)+0,INDIRECT("'Budget indtastning'!$"&$R109&"6:"&$R109&"371")) -> 0 | R109: cu
B110: 0 | D110: 0 | F110: =SUMPRODUCT((MONTH('Budget indtastning'!$B$6:$B$371)=F$5)*(YEAR('Budget indtastning'!$B$6:$B$371)=F$6)+0,INDIRECT("'Budget indtastning'!$"&$R110&"6:"&$R110&"371")) -> 0 | G110: =SUMPRODUCT((MONTH('Budget indtastning'!$B$6:$B$371)=G$5)*(YEAR('Budget indtastning'!$B$6:$B$371)=G$6)+0,INDIRECT("'Budget indtastning'!$"&$R110&"6:"&$R110&"371")) -> 0 | H110: =SUMPRODUCT((MONTH('Budget indtastning'!$B$6:$B$371)=H$5)*(YEAR('Budget indtastning'!$B$6:$B$371)=H$6)+0,INDIRECT("'Budget indtastning'!$"&$R110&"6:"&$R110&"371")) -> 0 | I110: =SUMPRODUCT((MONTH('Budget indtastning'!$B$6:$B$371)=I$5)*(YEAR('Budget indtastning'!$B$6:$B$371)=I$6)+0,INDIRECT("'Budget indtastning'!$"&$R110&"6:"&$R110&"371")) -> 0 | J110: =SUMPRODUCT((MONTH('Budget indtastning'!$B$6:$B$371)=J$5)*(YEAR('Budget indtastning'!$B$6:$B$371)=J$6)+0,INDIRECT("'Budget indtastning'!$"&$R110&"6:"&$R110&"371")) -> 0 | K110: =SUMPRODUCT((MONTH('Budget indtastning'!$B$6:$B$371)=K$5)*(YEAR('Budget indtastning'!$B$6:$B$371)=K$6)+0,INDIRECT("'Budget indtastning'!$"&$R110&"6:"&$R110&"371")) -> 0 | L110: =SUMPRODUCT((MONTH('Budget indtastning'!$B$6:$B$371)=L$5)*(YEAR('Budget indtastning'!$B$6:$B$371)=L$6)+0,INDIRECT("'Budget indtastning'!$"&$R110&"6:"&$R110&"371")) -> 0 | M110: =SUMPRODUCT((MONTH('Budget indtastning'!$B$6:$B$371)=M$5)*(YEAR('Budget indtastning'!$B$6:$B$371)=M$6)+0,INDIRECT("'Budget indtastning'!$"&$R110&"6:"&$R110&"371")) -> 0 | N110: =SUMPRODUCT((MONTH('Budget indtastning'!$B$6:$B$371)=N$5)*(YEAR('Budget indtastning'!$B$6:$B$371)=N$6)+0,INDIRECT("'Budget indtastning'!$"&$R110&"6:"&$R110&"371")) -> 0 | O110: =SUMPRODUCT((MONTH('Budget indtastning'!$B$6:$B$371)=O$5)*(YEAR('Budget indtastning'!$B$6:$B$371)=O$6)+0,INDIRECT("'Budget indtastning'!$"&$R110&"6:"&$R110&"371")) -> 0 | P110: =SUMPRODUCT((MONTH('Budget indtastning'!$B$6:$B$371)=P$5)*(YEAR('Budget indtastning'!$B$6:$B$371)=P$6)+0,INDIRECT("'Budget indtastning'!$"&$R110&"6:"&$R110&"371")) -> 0 | Q110: =SUMPRODUCT((MONTH('Budget indtastning'!$B$6:$B$371)=Q$5)*(YEAR('Budget indtastning'!$B$6:$B$371)=Q$6)+0,INDIRECT("'Budget indtastning'!$"&$R110&"6:"&$R110&"371")) -> 0 | R110: cv
B111: 0 | D111: 0 | F111: =SUMPRODUCT((MONTH('Budget indtastning'!$B$6:$B$371)=F$5)*(YEAR('Budget indtastning'!$B$6:$B$371)=F$6)+0,INDIRECT("'Budget indtastning'!$"&$R111&"6:"&$R111&"371")) -> 0 | G111: =SUMPRODUCT((MONTH('Budget indtastning'!$B$6:$B$371)=G$5)*(YEAR('Budget indtastning'!$B$6:$B$371)=G$6)+0,INDIRECT("'Budget indtastning'!$"&$R111&"6:"&$R111&"371")) -> 0 | H111: =SUMPRODUCT((MONTH('Budget indtastning'!$B$6:$B$371)=H$5)*(YEAR('Budget indtastning'!$B$6:$B$371)=H$6)+0,INDIRECT("'Budget indtastning'!$"&$R111&"6:"&$R111&"371")) -> 0 | I111: =SUMPRODUCT((MONTH('Budget indtastning'!$B$6:$B$371)=I$5)*(YEAR('Budget indtastning'!$B$6:$B$371)=I$6)+0,INDIRECT("'Budget indtastning'!$"&$R111&"6:"&$R111&"371")) -> 0 | J111: =SUMPRODUCT((MONTH('Budget indtastning'!$B$6:$B$371)=J$5)*(YEAR('Budget indtastning'!$B$6:$B$371)=J$6)+0,INDIRECT("'Budget indtastning'!$"&$R111&"6:"&$R111&"371")) -> 0 | K111: =SUMPRODUCT((MONTH('Budget indtastning'!$B$6:$B$371)=K$5)*(YEAR('Budget indtastning'!$B$6:$B$371)=K$6)+0,INDIRECT("'Budget indtastning'!$"&$R111&"6:"&$R111&"371")) -> 0 | L111: =SUMPRODUCT((MONTH('Budget indtastning'!$B$6:$B$371)=L$5)*(YEAR('Budget indtastning'!$B$6:$B$371)=L$6)+0,INDIRECT("'Budget indtastning'!$"&$R111&"6:"&$R111&"371")) -> 0 | M111: =SUMPRODUCT((MONTH('Budget indtastning'!$B$6:$B$371)=M$5)*(YEAR('Budget indtastning'!$B$6:$B$371)=M$6)+0,INDIRECT("'Budget indtastning'!$"&$R111&"6:"&$R111&"371")) -> 0 | N111: =SUMPRODUCT((MONTH('Budget indtastning'!$B$6:$B$371)=N$5)*(YEAR('Budget indtastning'!$B$6:$B$371)=N$6)+0,INDIRECT("'Budget indtastning'!$"&$R111&"6:"&$R111&"371")) -> 0 | O111: =SUMPRODUCT((MONTH('Budget indtastning'!$B$6:$B$371)=O$5)*(YEAR('Budget indtastning'!$B$6:$B$371)=O$6)+0,INDIRECT("'Budget indtastning'!$"&$R111&"6:"&$R111&"371")) -> 0 | P111: =SUMPRODUCT((MONTH('Budget indtastning'!$B$6:$B$371)=P$5)*(YEAR('Budget indtastning'!$B$6:$B$371)=P$6)+0,INDIRECT("'Budget indtastning'!$"&$R111&"6:"&$R111&"371")) -> 0 | Q111: =SUMPRODUCT((MONTH('Budget indtastning'!$B$6:$B$371)=Q$5)*(YEAR('Budget indtastning'!$B$6:$B$371)=Q$6)+0,INDIRECT("'Budget indtastning'!$"&$R111&"6:"&$R111&"371")) -> 0 | R111: cw
B112: 0 | D112: 0 | F112: =SUMPRODUCT((MONTH('Budget indtastning'!$B$6:$B$371)=F$5)*(YEAR('Budget indtastning'!$B$6:$B$371)=F$6)+0,INDIRECT("'Budget indtastning'!$"&$R112&"6:"&$R112&"371")) -> 0 | G112: =SUMPRODUCT((MONTH('Budget indtastning'!$B$6:$B$371)=G$5)*(YEAR('Budget indtastning'!$B$6:$B$371)=G$6)+0,INDIRECT("'Budget indtastning'!$"&$R112&"6:"&$R112&"371")) -> 0 | H112: =SUMPRODUCT((MONTH('Budget indtastning'!$B$6:$B$371)=H$5)*(YEAR('Budget indtastning'!$B$6:$B$371)=H$6)+0,INDIRECT("'Budget indtastning'!$"&$R112&"6:"&$R112&"371")) -> 0 | I112: =SUMPRODUCT((MONTH('Budget indtastning'!$B$6:$B$371)=I$5)*(YEAR('Budget indtastning'!$B$6:$B$371)=I$6)+0,INDIRECT("'Budget indtastning'!$"&$R112&"6:"&$R112&"371")) -> 0 | J112: =SUMPRODUCT((MONTH('Budget indtastning'!$B$6:$B$371)=J$5)*(YEAR('Budget indtastning'!$B$6:$B$371)=J$6)+0,INDIRECT("'Budget indtastning'!$"&$R112&"6:"&$R112&"371")) -> 0 | K112: =SUMPRODUCT((MONTH('Budget indtastning'!$B$6:$B$371)=K$5)*(YEAR('Budget indtastning'!$B$6:$B$371)=K$6)+0,INDIRECT("'Budget indtastning'!$"&$R112&"6:"&$R112&"371")) -> 0 | L112: =SUMPRODUCT((MONTH('Budget indtastning'!$B$6:$B$371)=L$5)*(YEAR('Budget indtastning'!$B$6:$B$371)=L$6)+0,INDIRECT("'Budget indtastning'!$"&$R112&"6:"&$R112&"371")) -> 0 | M112: =SUMPRODUCT((MONTH('Budget indtastning'!$B$6:$B$371)=M$5)*(YEAR('Budget indtastning'!$B$6:$B$371)=M$6)+0,INDIRECT("'Budget indtastning'!$"&$R112&"6:"&$R112&"371")) -> 0 | N112: =SUMPRODUCT((MONTH('Budget indtastning'!$B$6:$B$371)=N$5)*(YEAR('Budget indtastning'!$B$6:$B$371)=N$6)+0,INDIRECT("'Budget indtastning'!$"&$R112&"6:"&$R112&"371")) -> 0 | O112: =SUMPRODUCT((MONTH('Budget indtastning'!$B$6:$B$371)=O$5)*(YEAR('Budget indtastning'!$B$6:$B$371)=O$6)+0,INDIRECT("'Budget indtastning'!$"&$R112&"6:"&$R112&"371")) -> 0 | P112: =SUMPRODUCT((MONTH('Budget indtastning'!$B$6:$B$371)=P$5)*(YEAR('Budget indtastning'!$B$6:$B$371)=P$6)+0,INDIRECT("'Budget indtastning'!$"&$R112&"6:"&$R112&"371")) -> 0 | Q112: =SUMPRODUCT((MONTH('Budget indtastning'!$B$6:$B$371)=Q$5)*(YEAR('Budget indtastning'!$B$6:$B$371)=Q$6)+0,INDIRECT("'Budget indtastning'!$"&$R112&"6:"&$R112&"371")) -> 0 | R112: cx
B113: 0 | D113: 0 | F113: =SUMPRODUCT((MONTH('Budget indtastning'!$B$6:$B$371)=F$5)*(YEAR('Budget indtastning'!$B$6:$B$371)=F$6)+0,INDIRECT("'Budget indtastning'!$"&$R113&"6:"&$R113&"371")) -> 0 | G113: =SUMPRODUCT((MONTH('Budget indtastning'!$B$6:$B$371)=G$5)*(YEAR('Budget indtastning'!$B$6:$B$371)=G$6)+0,INDIRECT("'Budget indtastning'!$"&$R113&"6:"&$R113&"371")) -> 0 | H113: =SUMPRODUCT((MONTH('Budget indtastning'!$B$6:$B$371)=H$5)*(YEAR('Budget indtastning'!$B$6:$B$371)=H$6)+0,INDIRECT("'Budget indtastning'!$"&$R113&"6:"&$R113&"371")) -> 0 | I113: =SUMPRODUCT((MONTH('Budget indtastning'!$B$6:$B$371)=I$5)*(YEAR('Budget indtastning'!$B$6:$B$371)=I$6)+0,INDIRECT("'Budget indtastning'!$"&$R113&"6:"&$R113&"371")) -> 0 | J113: =SUMPRODUCT((MONTH('Budget indtastning'!$B$6:$B$371)=J$5)*(YEAR('Budget indtastning'!$B$6:$B$371)=J$6)+0,INDIRECT("'Budget indtastning'!$"&$R113&"6:"&$R113&"371")) -> 0 | K113: =SUMPRODUCT((MONTH('Budget indtastning'!$B$6:$B$371)=K$5)*(YEAR('Budget indtastning'!$B$6:$B$371)=K$6)+0,INDIRECT("'Budget indtastning'!$"&$R113&"6:"&$R113&"371")) -> 0 | L113: =SUMPRODUCT((MONTH('Budget indtastning'!$B$6:$B$371)=L$5)*(YEAR('Budget indtastning'!$B$6:$B$371)=L$6)+0,INDIRECT("'Budget indtastning'!$"&$R113&"6:"&$R113&"371")) -> 0 | M113: =SUMPRODUCT((MONTH('Budget indtastning'!$B$6:$B$371)=M$5)*(YEAR('Budget indtastning'!$B$6:$B$371)=M$6)+0,INDIRECT("'Budget indtastning'!$"&$R113&"6:"&$R113&"371")) -> 0 | N113: =SUMPRODUCT((MONTH('Budget indtastning'!$B$6:$B$371)=N$5)*(YEAR('Budget indtastning'!$B$6:$B$371)=N$6)+0,INDIRECT("'Budget indtastning'!$"&$R113&"6:"&$R113&"371")) -> 0 | O113: =SUMPRODUCT((MONTH('Budget indtastning'!$B$6:$B$371)=O$5)*(YEAR('Budget indtastning'!$B$6:$B$371)=O$6)+0,INDIRECT("'Budget indtastning'!$"&$R113&"6:"&$R113&"371")) -> 0 | P113: =SUMPRODUCT((MONTH('Budget indtastning'!$B$6:$B$371)=P$5)*(YEAR('Budget indtastning'!$B$6:$B$371)=P$6)+0,INDIRECT("'Budget indtastning'!$"&$R113&"6:"&$R113&"371")) -> 0 | Q113: =SUMPRODUCT((MONTH('Budget indtastning'!$B$6:$B$371)=Q$5)*(YEAR('Budget indtastning'!$B$6:$B$371)=Q$6)+0,INDIRECT("'Budget indtastning'!$"&$R113&"6:"&$R113&"371")) -> 0 | R113: cy
B114: 0 | D114: 0 | F114: =SUMPRODUCT((MONTH('Budget indtastning'!$B$6:$B$371)=F$5)*(YEAR('Budget indtastning'!$B$6:$B$371)=F$6)+0,INDIRECT("'Budget indtastning'!$"&$R114&"6:"&$R114&"371")) -> 0 | G114: =SUMPRODUCT((MONTH('Budget indtastning'!$B$6:$B$371)=G$5)*(YEAR('Budget indtastning'!$B$6:$B$371)=G$6)+0,INDIRECT("'Budget indtastning'!$"&$R114&"6:"&$R114&"371")) -> 0 | H114: =SUMPRODUCT((MONTH('Budget indtastning'!$B$6:$B$371)=H$5)*(YEAR('Budget indtastning'!$B$6:$B$371)=H$6)+0,INDIRECT("'Budget indtastning'!$"&$R114&"6:"&$R114&"371")) -> 0 | I114: =SUMPRODUCT((MONTH('Budget indtastning'!$B$6:$B$371)=I$5)*(YEAR('Budget indtastning'!$B$6:$B$371)=I$6)+0,INDIRECT("'Budget indtastning'!$"&$R114&"6:"&$R114&"371")) -> 0 | J114: =SUMPRODUCT((MONTH('Budget indtastning'!$B$6:$B$371)=J$5)*(YEAR('Budget indtastning'!$B$6:$B$371)=J$6)+0,INDIRECT("'Budget indtastning'!$"&$R114&"6:"&$R114&"371")) -> 0 | K114: =SUMPRODUCT((MONTH('Budget indtastning'!$B$6:$B$371)=K$5)*(YEAR('Budget indtastning'!$B$6:$B$371)=K$6)+0,INDIRECT("'Budget indtastning'!$"&$R114&"6:"&$R114&"371")) -> 0 | L114: =SUMPRODUCT((MONTH('Budget indtastning'!$B$6:$B$371)=L$5)*(YEAR('Budget indtastning'!$B$6:$B$371)=L$6)+0,INDIRECT("'Budget indtastning'!$"&$R114&"6:"&$R114&"371")) -> 0 | M114: =SUMPRODUCT((MONTH('Budget indtastning'!$B$6:$B$371)=M$5)*(YEAR('Budget indtastning'!$B$6:$B$371)=M$6)+0,INDIRECT("'Budget indtastning'!$"&$R114&"6:"&$R114&"371")) -> 0 | N114: =SUMPRODUCT((MONTH('Budget indtastning'!$B$6:$B$371)=N$5)*(YEAR('Budget indtastning'!$B$6:$B$371)=N$6)+0,INDIRECT("'Budget indtastning'!$"&$R114&"6:"&$R114&"371")) -> 0 | O114: =SUMPRODUCT((MONTH('Budget indtastning'!$B$6:$B$371)=O$5)*(YEAR('Budget indtastning'!$B$6:$B$371)=O$6)+0,INDIRECT("'Budget indtastning'!$"&$R114&"6:"&$R114&"371")) -> 0 | P114: =SUMPRODUCT((MONTH('Budget indtastning'!$B$6:$B$371)=P$5)*(YEAR('Budget indtastning'!$B$6:$B$371)=P$6)+0,INDIRECT("'Budget indtastning'!$"&$R114&"6:"&$R114&"371")) -> 0 | Q114: =SUMPRODUCT((MONTH('Budget indtastning'!$B$6:$B$371)=Q$5)*(YEAR('Budget indtastning'!$B$6:$B$371)=Q$6)+0,INDIRECT("'Budget indtastning'!$"&$R114&"6:"&$R114&"371")) -> 0 | R114: cz
B115: 0 | D115: 0 | F115: =SUMPRODUCT((MONTH('Budget indtastning'!$B$6:$B$371)=F$5)*(YEAR('Budget indtastning'!$B$6:$B$371)=F$6)+0,INDIRECT("'Budget indtastning'!$"&$R115&"6:"&$R115&"371")) -> 0 | G115: =SUMPRODUCT((MONTH('Budget indtastning'!$B$6:$B$371)=G$5)*(YEAR('Budget indtastning'!$B$6:$B$371)=G$6)+0,INDIRECT("'Budget indtastning'!$"&$R115&"6:"&$R115&"371")) -> 0 | H115: =SUMPRODUCT((MONTH('Budget indtastning'!$B$6:$B$371)=H$5)*(YEAR('Budget indtastning'!$B$6:$B$371)=H$6)+0,INDIRECT("'Budget indtastning'!$"&$R115&"6:"&$R115&"371")) -> 0 | I115: =SUMPRODUCT((MONTH('Budget indtastning'!$B$6:$B$371)=I$5)*(YEAR('Budget indtastning'!$B$6:$B$371)=I$6)+0,INDIRECT("'Budget indtastning'!$"&$R115&"6:"&$R115&"371")) -> 0 | J115: =SUMPRODUCT((MONTH('Budget indtastning'!$B$6:$B$371)=J$5)*(YEAR('Budget indtastning'!$B$6:$B$371)=J$6)+0,INDIRECT("'Budget indtastning'!$"&$R115&"6:"&$R115&"371")) -> 0 | K115: =SUMPRODUCT((MONTH('Budget indtastning'!$B$6:$B$371)=K$5)*(YEAR('Budget indtastning'!$B$6:$B$371)=K$6)+0,INDIRECT("'Budget indtastning'!$"&$R115&"6:"&$R115&"371")) -> 0 | L115: =SUMPRODUCT((MONTH('Budget indtastning'!$B$6:$B$371)=L$5)*(YEAR('Budget indtastning'!$B$6:$B$371)=L$6)+0,INDIRECT("'Budget indtastning'!$"&$R115&"6:"&$R115&"371")) -> 0 | M115: =SUMPRODUCT((MONTH('Budget indtastning'!$B$6:$B$371)=M$5)*(YEAR('Budget indtastning'!$B$6:$B$371)=M$6)+0,INDIRECT("'Budget indtastning'!$"&$R115&"6:"&$R115&"371")) -> 0 | N115: =SUMPRODUCT((MONTH('Budget indtastning'!$B$6:$B$371)=N$5)*(YEAR('Budget indtastning'!$B$6:$B$371)=N$6)+0,INDIRECT("'Budget indtastning'!$"&$R115&"6:"&$R115&"371")) -> 0 | O115: =SUMPRODUCT((MONTH('Budget indtastning'!$B$6:$B$371)=O$5)*(YEAR('Budget indtastning'!$B$6:$B$371)=O$6)+0,INDIRECT("'Budget indtastning'!$"&$R115&"6:"&$R115&"371")) -> 0 | P115: =SUMPRODUCT((MONTH('Budget indtastning'!$B$6:$B$371)=P$5)*(YEAR('Budget indtastning'!$B$6:$B$371)=P$6)+0,INDIRECT("'Budget indtastning'!$"&$R115&"6:"&$R115&"371")) -> 0 | Q115: =SUMPRODUCT((MONTH('Budget indtastning'!$B$6:$B$371)=Q$5)*(YEAR('Budget indtastning'!$B$6:$B$371)=Q$6)+0,INDIRECT("'Budget indtastning'!$"&$R115&"6:"&$R115&"371")) -> 0 | R115: da
B116: 0 | D116: 0 | F116: =SUMPRODUCT((MONTH('Budget indtastning'!$B$6:$B$371)=F$5)*(YEAR('Budget indtastning'!$B$6:$B$371)=F$6)+0,INDIRECT("'Budget indtastning'!$"&$R116&"6:"&$R116&"371")) -> 0 | G116: =SUMPRODUCT((MONTH('Budget indtastning'!$B$6:$B$371)=G$5)*(YEAR('Budget indtastning'!$B$6:$B$371)=G$6)+0,INDIRECT("'Budget indtastning'!$"&$R116&"6:"&$R116&"371")) -> 0 | H116: =SUMPRODUCT((MONTH('Budget indtastning'!$B$6:$B$371)=H$5)*(YEAR('Budget indtastning'!$B$6:$B$371)=H$6)+0,INDIRECT("'Budget indtastning'!$"&$R116&"6:"&$R116&"371")) -> 0 | I116: =SUMPRODUCT((MONTH('Budget indtastning'!$B$6:$B$371)=I$5)*(YEAR('Budget indtastning'!$B$6:$B$371)=I$6)+0,INDIRECT("'Budget indtastning'!$"&$R116&"6:"&$R116&"371")) -> 0 | J116: =SUMPRODUCT((MONTH('Budget indtastning'!$B$6:$B$371)=J$5)*(YEAR('Budget indtastning'!$B$6:$B$371)=J$6)+0,INDIRECT("'Budget indtastning'!$"&$R116&"6:"&$R116&"371")) -> 0 | K116: =SUMPRODUCT((MONTH('Budget indtastning'!$B$6:$B$371)=K$5)*(YEAR('Budget indtastning'!$B$6:$B$371)=K$6)+0,INDIRECT("'Budget indtastning'!$"&$R116&"6:"&$R116&"371")) -> 0 | L116: =SUMPRODUCT((MONTH('Budget indtastning'!$B$6:$B$371)=L$5)*(YEAR('Budget indtastning'!$B$6:$B$371)=L$6)+0,INDIRECT("'Budget indtastning'!$"&$R116&"6:"&$R116&"371")) -> 0 | M116: =SUMPRODUCT((MONTH('Budget indtastning'!$B$6:$B$371)=M$5)*(YEAR('Budget indtastning'!$B$6:$B$371)=M$6)+0,INDIRECT("'Budget indtastning'!$"&$R116&"6:"&$R116&"371")) -> 0 | N116: =SUMPRODUCT((MONTH('Budget indtastning'!$B$6:$B$371)=N$5)*(YEAR('Budget indtastning'!$B$6:$B$371)=N$6)+0,INDIRECT("'Budget indtastning'!$"&$R116&"6:"&$R116&"371")) -> 0 | O116: =SUMPRODUCT((MONTH('Budget indtastning'!$B$6:$B$371)=O$5)*(YEAR('Budget indtastning'!$B$6:$B$371)=O$6)+0,INDIRECT("'Budget indtastning'!$"&$R116&"6:"&$R116&"371")) -> 0 | P116: =SUMPRODUCT((MONTH('Budget indtastning'!$B$6:$B$371)=P$5)*(YEAR('Budget indtastning'!$B$6:$B$371)=P$6)+0,INDIRECT("'Budget indtastning'!$"&$R116&"6:"&$R116&"371")) -> 0 | Q116: =SUMPRODUCT((MONTH('Budget indtastning'!$B$6:$B$371)=Q$5)*(YEAR('Budget indtastning'!$B$6:$B$371)=Q$6)+0,INDIRECT("'Budget indtastning'!$"&$R116&"6:"&$R116&"371")) -> 0 | R116: db
B117: 0 | D117: 0 | F117: =SUMPRODUCT((MONTH('Budget indtastning'!$B$6:$B$371)=F$5)*(YEAR('Budget indtastning'!$B$6:$B$371)=F$6)+0,INDIRECT("'Budget indtastning'!$"&$R117&"6:"&$R117&"371")) -> 0 | G117: =SUMPRODUCT((MONTH('Budget indtastning'!$B$6:$B$371)=G$5)*(YEAR('Budget indtastning'!$B$6:$B$371)=G$6)+0,INDIRECT("'Budget indtastning'!$"&$R117&"6:"&$R117&"371")) -> 0 | H117: =SUMPRODUCT((MONTH('Budget indtastning'!$B$6:$B$371)=H$5)*(YEAR('Budget indtastning'!$B$6:$B$371)=H$6)+0,INDIRECT("'Budget indtastning'!$"&$R117&"6:"&$R117&"371")) -> 0 | I117: =SUMPRODUCT((MONTH('Budget indtastning'!$B$6:$B$371)=I$5)*(YEAR('Budget indtastning'!$B$6:$B$371)=I$6)+0,INDIRECT("'Budget indtastning'!$"&$R117&"6:"&$R117&"371")) -> 0 | J117: =SUMPRODUCT((MONTH('Budget indtastning'!$B$6:$B$371)=J$5)*(YEAR('Budget indtastning'!$B$6:$B$371)=J$6)+0,INDIRECT("'Budget indtastning'!$"&$R117&"6:"&$R117&"371")) -> 0 | K117: =SUMPRODUCT((MONTH('Budget indtastning'!$B$6:$B$371)=K$5)*(YEAR('Budget indtastning'!$B$6:$B$371)=K$6)+0,INDIRECT("'Budget indtastning'!$"&$R117&"6:"&$R117&"371")) -> 0 | L117: =SUMPRODUCT((MONTH('Budget indtastning'!$B$6:$B$371)=L$5)*(YEAR('Budget indtastning'!$B$6:$B$371)=L$6)+0,INDIRECT("'Budget indtastning'!$"&$R117&"6:"&$R117&"371")) -> 0 | M117: =SUMPRODUCT((MONTH('Budget indtastning'!$B$6:$B$371)=M$5)*(YEAR('Budget indtastning'!$B$6:$B$371)=M$6)+0,INDIRECT("'Budget indtastning'!$"&$R117&"6:"&$R117&"371")) -> 0 | N117: =SUMPRODUCT((MONTH('Budget indtastning'!$B$6:$B$371)=N$5)*(YEAR('Budget indtastning'!$B$6:$B$371)=N$6)+0,INDIRECT("'Budget indtastning'!$"&$R117&"6:"&$R117&"371")) -> 0 | O117: =SUMPRODUCT((MONTH('Budget indtastning'!$B$6:$B$371)=O$5)*(YEAR('Budget indtastning'!$B$6:$B$371)=O$6)+0,INDIRECT("'Budget indtastning'!$"&$R117&"6:"&$R117&"371")) -> 0 | P117: =SUMPRODUCT((MONTH('Budget indtastning'!$B$6:$B$371)=P$5)*(YEAR('Budget indtastning'!$B$6:$B$371)=P$6)+0,INDIRECT("'Budget indtastning'!$"&$R117&"6:"&$R117&"371")) -> 0 | Q117: =SUMPRODUCT((MONTH('Budget indtastning'!$B$6:$B$371)=Q$5)*(YEAR('Budget indtastning'!$B$6:$B$371)=Q$6)+0,INDIRECT("'Budget indtastning'!$"&$R117&"6:"&$R117&"371")) -> 0 | R117: dc
B118: 0 | D118: 0 | F118: =SUMPRODUCT((MONTH('Budget indtastning'!$B$6:$B$371)=F$5)*(YEAR('Budget indtastning'!$B$6:$B$371)=F$6)+0,INDIRECT("'Budget indtastning'!$"&$R118&"6:"&$R118&"371")) -> 0 | G118: =SUMPRODUCT((MONTH('Budget indtastning'!$B$6:$B$371)=G$5)*(YEAR('Budget indtastning'!$B$6:$B$371)=G$6)+0,INDIRECT("'Budget indtastning'!$"&$R118&"6:"&$R118&"371")) -> 0 | H118: =SUMPRODUCT((MONTH('Budget indtastning'!$B$6:$B$371)=H$5)*(YEAR('Budget indtastning'!$B$6:$B$371)=H$6)+0,INDIRECT("'Budget indtastning'!$"&$R118&"6:"&$R118&"371")) -> 0 | I118: =SUMPRODUCT((MONTH('Budget indtastning'!$B$6:$B$371)=I$5)*(YEAR('Budget indtastning'!$B$6:$B$371)=I$6)+0,INDIRECT("'Budget indtastning'!$"&$R118&"6:"&$R118&"371")) -> 0 | J118: =SUMPRODUCT((MONTH('Budget indtastning'!$B$6:$B$371)=J$5)*(YEAR('Budget indtastning'!$B$6:$B$371)=J$6)+0,INDIRECT("'Budget indtastning'!$"&$R118&"6:"&$R118&"371")) -> 0 | K118: =SUMPRODUCT((MONTH('Budget indtastning'!$B$6:$B$371)=K$5)*(YEAR('Budget indtastning'!$B$6:$B$371)=K$6)+0,INDIRECT("'Budget indtastning'!$"&$R118&"6:"&$R118&"371")) -> 0 | L118: =SUMPRODUCT((MONTH('Budget indtastning'!$B$6:$B$371)=L$5)*(YEAR('Budget indtastning'!$B$6:$B$371)=L$6)+0,INDIRECT("'Budget indtastning'!$"&$R118&"6:"&$R118&"371")) -> 0 | M118: =SUMPRODUCT((MONTH('Budget indtastning'!$B$6:$B$371)=M$5)*(YEAR('Budget indtastning'!$B$6:$B$371)=M$6)+0,INDIRECT("'Budget indtastning'!$"&$R118&"6:"&$R118&"371")) -> 0 | N118: =SUMPRODUCT((MONTH('Budget indtastning'!$B$6:$B$371)=N$5)*(YEAR('Budget indtastning'!$B$6:$B$371)=N$6)+0,INDIRECT("'Budget indtastning'!$"&$R118&"6:"&$R118&"371")) -> 0 | O118: =SUMPRODUCT((MONTH('Budget indtastning'!$B$6:$B$371)=O$5)*(YEAR('Budget indtastning'!$B$6:$B$371)=O$6)+0,INDIRECT("'Budget indtastning'!$"&$R118&"6:"&$R118&"371")) -> 0 | P118: =SUMPRODUCT((MONTH('Budget indtastning'!$B$6:$B$371)=P$5)*(YEAR('Budget indtastning'!$B$6:$B$371)=P$6)+0,INDIRECT("'Budget indtastning'!$"&$R118&"6:"&$R118&"371")) -> 0 | Q118: =SUMPRODUCT((MONTH('Budget indtastning'!$B$6:$B$371)=Q$5)*(YEAR('Budget indtastning'!$B$6:$B$371)=Q$6)+0,INDIRECT("'Budget indtastning'!$"&$R118&"6:"&$R118&"371")) -> 0 | R118: dd
B119: 0 | D119: 0 | F119: =SUMPRODUCT((MONTH('Budget indtastning'!$B$6:$B$371)=F$5)*(YEAR('Budget indtastning'!$B$6:$B$371)=F$6)+0,INDIRECT("'Budget indtastning'!$"&$R119&"6:"&$R119&"371")) -> 0 | G119: =SUMPRODUCT((MONTH('Budget indtastning'!$B$6:$B$371)=G$5)*(YEAR('Budget indtastning'!$B$6:$B$371)=G$6)+0,INDIRECT("'Budget indtastning'!$"&$R119&"6:"&$R119&"371")) -> 0 | H119: =SUMPRODUCT((MONTH('Budget indtastning'!$B$6:$B$371)=H$5)*(YEAR('Budget indtastning'!$B$6:$B$371)=H$6)+0,INDIRECT("'Budget indtastning'!$"&$R119&"6:"&$R119&"371")) -> 0 | I119: =SUMPRODUCT((MONTH('Budget indtastning'!$B$6:$B$371)=I$5)*(YEAR('Budget indtastning'!$B$6:$B$371)=I$6)+0,INDIRECT("'Budget indtastning'!$"&$R119&"6:"&$R119&"371")) -> 0 | J119: =SUMPRODUCT((MONTH('Budget indtastning'!$B$6:$B$371)=J$5)*(YEAR('Budget indtastning'!$B$6:$B$371)=J$6)+0,INDIRECT("'Budget indtastning'!$"&$R119&"6:"&$R119&"371")) -> 0 | K119: =SUMPRODUCT((MONTH('Budget indtastning'!$B$6:$B$371)=K$5)*(YEAR('Budget indtastning'!$B$6:$B$371)=K$6)+0,INDIRECT("'Budget indtastning'!$"&$R119&"6:"&$R119&"371")) -> 0 | L119: =SUMPRODUCT((MONTH('Budget indtastning'!$B$6:$B$371)=L$5)*(YEAR('Budget indtastning'!$B$6:$B$371)=L$6)+0,INDIRECT("'Budget indtastning'!$"&$R119&"6:"&$R119&"371")) -> 0 | M119: =SUMPRODUCT((MONTH('Budget indtastning'!$B$6:$B$371)=M$5)*(YEAR('Budget indtastning'!$B$6:$B$371)=M$6)+0,INDIRECT("'Budget indtastning'!$"&$R119&"6:"&$R119&"371")) -> 0 | N119: =SUMPRODUCT((MONTH('Budget indtastning'!$B$6:$B$371)=N$5)*(YEAR('Budget indtastning'!$B$6:$B$371)=N$6)+0,INDIRECT("'Budget indtastning'!$"&$R119&"6:"&$R119&"371")) -> 0 | O119: =SUMPRODUCT((MONTH('Budget indtastning'!$B$6:$B$371)=O$5)*(YEAR('Budget indtastning'!$B$6:$B$371)=O$6)+0,INDIRECT("'Budget indtastning'!$"&$R119&"6:"&$R119&"371")) -> 0 | P119: =SUMPRODUCT((MONTH('Budget indtastning'!$B$6:$B$371)=P$5)*(YEAR('Budget indtastning'!$B$6:$B$371)=P$6)+0,INDIRECT("'Budget indtastning'!$"&$R119&"6:"&$R119&"371")) -> 0 | Q119: =SUMPRODUCT((MONTH('Budget indtastning'!$B$6:$B$371)=Q$5)*(YEAR('Budget indtastning'!$B$6:$B$371)=Q$6)+0,INDIRECT("'Budget indtastning'!$"&$R119&"6:"&$R119&"371")) -> 0 | R119: de
B120: 0 | D120: 0 | F120: =SUMPRODUCT((MONTH('Budget indtastning'!$B$6:$B$371)=F$5)*(YEAR('Budget indtastning'!$B$6:$B$371)=F$6)+0,INDIRECT("'Budget indtastning'!$"&$R120&"6:"&$R120&"371")) -> 0 | G120: =SUMPRODUCT((MONTH('Budget indtastning'!$B$6:$B$371)=G$5)*(YEAR('Budget indtastning'!$B$6:$B$371)=G$6)+0,INDIRECT("'Budget indtastning'!$"&$R120&"6:"&$R120&"371")) -> 0 | H120: =SUMPRODUCT((MONTH('Budget indtastning'!$B$6:$B$371)=H$5)*(YEAR('Budget indtastning'!$B$6:$B$371)=H$6)+0,INDIRECT("'Budget indtastning'!$"&$R120&"6:"&$R120&"371")) -> 0 | I120: =SUMPRODUCT((MONTH('Budget indtastning'!$B$6:$B$371)=I$5)*(YEAR('Budget indtastning'!$B$6:$B$371)=I$6)+0,INDIRECT("'Budget indtastning'!$"&$R120&"6:"&$R120&"371")) -> 0 | J120: =SUMPRODUCT((MONTH('Budget indtastning'!$B$6:$B$371)=J$5)*(YEAR('Budget indtastning'!$B$6:$B$371)=J$6)+0,INDIRECT("'Budget indtastning'!$"&$R120&"6:"&$R120&"371")) -> 0 | K120: =SUMPRODUCT((MONTH('Budget indtastning'!$B$6:$B$371)=K$5)*(YEAR('Budget indtastning'!$B$6:$B$371)=K$6)+0,INDIRECT("'Budget indtastning'!$"&$R120&"6:"&$R120&"371")) -> 0 | L120: =SUMPRODUCT((MONTH('Budget indtastning'!$B$6:$B$371)=L$5)*(YEAR('Budget indtastning'!$B$6:$B$371)=L$6)+0,INDIRECT("'Budget indtastning'!$"&$R120&"6:"&$R120&"371")) -> 0 | M120: =SUMPRODUCT((MONTH('Budget indtastning'!$B$6:$B$371)=M$5)*(YEAR('Budget indtastning'!$B$6:$B$371)=M$6)+0,INDIRECT("'Budget indtastning'!$"&$R120&"6:"&$R120&"371")) -> 0 | N120: =SUMPRODUCT((MONTH('Budget indtastning'!$B$6:$B$371)=N$5)*(YEAR('Budget indtastning'!$B$6:$B$371)=N$6)+0,INDIRECT("'Budget indtastning'!$"&$R120&"6:"&$R120&"371")) -> 0 | O120: =SUMPRODUCT((MONTH('Budget indtastning'!$B$6:$B$371)=O$5)*(YEAR('Budget indtastning'!$B$6:$B$371)=O$6)+0,INDIRECT("'Budget indtastning'!$"&$R120&"6:"&$R120&"371")) -> 0 | P120: =SUMPRODUCT((MONTH('Budget indtastning'!$B$6:$B$371)=P$5)*(YEAR('Budget indtastning'!$B$6:$B$371)=P$6)+0,INDIRECT("'Budget indtastning'!$"&$R120&"6:"&$R120&"371")) -> 0 | Q120: =SUMPRODUCT((MONTH('Budget indtastning'!$B$6:$B$371)=Q$5)*(YEAR('Budget indtastning'!$B$6:$B$371)=Q$6)+0,INDIRECT("'Budget indtastning'!$"&$R120&"6:"&$R120&"371")) -> 0 | R120: df
B121: 0 | D121: 0 | F121: =SUMPRODUCT((MONTH('Budget indtastning'!$B$6:$B$371)=F$5)*(YEAR('Budget indtastning'!$B$6:$B$371)=F$6)+0,INDIRECT("'Budget indtastning'!$"&$R121&"6:"&$R121&"371")) -> 0 | G121: =SUMPRODUCT((MONTH('Budget indtastning'!$B$6:$B$371)=G$5)*(YEAR('Budget indtastning'!$B$6:$B$371)=G$6)+0,INDIRECT("'Budget indtastning'!$"&$R121&"6:"&$R121&"371")) -> 0 | H121: =SUMPRODUCT((MONTH('Budget indtastning'!$B$6:$B$371)=H$5)*(YEAR('Budget indtastning'!$B$6:$B$371)=H$6)+0,INDIRECT("'Budget indtastning'!$"&$R121&"6:"&$R121&"371")) -> 0 | I121: =SUMPRODUCT((MONTH('Budget indtastning'!$B$6:$B$371)=I$5)*(YEAR('Budget indtastning'!$B$6:$B$371)=I$6)+0,INDIRECT("'Budget indtastning'!$"&$R121&"6:"&$R121&"371")) -> 0 | J121: =SUMPRODUCT((MONTH('Budget indtastning'!$B$6:$B$371)=J$5)*(YEAR('Budget indtastning'!$B$6:$B$371)=J$6)+0,INDIRECT("'Budget indtastning'!$"&$R121&"6:"&$R121&"371")) -> 0 | K121: =SUMPRODUCT((MONTH('Budget indtastning'!$B$6:$B$371)=K$5)*(YEAR('Budget indtastning'!$B$6:$B$371)=K$6)+0,INDIRECT("'Budget indtastning'!$"&$R121&"6:"&$R121&"371")) -> 0 | L121: =SUMPRODUCT((MONTH('Budget indtastning'!$B$6:$B$371)=L$5)*(YEAR('Budget indtastning'!$B$6:$B$371)=L$6)+0,INDIRECT("'Budget indtastning'!$"&$R121&"6:"&$R121&"371")) -> 0 | M121: =SUMPRODUCT((MONTH('Budget indtastning'!$B$6:$B$371)=M$5)*(YEAR('Budget indtastning'!$B$6:$B$371)=M$6)+0,INDIRECT("'Budget indtastning'!$"&$R121&"6:"&$R121&"371")) -> 0 | N121: =SUMPRODUCT((MONTH('Budget indtastning'!$B$6:$B$371)=N$5)*(YEAR('Budget indtastning'!$B$6:$B$371)=N$6)+0,INDIRECT("'Budget indtastning'!$"&$R121&"6:"&$R121&"371")) -> 0 | O121: =SUMPRODUCT((MONTH('Budget indtastning'!$B$6:$B$371)=O$5)*(YEAR('Budget indtastning'!$B$6:$B$371)=O$6)+0,INDIRECT("'Budget indtastning'!$"&$R121&"6:"&$R121&"371")) -> 0 | P121: =SUMPRODUCT((MONTH('Budget indtastning'!$B$6:$B$371)=P$5)*(YEAR('Budget indtastning'!$B$6:$B$371)=P$6)+0,INDIRECT("'Budget indtastning'!$"&$R121&"6:"&$R121&"371")) -> 0 | Q121: =SUMPRODUCT((MONTH('Budget indtastning'!$B$6:$B$371)=Q$5)*(YEAR('Budget indtastning'!$B$6:$B$371)=Q$6)+0,INDIRECT("'Budget indtastning'!$"&$R121&"6:"&$R121&"371")) -> 0 | R121: dg
B122: 0 | D122: 0 | F122: =SUMPRODUCT((MONTH('Budget indtastning'!$B$6:$B$371)=F$5)*(YEAR('Budget indtastning'!$B$6:$B$371)=F$6)+0,INDIRECT("'Budget indtastning'!$"&$R122&"6:"&$R122&"371")) -> 0 | G122: =SUMPRODUCT((MONTH('Budget indtastning'!$B$6:$B$371)=G$5)*(YEAR('Budget indtastning'!$B$6:$B$371)=G$6)+0,INDIRECT("'Budget indtastning'!$"&$R122&"6:"&$R122&"371")) -> 0 | H122: =SUMPRODUCT((MONTH('Budget indtastning'!$B$6:$B$371)=H$5)*(YEAR('Budget indtastning'!$B$6:$B$371)=H$6)+0,INDIRECT("'Budget indtastning'!$"&$R122&"6:"&$R122&"371")) -> 0 | I122: =SUMPRODUCT((MONTH('Budget indtastning'!$B$6:$B$371)=I$5)*(YEAR('Budget indtastning'!$B$6:$B$371)=I$6)+0,INDIRECT("'Budget indtastning'!$"&$R122&"6:"&$R122&"371")) -> 0 | J122: =SUMPRODUCT((MONTH('Budget indtastning'!$B$6:$B$371)=J$5)*(YEAR('Budget indtastning'!$B$6:$B$371)=J$6)+0,INDIRECT("'Budget indtastning'!$"&$R122&"6:"&$R122&"371")) -> 0 | K122: =SUMPRODUCT((MONTH('Budget indtastning'!$B$6:$B$371)=K$5)*(YEAR('Budget indtastning'!$B$6:$B$371)=K$6)+0,INDIRECT("'Budget indtastning'!$"&$R122&"6:"&$R122&"371")) -> 0 | L122: =SUMPRODUCT((MONTH('Budget indtastning'!$B$6:$B$371)=L$5)*(YEAR('Budget indtastning'!$B$6:$B$371)=L$6)+0,INDIRECT("'Budget indtastning'!$"&$R122&"6:"&$R122&"371")) -> 0 | M122: =SUMPRODUCT((MONTH('Budget indtastning'!$B$6:$B$371)=M$5)*(YEAR('Budget indtastning'!$B$6:$B$371)=M$6)+0,INDIRECT("'Budget indtastning'!$"&$R122&"6:"&$R122&"371")) -> 0 | N122: =SUMPRODUCT((MONTH('Budget indtastning'!$B$6:$B$371)=N$5)*(YEAR('Budget indtastning'!$B$6:$B$371)=N$6)+0,INDIRECT("'Budget indtastning'!$"&$R122&"6:"&$R122&"371")) -> 0 | O122: =SUMPRODUCT((MONTH('Budget indtastning'!$B$6:$B$371)=O$5)*(YEAR('Budget indtastning'!$B$6:$B$371)=O$6)+0,INDIRECT("'Budget indtastning'!$"&$R122&"6:"&$R122&"371")) -> 0 | P122: =SUMPRODUCT((MONTH('Budget indtastning'!$B$6:$B$371)=P$5)*(YEAR('Budget indtastning'!$B$6:$B$371)=P$6)+0,INDIRECT("'Budget indtastning'!$"&$R122&"6:"&$R122&"371")) -> 0 | Q122: =SUMPRODUCT((MONTH('Budget indtastning'!$B$6:$B$371)=Q$5)*(YEAR('Budget indtastning'!$B$6:$B$371)=Q$6)+0,INDIRECT("'Budget indtastning'!$"&$R122&"6:"&$R122&"371")) -> 0 | R122: dh
B123: 0 | D123: 0 | F123: =SUMPRODUCT((MONTH('Budget indtastning'!$B$6:$B$371)=F$5)*(YEAR('Budget indtastning'!$B$6:$B$371)=F$6)+0,INDIRECT("'Budget indtastning'!$"&$R123&"6:"&$R123&"371")) -> 0 | G123: =SUMPRODUCT((MONTH('Budget indtastning'!$B$6:$B$371)=G$5)*(YEAR('Budget indtastning'!$B$6:$B$371)=G$6)+0,INDIRECT("'Budget indtastning'!$"&$R123&"6:"&$R123&"371")) -> 0 | H123: =SUMPRODUCT((MONTH('Budget indtastning'!$B$6:$B$371)=H$5)*(YEAR('Budget indtastning'!$B$6:$B$371)=H$6)+0,INDIRECT("'Budget indtastning'!$"&$R123&"6:"&$R123&"371")) -> 0 | I123: =SUMPRODUCT((MONTH('Budget indtastning'!$B$6:$B$371)=I$5)*(YEAR('Budget indtastning'!$B$6:$B$371)=I$6)+0,INDIRECT("'Budget indtastning'!$"&$R123&"6:"&$R123&"371")) -> 0 | J123: =SUMPRODUCT((MONTH('Budget indtastning'!$B$6:$B$371)=J$5)*(YEAR('Budget indtastning'!$B$6:$B$371)=J$6)+0,INDIRECT("'Budget indtastning'!$"&$R123&"6:"&$R123&"371")) -> 0 | K123: =SUMPRODUCT((MONTH('Budget indtastning'!$B$6:$B$371)=K$5)*(YEAR('Budget indtastning'!$B$6:$B$371)=K$6)+0,INDIRECT("'Budget indtastning'!$"&$R123&"6:"&$R123&"371")) -> 0 | L123: =SUMPRODUCT((MONTH('Budget indtastning'!$B$6:$B$371)=L$5)*(YEAR('Budget indtastning'!$B$6:$B$371)=L$6)+0,INDIRECT("'Budget indtastning'!$"&$R123&"6:"&$R123&"371")) -> 0 | M123: =SUMPRODUCT((MONTH('Budget indtastning'!$B$6:$B$371)=M$5)*(YEAR('Budget indtastning'!$B$6:$B$371)=M$6)+0,INDIRECT("'Budget indtastning'!$"&$R123&"6:"&$R123&"371")) -> 0 | N123: =SUMPRODUCT((MONTH('Budget indtastning'!$B$6:$B$371)=N$5)*(YEAR('Budget indtastning'!$B$6:$B$371)=N$6)+0,INDIRECT("'Budget indtastning'!$"&$R123&"6:"&$R123&"371")) -> 0 | O123: =SUMPRODUCT((MONTH('Budget indtastning'!$B$6:$B$371)=O$5)*(YEAR('Budget indtastning'!$B$6:$B$371)=O$6)+0,INDIRECT("'Budget indtastning'!$"&$R123&"6:"&$R123&"371")) -> 0 | P123: =SUMPRODUCT((MONTH('Budget indtastning'!$B$6:$B$371)=P$5)*(YEAR('Budget indtastning'!$B$6:$B$371)=P$6)+0,INDIRECT("'Budget indtastning'!$"&$R123&"6:"&$R123&"371")) -> 0 | Q123: =SUMPRODUCT((MONTH('Budget indtastning'!$B$6:$B$371)=Q$5)*(YEAR('Budget indtastning'!$B$6:$B$371)=Q$6)+0,INDIRECT("'Budget indtastning'!$"&$R123&"6:"&$R123&"371")) -> 0 | R123: di
B124: 0 | D124: 0 | F124: =SUMPRODUCT((MONTH('Budget indtastning'!$B$6:$B$371)=F$5)*(YEAR('Budget indtastning'!$B$6:$B$371)=F$6)+0,INDIRECT("'Budget indtastning'!$"&$R124&"6:"&$R124&"371")) -> 0 | G124: =SUMPRODUCT((MONTH('Budget indtastning'!$B$6:$B$371)=G$5)*(YEAR('Budget indtastning'!$B$6:$B$371)=G$6)+0,INDIRECT("'Budget indtastning'!$"&$R124&"6:"&$R124&"371")) -> 0 | H124: =SUMPRODUCT((MONTH('Budget indtastning'!$B$6:$B$371)=H$5)*(YEAR('Budget indtastning'!$B$6:$B$371)=H$6)+0,INDIRECT("'Budget indtastning'!$"&$R124&"6:"&$R124&"371")) -> 0 | I124: =SUMPRODUCT((MONTH('Budget indtastning'!$B$6:$B$371)=I$5)*(YEAR('Budget indtastning'!$B$6:$B$371)=I$6)+0,INDIRECT("'Budget indtastning'!$"&$R124&"6:"&$R124&"371")) -> 0 | J124: =SUMPRODUCT((MONTH('Budget indtastning'!$B$6:$B$371)=J$5)*(YEAR('Budget indtastning'!$B$6:$B$371)=J$6)+0,INDIRECT("'Budget indtastning'!$"&$R124&"6:"&$R124&"371")) -> 0 | K124: =SUMPRODUCT((MONTH('Budget indtastning'!$B$6:$B$371)=K$5)*(YEAR('Budget indtastning'!$B$6:$B$371)=K$6)+0,INDIRECT("'Budget indtastning'!$"&$R124&"6:"&$R124&"371")) -> 0 | L124: =SUMPRODUCT((MONTH('Budget indtastning'!$B$6:$B$371)=L$5)*(YEAR('Budget indtastning'!$B$6:$B$371)=L$6)+0,INDIRECT("'Budget indtastning'!$"&$R124&"6:"&$R124&"371")) -> 0 | M124: =SUMPRODUCT((MONTH('Budget indtastning'!$B$6:$B$371)=M$5)*(YEAR('Budget indtastning'!$B$6:$B$371)=M$6)+0,INDIRECT("'Budget indtastning'!$"&$R124&"6:"&$R124&"371")) -> 0 | N124: =SUMPRODUCT((MONTH('Budget indtastning'!$B$6:$B$371)=N$5)*(YEAR('Budget indtastning'!$B$6:$B$371)=N$6)+0,INDIRECT("'Budget indtastning'!$"&$R124&"6:"&$R124&"371")) -> 0 | O124: =SUMPRODUCT((MONTH('Budget indtastning'!$B$6:$B$371)=O$5)*(YEAR('Budget indtastning'!$B$6:$B$371)=O$6)+0,INDIRECT("'Budget indtastning'!$"&$R124&"6:"&$R124&"371")) -> 0 | P124: =SUMPRODUCT((MONTH('Budget indtastning'!$B$6:$B$371)=P$5)*(YEAR('Budget indtastning'!$B$6:$B$371)=P$6)+0,INDIRECT("'Budget indtastning'!$"&$R124&"6:"&$R124&"371")) -> 0 | Q124: =SUMPRODUCT((MONTH('Budget indtastning'!$B$6:$B$371)=Q$5)*(YEAR('Budget indtastning'!$B$6:$B$371)=Q$6)+0,INDIRECT("'Budget indtastning'!$"&$R124&"6:"&$R124&"371")) -> 0 | R124: dj
B125: 0 | D125: 0 | F125: =SUMPRODUCT((MONTH('Budget indtastning'!$B$6:$B$371)=F$5)*(YEAR('Budget indtastning'!$B$6:$B$371)=F$6)+0,INDIRECT("'Budget indtastning'!$"&$R125&"6:"&$R125&"371")) -> 0 | G125: =SUMPRODUCT((MONTH('Budget indtastning'!$B$6:$B$371)=G$5)*(YEAR('Budget indtastning'!$B$6:$B$371)=G$6)+0,INDIRECT("'Budget indtastning'!$"&$R125&"6:"&$R125&"371")) -> 0 | H125: =SUMPRODUCT((MONTH('Budget indtastning'!$B$6:$B$371)=H$5)*(YEAR('Budget indtastning'!$B$6:$B$371)=H$6)+0,INDIRECT("'Budget indtastning'!$"&$R125&"6:"&$R125&"371")) -> 0 | I125: =SUMPRODUCT((MONTH('Budget indtastning'!$B$6:$B$371)=I$5)*(YEAR('Budget indtastning'!$B$6:$B$371)=I$6)+0,INDIRECT("'Budget indtastning'!$"&$R125&"6:"&$R125&"371")) -> 0 | J125: =SUMPRODUCT((MONTH('Budget indtastning'!$B$6:$B$371)=J$5)*(YEAR('Budget indtastning'!$B$6:$B$371)=J$6)+0,INDIRECT("'Budget indtastning'!$"&$R125&"6:"&$R125&"371")) -> 0 | K125: =SUMPRODUCT((MONTH('Budget indtastning'!$B$6:$B$371)=K$5)*(YEAR('Budget indtastning'!$B$6:$B$371)=K$6)+0,INDIRECT("'Budget indtastning'!$"&$R125&"6:"&$R125&"371")) -> 0 | L125: =SUMPRODUCT((MONTH('Budget indtastning'!$B$6:$B$371)=L$5)*(YEAR('Budget indtastning'!$B$6:$B$371)=L$6)+0,INDIRECT("'Budget indtastning'!$"&$R125&"6:"&$R125&"371")) -> 0 | M125: =SUMPRODUCT((MONTH('Budget indtastning'!$B$6:$B$371)=M$5)*(YEAR('Budget indtastning'!$B$6:$B$371)=M$6)+0,INDIRECT("'Budget indtastning'!$"&$R125&"6:"&$R125&"371")) -> 0 | N125: =SUMPRODUCT((MONTH('Budget indtastning'!$B$6:$B$371)=N$5)*(YEAR('Budget indtastning'!$B$6:$B$371)=N$6)+0,INDIRECT("'Budget indtastning'!$"&$R125&"6:"&$R125&"371")) -> 0 | O125: =SUMPRODUCT((MONTH('Budget indtastning'!$B$6:$B$371)=O$5)*(YEAR('Budget indtastning'!$B$6:$B$371)=O$6)+0,INDIRECT("'Budget indtastning'!$"&$R125&"6:"&$R125&"371")) -> 0 | P125: =SUMPRODUCT((MONTH('Budget indtastning'!$B$6:$B$371)=P$5)*(YEAR('Budget indtastning'!$B$6:$B$371)=P$6)+0,INDIRECT("'Budget indtastning'!$"&$R125&"6:"&$R125&"371")) -> 0 | Q125: =SUMPRODUCT((MONTH('Budget indtastning'!$B$6:$B$371)=Q$5)*(YEAR('Budget indtastning'!$B$6:$B$371)=Q$6)+0,INDIRECT("'Budget indtastning'!$"&$R125&"6:"&$R125&"371")) -> 0 | R125: dk
B126: 0 | D126: 0 | F126: =SUMPRODUCT((MONTH('Budget indtastning'!$B$6:$B$371)=F$5)*(YEAR('Budget indtastning'!$B$6:$B$371)=F$6)+0,INDIRECT("'Budget indtastning'!$"&$R126&"6:"&$R126&"371")) -> 0 | G126: =SUMPRODUCT((MONTH('Budget indtastning'!$B$6:$B$371)=G$5)*(YEAR('Budget indtastning'!$B$6:$B$371)=G$6)+0,INDIRECT("'Budget indtastning'!$"&$R126&"6:"&$R126&"371")) -> 0 | H126: =SUMPRODUCT((MONTH('Budget indtastning'!$B$6:$B$371)=H$5)*(YEAR('Budget indtastning'!$B$6:$B$371)=H$6)+0,INDIRECT("'Budget indtastning'!$"&$R126&"6:"&$R126&"371")) -> 0 | I126: =SUMPRODUCT((MONTH('Budget indtastning'!$B$6:$B$371)=I$5)*(YEAR('Budget indtastning'!$B$6:$B$371)=I$6)+0,INDIRECT("'Budget indtastning'!$"&$R126&"6:"&$R126&"371")) -> 0 | J126: =SUMPRODUCT((MONTH('Budget indtastning'!$B$6:$B$371)=J$5)*(YEAR('Budget indtastning'!$B$6:$B$371)=J$6)+0,INDIRECT("'Budget indtastning'!$"&$R126&"6:"&$R126&"371")) -> 0 | K126: =SUMPRODUCT((MONTH('Budget indtastning'!$B$6:$B$371)=K$5)*(YEAR('Budget indtastning'!$B$6:$B$371)=K$6)+0,INDIRECT("'Budget indtastning'!$"&$R126&"6:"&$R126&"371")) -> 0 | L126: =SUMPRODUCT((MONTH('Budget indtastning'!$B$6:$B$371)=L$5)*(YEAR('Budget indtastning'!$B$6:$B$371)=L$6)+0,INDIRECT("'Budget indtastning'!$"&$R126&"6:"&$R126&"371")) -> 0 | M126: =SUMPRODUCT((MONTH('Budget indtastning'!$B$6:$B$371)=M$5)*(YEAR('Budget indtastning'!$B$6:$B$371)=M$6)+0,INDIRECT("'Budget indtastning'!$"&$R126&"6:"&$R126&"371")) -> 0 | N126: =SUMPRODUCT((MONTH('Budget indtastning'!$B$6:$B$371)=N$5)*(YEAR('Budget indtastning'!$B$6:$B$371)=N$6)+0,INDIRECT("'Budget indtastning'!$"&$R126&"6:"&$R126&"371")) -> 0 | O126: =SUMPRODUCT((MONTH('Budget indtastning'!$B$6:$B$371)=O$5)*(YEAR('Budget indtastning'!$B$6:$B$371)=O$6)+0,INDIRECT("'Budget indtastning'!$"&$R126&"6:"&$R126&"371")) -> 0 | P126: =SUMPRODUCT((MONTH('Budget indtastning'!$B$6:$B$371)=P$5)*(YEAR('Budget indtastning'!$B$6:$B$371)=P$6)+0,INDIRECT("'Budget indtastning'!$"&$R126&"6:"&$R126&"371")) -> 0 | Q126: =SUMPRODUCT((MONTH('Budget indtastning'!$B$6:$B$371)=Q$5)*(YEAR('Budget indtastning'!$B$6:$B$371)=Q$6)+0,INDIRECT("'Budget indtastning'!$"&$R126&"6:"&$R126&"371")) -> 0 | R126: dl
B127: 0 | D127: 0 | F127: =SUMPRODUCT((MONTH('Budget indtastning'!$B$6:$B$371)=F$5)*(YEAR('Budget indtastning'!$B$6:$B$371)=F$6)+0,INDIRECT("'Budget indtastning'!$"&$R127&"6:"&$R127&"371")) -> 0 | G127: =SUMPRODUCT((MONTH('Budget indtastning'!$B$6:$B$371)=G$5)*(YEAR('Budget indtastning'!$B$6:$B$371)=G$6)+0,INDIRECT("'Budget indtastning'!$"&$R127&"6:"&$R127&"371")) -> 0 | H127: =SUMPRODUCT((MONTH('Budget indtastning'!$B$6:$B$371)=H$5)*(YEAR('Budget indtastning'!$B$6:$B$371)=H$6)+0,INDIRECT("'Budget indtastning'!$"&$R127&"6:"&$R127&"371")) -> 0 | I127: =SUMPRODUCT((MONTH('Budget indtastning'!$B$6:$B$371)=I$5)*(YEAR('Budget indtastning'!$B$6:$B$371)=I$6)+0,INDIRECT("'Budget indtastning'!$"&$R127&"6:"&$R127&"371")) -> 0 | J127: =SUMPRODUCT((MONTH('Budget indtastning'!$B$6:$B$371)=J$5)*(YEAR('Budget indtastning'!$B$6:$B$371)=J$6)+0,INDIRECT("'Budget indtastning'!$"&$R127&"6:"&$R127&"371")) -> 0 | K127: =SUMPRODUCT((MONTH('Budget indtastning'!$B$6:$B$371)=K$5)*(YEAR('Budget indtastning'!$B$6:$B$371)=K$6)+0,INDIRECT("'Budget indtastning'!$"&$R127&"6:"&$R127&"371")) -> 0 | L127: =SUMPRODUCT((MONTH('Budget indtastning'!$B$6:$B$371)=L$5)*(YEAR('Budget indtastning'!$B$6:$B$371)=L$6)+0,INDIRECT("'Budget indtastning'!$"&$R127&"6:"&$R127&"371")) -> 0 | M127: =SUMPRODUCT((MONTH('Budget indtastning'!$B$6:$B$371)=M$5)*(YEAR('Budget indtastning'!$B$6:$B$371)=M$6)+0,INDIRECT("'Budget indtastning'!$"&$R127&"6:"&$R127&"371")) -> 0 | N127: =SUMPRODUCT((MONTH('Budget indtastning'!$B$6:$B$371)=N$5)*(YEAR('Budget indtastning'!$B$6:$B$371)=N$6)+0,INDIRECT("'Budget indtastning'!$"&$R127&"6:"&$R127&"371")) -> 0 | O127: =SUMPRODUCT((MONTH('Budget indtastning'!$B$6:$B$371)=O$5)*(YEAR('Budget indtastning'!$B$6:$B$371)=O$6)+0,INDIRECT("'Budget indtastning'!$"&$R127&"6:"&$R127&"371")) -> 0 | P127: =SUMPRODUCT((MONTH('Budget indtastning'!$B$6:$B$371)=P$5)*(YEAR('Budget indtastning'!$B$6:$B$371)=P$6)+0,INDIRECT("'Budget indtastning'!$"&$R127&"6:"&$R127&"371")) -> 0 | Q127: =SUMPRODUCT((MONTH('Budget indtastning'!$B$6:$B$371)=Q$5)*(YEAR('Budget indtastning'!$B$6:$B$371)=Q$6)+0,INDIRECT("'Budget indtastning'!$"&$R127&"6:"&$R127&"371")) -> 0 | R127: dm
